Workbook

Sheet Filtros (hidden)
A1: departamento | B1: ciudad | F1: departamento
A2: AMAZONAS | B2: LETICIA | F2: =+_xlfn.UNIQUE(A2:A1500) -> AMAZONAS | G2: =+_xlfn._xlws.FILTER(B2:B1500,A2:A1500=Visor!M7,"") -> ABREGO | J2: =+COUNTA(G:G) -> 24
A3: AMAZONAS | B3: PUERTO NARIÑO | F3: ANTIOQUIA | G3: ARBOLEDAS
A4: ANTIOQUIA | B4: ABEJORRAL | F4: ARAUCA | G4: BOCHALEMA
A5: ANTIOQUIA | B5: ALEJANDRÍA | F5: ARCHIPIÉLAGO DE SAN ANDRÉS, PROVIDENCIA Y SANTA CATALINA | G5: BUCARASICA
A6: ANTIOQUIA | B6: AMAGÁ | F6: ATLÁNTICO | G6: CACHIRÁ
A7: ANTIOQUIA | B7: AMALFI | F7: BOGOTÁ, D.C. | G7: CÁCOTA
A8: ANTIOQUIA | B8: ANDES | F8: BOLÍVAR | G8: CHINÁCOTA
A9: ANTIOQUIA | B9: ANGELÓPOLIS | F9: BOYACÁ | G9: CONVENCIÓN
A10: ANTIOQUIA | B10: ANORÍ | F10: CALDAS | G10: CÚCUTA
A11: ANTIOQUIA | B11: ANZA | F11: CAQUETÁ | G11: CUCUTILLA
A12: ANTIOQUIA | B12: APARTADÓ | F12: CASANARE | G12: EL ZULIA
A13: ANTIOQUIA | B13: ARBOLETES | F13: CAUCA | G13: LA ESPERANZA
A14: ANTIOQUIA | B14: BELLO | F14: CESAR | G14: LOS PATIOS
A15: ANTIOQUIA | B15: BELMIRA | F15: CHOCÓ | G15: OCAÑA
A16: ANTIOQUIA | B16: BETANIA | F16: CÓRDOBA | G16: PAMPLONA
A17: ANTIOQUIA | B17: BETULIA | F17: CUNDINAMARCA | G17: PAMPLONITA
A18: ANTIOQUIA | B18: BRICEÑO | F18: GUAINÍA | G18: PUERTO SANTANDER
A19: ANTIOQUIA | B19: BURITICÁ | F19: GUAVIARE | G19: SALAZAR
A20: ANTIOQUIA | B20: CÁCERES | F20: HUILA | G20: SAN CAYETANO
A21: ANTIOQUIA | B21: CAICEDO | F21: LA GUAJIRA | G21: SANTIAGO
A22: ANTIOQUIA | B22: CALDAS | F22: MAGDALENA | G22: SARDINATA
A23: ANTIOQUIA | B23: CAÑASGORDAS | F23: META | G23: TIBÚ
A24: ANTIOQUIA | B24: CARAMANTA | F24: NARIÑO | G24: TOLEDO
A25: ANTIOQUIA | B25: CAREPA | F25: NORTE DE SANTANDER | G25: VILLA DEL ROSARIO
A26: ANTIOQUIA | B26: CAROLINA | F26: PUTUMAYO
A27: ANTIOQUIA | B27: CAUCASIA | F27: QUINDIO
A28: ANTIOQUIA | B28: CHIGORODÓ | F28: RISARALDA
A29: ANTIOQUIA | B29: CISNEROS | F29: SANTANDER
A30: ANTIOQUIA | B30: CIUDAD BOLÍVAR | F30: SUCRE
A31: ANTIOQUIA | B31: COCORNÁ | F31: TOLIMA
A32: ANTIOQUIA | B32: CONCEPCIÓN | F32: VALLE DEL CAUCA
A33: ANTIOQUIA | B33: CONCORDIA | F33: VAUPÉS
A34: ANTIOQUIA | B34: COPACABANA | F34: VICHADA
A35: ANTIOQUIA | B35: DABEIBA | F35: 0
A36: ANTIOQUIA | B36: DON MATÍAS
A37: ANTIOQUIA | B37: EBÉJICO
A38: ANTIOQUIA | B38: EL BAGRE
A39: ANTIOQUIA | B39: EL CARMEN DE VIBORAL
A40: ANTIOQUIA | B40: EL SANTUARIO
A41: ANTIOQUIA | B41: ENTRERRIOS
A42: ANTIOQUIA | B42: ENVIGADO
A43: ANTIOQUIA | B43: FREDONIA
A44: ANTIOQUIA | B44: FRONTINO
A45: ANTIOQUIA | B45: GIRALDO
A46: ANTIOQUIA | B46: GIRARDOTA
A47: ANTIOQUIA | B47: GÓMEZ PLATA
A48: ANTIOQUIA | B48: GUARNE
A49: ANTIOQUIA | B49: GUATAPE
A50: ANTIOQUIA | B50: HELICONIA
A51: ANTIOQUIA | B51: HISPANIA
A52: ANTIOQUIA | B52: ITAGUI
A53: ANTIOQUIA | B53: ITUANGO
A54: ANTIOQUIA | B54: JARDÍN
A55: ANTIOQUIA | B55: JERICÓ
A56: ANTIOQUIA | B56: LA CEJA
A57: ANTIOQUIA | B57: LA ESTRELLA
A58: ANTIOQUIA | B58: LA PINTADA
A59: ANTIOQUIA | B59: LIBORINA
A60: ANTIOQUIA | B60: MACEO
A61: ANTIOQUIA | B61: MARINILLA
A62: ANTIOQUIA | B62: MEDELLÍN
A63: ANTIOQUIA | B63: MONTEBELLO
A64: ANTIOQUIA | B64: MURINDÓ
A65: ANTIOQUIA | B65: MUTATÁ
A66: ANTIOQUIA | B66: NARIÑO
A67: ANTIOQUIA | B67: NECOCLÍ
A68: ANTIOQUIA | B68: OLAYA
A69: ANTIOQUIA | B69: PEÑOL
A70: ANTIOQUIA | B70: PUEBLORRICO
A71: ANTIOQUIA | B71: PUERTO BERRÍO
A72: ANTIOQUIA | B72: PUERTO NARE
A73: ANTIOQUIA | B73: PUERTO TRIUNFO
A74: ANTIOQUIA | B74: REMEDIOS
A75: ANTIOQUIA | B75: RETIRO
A76: ANTIOQUIA | B76: RIONEGRO
A77: ANTIOQUIA | B77: SABANETA
A78: ANTIOQUIA | B78: SALGAR
A79: ANTIOQUIA | B79: SAN ANDRÉS DE CUERQUÍA
A80: ANTIOQUIA | B80: SAN CARLOS
A81: ANTIOQUIA | B81: SAN JERÓNIMO
A82: ANTIOQUIA | B82: SAN JOSÉ DE LA MONTAÑA
A83: ANTIOQUIA | B83: SAN JUAN DE URABÁ
A84: ANTIOQUIA | B84: SAN PEDRO DE LOS MILAGROS
A85: ANTIOQUIA | B85: SAN PEDRO DE URABA
A86: ANTIOQUIA | B86: SAN RAFAEL
A87: ANTIOQUIA | B87: SAN ROQUE
A88: ANTIOQUIA | B88: SAN VICENTE
A89: ANTIOQUIA | B89: SANTA BÁRBARA
A90: ANTIOQUIA | B90: SANTA ROSA DE OSOS
A91: ANTIOQUIA | B91: SANTAFÉ DE ANTIOQUIA
A92: ANTIOQUIA | B92: SANTO DOMINGO
A93: ANTIOQUIA | B93: SEGOVIA
A94: ANTIOQUIA | B94: SONSON
A95: ANTIOQUIA | B95: SOPETRÁN
A96: ANTIOQUIA | B96: TÁMESIS
A97: ANTIOQUIA | B97: TARAZÁ
A98: ANTIOQUIA | B98: TARSO
A99: ANTIOQUIA | B99: TITIRIBÍ
A100: ANTIOQUIA | B100: TURBO
A101: ANTIOQUIA | B101: URAMITA
A102: ANTIOQUIA | B102: URRAO
A103: ANTIOQUIA | B103: VALDIVIA
A104: ANTIOQUIA | B104: VALPARAÍSO
A105: ANTIOQUIA | B105: VEGACHÍ
A106: ANTIOQUIA | B106: VENECIA
A107: ANTIOQUIA | B107: VIGÍA DEL FUERTE
A108: ANTIOQUIA | B108: YALÍ
A109: ANTIOQUIA | B109: YARUMAL
A110: ANTIOQUIA | B110: YOLOMBÓ
A111: ANTIOQUIA | B111: YONDÓ
A112: ANTIOQUIA | B112: ZARAGOZA
A113: ARAUCA | B113: ARAUCA
A114: ARAUCA | B114: ARAUQUITA
A115: ARAUCA | B115: FORTUL
A116: ARAUCA | B116: SARAVENA
A117: ARAUCA | B117: TAME
A118: ARCHIPIÉLAGO DE SAN ANDRÉS, PROVIDENCIA Y SANTA CATALINA | B118: PROVIDENCIA
A119: ARCHIPIÉLAGO DE SAN ANDRÉS, PROVIDENCIA Y SANTA CATALINA | B119: SAN ANDRÉS
A120: ATLÁNTICO | B120: BARANOA
A121: ATLÁNTICO | B121: BARRANQUILLA
A122: ATLÁNTICO | B122: CAMPO DE LA CRUZ
A123: ATLÁNTICO | B123: GALAPA
A124: ATLÁNTICO | B124: JUAN DE ACOSTA
A125: ATLÁNTICO | B125: LURUACO
A126: ATLÁNTICO | B126: MALAMBO
A127: ATLÁNTICO | B127: PALMAR DE VARELA
A128: ATLÁNTICO | B128: POLONUEVO
A129: ATLÁNTICO | B129: PONEDERA
A130: ATLÁNTICO | B130: PUERTO COLOMBIA
A131: ATLÁNTICO | B131: SABANAGRANDE
A132: ATLÁNTICO | B132: SABANALARGA
A133: ATLÁNTICO | B133: SANTA LUCÍA
A134: ATLÁNTICO | B134: SANTO TOMÁS
A135: ATLÁNTICO | B135: SOLEDAD
A136: ATLÁNTICO | B136: SUAN
A137: BOGOTÁ, D.C. | B137: BOGOTÁ, D.C.
A138: BOLÍVAR | B138: ALTOS DEL ROSARIO
A139: BOLÍVAR | B139: ARJONA
A140: BOLÍVAR | B140: CANTAGALLO
A141: BOLÍVAR | B141: CARTAGENA
A142: BOLÍVAR | B142: CLEMENCIA
A143: BOLÍVAR | B143: CÓRDOBA
A144: BOLÍVAR | B144: EL CARMEN DE BOLÍVAR
A145: BOLÍVAR | B145: EL PEÑÓN
A146: BOLÍVAR | B146: HATILLO DE LOBA
A147: BOLÍVAR | B147: MAGANGUÉ
A148: BOLÍVAR | B148: MAHATES
A149: BOLÍVAR | B149: MARÍA LA BAJA
A150: BOLÍVAR | B150: MOMPÓS
A151: BOLÍVAR | B151: MORALES
A152: BOLÍVAR | B152: RÍO VIEJO
A153: BOLÍVAR | B153: SAN JACINTO
A154: BOLÍVAR | B154: SAN JUAN NEPOMUCENO
A155: BOLÍVAR | B155: SAN MARTÍN DE LOBA
A156: BOLÍVAR | B156: SAN PABLO
A157: BOLÍVAR | B157: SANTA ROSA
A158: BOLÍVAR | B158: SANTA ROSA DEL SUR
A159: BOLÍVAR | B159: TALAIGUA NUEVO
A160: BOLÍVAR | B160: TURBACO
A161: BOLÍVAR | B161: TURBANÁ
A162: BOLÍVAR | B162: ZAMBRANO
A163: BOYACÁ | B163: AQUITANIA
A164: BOYACÁ | B164: ARCABUCO
A165: BOYACÁ | B165: BELÉN
A166: BOYACÁ | B166: BOAVITA
A167: BOYACÁ | B167: BOYACÁ
A168: BOYACÁ | B168: BUSBANZÁ
A169: BOYACÁ | B169: CHIQUINQUIRÁ
A170: BOYACÁ | B170: CHITARAQUE
A171: BOYACÁ | B171: CHIVATÁ
A172: BOYACÁ | B172: CIÉNEGA
A173: BOYACÁ | B173: CÓMBITA
A174: BOYACÁ | B174: CUCAITA
A175: BOYACÁ | B175: CUÍTIVA
A176: BOYACÁ | B176: DUITAMA
A177: BOYACÁ | B177: EL COCUY
A178: BOYACÁ | B178: EL ESPINO
A179: BOYACÁ | B179: FIRAVITOBA
A180: BOYACÁ | B180: GACHANTIVÁ
A181: BOYACÁ | B181: GAMEZA
A182: BOYACÁ | B182: GARAGOA
A183: BOYACÁ | B183: GUATEQUE
A184: BOYACÁ | B184: GÜICÁN
A185: BOYACÁ | B185: IZA
A186: BOYACÁ | B186: JENESANO
A187: BOYACÁ | B187: LA UVITA
A188: BOYACÁ | B188: MARIPÍ
A189: BOYACÁ | B189: MIRAFLORES
A190: BOYACÁ | B190: MONGUÍ
A191: BOYACÁ | B191: MONIQUIRÁ
A192: BOYACÁ | B192: MOTAVITA
A193: BOYACÁ | B193: MUZO
A194: BOYACÁ | B194: NOBSA
A195: BOYACÁ | B195: NUEVO COLÓN
A196: BOYACÁ | B196: OICATÁ
A197: BOYACÁ | B197: OTANCHE
A198: BOYACÁ | B198: PAIPA
A199: BOYACÁ | B199: PAUNA
A200: BOYACÁ | B200: PAZ DE RÍO
... 563 more rows

Sheet Base (hidden)
A1: LLAVE (TIPO ID - DOCUMENTO) | B1: CIUDAD - DIVIPOLA - R | C1: Ciudad | D1: TOTAL COTIZANTES CON CONCEPTO DE CONFORMIDAD TOTAL A GIRAR | E1: TOTAL COTIZANTES CON CONCEPTO DE NO CONFORMIDAD | F1: TIPO DE PERSONA | G1: Departamento DIVIPOLA (P) | H1: NOMBRE DEPTO DIVIOLA | I1: ESTADO_TOTAL A GIRAR | J1: Numero total empleados | K1: Tamaño del Empleador | L1: STRCODPAR_CIIU_EMPRESA | M1: ACTIVIDAD ECONOMICA | N1: SEXO_F_ | O1: SEXO_M_ | P1: SEXO_ND_ | U1: LLAVE (TIPO ID - DOCUMENTO) | V1: CIUDAD - DIVIPOLA - R | W1: Ciudad | X1: TOTAL COTIZANTES CON CONCEPTO DE CONFORMIDAD TOTAL A GIRAR | Y1: TOTAL COTIZANTES CON CONCEPTO DE NO CONFORMIDAD | Z1: TIPO DE PERSONA | AA1: Departamento DIVIPOLA (P) | AB1: NOMBRE DEPTO DIVIOLA | AC1: ESTADO_TOTAL A GIRAR | AD1: Numero total empleados | AE1: Tamaño del Empleador | AF1: STRCODPAR_CIIU_EMPRESA | AG1: ACTIVIDAD ECONOMICA | AH1: SEXO_F_ | AI1: SEXO_M_ | AJ1: SEXO_ND_ | AO1: Empleadores | AP1: % | AQ1: Empleados | AR1: % | AS1: Recursos | AT1: Mpio
A2: NIT-900532240 | B2: 11001 | C2: BOGOTÁ, D.C. | D2: 4 | E2: 1 | F2: Jurídica | G2: 11 | H2: BOGOTÁ, D.C. | I2: Aprobado con subsidio | J2: 5 | K2: MICRO | L2: 4774 | M2: COMERCIO AL POR MAYOR Y AL POR MENOR; REPARACIÓN DE VEHÍCULOS AUTOMOTORES Y MOTOCICLETAS | N2: 2 | O2: 2 | P2: 0 | R2: =+_xlfn.UNIQUE(M2:M399999) -> COMERCIO AL POR MAYOR Y AL POR MENOR; REPARACIÓN DE VEHÍCULOS AUTOMOTORES Y MOTOCICLETAS | U2: =+_xlfn._xlws.FILTER($A$2:$P$399999,$H$2:$H$399999=Visor!$M$7,"") -> NIT-890600826 | V2: 54001 | W2: CÚCUTA | X2: 0 | Y2: 0 | Z2: Jurídica | AA2: 54 | AB2: NORTE DE SANTANDER | AC2: Aprobado sin subsidio | AD2: 14 | AE2: PEQUEÑA | AF2: 4631 | AG2: COMERCIO AL POR MAYOR Y AL POR MENOR; REPARACIÓN DE VEHÍCULOS AUTOMOTORES Y MOTOCICLETAS | AH2: 0 | AI2: 0 | AJ2: 0 | AN2: =CONCATENATE(AO2,COUNTIF($AO$2:AO2,AO2)) -> 15501 | AO2: =+COUNTIFS($W$2:$W$399999,AT2,$AC$2:$AC$399999,"Aprobado con subsidio")*1 -> 1550 | AP2: =+AO2/SUM($AO$2:$AO$129) -> 0.7832238504 | AQ2: =+SUMIFS($X$2:$X$399999,$W$2:$W$399999,AT2,$AC$2:$AC$399999,"Aprobado con subsidio") -> 16299 | AR2: =+AQ2/SUM($AQ$2:$AQ$129) -> 0.7577405858 | AS2: =+(SUMIFS(Montos!$Y$2:$Y$396864,Montos!$R$2:$R$396864,Base!AT2)/1000000) -> 4660.92 | AT2: =_xlfn.UNIQUE('$Base'!$AB$2:$AB$400000) -> CÚCUTA
A3: NIT-900533934 | B3: 76109 | C3: BUENAVENTURA | D3: 7 | E3: 1 | F3: Jurídica | G3: 76 | H3: VALLE DEL CAUCA | I3: Aprobado con subsidio | J3: 10 | K3: MICRO | L3: 5611 | M3: ALOJAMIENTO Y SERVICIOS DE COMIDA | N3: 7 | O3: 0 | P3: 0 | R3: ALOJAMIENTO Y SERVICIOS DE COMIDA | U3: CC-1942683 | V3: 54498 | W3: OCAÑA | X3: 3 | Y3: 1 | Z3: Natural | AA3: 54 | AB3: NORTE DE SANTANDER | AC3: Aprobado con subsidio | AD3: 4 | AE3: MICRO | AF3: 4731 | AG3: COMERCIO AL POR MAYOR Y AL POR MENOR; REPARACIÓN DE VEHÍCULOS AUTOMOTORES Y MOTOCICLETAS | AH3: 1 | AI3: 2 | AJ3: 0 | AN3: =CONCATENATE(AO3,COUNTIF($AO$2:AO3,AO3)) -> 1181 | AO3: 118 | AP3: 0.05962607377 | AQ3: 1084 | AR3: =+AQ3/SUM($AQ$2:$AQ$129) -> 0.05039516504 | AS3: =+(SUMIFS(Montos!$Y$2:$Y$396864,Montos!$R$2:$R$396864,Base!AT3)/1000000) -> 344.08 | AT3: OCAÑA
A4: NIT-900534382 | B4: 44430 | C4: MAICAO | D4: 12 | E4: 9 | F4: Jurídica | G4: 44 | H4: LA GUAJIRA | I4: Aprobado con subsidio | J4: 22 | K4: PEQUEÑA | L4: 8692 | M4: ACTIVIDADES DE ATENCIÓN DE LA SALUD HUMANA Y DE ASISTENCIA SOCIAL | N4: 9 | O4: 3 | P4: 0 | R4: ACTIVIDADES DE ATENCIÓN DE LA SALUD HUMANA Y DE ASISTENCIA SOCIAL | U4: NIT-900586007 | V4: 54001 | W4: CÚCUTA | X4: 15 | Y4: 4 | Z4: Jurídica | AA4: 54 | AB4: NORTE DE SANTANDER | AC4: Aprobado con subsidio | AD4: 23 | AE4: PEQUEÑA | AF4: 8530 | AG4: EDUCACIÓN | AH4: 11 | AI4: 4 | AJ4: 0 | AN4: =CONCATENATE(AO4,COUNTIF($AO$2:AO4,AO4)) -> 591 | AO4: 59 | AP4: 0.02981303689 | AQ4: 830 | AR4: 0.03858670386 | AS4: =+(SUMIFS(Montos!$Y$2:$Y$396864,Montos!$R$2:$R$396864,Base!AT4)/1000000) -> 264.88 | AT4: VILLA DEL ROSARIO
A5: NIT-900534407 | B5: 11001 | C5: BOGOTÁ, D.C. | D5: 30 | E5: 111 | F5: Jurídica | G5: 11 | H5: BOGOTÁ, D.C. | I5: Aprobado con subsidio | J5: 185 | K5: MEDIANA | L5: 8110 | M5: ACTIVIDADES DE SERVICIOS ADMINISTRATIVOS Y DE APOYO | N5: 9 | O5: 21 | P5: 0 | R5: ACTIVIDADES DE SERVICIOS ADMINISTRATIVOS Y DE APOYO | U5: NIT-900261146 | V5: 54874 | W5: VILLA DEL ROSARIO | X5: 2 | Y5: 1 | Z5: Jurídica | AA5: 54 | AB5: NORTE DE SANTANDER | AC5: Aprobado con subsidio | AD5: 1 | AE5: MICRO | AF5: 4661 | AG5: COMERCIO AL POR MAYOR Y AL POR MENOR; REPARACIÓN DE VEHÍCULOS AUTOMOTORES Y MOTOCICLETAS | AH5: 2 | AI5: 0 | AJ5: 0 | AN5: =CONCATENATE(AO5,COUNTIF($AO$2:AO5,AO5)) -> 581 | AO5: 58 | AP5: 0.02930773118 | AQ5: 803 | AR5: 0.03733147373 | AS5: =+(SUMIFS(Montos!$Y$2:$Y$396864,Montos!$R$2:$R$396864,Base!AT5)/1000000) -> 206.8 | AT5: PAMPLONA
A6: NIT-900535662 | B6: 11001 | C6: BOGOTÁ, D.C. | D6: 1 | E6: 6 | F6: Jurídica | G6: 11 | H6: BOGOTÁ, D.C. | I6: Aprobado con subsidio | J6: 8 | K6: MICRO | L6: 5911 | M6: INFORMACIÓN Y COMUNICACIONES | N6: 1 | O6: 0 | P6: 0 | R6: INFORMACIÓN Y COMUNICACIONES | U6: NIT-900617516 | V6: 54001 | W6: CÚCUTA | X6: 11 | Y6: 0 | Z6: Jurídica | AA6: 54 | AB6: NORTE DE SANTANDER | AC6: Aprobado con subsidio | AD6: 11 | AE6: PEQUEÑA | AF6: 4664 | AG6: COMERCIO AL POR MAYOR Y AL POR MENOR; REPARACIÓN DE VEHÍCULOS AUTOMOTORES Y MOTOCICLETAS | AH6: 4 | AI6: 7 | AJ6: 0 | AN6: =CONCATENATE(AO6,COUNTIF($AO$2:AO6,AO6)) -> 881 | AO6: 88 | AP6: 0.04446690248 | AQ6: 1173 | AR6: 0.05453277545 | AS6: =+(SUMIFS(Montos!$Y$2:$Y$396864,Montos!$R$2:$R$396864,Base!AT6)/1000000) -> 307.56 | AT6: LOS PATIOS
A7: NIT-900538091 | B7: 68679 | C7: SAN GIL | D7: 0 | E7: 0 | F7: Jurídica | G7: 68 | H7: SANTANDER | I7: Rechazado a nivel aportante | J7: 1 | K7: MICRO | L7: 9499 | M7: OTRAS ACTIVIDADES DE SERVICIOS | N7: 0 | O7: 0 | P7: 0 | R7: OTRAS ACTIVIDADES DE SERVICIOS | U7: CC-13467892 | V7: 54001 | W7: CÚCUTA | X7: 7 | Y7: 2 | Z7: Natural | AA7: 54 | AB7: NORTE DE SANTANDER | AC7: Aprobado con subsidio | AD7: 10 | AE7: MICRO | AF7: 4724 | AG7: COMERCIO AL POR MAYOR Y AL POR MENOR; REPARACIÓN DE VEHÍCULOS AUTOMOTORES Y MOTOCICLETAS | AH7: 4 | AI7: 3 | AJ7: 0 | AN7: =CONCATENATE(AO7,COUNTIF($AO$2:AO7,AO7)) -> 321 | AO7: 32 | AP7: 0.01616978272 | AQ7: 193 | AR7: 0.008972570897 | AS7: =+(SUMIFS(Montos!$Y$2:$Y$396864,Montos!$R$2:$R$396864,Base!AT7)/1000000) -> 60.06 | AT7: TIBÚ
A8: NIT-900540156 | B8: 23001 | C8: MONTERÍA | D8: 38 | E8: 225 | F8: Jurídica | G8: 23 | H8: CÓRDOBA | I8: Aprobado con subsidio | J8: 305 | K8: GRANDE | L8: 8610 | M8: ACTIVIDADES DE ATENCIÓN DE LA SALUD HUMANA Y DE ASISTENCIA SOCIAL | N8: 27 | O8: 11 | P8: 0 | R8: INDUSTRIAS MANUFACTURERAS | U8: CC-13471056 | V8: 54001 | W8: CÚCUTA | X8: 5 | Y8: 2 | Z8: Natural | AA8: 54 | AB8: NORTE DE SANTANDER | AC8: Aprobado con subsidio | AD8: 7 | AE8: MICRO | AF8: 4752 | AG8: COMERCIO AL POR MAYOR Y AL POR MENOR; REPARACIÓN DE VEHÍCULOS AUTOMOTORES Y MOTOCICLETAS | AH8: 0 | AI8: 5 | AJ8: 0 | AN8: =CONCATENATE(AO8,COUNTIF($AO$2:AO8,AO8)) -> 131 | AO8: 13 | AP8: 0.006568974229 | AQ8: 403 | AR8: 0.01873547187 | AS8: =+(SUMIFS(Montos!$Y$2:$Y$396864,Montos!$R$2:$R$396864,Base!AT8)/1000000) -> 90.42 | AT8: EL ZULIA
A9: NIT-900544717 | B9: 73268 | C9: ESPINAL | D9: 7 | E9: 0 | F9: Jurídica | G9: 73 | H9: TOLIMA | I9: Aprobado con subsidio | J9: 7 | K9: MICRO | L9: 1104 | M9: INDUSTRIAS MANUFACTURERAS | N9: 0 | O9: 7 | P9: 0 | R9: ACTIVIDADES INMOBILIARIAS | U9: NIT-807000834 | V9: 54001 | W9: CÚCUTA | X9: 8 | Y9: 2 | Z9: Jurídica | AA9: 54 | AB9: NORTE DE SANTANDER | AC9: Aprobado con subsidio | AD9: 9 | AE9: MICRO | AF9: 9499 | AG9: OTRAS ACTIVIDADES DE SERVICIOS | AH9: 3 | AI9: 5 | AJ9: 0 | AN9: =CONCATENATE(AO9,COUNTIF($AO$2:AO9,AO9)) -> 132 | AO9: 13 | AP9: 0.006568974229 | AQ9: 122 | AR9: 0.005671780567 | AS9: =+(SUMIFS(Montos!$Y$2:$Y$396864,Montos!$R$2:$R$396864,Base!AT9)/1000000) -> 30.58 | AT9: CHINÁCOTA
A10: NIT-900548832 | B10: 5615 | C10: RIONEGRO | D10: 1 | E10: 1 | F10: Jurídica | G10: 5 | H10: ANTIOQUIA | I10: Aprobado con subsidio | J10: 2 | K10: MICRO | L10: 4732 | M10: COMERCIO AL POR MAYOR Y AL POR MENOR; REPARACIÓN DE VEHÍCULOS AUTOMOTORES Y MOTOCICLETAS | N10: 0 | O10: 1 | P10: 0 | R10: ACTIVIDADES ARTÍSTICAS, DE ENTRETENIMIENTO Y RECREACIÓN | U10: NIT-807009073 | V10: 54518 | W10: PAMPLONA | X10: 6 | Y10: 0 | Z10: Jurídica | AA10: 54 | AB10: NORTE DE SANTANDER | AC10: Aprobado con subsidio | AD10: 6 | AE10: MICRO | AF10: 9491 | AG10: OTRAS ACTIVIDADES DE SERVICIOS | AH10: 4 | AI10: 2 | AJ10: 0 | AN10: =CONCATENATE(AO10,COUNTIF($AO$2:AO10,AO10)) -> 51 | AO10: 5 | AP10: 0.00252652855 | AQ10: 58 | AR10: 0.00269642027 | AS10: =+(SUMIFS(Montos!$Y$2:$Y$396864,Montos!$R$2:$R$396864,Base!AT10)/1000000) -> 14.3 | AT10: SARDINATA
A11: NIT-900552233 | B11: 11001 | C11: BOGOTÁ, D.C. | D11: 1 | E11: 0 | F11: Jurídica | G11: 11 | H11: BOGOTÁ, D.C. | I11: Aprobado con subsidio | J11: 1 | K11: MICRO | L11: 6820 | M11: ACTIVIDADES INMOBILIARIAS | N11: 1 | O11: 0 | P11: 0 | R11: TRANSPORTE Y ALMACENAMIENTO | U11: CC-17120869 | V11: 54518 | W11: PAMPLONA | X11: 8 | Y11: 0 | Z11: Natural | AA11: 54 | AB11: NORTE DE SANTANDER | AC11: Aprobado con subsidio | AD11: 8 | AE11: MICRO | AF11: 1081 | AG11: INDUSTRIAS MANUFACTURERAS | AH11: 5 | AI11: 3 | AJ11: 0 | AN11: =CONCATENATE(AO11,COUNTIF($AO$2:AO11,AO11)) -> 41 | AO11: 4 | AP11: 0.00202122284 | AQ11: 236 | AR11: 0.0109716411 | AS11: =+(SUMIFS(Montos!$Y$2:$Y$396864,Montos!$R$2:$R$396864,Base!AT11)/1000000) -> 66.44 | AT11: BOCHALEMA
A12: NIT-900554002 | B12: 76001 | C12: CALI | D12: 11 | E12: 3 | F12: Jurídica | G12: 76 | H12: VALLE DEL CAUCA | I12: Aprobado con subsidio | J12: 14 | K12: PEQUEÑA | L12: 9311 | M12: ACTIVIDADES ARTÍSTICAS, DE ENTRETENIMIENTO Y RECREACIÓN | N12: 3 | O12: 8 | P12: 0 | R12: CONSTRUCCIÓN | U12: NIT-890500372 | V12: 54518 | W12: PAMPLONA | X12: 4 | Y12: 5 | Z12: Jurídica | AA12: 54 | AB12: NORTE DE SANTANDER | AC12: Aprobado con subsidio | AD12: 10 | AE12: MICRO | AF12: 9491 | AG12: OTRAS ACTIVIDADES DE SERVICIOS | AH12: 1 | AI12: 3 | AJ12: 0 | AN12: =CONCATENATE(AO12,COUNTIF($AO$2:AO12,AO12)) -> 21 | AO12: 2 | AP12: 0.00101061142 | AQ12: 10 | AR12: 0.0004649000465 | AS12: =+(SUMIFS(Montos!$Y$2:$Y$396864,Montos!$R$2:$R$396864,Base!AT12)/1000000) -> 2.2 | AT12: SAN CAYETANO
A13: NIT-900555610 | B13: 23660 | C13: SAHAGÚN | D13: 4 | E13: 2 | F13: Jurídica | G13: 23 | H13: CÓRDOBA | I13: Aprobado con subsidio | J13: 7 | K13: MICRO | L13: 4923 | M13: TRANSPORTE Y ALMACENAMIENTO | N13: 0 | O13: 4 | P13: 0 | R13: ACTIVIDADES PROFESIONALES, CIENTÍFICAS Y TÉCNICAS | U13: NIT-890502101 | V13: 54001 | W13: CÚCUTA | X13: 23 | Y13: 26 | Z13: Jurídica | AA13: 54 | AB13: NORTE DE SANTANDER | AC13: Aprobado con subsidio | AD13: 54 | AE13: MEDIANA | AF13: 5511 | AG13: ALOJAMIENTO Y SERVICIOS DE COMIDA | AH13: 15 | AI13: 8 | AJ13: 0 | AN13: =CONCATENATE(AO13,COUNTIF($AO$2:AO13,AO13)) -> 91 | AO13: 9 | AP13: 0.00454775139 | AQ13: 58 | AR13: 0.00269642027 | AS13: =+(SUMIFS(Montos!$Y$2:$Y$396864,Montos!$R$2:$R$396864,Base!AT13)/1000000) -> 20.46 | AT13: CUCUTILLA
A14: NIT-900556461 | B14: 11001 | C14: BOGOTÁ, D.C. | D14: 2 | E14: 1 | F14: Jurídica | G14: 11 | H14: BOGOTÁ, D.C. | I14: Aprobado con subsidio | J14: 3 | K14: MICRO | L14: 8230 | M14: ACTIVIDADES DE SERVICIOS ADMINISTRATIVOS Y DE APOYO | N14: 0 | O14: 2 | P14: 0 | R14: EDUCACIÓN | U14: NIT-890503314 | V14: 54001 | W14: CÚCUTA | X14: 20 | Y14: 473 | Z14: Jurídica | AA14: 54 | AB14: NORTE DE SANTANDER | AC14: Aprobado con subsidio | AD14: 512 | AE14: MUY GRANDE | AF14: 2392 | AG14: INDUSTRIAS MANUFACTURERAS | AH14: 5 | AI14: 15 | AJ14: 0 | AN14: =CONCATENATE(AO14,COUNTIF($AO$2:AO14,AO14)) -> 22 | AO14: 2 | AP14: 0.00101061142 | AQ14: 66 | AR14: 0.003068340307 | AS14: =+(SUMIFS(Montos!$Y$2:$Y$396864,Montos!$R$2:$R$396864,Base!AT14)/1000000) -> 24.2 | AT14: ARBOLEDAS
A15: NIT-900629661 | B15: 81001 | C15: ARAUCA | D15: 5 | E15: 4 | F15: Jurídica | G15: 81 | H15: ARAUCA | I15: Aprobado con subsidio | J15: 10 | K15: MICRO | L15: 4210 | M15: CONSTRUCCIÓN | N15: 2 | O15: 3 | P15: 0 | R15: AGRICULTURA, GANADERÍA, CAZA, SILVICULTURA Y PESCA | U15: NIT-890505327 | V15: 54001 | W15: CÚCUTA | X15: 13 | Y15: 25 | Z15: Jurídica | AA15: 54 | AB15: NORTE DE SANTANDER | AC15: Aprobado con subsidio | AD15: 56 | AE15: MEDIANA | AF15: 5511 | AG15: ALOJAMIENTO Y SERVICIOS DE COMIDA | AH15: 6 | AI15: 7 | AJ15: 0 | AN15: =CONCATENATE(AO15,COUNTIF($AO$2:AO15,AO15)) -> 71 | AO15: 7 | AP15: 0.00353713997 | AQ15: 41 | AR15: 0.001906090191 | AS15: =+(SUMIFS(Montos!$Y$2:$Y$396864,Montos!$R$2:$R$396864,Base!AT15)/1000000) -> 14.08 | AT15: ABREGO
A16: NIT-900664672 | B16: 73001 | C16: IBAGUÉ | D16: 14 | E16: 15 | F16: Jurídica | G16: 73 | H16: TOLIMA | I16: Aprobado con subsidio | J16: 27 | K16: PEQUEÑA | L16: 2511 | M16: INDUSTRIAS MANUFACTURERAS | N16: 1 | O16: 13 | P16: 0 | R16: DISTRIBUCIÓN DE AGUA; EVACUACIÓN Y TRATAMIENTO DE AGUAS RESIDUALES, GESTIÓN DE DESECHOS Y ACTIVIDADES DE SANEAMIENTO AMBIENTAL | U16: NIT-900649171 | V16: 54001 | W16: CÚCUTA | X16: 4 | Y16: 4 | Z16: Jurídica | AA16: 54 | AB16: NORTE DE SANTANDER | AC16: Aprobado con subsidio | AD16: 9 | AE16: MICRO | AF16: 8512 | AG16: EDUCACIÓN | AH16: 4 | AI16: 0 | AJ16: 0 | AN16: =CONCATENATE(AO16,COUNTIF($AO$2:AO16,AO16)) -> 31 | AO16: 3 | AP16: 0.00151591713 | AQ16: 14 | AR16: 0.0006508600651 | AS16: =+(SUMIFS(Montos!$Y$2:$Y$396864,Montos!$R$2:$R$396864,Base!AT16)/1000000) -> 3.96 | AT16: TOLEDO
A17: NIT-900667477 | B17: 68679 | C17: SAN GIL | D17: 7 | E17: 2 | F17: Jurídica | G17: 68 | H17: SANTANDER | I17: Aprobado con subsidio | J17: 10 | K17: MICRO | L17: 9499 | M17: OTRAS ACTIVIDADES DE SERVICIOS | N17: 6 | O17: 1 | P17: 0 | R17: ACTIVIDADES FINANCIERAS Y DE SEGUROS | U17: CC-19290405 | V17: 54001 | W17: CÚCUTA | X17: 5 | Y17: 1 | Z17: Natural | AA17: 54 | AB17: NORTE DE SANTANDER | AC17: Aprobado con subsidio | AD17: 9 | AE17: MICRO | AF17: 4792 | AG17: COMERCIO AL POR MAYOR Y AL POR MENOR; REPARACIÓN DE VEHÍCULOS AUTOMOTORES Y MOTOCICLETAS | AH17: 4 | AI17: 1 | AJ17: 0 | AN17: =CONCATENATE(AO17,COUNTIF($AO$2:AO17,AO17)) -> 23 | AO17: 2 | AP17: 0.00101061142 | AQ17: 10 | AR17: 0.0004649000465 | AS17: =+(SUMIFS(Montos!$Y$2:$Y$396864,Montos!$R$2:$R$396864,Base!AT17)/1000000) -> 2.2 | AT17: PUERTO SANTANDER
A18: NIT-900668587 | B18: 11001 | C18: BOGOTÁ, D.C. | D18: 2 | E18: 2 | F18: Jurídica | G18: 11 | H18: BOGOTÁ, D.C. | I18: Aprobado con subsidio | J18: 5 | K18: MICRO | L18: 7020 | M18: ACTIVIDADES PROFESIONALES, CIENTÍFICAS Y TÉCNICAS | N18: 1 | O18: 1 | P18: 0 | R18: EXPLOTACIÓN DE MINAS Y CANTERAS | U18: NIT-900373220 | V18: 54001 | W18: CÚCUTA | X18: 3 | Y18: 11 | Z18: Jurídica | AA18: 54 | AB18: NORTE DE SANTANDER | AC18: Aprobado con subsidio | AD18: 14 | AE18: PEQUEÑA | AF18: 4530 | AG18: COMERCIO AL POR MAYOR Y AL POR MENOR; REPARACIÓN DE VEHÍCULOS AUTOMOTORES Y MOTOCICLETAS | AH18: 1 | AI18: 2 | AJ18: 0 | AN18: =CONCATENATE(AO18,COUNTIF($AO$2:AO18,AO18)) -> 01 | AO18: 0 | AP18: 0 | AQ18: 0 | AR18: 0 | AS18: =+(SUMIFS(Montos!$Y$2:$Y$396864,Montos!$R$2:$R$396864,Base!AT18)/1000000) -> 0 | AT18: SANTIAGO
A19: NIT-900945555 | B19: 76001 | C19: CALI | D19: 0 | E19: 0 | F19: Jurídica | G19: 76 | H19: VALLE DEL CAUCA | I19: Rechazado a nivel aportante | J19: 0 | K19: $null$ | L19: 4923 | M19: TRANSPORTE Y ALMACENAMIENTO | N19: 0 | O19: 0 | P19: 0 | R19: ADMINISTRACIÓN PÚBLICA Y DEFENSA; PLANES DE SEGURIDAD SOCIAL DE AFILIACIÓN OBLIGATORIA | U19: NIT-900869848 | V19: 54001 | W19: CÚCUTA | X19: 8 | Y19: 1 | Z19: Jurídica | AA19: 54 | AB19: NORTE DE SANTANDER | AC19: Aprobado con subsidio | AD19: 9 | AE19: MICRO | AF19: 5511 | AG19: ALOJAMIENTO Y SERVICIOS DE COMIDA | AH19: 6 | AI19: 2 | AJ19: 0 | AN19: =CONCATENATE(AO19,COUNTIF($AO$2:AO19,AO19)) -> 32 | AO19: 3 | AP19: 0.00151591713 | AQ19: 6 | AR19: 0.0002789400279 | AS19: =+(SUMIFS(Montos!$Y$2:$Y$396864,Montos!$R$2:$R$396864,Base!AT19)/1000000) -> 2.42 | AT19: PAMPLONITA
A20: CC-41794773 | B20: 11001 | C20: BOGOTÁ, D.C. | D20: 1 | E20: 2 | F20: Natural | G20: 11 | H20: BOGOTÁ, D.C. | I20: Aprobado con subsidio | J20: 3 | K20: MICRO | L20: 4530 | M20: COMERCIO AL POR MAYOR Y AL POR MENOR; REPARACIÓN DE VEHÍCULOS AUTOMOTORES Y MOTOCICLETAS | N20: 0 | O20: 1 | P20: 0 | R20: SUMINISTRO DE ELECTRICIDAD, GAS, VAPOR Y AIRE ACONDICIONADO | U20: NIT-900894783 | V20: 54001 | W20: CÚCUTA | X20: 0 | Y20: 0 | Z20: Jurídica | AA20: 54 | AB20: NORTE DE SANTANDER | AC20: Rechazado a nivel aportante | AD20: 1 | AE20: MICRO | AF20: 6201 | AG20: INFORMACIÓN Y COMUNICACIONES | AH20: 0 | AI20: 0 | AJ20: 0 | AN20: =CONCATENATE(AO20,COUNTIF($AO$2:AO20,AO20)) -> 61 | AO20: 6 | AP20: 0.00303183426 | AQ20: 34 | AR20: 0.001580660158 | AS20: =+(SUMIFS(Montos!$Y$2:$Y$396864,Montos!$R$2:$R$396864,Base!AT20)/1000000) -> 5.72 | AT20: BUCARASICA
A21: CC-91208577 | B21: 68081 | C21: BARRANCABERMEJA | D21: 6 | E21: 17 | F21: Natural | G21: 68 | H21: SANTANDER | I21: Aprobado con subsidio | J21: 28 | K21: PEQUEÑA | L21: 8521 | M21: EDUCACIÓN | N21: 4 | O21: 2 | P21: 0 | R21: ACTIVIDADES DE LOS HOGARES INDIVIDUALES EN CALIDAD DE EMPLEADORES; ACTIVIDADES NO DIFERENCIADAS DE LOS HOGARES INDIVIDUALES COMO PRODUCTORES DE BIENES Y SERVICIOS PARA USO PROPIO | U21: CC-37225141 | V21: 54405 | W21: LOS PATIOS | X21: 7 | Y21: 0 | Z21: Natural | AA21: 54 | AB21: NORTE DE SANTANDER | AC21: Aprobado con subsidio | AD21: 7 | AE21: MICRO | AF21: 8530 | AG21: EDUCACIÓN | AH21: 6 | AI21: 1 | AJ21: 0 | AN21: =CONCATENATE(AO21,COUNTIF($AO$2:AO21,AO21)) -> 02 | AO21: 0 | AP21: 0 | AQ21: 0 | AR21: 0 | AS21: =+(SUMIFS(Montos!$Y$2:$Y$396864,Montos!$R$2:$R$396864,Base!AT21)/1000000) -> 3.08 | AT21: CÁCOTA
A22: NIT-900887763 | B22: 63001 | C22: ARMENIA | D22: 2 | E22: 6 | F22: Jurídica | G22: 63 | H22: QUINDIO | I22: Aprobado con subsidio | J22: 13 | K22: PEQUEÑA | L22: 4322 | M22: CONSTRUCCIÓN | N22: 0 | O22: 2 | P22: 0 | R22: OTRAS | U22: CC-88138045 | V22: 54498 | W22: OCAÑA | X22: 3 | Y22: 0 | Z22: Natural | AA22: 54 | AB22: NORTE DE SANTANDER | AC22: Aprobado con subsidio | AD22: 4 | AE22: MICRO | AF22: 4731 | AG22: COMERCIO AL POR MAYOR Y AL POR MENOR; REPARACIÓN DE VEHÍCULOS AUTOMOTORES Y MOTOCICLETAS | AH22: 0 | AI22: 3 | AJ22: 0 | AN22: =CONCATENATE(AO22,COUNTIF($AO$2:AO22,AO22)) -> 11 | AO22: 1 | AP22: 0.00050530571 | AQ22: 3 | AR22: 0.0001394700139 | AS22: =+(SUMIFS(Montos!$Y$2:$Y$396864,Montos!$R$2:$R$396864,Base!AT22)/1000000) -> 1.32 | AT22: CACHIRÁ
A23: NIT-900755457 | B23: 15001 | C23: TUNJA | D23: 14 | E23: 1 | F23: Jurídica | G23: 15 | H23: BOYACÁ | I23: Aprobado con subsidio | J23: 22 | K23: PEQUEÑA | L23: 4290 | M23: CONSTRUCCIÓN | N23: 1 | O23: 13 | P23: 0 | R23: ACTIVIDADES DE ORGANIZACIONES Y ENTIDADES EXTRATERRITORIALES | U23: NIT-800058941 | V23: 54001 | W23: CÚCUTA | X23: 4 | Y23: 0 | Z23: Jurídica | AA23: 54 | AB23: NORTE DE SANTANDER | AC23: Aprobado con subsidio | AD23: 4 | AE23: MICRO | AF23: 9200 | AG23: ACTIVIDADES ARTÍSTICAS, DE ENTRETENIMIENTO Y RECREACIÓN | AH23: 2 | AI23: 2 | AJ23: 0 | AN23: =CONCATENATE(AO23,COUNTIF($AO$2:AO23,AO23)) -> 12 | AO23: 1 | AP23: 0.00050530571 | AQ23: 34 | AR23: 0.001580660158 | AS23: =+(SUMIFS(Montos!$Y$2:$Y$396864,Montos!$R$2:$R$396864,Base!AT23)/1000000) -> 13.42 | AT23: SALAZAR
A24: NIT-900573946 | B24: 11001 | C24: BOGOTÁ, D.C. | D24: 3 | E24: 1 | F24: Jurídica | G24: 11 | H24: BOGOTÁ, D.C. | I24: Aprobado con subsidio | J24: 7 | K24: MICRO | L24: 2592 | M24: INDUSTRIAS MANUFACTURERAS | N24: 1 | O24: 2 | P24: 0 | R24: 0 | U24: NIT-900105683 | V24: 54001 | W24: CÚCUTA | X24: 0 | Y24: 0 | Z24: Jurídica | AA24: 54 | AB24: NORTE DE SANTANDER | AC24: Rechazado a nivel aportante | AD24: 12 | AE24: PEQUEÑA | AF24: 8621 | AG24: ACTIVIDADES DE ATENCIÓN DE LA SALUD HUMANA Y DE ASISTENCIA SOCIAL | AH24: 0 | AI24: 0 | AJ24: 0 | AN24: =CONCATENATE(AO24,COUNTIF($AO$2:AO24,AO24)) -> 13 | AO24: 1 | AP24: 0.00050530571 | AQ24: 14 | AR24: 0.0006508600651 | AS24: =+(SUMIFS(Montos!$Y$2:$Y$396864,Montos!$R$2:$R$396864,Base!AT24)/1000000) -> 5.5 | AT24: CONVENCIÓN
A25: CC-1014226795 | B25: 11001 | C25: BOGOTÁ, D.C. | D25: 4 | E25: 0 | F25: Natural | G25: 11 | H25: BOGOTÁ, D.C. | I25: Aprobado con subsidio | J25: 4 | K25: MICRO | L25: 1081 | M25: INDUSTRIAS MANUFACTURERAS | N25: 1 | O25: 3 | P25: 0 | U25: NIT-800099886 | V25: 54001 | W25: CÚCUTA | X25: 5 | Y25: 14 | Z25: Jurídica | AA25: 54 | AB25: NORTE DE SANTANDER | AC25: Aprobado con subsidio | AD25: 17 | AE25: PEQUEÑA | AF25: 8691 | AG25: ACTIVIDADES DE ATENCIÓN DE LA SALUD HUMANA Y DE ASISTENCIA SOCIAL | AH25: 3 | AI25: 2 | AJ25: 0 | AN25: =CONCATENATE(AO25,COUNTIF($AO$2:AO25,AO25)) -> 24 | AO25: 2 | AP25: 0.00101061142 | AQ25: 19 | AR25: 0.0008833100883 | AS25: =+(SUMIFS(Montos!$Y$2:$Y$396864,Montos!$R$2:$R$396864,Base!AT25)/1000000) -> 4.84 | AT25: LA ESPERANZA
A26: NIT-900842176 | B26: 11001 | C26: BOGOTÁ, D.C. | D26: 2 | E26: 1 | F26: Jurídica | G26: 11 | H26: BOGOTÁ, D.C. | I26: Aprobado con subsidio | J26: 11 | K26: PEQUEÑA | L26: 1410 | M26: INDUSTRIAS MANUFACTURERAS | N26: 1 | O26: 1 | P26: 0 | U26: NIT-900462940 | V26: 54518 | W26: PAMPLONA | X26: 7 | Y26: 0 | Z26: Jurídica | AA26: 54 | AB26: NORTE DE SANTANDER | AC26: Aprobado con subsidio | AD26: 7 | AE26: MICRO | AF26: 4111 | AG26: CONSTRUCCIÓN | AH26: 1 | AI26: 6 | AJ26: 0 | AN26: =CONCATENATE(AO26,COUNTIF($AO$2:AO26,AO26)) -> 03 | AO26: 0 | AP26: 0 | AQ26: 0 | AR26: 0 | AS26: =+(SUMIFS(Montos!$Y$2:$Y$396864,Montos!$R$2:$R$396864,Base!AT26)/1000000) -> 0 | AT26: 0
A27: NIT-900908736 | B27: 11001 | C27: BOGOTÁ, D.C. | D27: 3 | E27: 1 | F27: Jurídica | G27: 11 | H27: BOGOTÁ, D.C. | I27: Aprobado con subsidio | J27: 14 | K27: PEQUEÑA | L27: 4330 | M27: CONSTRUCCIÓN | N27: 0 | O27: 3 | P27: 0 | U27: NIT-900486450 | V27: 54001 | W27: CÚCUTA | X27: 11 | Y27: 0 | Z27: Jurídica | AA27: 54 | AB27: NORTE DE SANTANDER | AC27: Aprobado con subsidio | AD27: 20 | AE27: PEQUEÑA | AF27: 7730 | AG27: ACTIVIDADES DE SERVICIOS ADMINISTRATIVOS Y DE APOYO | AH27: 10 | AI27: 1 | AJ27: 0 | AN27: =CONCATENATE(AO27,COUNTIF($AO$2:AO27,AO27)) -> 04 | AO27: 0 | AP27: 0 | AQ27: 0 | AR27: 0 | AS27: =+(SUMIFS(Montos!$Y$2:$Y$396864,Montos!$R$2:$R$396864,Base!AT27)/1000000) -> 0
A28: NIT-900088206 | B28: 25899 | C28: ZIPAQUIRÁ | D28: 2 | E28: 3 | F28: Jurídica | G28: 25 | H28: CUNDINAMARCA | I28: Aprobado con subsidio | J28: 7 | K28: MICRO | L28: 4390 | M28: CONSTRUCCIÓN | N28: 0 | O28: 2 | P28: 0 | U28: NIT-800106375 | V28: 54001 | W28: CÚCUTA | X28: 2 | Y28: 6 | Z28: Jurídica | AA28: 54 | AB28: NORTE DE SANTANDER | AC28: Aprobado con subsidio | AD28: 7 | AE28: MICRO | AF28: 8691 | AG28: ACTIVIDADES DE ATENCIÓN DE LA SALUD HUMANA Y DE ASISTENCIA SOCIAL | AH28: 2 | AI28: 0 | AJ28: 0 | AN28: =CONCATENATE(AO28,COUNTIF($AO$2:AO28,AO28)) -> 05 | AO28: 0 | AP28: 0 | AQ28: 0 | AR28: 0 | AS28: =+(SUMIFS(Montos!$Y$2:$Y$396864,Montos!$R$2:$R$396864,Base!AT28)/1000000) -> 0
A29: CC-93131597 | B29: 73268 | C29: ESPINAL | D29: 12 | E29: 2 | F29: Natural | G29: 73 | H29: TOLIMA | I29: Aprobado con subsidio | J29: 15 | K29: PEQUEÑA | L29: 1081 | M29: INDUSTRIAS MANUFACTURERAS | N29: 10 | O29: 2 | P29: 0 | U29: NIT-807003072 | V29: 54001 | W29: CÚCUTA | X29: 29 | Y29: 69 | Z29: Jurídica | AA29: 54 | AB29: NORTE DE SANTANDER | AC29: Aprobado con subsidio | AD29: 121 | AE29: MEDIANA | AF29: 4690 | AG29: COMERCIO AL POR MAYOR Y AL POR MENOR; REPARACIÓN DE VEHÍCULOS AUTOMOTORES Y MOTOCICLETAS | AH29: 14 | AI29: 15 | AJ29: 0 | AN29: =CONCATENATE(AO29,COUNTIF($AO$2:AO29,AO29)) -> 06 | AO29: 0 | AP29: 0 | AQ29: 0 | AR29: 0 | AS29: =+(SUMIFS(Montos!$Y$2:$Y$396864,Montos!$R$2:$R$396864,Base!AT29)/1000000) -> 0
A30: CC-40441054 | B30: 25875 | C30: VILLETA | D30: 3 | E30: 0 | F30: Natural | G30: 25 | H30: CUNDINAMARCA | I30: Aprobado con subsidio | J30: 3 | K30: MICRO | L30: 4719 | M30: COMERCIO AL POR MAYOR Y AL POR MENOR; REPARACIÓN DE VEHÍCULOS AUTOMOTORES Y MOTOCICLETAS | N30: 1 | O30: 2 | P30: 0 | U30: NIT-900164792 | V30: 54001 | W30: CÚCUTA | X30: 8 | Y30: 0 | Z30: Jurídica | AA30: 54 | AB30: NORTE DE SANTANDER | AC30: Aprobado con subsidio | AD30: 8 | AE30: MICRO | AF30: 6910 | AG30: ACTIVIDADES PROFESIONALES, CIENTÍFICAS Y TÉCNICAS | AH30: 6 | AI30: 2 | AJ30: 0 | AN30: =CONCATENATE(AO30,COUNTIF($AO$2:AO30,AO30)) -> 07 | AO30: 0 | AP30: 0 | AQ30: 0 | AR30: 0 | AS30: =+(SUMIFS(Montos!$Y$2:$Y$396864,Montos!$R$2:$R$396864,Base!AT30)/1000000) -> 0
A31: CC-84035724 | B31: 44001 | C31: RIOHACHA | D31: 4 | E31: 0 | F31: Natural | G31: 44 | H31: LA GUAJIRA | I31: Aprobado con subsidio | J31: 4 | K31: MICRO | L31: 4752 | M31: COMERCIO AL POR MAYOR Y AL POR MENOR; REPARACIÓN DE VEHÍCULOS AUTOMOTORES Y MOTOCICLETAS | N31: 1 | O31: 3 | P31: 0 | U31: NIT-900791860 | V31: 54001 | W31: CÚCUTA | X31: 5 | Y31: 0 | Z31: Jurídica | AA31: 54 | AB31: NORTE DE SANTANDER | AC31: Aprobado con subsidio | AD31: 5 | AE31: MICRO | AF31: 4520 | AG31: COMERCIO AL POR MAYOR Y AL POR MENOR; REPARACIÓN DE VEHÍCULOS AUTOMOTORES Y MOTOCICLETAS | AH31: 1 | AI31: 4 | AJ31: 0 | AN31: =CONCATENATE(AO31,COUNTIF($AO$2:AO31,AO31)) -> 08 | AO31: 0 | AP31: 0 | AQ31: 0 | AR31: 0 | AS31: =+(SUMIFS(Montos!$Y$2:$Y$396864,Montos!$R$2:$R$396864,Base!AT31)/1000000) -> 0
A32: NIT-890321825 | B32: 76001 | C32: CALI | D32: 3 | E32: 2 | F32: Jurídica | G32: 76 | H32: VALLE DEL CAUCA | I32: Aprobado con subsidio | J32: 8 | K32: MICRO | L32: 4390 | M32: CONSTRUCCIÓN | N32: 0 | O32: 3 | P32: 0 | U32: NIT-830509855 | V32: 54518 | W32: PAMPLONA | X32: 12 | Y32: 5 | Z32: Jurídica | AA32: 54 | AB32: NORTE DE SANTANDER | AC32: Aprobado con subsidio | AD32: 22 | AE32: PEQUEÑA | AF32: 5221 | AG32: TRANSPORTE Y ALMACENAMIENTO | AH32: 4 | AI32: 8 | AJ32: 0 | AN32: =CONCATENATE(AO32,COUNTIF($AO$2:AO32,AO32)) -> 09 | AO32: 0 | AP32: 0 | AQ32: 0 | AR32: 0 | AS32: =+(SUMIFS(Montos!$Y$2:$Y$396864,Montos!$R$2:$R$396864,Base!AT32)/1000000) -> 0
A33: NIT-900111588 | B33: 68001 | C33: BUCARAMANGA | D33: 3 | E33: 2 | F33: Jurídica | G33: 68 | H33: SANTANDER | I33: Aprobado con subsidio | J33: 5 | K33: MICRO | L33: 4111 | M33: CONSTRUCCIÓN | N33: 2 | O33: 1 | P33: 0 | U33: NIT-900196488 | V33: 54001 | W33: CÚCUTA | X33: 16 | Y33: 0 | Z33: Jurídica | AA33: 54 | AB33: NORTE DE SANTANDER | AC33: Aprobado con subsidio | AD33: 18 | AE33: PEQUEÑA | AF33: 7010 | AG33: ACTIVIDADES PROFESIONALES, CIENTÍFICAS Y TÉCNICAS | AH33: 10 | AI33: 6 | AJ33: 0 | AN33: =CONCATENATE(AO33,COUNTIF($AO$2:AO33,AO33)) -> 010 | AO33: 0 | AP33: 0 | AQ33: 0 | AR33: 0 | AS33: =+(SUMIFS(Montos!$Y$2:$Y$396864,Montos!$R$2:$R$396864,Base!AT33)/1000000) -> 0
A34: NIT-901174157 | B34: 8001 | C34: BARRANQUILLA | D34: 3 | E34: 0 | F34: Jurídica | G34: 8 | H34: ATLÁNTICO | I34: Aprobado con subsidio | J34: 2 | K34: MICRO | L34: 4752 | M34: COMERCIO AL POR MAYOR Y AL POR MENOR; REPARACIÓN DE VEHÍCULOS AUTOMOTORES Y MOTOCICLETAS | N34: 1 | O34: 2 | P34: 0 | U34: CC-13471790 | V34: 54001 | W34: CÚCUTA | X34: 14 | Y34: 0 | Z34: Natural | AA34: 54 | AB34: NORTE DE SANTANDER | AC34: Aprobado con subsidio | AD34: 16 | AE34: PEQUEÑA | AF34: 4663 | AG34: COMERCIO AL POR MAYOR Y AL POR MENOR; REPARACIÓN DE VEHÍCULOS AUTOMOTORES Y MOTOCICLETAS | AH34: 4 | AI34: 10 | AJ34: 0 | AN34: =CONCATENATE(AO34,COUNTIF($AO$2:AO34,AO34)) -> 011 | AO34: =+COUNTIFS($W$2:$W$399999,AT34,$AC$2:$AC$399999,"Aprobado con subsidio")*1 -> 0 | AP34: =+AO34/SUM($AO$2:$AO$129) -> 0 | AQ34: =+SUMIFS($X$2:$X$399999,$W$2:$W$399999,AT34,$AC$2:$AC$399999,"Aprobado con subsidio") -> 0 | AR34: 0 | AS34: =+(SUMIFS(Montos!$Y$2:$Y$396864,Montos!$R$2:$R$396864,Base!AT34)/1000000) -> 0
A35: CC-19233484 | B35: 11001 | C35: BOGOTÁ, D.C. | D35: 4 | E35: 0 | F35: Natural | G35: 11 | H35: BOGOTÁ, D.C. | I35: Aprobado con subsidio | J35: 5 | K35: MICRO | L35: 6810 | M35: ACTIVIDADES INMOBILIARIAS | N35: 1 | O35: 3 | P35: 0 | U35: CC-88225517 | V35: 54874 | W35: VILLA DEL ROSARIO | X35: 4 | Y35: 0 | Z35: Natural | AA35: 54 | AB35: NORTE DE SANTANDER | AC35: Aprobado con subsidio | AD35: 4 | AE35: MICRO | AF35: 4774 | AG35: COMERCIO AL POR MAYOR Y AL POR MENOR; REPARACIÓN DE VEHÍCULOS AUTOMOTORES Y MOTOCICLETAS | AH35: 0 | AI35: 4 | AJ35: 0 | AN35: =CONCATENATE(AO35,COUNTIF($AO$2:AO35,AO35)) -> 012 | AO35: 0 | AP35: 0 | AQ35: 0 | AR35: 0 | AS35: =+(SUMIFS(Montos!$Y$2:$Y$396864,Montos!$R$2:$R$396864,Base!AT35)/1000000) -> 0
A36: NIT-901110684 | B36: 5440 | C36: MARINILLA | D36: 5 | E36: 1 | F36: Jurídica | G36: 5 | H36: ANTIOQUIA | I36: Aprobado con subsidio | J36: 5 | K36: MICRO | L36: 4921 | M36: TRANSPORTE Y ALMACENAMIENTO | N36: 1 | O36: 4 | P36: 0 | U36: NIT-807001456 | V36: 54001 | W36: CÚCUTA | X36: 4 | Y36: 0 | Z36: Jurídica | AA36: 54 | AB36: NORTE DE SANTANDER | AC36: Aprobado con subsidio | AD36: 4 | AE36: MICRO | AF36: 2396 | AG36: INDUSTRIAS MANUFACTURERAS | AH36: 1 | AI36: 3 | AJ36: 0 | AN36: =CONCATENATE(AO36,COUNTIF($AO$2:AO36,AO36)) -> 013 | AO36: 0 | AP36: 0 | AQ36: 0 | AR36: 0 | AS36: =+(SUMIFS(Montos!$Y$2:$Y$396864,Montos!$R$2:$R$396864,Base!AT36)/1000000) -> 0
A37: NIT-830048718 | B37: 25473 | C37: MOSQUERA | D37: 4 | E37: 9 | F37: Jurídica | G37: 25 | H37: CUNDINAMARCA | I37: Aprobado con subsidio | J37: 20 | K37: PEQUEÑA | L37: 4664 | M37: COMERCIO AL POR MAYOR Y AL POR MENOR; REPARACIÓN DE VEHÍCULOS AUTOMOTORES Y MOTOCICLETAS | N37: 2 | O37: 2 | P37: 0 | U37: NIT-890500309 | V37: 54001 | W37: CÚCUTA | X37: 16 | Y37: 253 | Z37: Jurídica | AA37: 54 | AB37: NORTE DE SANTANDER | AC37: Aprobado con subsidio | AD37: 292 | AE37: GRANDE | AF37: 8610 | AG37: ACTIVIDADES DE ATENCIÓN DE LA SALUD HUMANA Y DE ASISTENCIA SOCIAL | AH37: 15 | AI37: 1 | AJ37: 0 | AN37: =CONCATENATE(AO37,COUNTIF($AO$2:AO37,AO37)) -> 014 | AO37: 0 | AP37: 0 | AQ37: 0 | AR37: 0 | AS37: =+(SUMIFS(Montos!$Y$2:$Y$396864,Montos!$R$2:$R$396864,Base!AT37)/1000000) -> 0
A38: CC-16785604 | B38: 76869 | C38: VIJES | D38: 6 | E38: 0 | F38: Natural | G38: 76 | H38: VALLE DEL CAUCA | I38: Aprobado con subsidio | J38: 6 | K38: MICRO | L38: 2399 | M38: INDUSTRIAS MANUFACTURERAS | N38: 0 | O38: 6 | P38: 0 | U38: NIT-900147733 | V38: 54001 | W38: CÚCUTA | X38: 14 | Y38: 8 | Z38: Jurídica | AA38: 54 | AB38: NORTE DE SANTANDER | AC38: Aprobado con subsidio | AD38: 26 | AE38: PEQUEÑA | AF38: 4530 | AG38: COMERCIO AL POR MAYOR Y AL POR MENOR; REPARACIÓN DE VEHÍCULOS AUTOMOTORES Y MOTOCICLETAS | AH38: 6 | AI38: 8 | AJ38: 0 | AN38: =CONCATENATE(AO38,COUNTIF($AO$2:AO38,AO38)) -> 015 | AO38: 0 | AP38: 0 | AQ38: 0 | AR38: 0 | AS38: =+(SUMIFS(Montos!$Y$2:$Y$396864,Montos!$R$2:$R$396864,Base!AT38)/1000000) -> 0
A39: NIT-901006577 | B39: 25175 | C39: CHÍA | D39: 5 | E39: 0 | F39: Jurídica | G39: 25 | H39: CUNDINAMARCA | I39: Aprobado con subsidio | J39: 5 | K39: MICRO | L39: 4752 | M39: COMERCIO AL POR MAYOR Y AL POR MENOR; REPARACIÓN DE VEHÍCULOS AUTOMOTORES Y MOTOCICLETAS | N39: 1 | O39: 4 | P39: 0 | U39: NIT-901302833 | V39: 54001 | W39: CÚCUTA | X39: 23 | Y39: 0 | Z39: Jurídica | AA39: 54 | AB39: NORTE DE SANTANDER | AC39: Aprobado con subsidio | AD39: 24 | AE39: PEQUEÑA | AF39: 5611 | AG39: ALOJAMIENTO Y SERVICIOS DE COMIDA | AH39: 7 | AI39: 15 | AJ39: 1 | AN39: =CONCATENATE(AO39,COUNTIF($AO$2:AO39,AO39)) -> 016 | AO39: 0 | AP39: 0 | AQ39: 0 | AR39: 0 | AS39: =+(SUMIFS(Montos!$Y$2:$Y$396864,Montos!$R$2:$R$396864,Base!AT39)/1000000) -> 0
A40: NIT-900100711 | B40: 11001 | C40: BOGOTÁ, D.C. | D40: 2 | E40: 3 | F40: Jurídica | G40: 11 | H40: BOGOTÁ, D.C. | I40: Aprobado con subsidio | J40: 5 | K40: MICRO | L40: 4530 | M40: COMERCIO AL POR MAYOR Y AL POR MENOR; REPARACIÓN DE VEHÍCULOS AUTOMOTORES Y MOTOCICLETAS | N40: 0 | O40: 2 | P40: 0 | U40: NIT-813011637 | V40: 54001 | W40: CÚCUTA | X40: 14 | Y40: 4 | Z40: Jurídica | AA40: 54 | AB40: NORTE DE SANTANDER | AC40: Aprobado con subsidio | AD40: 26 | AE40: PEQUEÑA | AF40: 322 | AG40: AGRICULTURA, GANADERÍA, CAZA, SILVICULTURA Y PESCA | AH40: 1 | AI40: 13 | AJ40: 0 | AN40: =CONCATENATE(AO40,COUNTIF($AO$2:AO40,AO40)) -> 017 | AO40: 0 | AP40: 0 | AQ40: 0 | AR40: 0 | AS40: =+(SUMIFS(Montos!$Y$2:$Y$396864,Montos!$R$2:$R$396864,Base!AT40)/1000000) -> 0
A41: NIT-901313566 | B41: 15322 | C41: GUATEQUE | D41: 0 | E41: 0 | F41: Jurídica | G41: 15 | H41: BOYACÁ | I41: Rechazado a nivel aportante | J41: 14 | K41: PEQUEÑA | L41: 4290 | M41: CONSTRUCCIÓN | N41: 0 | O41: 0 | P41: 0 | U41: NIT-800100940 | V41: 54001 | W41: CÚCUTA | X41: 9 | Y41: 0 | Z41: Jurídica | AA41: 54 | AB41: NORTE DE SANTANDER | AC41: Aprobado con subsidio | AD41: 11 | AE41: PEQUEÑA | AF41: 5229 | AG41: TRANSPORTE Y ALMACENAMIENTO | AH41: 1 | AI41: 8 | AJ41: 0 | AN41: =CONCATENATE(AO41,COUNTIF($AO$2:AO41,AO41)) -> 018 | AO41: 0 | AP41: 0 | AQ41: 0 | AR41: 0 | AS41: =+(SUMIFS(Montos!$Y$2:$Y$396864,Montos!$R$2:$R$396864,Base!AT41)/1000000) -> 0
A42: NIT-900716240 | B42: 8001 | C42: BARRANQUILLA | D42: 7 | E42: 0 | F42: Jurídica | G42: 8 | H42: ATLÁNTICO | I42: Aprobado con subsidio | J42: 7 | K42: MICRO | L42: 3319 | M42: INDUSTRIAS MANUFACTURERAS | N42: 1 | O42: 6 | P42: 0 | U42: NIT-890505732 | V42: 54001 | W42: CÚCUTA | X42: 0 | Y42: 0 | Z42: Jurídica | AA42: 54 | AB42: NORTE DE SANTANDER | AC42: Aprobado sin subsidio | AD42: 2 | AE42: MICRO | AF42: 9411 | AG42: OTRAS ACTIVIDADES DE SERVICIOS | AH42: 0 | AI42: 0 | AJ42: 0 | AN42: =CONCATENATE(AO42,COUNTIF($AO$2:AO42,AO42)) -> 019 | AO42: 0 | AP42: 0 | AQ42: 0 | AR42: 0 | AS42: =+(SUMIFS(Montos!$Y$2:$Y$396864,Montos!$R$2:$R$396864,Base!AT42)/1000000) -> 0
A43: NIT-901242559 | B43: 11001 | C43: BOGOTÁ, D.C. | D43: 2 | E43: 3 | F43: Jurídica | G43: 11 | H43: BOGOTÁ, D.C. | I43: Aprobado con subsidio | J43: 6 | K43: MICRO | L43: 3312 | M43: INDUSTRIAS MANUFACTURERAS | N43: 1 | O43: 1 | P43: 0 | U43: CC-5678784 | V43: 54874 | W43: VILLA DEL ROSARIO | X43: 9 | Y43: 0 | Z43: Natural | AA43: 54 | AB43: NORTE DE SANTANDER | AC43: Aprobado con subsidio | AD43: 11 | AE43: PEQUEÑA | AF43: 2392 | AG43: INDUSTRIAS MANUFACTURERAS | AH43: 0 | AI43: 9 | AJ43: 0 | AN43: =CONCATENATE(AO43,COUNTIF($AO$2:AO43,AO43)) -> 020 | AO43: 0 | AP43: 0 | AQ43: 0 | AR43: 0 | AS43: =+(SUMIFS(Montos!$Y$2:$Y$396864,Montos!$R$2:$R$396864,Base!AT43)/1000000) -> 0
A44: NIT-819003604 | B44: 47189 | C44: CIÉNAGA | D44: 14 | E44: 64 | F44: Jurídica | G44: 47 | H44: MAGDALENA | I44: Aprobado con subsidio | J44: 74 | K44: MEDIANA | L44: 4921 | M44: TRANSPORTE Y ALMACENAMIENTO | N44: 4 | O44: 10 | P44: 0 | U44: NIT-901234838 | V44: 54001 | W44: CÚCUTA | X44: 44 | Y44: 9 | Z44: Jurídica | AA44: 54 | AB44: NORTE DE SANTANDER | AC44: Aprobado con subsidio | AD44: 28 | AE44: PEQUEÑA | AF44: 7820 | AG44: ACTIVIDADES DE SERVICIOS ADMINISTRATIVOS Y DE APOYO | AH44: 14 | AI44: 30 | AJ44: 0 | AN44: =CONCATENATE(AO44,COUNTIF($AO$2:AO44,AO44)) -> 021 | AO44: 0 | AP44: 0 | AQ44: 0 | AR44: 0 | AS44: =+(SUMIFS(Montos!$Y$2:$Y$396864,Montos!$R$2:$R$396864,Base!AT44)/1000000) -> 0
A45: NIT-900295916 | B45: 11001 | C45: BOGOTÁ, D.C. | D45: 2 | E45: 0 | F45: Jurídica | G45: 11 | H45: BOGOTÁ, D.C. | I45: Aprobado con subsidio | J45: 2 | K45: MICRO | L45: 6920 | M45: ACTIVIDADES PROFESIONALES, CIENTÍFICAS Y TÉCNICAS | N45: 2 | O45: 0 | P45: 0 | U45: CC-17580762 | V45: 54001 | W45: CÚCUTA | X45: 5 | Y45: 0 | Z45: Natural | AA45: 54 | AB45: NORTE DE SANTANDER | AC45: Aprobado con subsidio | AD45: 4 | AE45: MICRO | AF45: 4923 | AG45: TRANSPORTE Y ALMACENAMIENTO | AH45: 3 | AI45: 2 | AJ45: 0 | AN45: =CONCATENATE(AO45,COUNTIF($AO$2:AO45,AO45)) -> 022 | AO45: 0 | AP45: 0 | AQ45: 0 | AR45: 0 | AS45: =+(SUMIFS(Montos!$Y$2:$Y$396864,Montos!$R$2:$R$396864,Base!AT45)/1000000) -> 0
A46: NIT-901110370 | B46: 41001 | C46: NEIVA | D46: 131 | E46: 14 | F46: Jurídica | G46: 41 | H46: HUILA | I46: Aprobado con subsidio | J46: 229 | K46: GRANDE | L46: 7710 | M46: ACTIVIDADES DE SERVICIOS ADMINISTRATIVOS Y DE APOYO | N46: 8 | O46: 123 | P46: 0 | U46: CC-41494327 | V46: 54001 | W46: CÚCUTA | X46: 3 | Y46: 2 | Z46: Natural | AA46: 54 | AB46: NORTE DE SANTANDER | AC46: Aprobado con subsidio | AD46: 5 | AE46: MICRO | AF46: 5511 | AG46: ALOJAMIENTO Y SERVICIOS DE COMIDA | AH46: 3 | AI46: 0 | AJ46: 0 | AN46: =CONCATENATE(AO46,COUNTIF($AO$2:AO46,AO46)) -> 023 | AO46: 0 | AP46: 0 | AQ46: 0 | AR46: 0 | AS46: =+(SUMIFS(Montos!$Y$2:$Y$396864,Montos!$R$2:$R$396864,Base!AT46)/1000000) -> 0
A47: NIT-800252749 | B47: 25572 | C47: PUERTO SALGAR | D47: 2 | E47: 11 | F47: Jurídica | G47: 25 | H47: CUNDINAMARCA | I47: Aprobado con subsidio | J47: 20 | K47: PEQUEÑA | L47: 4290 | M47: CONSTRUCCIÓN | N47: 2 | O47: 0 | P47: 0 | U47: CC-5691210 | V47: 54001 | W47: CÚCUTA | X47: 7 | Y47: 0 | Z47: Natural | AA47: 54 | AB47: NORTE DE SANTANDER | AC47: Aprobado con subsidio | AD47: 7 | AE47: MICRO | AF47: 1410 | AG47: INDUSTRIAS MANUFACTURERAS | AH47: 5 | AI47: 2 | AJ47: 0 | AN47: =CONCATENATE(AO47,COUNTIF($AO$2:AO47,AO47)) -> 024 | AO47: 0 | AP47: 0 | AQ47: 0 | AR47: 0 | AS47: =+(SUMIFS(Montos!$Y$2:$Y$396864,Montos!$R$2:$R$396864,Base!AT47)/1000000) -> 0
A48: NIT-800254665 | B48: 73483 | C48: NATAGAIMA | D48: 2 | E48: 3 | F48: Jurídica | G48: 73 | H48: TOLIMA | I48: Aprobado con subsidio | J48: 7 | K48: MICRO | L48: 4620 | M48: COMERCIO AL POR MAYOR Y AL POR MENOR; REPARACIÓN DE VEHÍCULOS AUTOMOTORES Y MOTOCICLETAS | N48: 1 | O48: 1 | P48: 0 | U48: CC-13509212 | V48: 54001 | W48: CÚCUTA | X48: 32 | Y48: 0 | Z48: Natural | AA48: 54 | AB48: NORTE DE SANTANDER | AC48: Aprobado con subsidio | AD48: 30 | AE48: PEQUEÑA | AF48: 4772 | AG48: COMERCIO AL POR MAYOR Y AL POR MENOR; REPARACIÓN DE VEHÍCULOS AUTOMOTORES Y MOTOCICLETAS | AH48: 21 | AI48: 11 | AJ48: 0 | AN48: =CONCATENATE(AO48,COUNTIF($AO$2:AO48,AO48)) -> 025 | AO48: 0 | AP48: 0 | AQ48: 0 | AR48: 0 | AS48: =+(SUMIFS(Montos!$Y$2:$Y$396864,Montos!$R$2:$R$396864,Base!AT48)/1000000) -> 0
A49: NIT-800256735 | B49: 86320 | C49: ORITO | D49: 1 | E49: 80 | F49: Jurídica | G49: 86 | H49: PUTUMAYO | I49: Aprobado con subsidio | J49: 108 | K49: MEDIANA | L49: 5621 | M49: ALOJAMIENTO Y SERVICIOS DE COMIDA | N49: 1 | O49: 0 | P49: 0 | U49: NIT-807008519 | V49: 54001 | W49: CÚCUTA | X49: 33 | Y49: 19 | Z49: Jurídica | AA49: 54 | AB49: NORTE DE SANTANDER | AC49: Aprobado con subsidio | AD49: 70 | AE49: MEDIANA | AF49: 4663 | AG49: COMERCIO AL POR MAYOR Y AL POR MENOR; REPARACIÓN DE VEHÍCULOS AUTOMOTORES Y MOTOCICLETAS | AH49: 9 | AI49: 24 | AJ49: 0 | AN49: =CONCATENATE(AO49,COUNTIF($AO$2:AO49,AO49)) -> 026 | AO49: 0 | AP49: 0 | AQ49: 0 | AR49: 0 | AS49: =+(SUMIFS(Montos!$Y$2:$Y$396864,Montos!$R$2:$R$396864,Base!AT49)/1000000) -> 0
A50: NIT-800256745 | B50: 76001 | C50: CALI | D50: 10 | E50: 58 | F50: Jurídica | G50: 76 | H50: VALLE DEL CAUCA | I50: Aprobado con subsidio | J50: 69 | K50: MEDIANA | L50: 9200 | M50: ACTIVIDADES ARTÍSTICAS, DE ENTRETENIMIENTO Y RECREACIÓN | N50: 2 | O50: 8 | P50: 0 | U50: NIT-900644075 | V50: 54405 | W50: LOS PATIOS | X50: 1 | Y50: 0 | Z50: Jurídica | AA50: 54 | AB50: NORTE DE SANTANDER | AC50: Aprobado con subsidio | AD50: 1 | AE50: MICRO | AF50: 5320 | AG50: TRANSPORTE Y ALMACENAMIENTO | AH50: 0 | AI50: 1 | AJ50: 0 | AN50: =CONCATENATE(AO50,COUNTIF($AO$2:AO50,AO50)) -> 027 | AO50: 0 | AP50: 0 | AQ50: 0 | AR50: 0 | AS50: =+(SUMIFS(Montos!$Y$2:$Y$396864,Montos!$R$2:$R$396864,Base!AT50)/1000000) -> 0
A51: NIT-801000586 | B51: 63001 | C51: ARMENIA | D51: 7 | E51: 0 | F51: Jurídica | G51: 63 | H51: QUINDIO | I51: Aprobado con subsidio | J51: 8 | K51: MICRO | L51: 9499 | M51: OTRAS ACTIVIDADES DE SERVICIOS | N51: 2 | O51: 5 | P51: 0 | U51: NIT-807002939 | V51: 54001 | W51: CÚCUTA | X51: 2 | Y51: 3 | Z51: Jurídica | AA51: 54 | AB51: NORTE DE SANTANDER | AC51: Aprobado con subsidio | AD51: 5 | AE51: MICRO | AF51: 4530 | AG51: COMERCIO AL POR MAYOR Y AL POR MENOR; REPARACIÓN DE VEHÍCULOS AUTOMOTORES Y MOTOCICLETAS | AH51: 0 | AI51: 2 | AJ51: 0 | AN51: =CONCATENATE(AO51,COUNTIF($AO$2:AO51,AO51)) -> 028 | AO51: 0 | AP51: 0 | AQ51: 0 | AR51: 0 | AS51: =+(SUMIFS(Montos!$Y$2:$Y$396864,Montos!$R$2:$R$396864,Base!AT51)/1000000) -> 0
A52: NIT-801002953 | B52: 63001 | C52: ARMENIA | D52: 5 | E52: 2 | F52: Jurídica | G52: 63 | H52: QUINDIO | I52: Aprobado con subsidio | J52: 8 | K52: MICRO | L52: 4663 | M52: COMERCIO AL POR MAYOR Y AL POR MENOR; REPARACIÓN DE VEHÍCULOS AUTOMOTORES Y MOTOCICLETAS | N52: 2 | O52: 3 | P52: 0 | U52: NIT-901226127 | V52: 54810 | W52: TIBÚ | X52: 3 | Y52: 1 | Z52: Jurídica | AA52: 54 | AB52: NORTE DE SANTANDER | AC52: Aprobado con subsidio | AD52: 6 | AE52: MICRO | AF52: 4921 | AG52: TRANSPORTE Y ALMACENAMIENTO | AH52: 1 | AI52: 2 | AJ52: 0 | AN52: =CONCATENATE(AO52,COUNTIF($AO$2:AO52,AO52)) -> 029 | AO52: 0 | AP52: 0 | AQ52: 0 | AR52: 0 | AS52: =+(SUMIFS(Montos!$Y$2:$Y$396864,Montos!$R$2:$R$396864,Base!AT52)/1000000) -> 0
A53: NIT-801003475 | B53: 63001 | C53: ARMENIA | D53: 7 | E53: 14 | F53: Jurídica | G53: 63 | H53: QUINDIO | I53: Aprobado con subsidio | J53: 20 | K53: PEQUEÑA | L53: 2823 | M53: INDUSTRIAS MANUFACTURERAS | N53: 3 | O53: 4 | P53: 0 | U53: NIT-900508891 | V53: 54001 | W53: CÚCUTA | X53: 18 | Y53: 16 | Z53: Jurídica | AA53: 54 | AB53: NORTE DE SANTANDER | AC53: Aprobado con subsidio | AD53: 38 | AE53: PEQUEÑA | AF53: 8610 | AG53: ACTIVIDADES DE ATENCIÓN DE LA SALUD HUMANA Y DE ASISTENCIA SOCIAL | AH53: 15 | AI53: 3 | AJ53: 0 | AN53: =CONCATENATE(AO53,COUNTIF($AO$2:AO53,AO53)) -> 030 | AO53: 0 | AP53: 0 | AQ53: 0 | AR53: 0 | AS53: =+(SUMIFS(Montos!$Y$2:$Y$396864,Montos!$R$2:$R$396864,Base!AT53)/1000000) -> 0
A54: NIT-801004377 | B54: 73001 | C54: IBAGUÉ | D54: 6 | E54: 10 | F54: Jurídica | G54: 73 | H54: TOLIMA | I54: Aprobado con subsidio | J54: 18 | K54: PEQUEÑA | L54: 145 | M54: AGRICULTURA, GANADERÍA, CAZA, SILVICULTURA Y PESCA | N54: 2 | O54: 4 | P54: 0 | U54: NIT-900231824 | V54: 54001 | W54: CÚCUTA | X54: 30 | Y54: 32 | Z54: Jurídica | AA54: 54 | AB54: NORTE DE SANTANDER | AC54: Aprobado con subsidio | AD54: 144 | AE54: MEDIANA | AF54: 322 | AG54: AGRICULTURA, GANADERÍA, CAZA, SILVICULTURA Y PESCA | AH54: 0 | AI54: 30 | AJ54: 0 | AN54: =CONCATENATE(AO54,COUNTIF($AO$2:AO54,AO54)) -> 031 | AO54: 0 | AP54: 0 | AQ54: 0 | AR54: 0 | AS54: =+(SUMIFS(Montos!$Y$2:$Y$396864,Montos!$R$2:$R$396864,Base!AT54)/1000000) -> 0
A55: NIT-802003530 | B55: 8001 | C55: BARRANQUILLA | D55: 4 | E55: 0 | F55: Jurídica | G55: 8 | H55: ATLÁNTICO | I55: Aprobado con subsidio | J55: 5 | K55: MICRO | L55: 9491 | M55: OTRAS ACTIVIDADES DE SERVICIOS | N55: 2 | O55: 2 | P55: 0 | U55: NIT-900271968 | V55: 54001 | W55: CÚCUTA | X55: 2 | Y55: 6 | Z55: Jurídica | AA55: 54 | AB55: NORTE DE SANTANDER | AC55: Aprobado con subsidio | AD55: 7 | AE55: MICRO | AF55: 4541 | AG55: COMERCIO AL POR MAYOR Y AL POR MENOR; REPARACIÓN DE VEHÍCULOS AUTOMOTORES Y MOTOCICLETAS | AH55: 1 | AI55: 1 | AJ55: 0 | AN55: =CONCATENATE(AO55,COUNTIF($AO$2:AO55,AO55)) -> 032 | AO55: 0 | AP55: 0 | AQ55: 0 | AR55: 0 | AS55: =+(SUMIFS(Montos!$Y$2:$Y$396864,Montos!$R$2:$R$396864,Base!AT55)/1000000) -> 0
A56: NIT-802005436 | B56: 8573 | C56: PUERTO COLOMBIA | D56: 12 | E56: 63 | F56: Jurídica | G56: 8 | H56: ATLÁNTICO | I56: Aprobado con subsidio | J56: 81 | K56: MEDIANA | L56: 4210 | M56: CONSTRUCCIÓN | N56: 3 | O56: 9 | P56: 0 | U56: NIT-900400171 | V56: 54518 | W56: PAMPLONA | X56: 1 | Y56: 0 | Z56: Jurídica | AA56: 54 | AB56: NORTE DE SANTANDER | AC56: Aprobado con subsidio | AD56: 1 | AE56: MICRO | AF56: 9499 | AG56: OTRAS ACTIVIDADES DE SERVICIOS | AH56: 1 | AI56: 0 | AJ56: 0 | AN56: =CONCATENATE(AO56,COUNTIF($AO$2:AO56,AO56)) -> 033 | AO56: 0 | AP56: 0 | AQ56: 0 | AR56: 0 | AS56: =+(SUMIFS(Montos!$Y$2:$Y$396864,Montos!$R$2:$R$396864,Base!AT56)/1000000) -> 0
A57: NIT-802006739 | B57: 8001 | C57: BARRANQUILLA | D57: 3 | E57: 1 | F57: Jurídica | G57: 8 | H57: ATLÁNTICO | I57: Aprobado con subsidio | J57: 4 | K57: MICRO | L57: 4774 | M57: COMERCIO AL POR MAYOR Y AL POR MENOR; REPARACIÓN DE VEHÍCULOS AUTOMOTORES Y MOTOCICLETAS | N57: 2 | O57: 1 | P57: 0 | U57: NIT-901102196 | V57: 54498 | W57: OCAÑA | X57: 3 | Y57: 0 | Z57: Jurídica | AA57: 54 | AB57: NORTE DE SANTANDER | AC57: Aprobado con subsidio | AD57: 3 | AE57: MICRO | AF57: 4923 | AG57: TRANSPORTE Y ALMACENAMIENTO | AH57: 0 | AI57: 3 | AJ57: 0 | AN57: =CONCATENATE(AO57,COUNTIF($AO$2:AO57,AO57)) -> 034 | AO57: 0 | AP57: 0 | AQ57: 0 | AR57: 0 | AS57: =+(SUMIFS(Montos!$Y$2:$Y$396864,Montos!$R$2:$R$396864,Base!AT57)/1000000) -> 0
A58: NIT-802011433 | B58: 8001 | C58: BARRANQUILLA | D58: 87 | E58: 23 | F58: Jurídica | G58: 8 | H58: ATLÁNTICO | I58: Aprobado con subsidio | J58: 116 | K58: MEDIANA | L58: 1410 | M58: INDUSTRIAS MANUFACTURERAS | N58: 73 | O58: 14 | P58: 0 | U58: NIT-900963578 | V58: 54874 | W58: VILLA DEL ROSARIO | X58: 6 | Y58: 0 | Z58: Jurídica | AA58: 54 | AB58: NORTE DE SANTANDER | AC58: Aprobado con subsidio | AD58: 6 | AE58: MICRO | AF58: 2029 | AG58: INDUSTRIAS MANUFACTURERAS | AH58: 3 | AI58: 3 | AJ58: 0 | AN58: =CONCATENATE(AO58,COUNTIF($AO$2:AO58,AO58)) -> 035 | AO58: 0 | AP58: 0 | AQ58: 0 | AR58: 0 | AS58: =+(SUMIFS(Montos!$Y$2:$Y$396864,Montos!$R$2:$R$396864,Base!AT58)/1000000) -> 0
A59: NIT-802015210 | B59: 8001 | C59: BARRANQUILLA | D59: 11 | E59: 13 | F59: Jurídica | G59: 8 | H59: ATLÁNTICO | I59: Aprobado con subsidio | J59: 24 | K59: PEQUEÑA | L59: 8523 | M59: EDUCACIÓN | N59: 9 | O59: 2 | P59: 0 | U59: CC-88283692 | V59: 54874 | W59: VILLA DEL ROSARIO | X59: 12 | Y59: 4 | Z59: Natural | AA59: 54 | AB59: NORTE DE SANTANDER | AC59: Aprobado con subsidio | AD59: 14 | AE59: PEQUEÑA | AF59: 4774 | AG59: COMERCIO AL POR MAYOR Y AL POR MENOR; REPARACIÓN DE VEHÍCULOS AUTOMOTORES Y MOTOCICLETAS | AH59: 12 | AI59: 0 | AJ59: 0 | AN59: =CONCATENATE(AO59,COUNTIF($AO$2:AO59,AO59)) -> 036 | AO59: 0 | AP59: 0 | AQ59: 0 | AR59: 0 | AS59: =+(SUMIFS(Montos!$Y$2:$Y$396864,Montos!$R$2:$R$396864,Base!AT59)/1000000) -> 0
A60: NIT-802016628 | B60: 8001 | C60: BARRANQUILLA | D60: 5 | E60: 19 | F60: Jurídica | G60: 8 | H60: ATLÁNTICO | I60: Aprobado con subsidio | J60: 31 | K60: PEQUEÑA | L60: 4923 | M60: TRANSPORTE Y ALMACENAMIENTO | N60: 2 | O60: 3 | P60: 0 | U60: NIT-900812312 | V60: 54001 | W60: CÚCUTA | X60: 3 | Y60: 0 | Z60: Jurídica | AA60: 54 | AB60: NORTE DE SANTANDER | AC60: Aprobado con subsidio | AD60: 3 | AE60: MICRO | AF60: 4923 | AG60: TRANSPORTE Y ALMACENAMIENTO | AH60: 0 | AI60: 3 | AJ60: 0 | AN60: =CONCATENATE(AO60,COUNTIF($AO$2:AO60,AO60)) -> 037 | AO60: 0 | AP60: 0 | AQ60: 0 | AR60: 0 | AS60: =+(SUMIFS(Montos!$Y$2:$Y$396864,Montos!$R$2:$R$396864,Base!AT60)/1000000) -> 0
A61: NIT-802017259 | B61: 8001 | C61: BARRANQUILLA | D61: 1 | E61: 0 | F61: Jurídica | G61: 8 | H61: ATLÁNTICO | I61: Aprobado con subsidio | J61: 1 | K61: MICRO | L61: 9499 | M61: OTRAS ACTIVIDADES DE SERVICIOS | N61: 1 | O61: 0 | P61: 0 | U61: NIT-901170643 | V61: 54405 | W61: LOS PATIOS | X61: 0 | Y61: 0 | Z61: Jurídica | AA61: 54 | AB61: NORTE DE SANTANDER | AC61: Aprobado sin subsidio | AD61: 5 | AE61: MICRO | AF61: 4390 | AG61: CONSTRUCCIÓN | AH61: 0 | AI61: 0 | AJ61: 0 | AN61: =CONCATENATE(AO61,COUNTIF($AO$2:AO61,AO61)) -> 038 | AO61: 0 | AP61: 0 | AQ61: 0 | AR61: 0 | AS61: =+(SUMIFS(Montos!$Y$2:$Y$396864,Montos!$R$2:$R$396864,Base!AT61)/1000000) -> 0
A62: NIT-830515242 | B62: 11001 | C62: BOGOTÁ, D.C. | D62: 2 | E62: 2 | F62: Jurídica | G62: 11 | H62: BOGOTÁ, D.C. | I62: Aprobado con subsidio | J62: 4 | K62: MICRO | L62: 8621 | M62: ACTIVIDADES DE ATENCIÓN DE LA SALUD HUMANA Y DE ASISTENCIA SOCIAL | N62: 1 | O62: 1 | P62: 0 | U62: CC-88152839 | V62: 54518 | W62: PAMPLONA | X62: 4 | Y62: 0 | Z62: Natural | AA62: 54 | AB62: NORTE DE SANTANDER | AC62: Aprobado con subsidio | AD62: 4 | AE62: MICRO | AF62: 4771 | AG62: COMERCIO AL POR MAYOR Y AL POR MENOR; REPARACIÓN DE VEHÍCULOS AUTOMOTORES Y MOTOCICLETAS | AH62: 3 | AI62: 1 | AJ62: 0 | AN62: =CONCATENATE(AO62,COUNTIF($AO$2:AO62,AO62)) -> 039 | AO62: 0 | AP62: 0 | AQ62: 0 | AR62: 0 | AS62: =+(SUMIFS(Montos!$Y$2:$Y$396864,Montos!$R$2:$R$396864,Base!AT62)/1000000) -> 0
A63: NIT-832003564 | B63: 25175 | C63: CHÍA | D63: 0 | E63: 0 | F63: Jurídica | G63: 25 | H63: CUNDINAMARCA | I63: Rechazado a nivel aportante | J63: 2 | K63: MICRO | L63: 9491 | M63: OTRAS ACTIVIDADES DE SERVICIOS | N63: 0 | O63: 0 | P63: 0 | U63: NIT-900354456 | V63: 54001 | W63: CÚCUTA | X63: 8 | Y63: 2 | Z63: Jurídica | AA63: 54 | AB63: NORTE DE SANTANDER | AC63: Aprobado con subsidio | AD63: 10 | AE63: MICRO | AF63: 4631 | AG63: COMERCIO AL POR MAYOR Y AL POR MENOR; REPARACIÓN DE VEHÍCULOS AUTOMOTORES Y MOTOCICLETAS | AH63: 4 | AI63: 4 | AJ63: 0 | AN63: =CONCATENATE(AO63,COUNTIF($AO$2:AO63,AO63)) -> 040 | AO63: 0 | AP63: 0 | AQ63: 0 | AR63: 0 | AS63: =+(SUMIFS(Montos!$Y$2:$Y$396864,Montos!$R$2:$R$396864,Base!AT63)/1000000) -> 0
A64: NIT-832010787 | B64: 25175 | C64: CHÍA | D64: 5 | E64: 5 | F64: Jurídica | G64: 25 | H64: CUNDINAMARCA | I64: Aprobado con subsidio | J64: 10 | K64: MICRO | L64: 3110 | M64: INDUSTRIAS MANUFACTURERAS | N64: 1 | O64: 4 | P64: 0 | U64: NIT-900885354 | V64: 54001 | W64: CÚCUTA | X64: 2 | Y64: 0 | Z64: Jurídica | AA64: 54 | AB64: NORTE DE SANTANDER | AC64: Aprobado con subsidio | AD64: 2 | AE64: MICRO | AF64: 1410 | AG64: INDUSTRIAS MANUFACTURERAS | AH64: 2 | AI64: 0 | AJ64: 0 | AN64: =CONCATENATE(AO64,COUNTIF($AO$2:AO64,AO64)) -> 041 | AO64: 0 | AP64: 0 | AQ64: 0 | AR64: 0 | AS64: =+(SUMIFS(Montos!$Y$2:$Y$396864,Montos!$R$2:$R$396864,Base!AT64)/1000000) -> 0
A65: NIT-834001198 | B65: 81001 | C65: ARAUCA | D65: 6 | E65: 4 | F65: Jurídica | G65: 81 | H65: ARAUCA | I65: Aprobado con subsidio | J65: 16 | K65: PEQUEÑA | L65: 5221 | M65: TRANSPORTE Y ALMACENAMIENTO | N65: 6 | O65: 0 | P65: 0 | U65: NIT-901301862 | V65: 54874 | W65: VILLA DEL ROSARIO | X65: 3 | Y65: 0 | Z65: Jurídica | AA65: 54 | AB65: NORTE DE SANTANDER | AC65: Aprobado con subsidio | AD65: 2 | AE65: MICRO | AF65: 4752 | AG65: COMERCIO AL POR MAYOR Y AL POR MENOR; REPARACIÓN DE VEHÍCULOS AUTOMOTORES Y MOTOCICLETAS | AH65: 1 | AI65: 2 | AJ65: 0 | AN65: =CONCATENATE(AO65,COUNTIF($AO$2:AO65,AO65)) -> 042 | AO65: 0 | AP65: 0 | AQ65: 0 | AR65: 0 | AS65: =+(SUMIFS(Montos!$Y$2:$Y$396864,Montos!$R$2:$R$396864,Base!AT65)/1000000) -> 0
A66: NIT-835000235 | B66: 76109 | C66: BUENAVENTURA | D66: 384 | E66: 197 | F66: Jurídica | G66: 76 | H66: VALLE DEL CAUCA | I66: Aprobado con subsidio | J66: 625 | K66: MUY GRANDE | L66: 9200 | M66: ACTIVIDADES ARTÍSTICAS, DE ENTRETENIMIENTO Y RECREACIÓN | N66: 362 | O66: 22 | P66: 0 | U66: NIT-900113508 | V66: 54001 | W66: CÚCUTA | X66: 8 | Y66: 0 | Z66: Jurídica | AA66: 54 | AB66: NORTE DE SANTANDER | AC66: Aprobado con subsidio | AD66: 10 | AE66: MICRO | AF66: 4663 | AG66: COMERCIO AL POR MAYOR Y AL POR MENOR; REPARACIÓN DE VEHÍCULOS AUTOMOTORES Y MOTOCICLETAS | AH66: 6 | AI66: 2 | AJ66: 0 | AN66: =CONCATENATE(AO66,COUNTIF($AO$2:AO66,AO66)) -> 043 | AO66: =+COUNTIFS($W$2:$W$399999,AT66,$AC$2:$AC$399999,"Aprobado con subsidio")*1 -> 0 | AP66: =+AO66/SUM($AO$2:$AO$129) -> 0 | AQ66: =+SUMIFS($X$2:$X$399999,$W$2:$W$399999,AT66,$AC$2:$AC$399999,"Aprobado con subsidio") -> 0 | AR66: 0 | AS66: =+(SUMIFS(Montos!$Y$2:$Y$396864,Montos!$R$2:$R$396864,Base!AT66)/1000000) -> 0
A67: NIT-837000638 | B67: 52356 | C67: IPIALES | D67: 2 | E67: 6 | F67: Jurídica | G67: 52 | H67: NARIÑO | I67: Aprobado con subsidio | J67: 8 | K67: MICRO | L67: 6202 | M67: INFORMACIÓN Y COMUNICACIONES | N67: 0 | O67: 2 | P67: 0 | U67: CC-60335828 | V67: 54001 | W67: CÚCUTA | X67: 6 | Y67: 1 | Z67: Natural | AA67: 54 | AB67: NORTE DE SANTANDER | AC67: Aprobado con subsidio | AD67: 10 | AE67: MICRO | AF67: 126 | AG67: AGRICULTURA, GANADERÍA, CAZA, SILVICULTURA Y PESCA | AH67: 2 | AI67: 4 | AJ67: 0 | AN67: =CONCATENATE(AO67,COUNTIF($AO$2:AO67,AO67)) -> 044 | AO67: 0 | AP67: 0 | AQ67: 0 | AR67: =+AQ67/SUM($AQ$2:$AQ$129) -> 0 | AS67: =+(SUMIFS(Montos!$Y$2:$Y$396864,Montos!$R$2:$R$396864,Base!AT67)/1000000) -> 0
A68: NIT-838000196 | B68: 91001 | C68: LETICIA | D68: 18 | E68: 2 | F68: Jurídica | G68: 91 | H68: AMAZONAS | I68: Aprobado con subsidio | J68: 17 | K68: PEQUEÑA | L68: 8530 | M68: EDUCACIÓN | N68: 13 | O68: 5 | P68: 0 | U68: CC-13226894 | V68: 54874 | W68: VILLA DEL ROSARIO | X68: 9 | Y68: 0 | Z68: Natural | AA68: 54 | AB68: NORTE DE SANTANDER | AC68: Aprobado con subsidio | AD68: 11 | AE68: PEQUEÑA | AF68: 4752 | AG68: COMERCIO AL POR MAYOR Y AL POR MENOR; REPARACIÓN DE VEHÍCULOS AUTOMOTORES Y MOTOCICLETAS | AH68: 3 | AI68: 6 | AJ68: 0 | AN68: =CONCATENATE(AO68,COUNTIF($AO$2:AO68,AO68)) -> 045 | AO68: 0 | AP68: 0 | AQ68: 0 | AR68: 0 | AS68: =+(SUMIFS(Montos!$Y$2:$Y$396864,Montos!$R$2:$R$396864,Base!AT68)/1000000) -> 0
A69: NIT-839000320 | B69: 44430 | C69: MAICAO | D69: 4 | E69: 3 | F69: Jurídica | G69: 44 | H69: LA GUAJIRA | I69: Aprobado con subsidio | J69: 7 | K69: MICRO | L69: 4711 | M69: COMERCIO AL POR MAYOR Y AL POR MENOR; REPARACIÓN DE VEHÍCULOS AUTOMOTORES Y MOTOCICLETAS | N69: 2 | O69: 2 | P69: 0 | U69: CC-13468613 | V69: 54001 | W69: CÚCUTA | X69: 10 | Y69: 2 | Z69: Natural | AA69: 54 | AB69: NORTE DE SANTANDER | AC69: Aprobado con subsidio | AD69: 11 | AE69: PEQUEÑA | AF69: 4755 | AG69: COMERCIO AL POR MAYOR Y AL POR MENOR; REPARACIÓN DE VEHÍCULOS AUTOMOTORES Y MOTOCICLETAS | AH69: 0 | AI69: 10 | AJ69: 0 | AN69: =CONCATENATE(AO69,COUNTIF($AO$2:AO69,AO69)) -> 046 | AO69: 0 | AP69: 0 | AQ69: 0 | AR69: 0 | AS69: =+(SUMIFS(Montos!$Y$2:$Y$396864,Montos!$R$2:$R$396864,Base!AT69)/1000000) -> 0
A70: NIT-844001318 | B70: 85001 | C70: YOPAL | D70: 6 | E70: 20 | F70: Jurídica | G70: 85 | H70: CASANARE | I70: Aprobado con subsidio | J70: 29 | K70: PEQUEÑA | L70: 7730 | M70: ACTIVIDADES DE SERVICIOS ADMINISTRATIVOS Y DE APOYO | N70: 2 | O70: 4 | P70: 0 | U70: NIT-901348164 | V70: 54874 | W70: VILLA DEL ROSARIO | X70: 2 | Y70: 0 | Z70: Jurídica | AA70: 54 | AB70: NORTE DE SANTANDER | AC70: Aprobado con subsidio | AD70: 2 | AE70: MICRO | AF70: 4645 | AG70: COMERCIO AL POR MAYOR Y AL POR MENOR; REPARACIÓN DE VEHÍCULOS AUTOMOTORES Y MOTOCICLETAS | AH70: 0 | AI70: 2 | AJ70: 0 | AN70: =CONCATENATE(AO70,COUNTIF($AO$2:AO70,AO70)) -> 047 | AO70: 0 | AP70: 0 | AQ70: 0 | AR70: 0 | AS70: =+(SUMIFS(Montos!$Y$2:$Y$396864,Montos!$R$2:$R$396864,Base!AT70)/1000000) -> 0
A71: NIT-844002657 | B71: 85001 | C71: YOPAL | D71: 8 | E71: 8 | F71: Jurídica | G71: 85 | H71: CASANARE | I71: Aprobado con subsidio | J71: 20 | K71: PEQUEÑA | L71: 4290 | M71: CONSTRUCCIÓN | N71: 4 | O71: 4 | P71: 0 | U71: NIT-900374887 | V71: 54261 | W71: EL ZULIA | X71: 0 | Y71: 0 | Z71: Jurídica | AA71: 54 | AB71: NORTE DE SANTANDER | AC71: Rechazado a nivel aportante | AD71: 4 | AE71: MICRO | AF71: 8299 | AG71: ACTIVIDADES DE SERVICIOS ADMINISTRATIVOS Y DE APOYO | AH71: 0 | AI71: 0 | AJ71: 0 | AN71: =CONCATENATE(AO71,COUNTIF($AO$2:AO71,AO71)) -> 048 | AO71: 0 | AP71: 0 | AQ71: 0 | AR71: 0 | AS71: =+(SUMIFS(Montos!$Y$2:$Y$396864,Montos!$R$2:$R$396864,Base!AT71)/1000000) -> 0
A72: NIT-844004234 | B72: 85010 | C72: AGUAZUL | D72: 3 | E72: 1 | F72: Jurídica | G72: 85 | H72: CASANARE | I72: Aprobado con subsidio | J72: 10 | K72: MICRO | L72: 4321 | M72: CONSTRUCCIÓN | N72: 2 | O72: 1 | P72: 0 | U72: NIT-901308955 | V72: 54001 | W72: CÚCUTA | X72: 2 | Y72: 1 | Z72: Jurídica | AA72: 54 | AB72: NORTE DE SANTANDER | AC72: Aprobado con subsidio | AD72: 4 | AE72: MICRO | AF72: 1011 | AG72: INDUSTRIAS MANUFACTURERAS | AH72: 1 | AI72: 1 | AJ72: 0 | AN72: =CONCATENATE(AO72,COUNTIF($AO$2:AO72,AO72)) -> 049 | AO72: 0 | AP72: 0 | AQ72: 0 | AR72: 0 | AS72: =+(SUMIFS(Montos!$Y$2:$Y$396864,Montos!$R$2:$R$396864,Base!AT72)/1000000) -> 0
A73: NIT-846000005 | B73: 86001 | C73: MOCOA | D73: 4 | E73: 0 | F73: Jurídica | G73: 86 | H73: PUTUMAYO | I73: Aprobado con subsidio | J73: 4 | K73: MICRO | L73: 4752 | M73: COMERCIO AL POR MAYOR Y AL POR MENOR; REPARACIÓN DE VEHÍCULOS AUTOMOTORES Y MOTOCICLETAS | N73: 2 | O73: 2 | P73: 0 | U73: NIT-890504934 | V73: 54001 | W73: CÚCUTA | X73: 2 | Y73: 1 | Z73: Jurídica | AA73: 54 | AB73: NORTE DE SANTANDER | AC73: Aprobado con subsidio | AD73: 4 | AE73: MICRO | AF73: 9329 | AG73: ACTIVIDADES ARTÍSTICAS, DE ENTRETENIMIENTO Y RECREACIÓN | AH73: 2 | AI73: 0 | AJ73: 0 | AN73: =CONCATENATE(AO73,COUNTIF($AO$2:AO73,AO73)) -> 050 | AO73: 0 | AP73: 0 | AQ73: 0 | AR73: 0 | AS73: =+(SUMIFS(Montos!$Y$2:$Y$396864,Montos!$R$2:$R$396864,Base!AT73)/1000000) -> 0
A74: NIT-846003058 | B74: 86001 | C74: MOCOA | D74: 8 | E74: 2 | F74: Jurídica | G74: 86 | H74: PUTUMAYO | I74: Aprobado con subsidio | J74: 11 | K74: PEQUEÑA | L74: 4731 | M74: COMERCIO AL POR MAYOR Y AL POR MENOR; REPARACIÓN DE VEHÍCULOS AUTOMOTORES Y MOTOCICLETAS | N74: 1 | O74: 7 | P74: 0 | U74: CC-60336590 | V74: 54874 | W74: VILLA DEL ROSARIO | X74: 3 | Y74: 0 | Z74: Natural | AA74: 54 | AB74: NORTE DE SANTANDER | AC74: Aprobado con subsidio | AD74: 3 | AE74: MICRO | AF74: 4773 | AG74: COMERCIO AL POR MAYOR Y AL POR MENOR; REPARACIÓN DE VEHÍCULOS AUTOMOTORES Y MOTOCICLETAS | AH74: 2 | AI74: 1 | AJ74: 0 | AN74: =CONCATENATE(AO74,COUNTIF($AO$2:AO74,AO74)) -> 051 | AO74: 0 | AP74: 0 | AQ74: 0 | AR74: 0 | AS74: =+(SUMIFS(Montos!$Y$2:$Y$396864,Montos!$R$2:$R$396864,Base!AT74)/1000000) -> 0
A75: NIT-846003067 | B75: 86001 | C75: MOCOA | D75: 8 | E75: 39 | F75: Jurídica | G75: 86 | H75: PUTUMAYO | I75: Aprobado con subsidio | J75: 48 | K75: PEQUEÑA | L75: 8610 | M75: ACTIVIDADES DE ATENCIÓN DE LA SALUD HUMANA Y DE ASISTENCIA SOCIAL | N75: 6 | O75: 2 | P75: 0 | U75: CC-13349805 | V75: 54518 | W75: PAMPLONA | X75: 10 | Y75: 0 | Z75: Natural | AA75: 54 | AB75: NORTE DE SANTANDER | AC75: Aprobado con subsidio | AD75: 10 | AE75: MICRO | AF75: 1081 | AG75: INDUSTRIAS MANUFACTURERAS | AH75: 2 | AI75: 8 | AJ75: 0 | AN75: =CONCATENATE(AO75,COUNTIF($AO$2:AO75,AO75)) -> 052 | AO75: 0 | AP75: 0 | AQ75: 0 | AR75: 0 | AS75: =+(SUMIFS(Montos!$Y$2:$Y$396864,Montos!$R$2:$R$396864,Base!AT75)/1000000) -> 0
A76: NIT-900538118 | B76: 11001 | C76: BOGOTÁ, D.C. | D76: 10 | E76: 13 | F76: Jurídica | G76: 11 | H76: BOGOTÁ, D.C. | I76: Aprobado con subsidio | J76: 29 | K76: PEQUEÑA | L76: 4530 | M76: COMERCIO AL POR MAYOR Y AL POR MENOR; REPARACIÓN DE VEHÍCULOS AUTOMOTORES Y MOTOCICLETAS | N76: 1 | O76: 9 | P76: 0 | U76: CC-13499968 | V76: 54001 | W76: CÚCUTA | X76: 4 | Y76: 1 | Z76: Natural | AA76: 54 | AB76: NORTE DE SANTANDER | AC76: Aprobado con subsidio | AD76: 5 | AE76: MICRO | AF76: 4520 | AG76: COMERCIO AL POR MAYOR Y AL POR MENOR; REPARACIÓN DE VEHÍCULOS AUTOMOTORES Y MOTOCICLETAS | AH76: 1 | AI76: 3 | AJ76: 0 | AN76: =CONCATENATE(AO76,COUNTIF($AO$2:AO76,AO76)) -> 053 | AO76: 0 | AP76: 0 | AQ76: 0 | AR76: 0 | AS76: =+(SUMIFS(Montos!$Y$2:$Y$396864,Montos!$R$2:$R$396864,Base!AT76)/1000000) -> 0
A77: NIT-900209957 | B77: 86001 | C77: MOCOA | D77: 4 | E77: 0 | F77: Jurídica | G77: 86 | H77: PUTUMAYO | I77: Aprobado con subsidio | J77: 4 | K77: MICRO | L77: 9603 | M77: OTRAS ACTIVIDADES DE SERVICIOS | N77: 2 | O77: 2 | P77: 0 | U77: CC-13249279 | V77: 54001 | W77: CÚCUTA | X77: 11 | Y77: 0 | Z77: Natural | AA77: 54 | AB77: NORTE DE SANTANDER | AC77: Aprobado con subsidio | AD77: 13 | AE77: PEQUEÑA | AF77: 4322 | AG77: CONSTRUCCIÓN | AH77: 0 | AI77: 11 | AJ77: 0 | AN77: =CONCATENATE(AO77,COUNTIF($AO$2:AO77,AO77)) -> 054 | AO77: 0 | AP77: 0 | AQ77: 0 | AR77: 0 | AS77: =+(SUMIFS(Montos!$Y$2:$Y$396864,Montos!$R$2:$R$396864,Base!AT77)/1000000) -> 0
A78: NIT-900210745 | B78: 20001 | C78: VALLEDUPAR | D78: 8 | E78: 23 | F78: Jurídica | G78: 20 | H78: CESAR | I78: Aprobado con subsidio | J78: 37 | K78: PEQUEÑA | L78: 4731 | M78: COMERCIO AL POR MAYOR Y AL POR MENOR; REPARACIÓN DE VEHÍCULOS AUTOMOTORES Y MOTOCICLETAS | N78: 2 | O78: 6 | P78: 0 | U78: NIT-900739034 | V78: 54001 | W78: CÚCUTA | X78: 34 | Y78: 15 | Z78: Jurídica | AA78: 54 | AB78: NORTE DE SANTANDER | AC78: Aprobado con subsidio | AD78: 66 | AE78: MEDIANA | AF78: 8010 | AG78: ACTIVIDADES DE SERVICIOS ADMINISTRATIVOS Y DE APOYO | AH78: 3 | AI78: 31 | AJ78: 0 | AN78: =CONCATENATE(AO78,COUNTIF($AO$2:AO78,AO78)) -> 055 | AO78: 0 | AP78: 0 | AQ78: 0 | AR78: 0 | AS78: =+(SUMIFS(Montos!$Y$2:$Y$396864,Montos!$R$2:$R$396864,Base!AT78)/1000000) -> 0
A79: NIT-900210774 | B79: 15759 | C79: SOGAMOSO | D79: 3 | E79: 9 | F79: Jurídica | G79: 15 | H79: BOYACÁ | I79: Aprobado con subsidio | J79: 13 | K79: PEQUEÑA | L79: 3822 | M79: DISTRIBUCIÓN DE AGUA; EVACUACIÓN Y TRATAMIENTO DE AGUAS RESIDUALES, GESTIÓN DE DESECHOS Y ACTIVIDADES DE SANEAMIENTO AMBIENTAL | N79: 0 | O79: 3 | P79: 0 | U79: NIT-807005015 | V79: 54001 | W79: CÚCUTA | X79: 222 | Y79: 33 | Z79: Jurídica | AA79: 54 | AB79: NORTE DE SANTANDER | AC79: Aprobado con subsidio | AD79: 300 | AE79: GRANDE | AF79: 4661 | AG79: COMERCIO AL POR MAYOR Y AL POR MENOR; REPARACIÓN DE VEHÍCULOS AUTOMOTORES Y MOTOCICLETAS | AH79: 23 | AI79: 199 | AJ79: 0 | AN79: =CONCATENATE(AO79,COUNTIF($AO$2:AO79,AO79)) -> 056 | AO79: 0 | AP79: 0 | AQ79: 0 | AR79: 0 | AS79: =+(SUMIFS(Montos!$Y$2:$Y$396864,Montos!$R$2:$R$396864,Base!AT79)/1000000) -> 0
A80: NIT-900213187 | B80: 41001 | C80: NEIVA | D80: 23 | E80: 1 | F80: Jurídica | G80: 41 | H80: HUILA | I80: Aprobado con subsidio | J80: 26 | K80: PEQUEÑA | L80: 9499 | M80: OTRAS ACTIVIDADES DE SERVICIOS | N80: 14 | O80: 9 | P80: 0 | U80: NIT-900590185 | V80: 54498 | W80: OCAÑA | X80: 0 | Y80: 0 | Z80: Jurídica | AA80: 54 | AB80: NORTE DE SANTANDER | AC80: Rechazado a nivel aportante | AD80: 17 | AE80: PEQUEÑA | AF80: 4220 | AG80: CONSTRUCCIÓN | AH80: 0 | AI80: 0 | AJ80: 0 | AN80: =CONCATENATE(AO80,COUNTIF($AO$2:AO80,AO80)) -> 057 | AO80: 0 | AP80: 0 | AQ80: 0 | AR80: 0 | AS80: =+(SUMIFS(Montos!$Y$2:$Y$396864,Montos!$R$2:$R$396864,Base!AT80)/1000000) -> 0
A81: NIT-900213946 | B81: 11001 | C81: BOGOTÁ, D.C. | D81: 2 | E81: 0 | F81: Jurídica | G81: 11 | H81: BOGOTÁ, D.C. | I81: Aprobado con subsidio | J81: 2 | K81: MICRO | L81: 7990 | M81: ACTIVIDADES DE SERVICIOS ADMINISTRATIVOS Y DE APOYO | N81: 2 | O81: 0 | P81: 0 | U81: CC-13819762 | V81: 54518 | W81: PAMPLONA | X81: 4 | Y81: 1 | Z81: Natural | AA81: 54 | AB81: NORTE DE SANTANDER | AC81: Aprobado con subsidio | AD81: 5 | AE81: MICRO | AF81: 6810 | AG81: ACTIVIDADES INMOBILIARIAS | AH81: 3 | AI81: 1 | AJ81: 0 | AN81: =CONCATENATE(AO81,COUNTIF($AO$2:AO81,AO81)) -> 058 | AO81: 0 | AP81: 0 | AQ81: 0 | AR81: 0 | AS81: =+(SUMIFS(Montos!$Y$2:$Y$396864,Montos!$R$2:$R$396864,Base!AT81)/1000000) -> 0
A82: NIT-900216686 | B82: 76001 | C82: CALI | D82: 9 | E82: 3 | F82: Jurídica | G82: 76 | H82: VALLE DEL CAUCA | I82: Aprobado con subsidio | J82: 12 | K82: PEQUEÑA | L82: 5512 | M82: ALOJAMIENTO Y SERVICIOS DE COMIDA | N82: 6 | O82: 3 | P82: 0 | U82: NIT-900761742 | V82: 54001 | W82: CÚCUTA | X82: 9 | Y82: 25 | Z82: Jurídica | AA82: 54 | AB82: NORTE DE SANTANDER | AC82: Aprobado con subsidio | AD82: 35 | AE82: PEQUEÑA | AF82: 1089 | AG82: INDUSTRIAS MANUFACTURERAS | AH82: 0 | AI82: 9 | AJ82: 0 | AN82: =CONCATENATE(AO82,COUNTIF($AO$2:AO82,AO82)) -> 059 | AO82: 0 | AP82: 0 | AQ82: 0 | AR82: 0 | AS82: =+(SUMIFS(Montos!$Y$2:$Y$396864,Montos!$R$2:$R$396864,Base!AT82)/1000000) -> 0
A83: NIT-900217717 | B83: 41001 | C83: NEIVA | D83: 4 | E83: 0 | F83: Jurídica | G83: 41 | H83: HUILA | I83: Aprobado con subsidio | J83: 2 | K83: MICRO | L83: 6613 | M83: ACTIVIDADES FINANCIERAS Y DE SEGUROS | N83: 3 | O83: 1 | P83: 0 | U83: NIT-901218106 | V83: 54001 | W83: CÚCUTA | X83: 3 | Y83: 0 | Z83: Jurídica | AA83: 54 | AB83: NORTE DE SANTANDER | AC83: Aprobado con subsidio | AD83: 3 | AE83: MICRO | AF83: 5310 | AG83: TRANSPORTE Y ALMACENAMIENTO | AH83: 2 | AI83: 1 | AJ83: 0 | AN83: =CONCATENATE(AO83,COUNTIF($AO$2:AO83,AO83)) -> 060 | AO83: 0 | AP83: 0 | AQ83: 0 | AR83: 0 | AS83: =+(SUMIFS(Montos!$Y$2:$Y$396864,Montos!$R$2:$R$396864,Base!AT83)/1000000) -> 0
A84: NIT-900219572 | B84: 11001 | C84: BOGOTÁ, D.C. | D84: 4 | E84: 0 | F84: Jurídica | G84: 11 | H84: BOGOTÁ, D.C. | I84: Aprobado con subsidio | J84: 4 | K84: MICRO | L84: 4642 | M84: COMERCIO AL POR MAYOR Y AL POR MENOR; REPARACIÓN DE VEHÍCULOS AUTOMOTORES Y MOTOCICLETAS | N84: 3 | O84: 1 | P84: 0 | U84: CC-13436082 | V84: 54001 | W84: CÚCUTA | X84: 5 | Y84: 0 | Z84: Natural | AA84: 54 | AB84: NORTE DE SANTANDER | AC84: Aprobado con subsidio | AD84: 4 | AE84: MICRO | AF84: 8512 | AG84: EDUCACIÓN | AH84: 3 | AI84: 2 | AJ84: 0 | AN84: =CONCATENATE(AO84,COUNTIF($AO$2:AO84,AO84)) -> 061 | AO84: 0 | AP84: 0 | AQ84: 0 | AR84: 0 | AS84: =+(SUMIFS(Montos!$Y$2:$Y$396864,Montos!$R$2:$R$396864,Base!AT84)/1000000) -> 0
A85: NIT-900222266 | B85: 11001 | C85: BOGOTÁ, D.C. | D85: 1 | E85: 7 | F85: Jurídica | G85: 11 | H85: BOGOTÁ, D.C. | I85: Aprobado con subsidio | J85: 8 | K85: MICRO | L85: 7490 | M85: ACTIVIDADES PROFESIONALES, CIENTÍFICAS Y TÉCNICAS | N85: 1 | O85: 0 | P85: 0 | U85: CC-60293183 | V85: 54874 | W85: VILLA DEL ROSARIO | X85: 6 | Y85: 0 | Z85: Natural | AA85: 54 | AB85: NORTE DE SANTANDER | AC85: Aprobado con subsidio | AD85: 7 | AE85: MICRO | AF85: 4773 | AG85: COMERCIO AL POR MAYOR Y AL POR MENOR; REPARACIÓN DE VEHÍCULOS AUTOMOTORES Y MOTOCICLETAS | AH85: 5 | AI85: 1 | AJ85: 0 | AN85: =CONCATENATE(AO85,COUNTIF($AO$2:AO85,AO85)) -> 062 | AO85: 0 | AP85: 0 | AQ85: 0 | AR85: 0 | AS85: =+(SUMIFS(Montos!$Y$2:$Y$396864,Montos!$R$2:$R$396864,Base!AT85)/1000000) -> 0
A86: NIT-900222733 | B86: 11001 | C86: BOGOTÁ, D.C. | D86: 3 | E86: 15 | F86: Jurídica | G86: 11 | H86: BOGOTÁ, D.C. | I86: Aprobado con subsidio | J86: 24 | K86: PEQUEÑA | L86: 8621 | M86: ACTIVIDADES DE ATENCIÓN DE LA SALUD HUMANA Y DE ASISTENCIA SOCIAL | N86: 3 | O86: 0 | P86: 0 | U86: NIT-890500388 | V86: 54874 | W86: VILLA DEL ROSARIO | X86: 233 | Y86: 38 | Z86: Jurídica | AA86: 54 | AB86: NORTE DE SANTANDER | AC86: Aprobado con subsidio | AD86: 301 | AE86: GRANDE | AF86: 4921 | AG86: TRANSPORTE Y ALMACENAMIENTO | AH86: 4 | AI86: 229 | AJ86: 0 | AN86: =CONCATENATE(AO86,COUNTIF($AO$2:AO86,AO86)) -> 063 | AO86: 0 | AP86: 0 | AQ86: 0 | AR86: 0 | AS86: =+(SUMIFS(Montos!$Y$2:$Y$396864,Montos!$R$2:$R$396864,Base!AT86)/1000000) -> 0
A87: NIT-900222796 | B87: 68679 | C87: SAN GIL | D87: 1 | E87: 7 | F87: Jurídica | G87: 68 | H87: SANTANDER | I87: Aprobado con subsidio | J87: 9 | K87: MICRO | L87: 7120 | M87: ACTIVIDADES PROFESIONALES, CIENTÍFICAS Y TÉCNICAS | N87: 1 | O87: 0 | P87: 0 | U87: NIT-900365548 | V87: 54001 | W87: CÚCUTA | X87: 4 | Y87: 8 | Z87: Jurídica | AA87: 54 | AB87: NORTE DE SANTANDER | AC87: Aprobado con subsidio | AD87: 8 | AE87: MICRO | AF87: 4111 | AG87: CONSTRUCCIÓN | AH87: 0 | AI87: 4 | AJ87: 0 | AN87: =CONCATENATE(AO87,COUNTIF($AO$2:AO87,AO87)) -> 064 | AO87: 0 | AP87: 0 | AQ87: 0 | AR87: 0 | AS87: =+(SUMIFS(Montos!$Y$2:$Y$396864,Montos!$R$2:$R$396864,Base!AT87)/1000000) -> 0
A88: NIT-900223178 | B88: 11001 | C88: BOGOTÁ, D.C. | D88: 4 | E88: 0 | F88: Jurídica | G88: 11 | H88: BOGOTÁ, D.C. | I88: Aprobado con subsidio | J88: 4 | K88: MICRO | L88: 4651 | M88: COMERCIO AL POR MAYOR Y AL POR MENOR; REPARACIÓN DE VEHÍCULOS AUTOMOTORES Y MOTOCICLETAS | N88: 1 | O88: 3 | P88: 0 | U88: CC-13476231 | V88: 54001 | W88: CÚCUTA | X88: 7 | Y88: 0 | Z88: Natural | AA88: 54 | AB88: NORTE DE SANTANDER | AC88: Aprobado con subsidio | AD88: 6 | AE88: MICRO | AF88: 4530 | AG88: COMERCIO AL POR MAYOR Y AL POR MENOR; REPARACIÓN DE VEHÍCULOS AUTOMOTORES Y MOTOCICLETAS | AH88: 0 | AI88: 7 | AJ88: 0 | AN88: =CONCATENATE(AO88,COUNTIF($AO$2:AO88,AO88)) -> 065 | AO88: 0 | AP88: 0 | AQ88: 0 | AR88: 0 | AS88: =+(SUMIFS(Montos!$Y$2:$Y$396864,Montos!$R$2:$R$396864,Base!AT88)/1000000) -> 0
A89: NIT-900224321 | B89: 20001 | C89: VALLEDUPAR | D89: 6 | E89: 2 | F89: Jurídica | G89: 20 | H89: CESAR | I89: Aprobado con subsidio | J89: 6 | K89: MICRO | L89: 4290 | M89: CONSTRUCCIÓN | N89: 0 | O89: 6 | P89: 0 | U89: NIT-901044125 | V89: 54001 | W89: CÚCUTA | X89: 17 | Y89: 46 | Z89: Jurídica | AA89: 54 | AB89: NORTE DE SANTANDER | AC89: Aprobado con subsidio | AD89: 33 | AE89: PEQUEÑA | AF89: 8110 | AG89: ACTIVIDADES DE SERVICIOS ADMINISTRATIVOS Y DE APOYO | AH89: 5 | AI89: 12 | AJ89: 0 | AN89: =CONCATENATE(AO89,COUNTIF($AO$2:AO89,AO89)) -> 066 | AO89: 0 | AP89: 0 | AQ89: 0 | AR89: 0 | AS89: =+(SUMIFS(Montos!$Y$2:$Y$396864,Montos!$R$2:$R$396864,Base!AT89)/1000000) -> 0
A90: NIT-900225202 | B90: 76834 | C90: TULUÁ | D90: 11 | E90: 8 | F90: Jurídica | G90: 76 | H90: VALLE DEL CAUCA | I90: Aprobado con subsidio | J90: 18 | K90: PEQUEÑA | L90: 8691 | M90: ACTIVIDADES DE ATENCIÓN DE LA SALUD HUMANA Y DE ASISTENCIA SOCIAL | N90: 8 | O90: 3 | P90: 0 | U90: NIT-900134164 | V90: 54001 | W90: CÚCUTA | X90: 1 | Y90: 7 | Z90: Jurídica | AA90: 54 | AB90: NORTE DE SANTANDER | AC90: Aprobado con subsidio | AD90: 8 | AE90: MICRO | AF90: 4530 | AG90: COMERCIO AL POR MAYOR Y AL POR MENOR; REPARACIÓN DE VEHÍCULOS AUTOMOTORES Y MOTOCICLETAS | AH90: 0 | AI90: 1 | AJ90: 0 | AN90: =CONCATENATE(AO90,COUNTIF($AO$2:AO90,AO90)) -> 067 | AO90: 0 | AP90: 0 | AQ90: 0 | AR90: 0 | AS90: =+(SUMIFS(Montos!$Y$2:$Y$396864,Montos!$R$2:$R$396864,Base!AT90)/1000000) -> 0
A91: NIT-900225906 | B91: 11001 | C91: BOGOTÁ, D.C. | D91: 10 | E91: 12 | F91: Jurídica | G91: 11 | H91: BOGOTÁ, D.C. | I91: Aprobado con subsidio | J91: 26 | K91: PEQUEÑA | L91: 1393 | M91: INDUSTRIAS MANUFACTURERAS | N91: 6 | O91: 4 | P91: 0 | U91: NIT-901156098 | V91: 54001 | W91: CÚCUTA | X91: 13 | Y91: 1 | Z91: Jurídica | AA91: 54 | AB91: NORTE DE SANTANDER | AC91: Aprobado con subsidio | AD91: 54 | AE91: MEDIANA | AF91: 1521 | AG91: INDUSTRIAS MANUFACTURERAS | AH91: 4 | AI91: 9 | AJ91: 0 | AN91: =CONCATENATE(AO91,COUNTIF($AO$2:AO91,AO91)) -> 068 | AO91: 0 | AP91: 0 | AQ91: 0 | AR91: 0 | AS91: =+(SUMIFS(Montos!$Y$2:$Y$396864,Montos!$R$2:$R$396864,Base!AT91)/1000000) -> 0
A92: NIT-900226405 | B92: 15176 | C92: CHIQUINQUIRÁ | D92: 1 | E92: 0 | F92: Jurídica | G92: 15 | H92: BOYACÁ | I92: Aprobado con subsidio | J92: 3 | K92: MICRO | L92: 4112 | M92: CONSTRUCCIÓN | N92: 0 | O92: 1 | P92: 0 | U92: CC-27782894 | V92: 54001 | W92: CÚCUTA | X92: 3 | Y92: 1 | Z92: Natural | AA92: 54 | AB92: NORTE DE SANTANDER | AC92: Aprobado con subsidio | AD92: 3 | AE92: MICRO | AF92: 4711 | AG92: COMERCIO AL POR MAYOR Y AL POR MENOR; REPARACIÓN DE VEHÍCULOS AUTOMOTORES Y MOTOCICLETAS | AH92: 3 | AI92: 0 | AJ92: 0 | AN92: =CONCATENATE(AO92,COUNTIF($AO$2:AO92,AO92)) -> 069 | AO92: 0 | AP92: 0 | AQ92: 0 | AR92: 0 | AS92: =+(SUMIFS(Montos!$Y$2:$Y$396864,Montos!$R$2:$R$396864,Base!AT92)/1000000) -> 0
A93: NIT-900229158 | B93: 15500 | C93: OICATÁ | D93: 7 | E93: 2 | F93: Jurídica | G93: 15 | H93: BOYACÁ | I93: Aprobado con subsidio | J93: 10 | K93: MICRO | L93: 1610 | M93: INDUSTRIAS MANUFACTURERAS | N93: 1 | O93: 6 | P93: 0 | U93: NIT-900972776 | V93: 54001 | W93: CÚCUTA | X93: 1 | Y93: 1 | Z93: Jurídica | AA93: 54 | AB93: NORTE DE SANTANDER | AC93: Aprobado con subsidio | AD93: 3 | AE93: MICRO | AF93: 4111 | AG93: CONSTRUCCIÓN | AH93: 0 | AI93: 1 | AJ93: 0 | AN93: =CONCATENATE(AO93,COUNTIF($AO$2:AO93,AO93)) -> 070 | AO93: 0 | AP93: 0 | AQ93: 0 | AR93: 0 | AS93: =+(SUMIFS(Montos!$Y$2:$Y$396864,Montos!$R$2:$R$396864,Base!AT93)/1000000) -> 0
A94: NIT-900561398 | B94: 11001 | C94: BOGOTÁ, D.C. | D94: 5 | E94: 2 | F94: Jurídica | G94: 11 | H94: BOGOTÁ, D.C. | I94: Aprobado con subsidio | J94: 9 | K94: MICRO | L94: 6920 | M94: ACTIVIDADES PROFESIONALES, CIENTÍFICAS Y TÉCNICAS | N94: 3 | O94: 2 | P94: 0 | U94: NIT-901244019 | V94: 54172 | W94: CHINÁCOTA | X94: 18 | Y94: 0 | Z94: Jurídica | AA94: 54 | AB94: NORTE DE SANTANDER | AC94: Aprobado con subsidio | AD94: 17 | AE94: PEQUEÑA | AF94: 510 | AG94: EXPLOTACIÓN DE MINAS Y CANTERAS | AH94: 0 | AI94: 18 | AJ94: 0 | AN94: =CONCATENATE(AO94,COUNTIF($AO$2:AO94,AO94)) -> 071 | AO94: 0 | AP94: 0 | AQ94: 0 | AR94: 0 | AS94: =+(SUMIFS(Montos!$Y$2:$Y$396864,Montos!$R$2:$R$396864,Base!AT94)/1000000) -> 0
A95: NIT-900561865 | B95: 8001 | C95: BARRANQUILLA | D95: 15 | E95: 4 | F95: Jurídica | G95: 8 | H95: ATLÁNTICO | I95: Aprobado con subsidio | J95: 19 | K95: PEQUEÑA | L95: 4723 | M95: COMERCIO AL POR MAYOR Y AL POR MENOR; REPARACIÓN DE VEHÍCULOS AUTOMOTORES Y MOTOCICLETAS | N95: 2 | O95: 13 | P95: 0 | U95: CC-1090503401 | V95: 54261 | W95: EL ZULIA | X95: 5 | Y95: 0 | Z95: Natural | AA95: 54 | AB95: NORTE DE SANTANDER | AC95: Aprobado con subsidio | AD95: 7 | AE95: MICRO | AF95: 5611 | AG95: ALOJAMIENTO Y SERVICIOS DE COMIDA | AH95: 4 | AI95: 1 | AJ95: 0 | AN95: =CONCATENATE(AO95,COUNTIF($AO$2:AO95,AO95)) -> 072 | AO95: 0 | AP95: 0 | AQ95: 0 | AR95: 0 | AS95: =+(SUMIFS(Montos!$Y$2:$Y$396864,Montos!$R$2:$R$396864,Base!AT95)/1000000) -> 0
A96: NIT-900563583 | B96: 15572 | C96: PUERTO BOYACÁ | D96: 3 | E96: 6 | F96: Jurídica | G96: 15 | H96: BOYACÁ | I96: Aprobado con subsidio | J96: 14 | K96: PEQUEÑA | L96: 4290 | M96: CONSTRUCCIÓN | N96: 0 | O96: 3 | P96: 0 | U96: NIT-901002586 | V96: 54001 | W96: CÚCUTA | X96: 5 | Y96: 3 | Z96: Jurídica | AA96: 54 | AB96: NORTE DE SANTANDER | AC96: Aprobado con subsidio | AD96: 11 | AE96: PEQUEÑA | AF96: 4330 | AG96: CONSTRUCCIÓN | AH96: 4 | AI96: 1 | AJ96: 0 | AN96: =CONCATENATE(AO96,COUNTIF($AO$2:AO96,AO96)) -> 073 | AO96: 0 | AP96: 0 | AQ96: 0 | AR96: 0 | AS96: =+(SUMIFS(Montos!$Y$2:$Y$396864,Montos!$R$2:$R$396864,Base!AT96)/1000000) -> 0
A97: NIT-900565837 | B97: 11001 | C97: BOGOTÁ, D.C. | D97: 4 | E97: 2 | F97: Jurídica | G97: 11 | H97: BOGOTÁ, D.C. | I97: Aprobado con subsidio | J97: 5 | K97: MICRO | L97: 4659 | M97: COMERCIO AL POR MAYOR Y AL POR MENOR; REPARACIÓN DE VEHÍCULOS AUTOMOTORES Y MOTOCICLETAS | N97: 3 | O97: 1 | P97: 0 | U97: CC-37220732 | V97: 54001 | W97: CÚCUTA | X97: 5 | Y97: 4 | Z97: Natural | AA97: 54 | AB97: NORTE DE SANTANDER | AC97: Aprobado con subsidio | AD97: 9 | AE97: MICRO | AF97: 1610 | AG97: INDUSTRIAS MANUFACTURERAS | AH97: 0 | AI97: 5 | AJ97: 0 | AN97: =CONCATENATE(AO97,COUNTIF($AO$2:AO97,AO97)) -> 074 | AO97: 0 | AP97: 0 | AQ97: 0 | AR97: 0 | AS97: =+(SUMIFS(Montos!$Y$2:$Y$396864,Montos!$R$2:$R$396864,Base!AT97)/1000000) -> 0
A98: NIT-900565891 | B98: 8001 | C98: BARRANQUILLA | D98: 6 | E98: 8 | F98: Jurídica | G98: 8 | H98: ATLÁNTICO | I98: Aprobado con subsidio | J98: 19 | K98: PEQUEÑA | L98: 6820 | M98: ACTIVIDADES INMOBILIARIAS | N98: 5 | O98: 1 | P98: 0 | U98: NIT-901209401 | V98: 54405 | W98: LOS PATIOS | X98: 2 | Y98: 0 | Z98: Jurídica | AA98: 54 | AB98: NORTE DE SANTANDER | AC98: Aprobado con subsidio | AD98: 2 | AE98: MICRO | AF98: 5320 | AG98: TRANSPORTE Y ALMACENAMIENTO | AH98: 1 | AI98: 1 | AJ98: 0 | AN98: =CONCATENATE(AO98,COUNTIF($AO$2:AO98,AO98)) -> 075 | AO98: =+COUNTIFS($W$2:$W$399999,AT98,$AC$2:$AC$399999,"Aprobado con subsidio")*1 -> 0 | AP98: =+AO98/SUM($AO$2:$AO$129) -> 0 | AQ98: =+SUMIFS($X$2:$X$399999,$W$2:$W$399999,AT98,$AC$2:$AC$399999,"Aprobado con subsidio") -> 0 | AR98: 0 | AS98: =+(SUMIFS(Montos!$Y$2:$Y$396864,Montos!$R$2:$R$396864,Base!AT98)/1000000) -> 0
A99: NIT-900566022 | B99: 76109 | C99: BUENAVENTURA | D99: 18 | E99: 3 | F99: Jurídica | G99: 76 | H99: VALLE DEL CAUCA | I99: Aprobado con subsidio | J99: 21 | K99: PEQUEÑA | L99: 5224 | M99: TRANSPORTE Y ALMACENAMIENTO | N99: 4 | O99: 14 | P99: 0 | U99: NIT-807000755 | V99: 54498 | W99: OCAÑA | X99: 7 | Y99: 0 | Z99: Jurídica | AA99: 54 | AB99: NORTE DE SANTANDER | AC99: Aprobado con subsidio | AD99: 7 | AE99: MICRO | AF99: 9491 | AG99: OTRAS ACTIVIDADES DE SERVICIOS | AH99: 5 | AI99: 2 | AJ99: 0 | AN99: =CONCATENATE(AO99,COUNTIF($AO$2:AO99,AO99)) -> 076 | AO99: 0 | AP99: 0 | AQ99: 0 | AR99: 0 | AS99: =+(SUMIFS(Montos!$Y$2:$Y$396864,Montos!$R$2:$R$396864,Base!AT99)/1000000) -> 0
A100: NIT-900566554 | B100: 11001 | C100: BOGOTÁ, D.C. | D100: 0 | E100: 0 | F100: Jurídica | G100: 11 | H100: BOGOTÁ, D.C. | I100: Aprobado sin subsidio | J100: 26 | K100: PEQUEÑA | L100: 3822 | M100: DISTRIBUCIÓN DE AGUA; EVACUACIÓN Y TRATAMIENTO DE AGUAS RESIDUALES, GESTIÓN DE DESECHOS Y ACTIVIDADES DE SANEAMIENTO AMBIENTAL | N100: 0 | O100: 0 | P100: 0 | U100: NIT-807004655 | V100: 54001 | W100: CÚCUTA | X100: 35 | Y100: 53 | Z100: Jurídica | AA100: 54 | AB100: NORTE DE SANTANDER | AC100: Aprobado con subsidio | AD100: 114 | AE100: MEDIANA | AF100: 4632 | AG100: COMERCIO AL POR MAYOR Y AL POR MENOR; REPARACIÓN DE VEHÍCULOS AUTOMOTORES Y MOTOCICLETAS | AH100: 12 | AI100: 23 | AJ100: 0 | AN100: =CONCATENATE(AO100,COUNTIF($AO$2:AO100,AO100)) -> 077 | AO100: 0 | AP100: 0 | AQ100: 0 | AR100: 0 | AS100: =+(SUMIFS(Montos!$Y$2:$Y$396864,Montos!$R$2:$R$396864,Base!AT100)/1000000) -> 0
A101: NIT-900566814 | B101: 15001 | C101: TUNJA | D101: 1 | E101: 2 | F101: Jurídica | G101: 15 | H101: BOYACÁ | I101: Aprobado con subsidio | J101: 2 | K101: MICRO | L101: 8621 | M101: ACTIVIDADES DE ATENCIÓN DE LA SALUD HUMANA Y DE ASISTENCIA SOCIAL | N101: 1 | O101: 0 | P101: 0 | U101: NIT-890504686 | V101: 54001 | W101: CÚCUTA | X101: 0 | Y101: 0 | Z101: Jurídica | AA101: 54 | AB101: NORTE DE SANTANDER | AC101: Rechazado a nivel aportante | AD101: 4 | AE101: MICRO | AF101: 4773 | AG101: COMERCIO AL POR MAYOR Y AL POR MENOR; REPARACIÓN DE VEHÍCULOS AUTOMOTORES Y MOTOCICLETAS | AH101: 0 | AI101: 0 | AJ101: 0 | AN101: =CONCATENATE(AO101,COUNTIF($AO$2:AO101,AO101)) -> 078 | AO101: 0 | AP101: 0 | AQ101: 0 | AR101: 0 | AS101: =+(SUMIFS(Montos!$Y$2:$Y$396864,Montos!$R$2:$R$396864,Base!AT101)/1000000) -> 0
A102: NIT-900568587 | B102: 5001 | C102: MEDELLÍN | D102: 7 | E102: 1 | F102: Jurídica | G102: 5 | H102: ANTIOQUIA | I102: Aprobado con subsidio | J102: 7 | K102: MICRO | L102: 4773 | M102: COMERCIO AL POR MAYOR Y AL POR MENOR; REPARACIÓN DE VEHÍCULOS AUTOMOTORES Y MOTOCICLETAS | N102: 7 | O102: 0 | P102: 0 | U102: NIT-900542979 | V102: 54001 | W102: CÚCUTA | X102: 9 | Y102: 8 | Z102: Jurídica | AA102: 54 | AB102: NORTE DE SANTANDER | AC102: Aprobado con subsidio | AD102: 9 | AE102: MICRO | AF102: 8691 | AG102: ACTIVIDADES DE ATENCIÓN DE LA SALUD HUMANA Y DE ASISTENCIA SOCIAL | AH102: 8 | AI102: 1 | AJ102: 0 | AN102: =CONCATENATE(AO102,COUNTIF($AO$2:AO102,AO102)) -> 079 | AO102: 0 | AP102: 0 | AQ102: 0 | AR102: 0 | AS102: =+(SUMIFS(Montos!$Y$2:$Y$396864,Montos!$R$2:$R$396864,Base!AT102)/1000000) -> 0
A103: NIT-900568718 | B103: 8001 | C103: BARRANQUILLA | D103: 1 | E103: 0 | F103: Jurídica | G103: 8 | H103: ATLÁNTICO | I103: Aprobado con subsidio | J103: 5 | K103: MICRO | L103: 6810 | M103: ACTIVIDADES INMOBILIARIAS | N103: 1 | O103: 0 | P103: 0 | U103: NIT-900391197 | V103: 54001 | W103: CÚCUTA | X103: 1 | Y103: 1 | Z103: Jurídica | AA103: 54 | AB103: NORTE DE SANTANDER | AC103: Aprobado con subsidio | AD103: 2 | AE103: MICRO | AF103: 5820 | AG103: INFORMACIÓN Y COMUNICACIONES | AH103: 1 | AI103: 0 | AJ103: 0 | AN103: =CONCATENATE(AO103,COUNTIF($AO$2:AO103,AO103)) -> 080 | AO103: 0 | AP103: 0 | AQ103: 0 | AR103: 0 | AS103: =+(SUMIFS(Montos!$Y$2:$Y$396864,Montos!$R$2:$R$396864,Base!AT103)/1000000) -> 0
A104: NIT-900569315 | B104: 11001 | C104: BOGOTÁ, D.C. | D104: 3 | E104: 3 | F104: Jurídica | G104: 11 | H104: BOGOTÁ, D.C. | I104: Aprobado con subsidio | J104: 6 | K104: MICRO | L104: 2229 | M104: INDUSTRIAS MANUFACTURERAS | N104: 0 | O104: 3 | P104: 0 | U104: NIT-900741281 | V104: 54001 | W104: CÚCUTA | X104: 2 | Y104: 0 | Z104: Jurídica | AA104: 54 | AB104: NORTE DE SANTANDER | AC104: Aprobado con subsidio | AD104: 2 | AE104: MICRO | AF104: 4771 | AG104: COMERCIO AL POR MAYOR Y AL POR MENOR; REPARACIÓN DE VEHÍCULOS AUTOMOTORES Y MOTOCICLETAS | AH104: 2 | AI104: 0 | AJ104: 0 | AN104: =CONCATENATE(AO104,COUNTIF($AO$2:AO104,AO104)) -> 081 | AO104: 0 | AP104: 0 | AQ104: 0 | AR104: 0 | AS104: =+(SUMIFS(Montos!$Y$2:$Y$396864,Montos!$R$2:$R$396864,Base!AT104)/1000000) -> 0
A105: NIT-900570364 | B105: 25214 | C105: COTA | D105: 36 | E105: 11 | F105: Jurídica | G105: 25 | H105: CUNDINAMARCA | I105: Aprobado con subsidio | J105: 60 | K105: MEDIANA | L105: 1011 | M105: INDUSTRIAS MANUFACTURERAS | N105: 14 | O105: 22 | P105: 0 | U105: CC-13461943 | V105: 54720 | W105: SARDINATA | X105: 5 | Y105: 0 | Z105: Natural | AA105: 54 | AB105: NORTE DE SANTANDER | AC105: Aprobado con subsidio | AD105: 5 | AE105: MICRO | AF105: 4752 | AG105: COMERCIO AL POR MAYOR Y AL POR MENOR; REPARACIÓN DE VEHÍCULOS AUTOMOTORES Y MOTOCICLETAS | AH105: 2 | AI105: 3 | AJ105: 0 | AN105: =CONCATENATE(AO105,COUNTIF($AO$2:AO105,AO105)) -> 082 | AO105: 0 | AP105: 0 | AQ105: 0 | AR105: 0 | AS105: =+(SUMIFS(Montos!$Y$2:$Y$396864,Montos!$R$2:$R$396864,Base!AT105)/1000000) -> 0
A106: NIT-900571172 | B106: 5001 | C106: MEDELLÍN | D106: 2 | E106: 0 | F106: Jurídica | G106: 5 | H106: ANTIOQUIA | I106: Aprobado con subsidio | J106: 2 | K106: MICRO | L106: 4775 | M106: COMERCIO AL POR MAYOR Y AL POR MENOR; REPARACIÓN DE VEHÍCULOS AUTOMOTORES Y MOTOCICLETAS | N106: 0 | O106: 2 | P106: 0 | U106: CC-60322413 | V106: 54001 | W106: CÚCUTA | X106: 3 | Y106: 1 | Z106: Natural | AA106: 54 | AB106: NORTE DE SANTANDER | AC106: Aprobado con subsidio | AD106: 5 | AE106: MICRO | AF106: 4530 | AG106: COMERCIO AL POR MAYOR Y AL POR MENOR; REPARACIÓN DE VEHÍCULOS AUTOMOTORES Y MOTOCICLETAS | AH106: 2 | AI106: 1 | AJ106: 0 | AN106: =CONCATENATE(AO106,COUNTIF($AO$2:AO106,AO106)) -> 083 | AO106: 0 | AP106: 0 | AQ106: 0 | AR106: 0 | AS106: =+(SUMIFS(Montos!$Y$2:$Y$396864,Montos!$R$2:$R$396864,Base!AT106)/1000000) -> 0
A107: NIT-900574616 | B107: 68001 | C107: BUCARAMANGA | D107: 2 | E107: 1 | F107: Jurídica | G107: 68 | H107: SANTANDER | I107: Aprobado con subsidio | J107: 3 | K107: MICRO | L107: 4290 | M107: CONSTRUCCIÓN | N107: 0 | O107: 2 | P107: 0 | U107: CC-13502163 | V107: 54001 | W107: CÚCUTA | X107: 5 | Y107: 0 | Z107: Natural | AA107: 54 | AB107: NORTE DE SANTANDER | AC107: Aprobado con subsidio | AD107: 5 | AE107: MICRO | AF107: 4541 | AG107: COMERCIO AL POR MAYOR Y AL POR MENOR; REPARACIÓN DE VEHÍCULOS AUTOMOTORES Y MOTOCICLETAS | AH107: 1 | AI107: 4 | AJ107: 0 | AN107: =CONCATENATE(AO107,COUNTIF($AO$2:AO107,AO107)) -> 084 | AO107: 0 | AP107: 0 | AQ107: 0 | AR107: 0 | AS107: =+(SUMIFS(Montos!$Y$2:$Y$396864,Montos!$R$2:$R$396864,Base!AT107)/1000000) -> 0
A108: NIT-900574708 | B108: 76001 | C108: CALI | D108: 2 | E108: 1 | F108: Jurídica | G108: 76 | H108: VALLE DEL CAUCA | I108: Aprobado con subsidio | J108: 3 | K108: MICRO | L108: 6810 | M108: ACTIVIDADES INMOBILIARIAS | N108: 2 | O108: 0 | P108: 0 | U108: NIT-807002365 | V108: 54001 | W108: CÚCUTA | X108: 12 | Y108: 5 | Z108: Jurídica | AA108: 54 | AB108: NORTE DE SANTANDER | AC108: Aprobado con subsidio | AD108: 20 | AE108: PEQUEÑA | AF108: 4741 | AG108: COMERCIO AL POR MAYOR Y AL POR MENOR; REPARACIÓN DE VEHÍCULOS AUTOMOTORES Y MOTOCICLETAS | AH108: 6 | AI108: 6 | AJ108: 0 | AN108: =CONCATENATE(AO108,COUNTIF($AO$2:AO108,AO108)) -> 085 | AO108: 0 | AP108: 0 | AQ108: 0 | AR108: 0 | AS108: =+(SUMIFS(Montos!$Y$2:$Y$396864,Montos!$R$2:$R$396864,Base!AT108)/1000000) -> 0
A109: NIT-900292205 | B109: 76001 | C109: CALI | D109: 3 | E109: 1 | F109: Jurídica | G109: 76 | H109: VALLE DEL CAUCA | I109: Aprobado con subsidio | J109: 4 | K109: MICRO | L109: 8621 | M109: ACTIVIDADES DE ATENCIÓN DE LA SALUD HUMANA Y DE ASISTENCIA SOCIAL | N109: 3 | O109: 0 | P109: 0 | U109: NIT-900922451 | V109: 54001 | W109: CÚCUTA | X109: 5 | Y109: 0 | Z109: Jurídica | AA109: 54 | AB109: NORTE DE SANTANDER | AC109: Aprobado con subsidio | AD109: 7 | AE109: MICRO | AF109: 5611 | AG109: ALOJAMIENTO Y SERVICIOS DE COMIDA | AH109: 4 | AI109: 1 | AJ109: 0 | AN109: =CONCATENATE(AO109,COUNTIF($AO$2:AO109,AO109)) -> 086 | AO109: 0 | AP109: 0 | AQ109: 0 | AR109: 0 | AS109: =+(SUMIFS(Montos!$Y$2:$Y$396864,Montos!$R$2:$R$396864,Base!AT109)/1000000) -> 0
A110: NIT-890600826 | B110: 54001 | C110: CÚCUTA | D110: 0 | E110: 0 | F110: Jurídica | G110: 54 | H110: NORTE DE SANTANDER | I110: Aprobado sin subsidio | J110: 14 | K110: PEQUEÑA | L110: 4631 | M110: COMERCIO AL POR MAYOR Y AL POR MENOR; REPARACIÓN DE VEHÍCULOS AUTOMOTORES Y MOTOCICLETAS | N110: 0 | O110: 0 | P110: 0 | U110: NIT-900451967 | V110: 54001 | W110: CÚCUTA | X110: 10 | Y110: 5 | Z110: Jurídica | AA110: 54 | AB110: NORTE DE SANTANDER | AC110: Aprobado con subsidio | AD110: 19 | AE110: PEQUEÑA | AF110: 2819 | AG110: INDUSTRIAS MANUFACTURERAS | AH110: 1 | AI110: 9 | AJ110: 0 | AN110: =CONCATENATE(AO110,COUNTIF($AO$2:AO110,AO110)) -> 087 | AO110: 0 | AP110: 0 | AQ110: 0 | AR110: 0 | AS110: =+(SUMIFS(Montos!$Y$2:$Y$396864,Montos!$R$2:$R$396864,Base!AT110)/1000000) -> 0
A111: CC-30343568 | B111: 17380 | C111: LA DORADA | D111: 3 | E111: 0 | F111: Natural | G111: 17 | H111: CALDAS | I111: Aprobado con subsidio | J111: 3 | K111: MICRO | L111: 4723 | M111: COMERCIO AL POR MAYOR Y AL POR MENOR; REPARACIÓN DE VEHÍCULOS AUTOMOTORES Y MOTOCICLETAS | N111: 1 | O111: 2 | P111: 0 | U111: NIT-830505238 | V111: 54001 | W111: CÚCUTA | X111: 1 | Y111: 12 | Z111: Jurídica | AA111: 54 | AB111: NORTE DE SANTANDER | AC111: Aprobado con subsidio | AD111: 18 | AE111: PEQUEÑA | AF111: 4659 | AG111: COMERCIO AL POR MAYOR Y AL POR MENOR; REPARACIÓN DE VEHÍCULOS AUTOMOTORES Y MOTOCICLETAS | AH111: 1 | AI111: 0 | AJ111: 0 | AN111: =CONCATENATE(AO111,COUNTIF($AO$2:AO111,AO111)) -> 088 | AO111: 0 | AP111: 0 | AQ111: 0 | AR111: 0 | AS111: =+(SUMIFS(Montos!$Y$2:$Y$396864,Montos!$R$2:$R$396864,Base!AT111)/1000000) -> 0
A112: NIT-804013301 | B112: 68001 | C112: BUCARAMANGA | D112: 3 | E112: 0 | F112: Jurídica | G112: 68 | H112: SANTANDER | I112: Aprobado con subsidio | J112: 3 | K112: MICRO | L112: 5912 | M112: INFORMACIÓN Y COMUNICACIONES | N112: 2 | O112: 1 | P112: 0 | U112: NIT-900963505 | V112: 54518 | W112: PAMPLONA | X112: 10 | Y112: 2 | Z112: Jurídica | AA112: 54 | AB112: NORTE DE SANTANDER | AC112: Aprobado con subsidio | AD112: 13 | AE112: PEQUEÑA | AF112: 4711 | AG112: COMERCIO AL POR MAYOR Y AL POR MENOR; REPARACIÓN DE VEHÍCULOS AUTOMOTORES Y MOTOCICLETAS | AH112: 4 | AI112: 6 | AJ112: 0 | AN112: =CONCATENATE(AO112,COUNTIF($AO$2:AO112,AO112)) -> 089 | AO112: 0 | AP112: 0 | AQ112: 0 | AR112: 0 | AS112: =+(SUMIFS(Montos!$Y$2:$Y$396864,Montos!$R$2:$R$396864,Base!AT112)/1000000) -> 0
A113: CC-15960426 | B113: 17380 | C113: LA DORADA | D113: 3 | E113: 0 | F113: Natural | G113: 17 | H113: CALDAS | I113: Aprobado con subsidio | J113: 4 | K113: MICRO | L113: 4751 | M113: COMERCIO AL POR MAYOR Y AL POR MENOR; REPARACIÓN DE VEHÍCULOS AUTOMOTORES Y MOTOCICLETAS | N113: 3 | O113: 0 | P113: 0 | U113: CC-13464077 | V113: 54001 | W113: CÚCUTA | X113: 5 | Y113: 0 | Z113: Natural | AA113: 54 | AB113: NORTE DE SANTANDER | AC113: Aprobado con subsidio | AD113: 5 | AE113: MICRO | AF113: 4530 | AG113: COMERCIO AL POR MAYOR Y AL POR MENOR; REPARACIÓN DE VEHÍCULOS AUTOMOTORES Y MOTOCICLETAS | AH113: 2 | AI113: 3 | AJ113: 0 | AN113: =CONCATENATE(AO113,COUNTIF($AO$2:AO113,AO113)) -> 090 | AO113: 0 | AP113: 0 | AQ113: 0 | AR113: 0 | AS113: =+(SUMIFS(Montos!$Y$2:$Y$396864,Montos!$R$2:$R$396864,Base!AT113)/1000000) -> 0
A114: CC-6807356 | B114: 70001 | C114: SINCELEJO | D114: 9 | E114: 1 | F114: Natural | G114: 70 | H114: SUCRE | I114: Aprobado con subsidio | J114: 12 | K114: PEQUEÑA | L114: 4754 | M114: COMERCIO AL POR MAYOR Y AL POR MENOR; REPARACIÓN DE VEHÍCULOS AUTOMOTORES Y MOTOCICLETAS | N114: 4 | O114: 5 | P114: 0 | U114: NIT-901208320 | V114: 54518 | W114: PAMPLONA | X114: 6 | Y114: 2 | Z114: Jurídica | AA114: 54 | AB114: NORTE DE SANTANDER | AC114: Aprobado con subsidio | AD114: 8 | AE114: MICRO | AF114: 4752 | AG114: COMERCIO AL POR MAYOR Y AL POR MENOR; REPARACIÓN DE VEHÍCULOS AUTOMOTORES Y MOTOCICLETAS | AH114: 1 | AI114: 5 | AJ114: 0 | AN114: =CONCATENATE(AO114,COUNTIF($AO$2:AO114,AO114)) -> 091 | AO114: 0 | AP114: 0 | AQ114: 0 | AR114: 0 | AS114: =+(SUMIFS(Montos!$Y$2:$Y$396864,Montos!$R$2:$R$396864,Base!AT114)/1000000) -> 0
A115: NIT-901306137 | B115: 11001 | C115: BOGOTÁ, D.C. | D115: 0 | E115: 0 | F115: Jurídica | G115: 11 | H115: BOGOTÁ, D.C. | I115: Rechazado a nivel aportante | J115: 0 | K115: $null$ | L115: 4755 | M115: COMERCIO AL POR MAYOR Y AL POR MENOR; REPARACIÓN DE VEHÍCULOS AUTOMOTORES Y MOTOCICLETAS | N115: 0 | O115: 0 | P115: 0 | U115: NIT-901318781 | V115: 54001 | W115: CÚCUTA | X115: 6 | Y115: 3 | Z115: Jurídica | AA115: 54 | AB115: NORTE DE SANTANDER | AC115: Aprobado con subsidio | AD115: 9 | AE115: MICRO | AF115: 4731 | AG115: COMERCIO AL POR MAYOR Y AL POR MENOR; REPARACIÓN DE VEHÍCULOS AUTOMOTORES Y MOTOCICLETAS | AH115: 0 | AI115: 6 | AJ115: 0 | AN115: =CONCATENATE(AO115,COUNTIF($AO$2:AO115,AO115)) -> 092 | AO115: 0 | AP115: 0 | AQ115: 0 | AR115: 0 | AS115: =+(SUMIFS(Montos!$Y$2:$Y$396864,Montos!$R$2:$R$396864,Base!AT115)/1000000) -> 0
A116: CC-33138462 | B116: 70001 | C116: SINCELEJO | D116: 4 | E116: 0 | F116: Natural | G116: 70 | H116: SUCRE | I116: Aprobado con subsidio | J116: 4 | K116: MICRO | L116: 5511 | M116: ALOJAMIENTO Y SERVICIOS DE COMIDA | N116: 2 | O116: 2 | P116: 0 | U116: NIT-901247826 | V116: 54001 | W116: CÚCUTA | X116: 0 | Y116: 0 | Z116: Jurídica | AA116: 54 | AB116: NORTE DE SANTANDER | AC116: Aprobado sin subsidio | AD116: 96 | AE116: MEDIANA | AF116: 510 | AG116: EXPLOTACIÓN DE MINAS Y CANTERAS | AH116: 0 | AI116: 0 | AJ116: 0 | AN116: =CONCATENATE(AO116,COUNTIF($AO$2:AO116,AO116)) -> 093 | AO116: 0 | AP116: 0 | AQ116: 0 | AR116: 0 | AS116: =+(SUMIFS(Montos!$Y$2:$Y$396864,Montos!$R$2:$R$396864,Base!AT116)/1000000) -> 0
A117: CC-79509081 | B117: 11001 | C117: BOGOTÁ, D.C. | D117: 3 | E117: 0 | F117: Natural | G117: 11 | H117: BOGOTÁ, D.C. | I117: Aprobado con subsidio | J117: 3 | K117: MICRO | L117: 4711 | M117: COMERCIO AL POR MAYOR Y AL POR MENOR; REPARACIÓN DE VEHÍCULOS AUTOMOTORES Y MOTOCICLETAS | N117: 2 | O117: 1 | P117: 0 | U117: CC-88236694 | V117: 54001 | W117: CÚCUTA | X117: 4 | Y117: 0 | Z117: Natural | AA117: 54 | AB117: NORTE DE SANTANDER | AC117: Aprobado con subsidio | AD117: 4 | AE117: MICRO | AF117: 4772 | AG117: COMERCIO AL POR MAYOR Y AL POR MENOR; REPARACIÓN DE VEHÍCULOS AUTOMOTORES Y MOTOCICLETAS | AH117: 2 | AI117: 2 | AJ117: 0 | AN117: =CONCATENATE(AO117,COUNTIF($AO$2:AO117,AO117)) -> 094 | AO117: 0 | AP117: 0 | AQ117: 0 | AR117: 0 | AS117: =+(SUMIFS(Montos!$Y$2:$Y$396864,Montos!$R$2:$R$396864,Base!AT117)/1000000) -> 0
A118: NIT-900148523 | B118: 11001 | C118: BOGOTÁ, D.C. | D118: 4 | E118: 0 | F118: Jurídica | G118: 11 | H118: BOGOTÁ, D.C. | I118: Aprobado con subsidio | J118: 4 | K118: MICRO | L118: 4752 | M118: COMERCIO AL POR MAYOR Y AL POR MENOR; REPARACIÓN DE VEHÍCULOS AUTOMOTORES Y MOTOCICLETAS | N118: 0 | O118: 4 | P118: 0 | U118: NIT-900759957 | V118: 54001 | W118: CÚCUTA | X118: 3 | Y118: 1 | Z118: Jurídica | AA118: 54 | AB118: NORTE DE SANTANDER | AC118: Aprobado con subsidio | AD118: 7 | AE118: MICRO | AF118: 4111 | AG118: CONSTRUCCIÓN | AH118: 2 | AI118: 1 | AJ118: 0 | AN118: =CONCATENATE(AO118,COUNTIF($AO$2:AO118,AO118)) -> 095 | AO118: 0 | AP118: 0 | AQ118: 0 | AR118: 0 | AS118: =+(SUMIFS(Montos!$Y$2:$Y$396864,Montos!$R$2:$R$396864,Base!AT118)/1000000) -> 0
A119: NIT-900235237 | B119: 8001 | C119: BARRANQUILLA | D119: 2 | E119: 3 | F119: Jurídica | G119: 8 | H119: ATLÁNTICO | I119: Aprobado con subsidio | J119: 9 | K119: MICRO | L119: 4741 | M119: COMERCIO AL POR MAYOR Y AL POR MENOR; REPARACIÓN DE VEHÍCULOS AUTOMOTORES Y MOTOCICLETAS | N119: 2 | O119: 0 | P119: 0 | U119: NIT-900332743 | V119: 54498 | W119: OCAÑA | X119: 2 | Y119: 11 | Z119: Jurídica | AA119: 54 | AB119: NORTE DE SANTANDER | AC119: Aprobado con subsidio | AD119: 14 | AE119: PEQUEÑA | AF119: 8691 | AG119: ACTIVIDADES DE ATENCIÓN DE LA SALUD HUMANA Y DE ASISTENCIA SOCIAL | AH119: 2 | AI119: 0 | AJ119: 0 | AN119: =CONCATENATE(AO119,COUNTIF($AO$2:AO119,AO119)) -> 096 | AO119: 0 | AP119: 0 | AQ119: 0 | AR119: 0 | AS119: =+(SUMIFS(Montos!$Y$2:$Y$396864,Montos!$R$2:$R$396864,Base!AT119)/1000000) -> 0
A120: NIT-900444487 | B120: 11001 | C120: BOGOTÁ, D.C. | D120: 0 | E120: 0 | F120: Jurídica | G120: 11 | H120: BOGOTÁ, D.C. | I120: Rechazado a nivel aportante | J120: 4 | K120: MICRO | L120: 4530 | M120: COMERCIO AL POR MAYOR Y AL POR MENOR; REPARACIÓN DE VEHÍCULOS AUTOMOTORES Y MOTOCICLETAS | N120: 0 | O120: 0 | P120: 0 | U120: NIT-900544933 | V120: 54498 | W120: OCAÑA | X120: 5 | Y120: 0 | Z120: Jurídica | AA120: 54 | AB120: NORTE DE SANTANDER | AC120: Aprobado con subsidio | AD120: 5 | AE120: MICRO | AF120: 4771 | AG120: COMERCIO AL POR MAYOR Y AL POR MENOR; REPARACIÓN DE VEHÍCULOS AUTOMOTORES Y MOTOCICLETAS | AH120: 5 | AI120: 0 | AJ120: 0 | AN120: =CONCATENATE(AO120,COUNTIF($AO$2:AO120,AO120)) -> 097 | AO120: 0 | AP120: 0 | AQ120: 0 | AR120: 0 | AS120: =+(SUMIFS(Montos!$Y$2:$Y$396864,Montos!$R$2:$R$396864,Base!AT120)/1000000) -> 0
A121: NIT-901184261 | B121: 8001 | C121: BARRANQUILLA | D121: 0 | E121: 0 | F121: Jurídica | G121: 8 | H121: ATLÁNTICO | I121: Aprobado sin subsidio | J121: 11 | K121: PEQUEÑA | L121: 4741 | M121: COMERCIO AL POR MAYOR Y AL POR MENOR; REPARACIÓN DE VEHÍCULOS AUTOMOTORES Y MOTOCICLETAS | N121: 0 | O121: 0 | P121: 0 | U121: CC-60310628 | V121: 54001 | W121: CÚCUTA | X121: 2 | Y121: 1 | Z121: Natural | AA121: 54 | AB121: NORTE DE SANTANDER | AC121: Aprobado con subsidio | AD121: 3 | AE121: MICRO | AF121: 1410 | AG121: INDUSTRIAS MANUFACTURERAS | AH121: 2 | AI121: 0 | AJ121: 0 | AN121: =CONCATENATE(AO121,COUNTIF($AO$2:AO121,AO121)) -> 098 | AO121: 0 | AP121: 0 | AQ121: 0 | AR121: 0 | AS121: =+(SUMIFS(Montos!$Y$2:$Y$396864,Montos!$R$2:$R$396864,Base!AT121)/1000000) -> 0
A122: NIT-860021072 | B122: 11001 | C122: BOGOTÁ, D.C. | D122: 8 | E122: 44 | F122: Jurídica | G122: 11 | H122: BOGOTÁ, D.C. | I122: Aprobado con subsidio | J122: 57 | K122: MEDIANA | L122: 8530 | M122: EDUCACIÓN | N122: 7 | O122: 1 | P122: 0 | U122: NIT-900997345 | V122: 54001 | W122: CÚCUTA | X122: 1 | Y122: 5 | Z122: Jurídica | AA122: 54 | AB122: NORTE DE SANTANDER | AC122: Aprobado con subsidio | AD122: 6 | AE122: MICRO | AF122: 4111 | AG122: CONSTRUCCIÓN | AH122: 0 | AI122: 1 | AJ122: 0 | AN122: =CONCATENATE(AO122,COUNTIF($AO$2:AO122,AO122)) -> 099 | AO122: 0 | AP122: 0 | AQ122: 0 | AR122: 0 | AS122: =+(SUMIFS(Montos!$Y$2:$Y$396864,Montos!$R$2:$R$396864,Base!AT122)/1000000) -> 0
A123: CC-17325586 | B123: 11001 | C123: BOGOTÁ, D.C. | D123: 3 | E123: 0 | F123: Natural | G123: 11 | H123: BOGOTÁ, D.C. | I123: Aprobado con subsidio | J123: 5 | K123: MICRO | L123: 4719 | M123: COMERCIO AL POR MAYOR Y AL POR MENOR; REPARACIÓN DE VEHÍCULOS AUTOMOTORES Y MOTOCICLETAS | N123: 2 | O123: 1 | P123: 0 | U123: NIT-807000804 | V123: 54001 | W123: CÚCUTA | X123: 5 | Y123: 11 | Z123: Jurídica | AA123: 54 | AB123: NORTE DE SANTANDER | AC123: Aprobado con subsidio | AD123: 17 | AE123: PEQUEÑA | AF123: 4530 | AG123: COMERCIO AL POR MAYOR Y AL POR MENOR; REPARACIÓN DE VEHÍCULOS AUTOMOTORES Y MOTOCICLETAS | AH123: 0 | AI123: 5 | AJ123: 0 | AN123: =CONCATENATE(AO123,COUNTIF($AO$2:AO123,AO123)) -> 0100 | AO123: 0 | AP123: 0 | AQ123: 0 | AR123: 0 | AS123: =+(SUMIFS(Montos!$Y$2:$Y$396864,Montos!$R$2:$R$396864,Base!AT123)/1000000) -> 0
A124: NIT-830020702 | B124: 11001 | C124: BOGOTÁ, D.C. | D124: 1 | E124: 3 | F124: Jurídica | G124: 11 | H124: BOGOTÁ, D.C. | I124: Aprobado con subsidio | J124: 4 | K124: MICRO | L124: 4723 | M124: COMERCIO AL POR MAYOR Y AL POR MENOR; REPARACIÓN DE VEHÍCULOS AUTOMOTORES Y MOTOCICLETAS | N124: 0 | O124: 1 | P124: 0 | U124: NIT-800092777 | V124: 54001 | W124: CÚCUTA | X124: 52 | Y124: 66 | Z124: Jurídica | AA124: 54 | AB124: NORTE DE SANTANDER | AC124: Aprobado con subsidio | AD124: 139 | AE124: MEDIANA | AF124: 1521 | AG124: INDUSTRIAS MANUFACTURERAS | AH124: 8 | AI124: 44 | AJ124: 0 | AN124: =CONCATENATE(AO124,COUNTIF($AO$2:AO124,AO124)) -> 0101 | AO124: 0 | AP124: 0 | AQ124: 0 | AR124: 0 | AS124: =+(SUMIFS(Montos!$Y$2:$Y$396864,Montos!$R$2:$R$396864,Base!AT124)/1000000) -> 0
A125: NIT-901248947 | B125: 17042 | C125: ANSERMA | D125: 13 | E125: 1 | F125: Jurídica | G125: 17 | H125: CALDAS | I125: Aprobado con subsidio | J125: 11 | K125: PEQUEÑA | L125: 4771 | M125: COMERCIO AL POR MAYOR Y AL POR MENOR; REPARACIÓN DE VEHÍCULOS AUTOMOTORES Y MOTOCICLETAS | N125: 10 | O125: 3 | P125: 0 | U125: NIT-901107723 | V125: 54498 | W125: OCAÑA | X125: 3 | Y125: 0 | Z125: Jurídica | AA125: 54 | AB125: NORTE DE SANTANDER | AC125: Aprobado con subsidio | AD125: 3 | AE125: MICRO | AF125: 4642 | AG125: COMERCIO AL POR MAYOR Y AL POR MENOR; REPARACIÓN DE VEHÍCULOS AUTOMOTORES Y MOTOCICLETAS | AH125: 3 | AI125: 0 | AJ125: 0 | AN125: =CONCATENATE(AO125,COUNTIF($AO$2:AO125,AO125)) -> 0102 | AO125: 0 | AP125: 0 | AQ125: 0 | AR125: 0 | AS125: =+(SUMIFS(Montos!$Y$2:$Y$396864,Montos!$R$2:$R$396864,Base!AT125)/1000000) -> 0
A126: NIT-900388667 | B126: 11001 | C126: BOGOTÁ, D.C. | D126: 0 | E126: 0 | F126: Jurídica | G126: 11 | H126: BOGOTÁ, D.C. | I126: Rechazado a nivel aportante | J126: 3 | K126: MICRO | L126: 2229 | M126: INDUSTRIAS MANUFACTURERAS | N126: 0 | O126: 0 | P126: 0 | U126: CC-5679090 | V126: 54874 | W126: VILLA DEL ROSARIO | X126: 13 | Y126: 0 | Z126: Natural | AA126: 54 | AB126: NORTE DE SANTANDER | AC126: Aprobado con subsidio | AD126: 13 | AE126: PEQUEÑA | AF126: 2392 | AG126: INDUSTRIAS MANUFACTURERAS | AH126: 1 | AI126: 12 | AJ126: 0 | AN126: =CONCATENATE(AO126,COUNTIF($AO$2:AO126,AO126)) -> 0103 | AO126: 0 | AP126: 0 | AQ126: 0 | AR126: 0 | AS126: =+(SUMIFS(Montos!$Y$2:$Y$396864,Montos!$R$2:$R$396864,Base!AT126)/1000000) -> 0
A127: NIT-901270408 | B127: 15322 | C127: GUATEQUE | D127: 2 | E127: 1 | F127: Jurídica | G127: 15 | H127: BOYACÁ | I127: Aprobado con subsidio | J127: 16 | K127: PEQUEÑA | L127: 4112 | M127: CONSTRUCCIÓN | N127: 0 | O127: 2 | P127: 0 | U127: NIT-900732708 | V127: 54172 | W127: CHINÁCOTA | X127: 4 | Y127: 1 | Z127: Jurídica | AA127: 54 | AB127: NORTE DE SANTANDER | AC127: Aprobado con subsidio | AD127: 6 | AE127: MICRO | AF127: 1062 | AG127: INDUSTRIAS MANUFACTURERAS | AH127: 3 | AI127: 1 | AJ127: 0 | AN127: =CONCATENATE(AO127,COUNTIF($AO$2:AO127,AO127)) -> 0104 | AO127: 0 | AP127: 0 | AQ127: 0 | AR127: 0 | AS127: =+(SUMIFS(Montos!$Y$2:$Y$396864,Montos!$R$2:$R$396864,Base!AT127)/1000000) -> 0
A128: NIT-901064797 | B128: 52001 | C128: PASTO | D128: 0 | E128: 0 | F128: Jurídica | G128: 52 | H128: NARIÑO | I128: Rechazado a nivel aportante | J128: 19 | K128: PEQUEÑA | L128: 4663 | M128: COMERCIO AL POR MAYOR Y AL POR MENOR; REPARACIÓN DE VEHÍCULOS AUTOMOTORES Y MOTOCICLETAS | N128: 0 | O128: 0 | P128: 0 | U128: NIT-901242630 | V128: 54001 | W128: CÚCUTA | X128: 1 | Y128: 16 | Z128: Jurídica | AA128: 54 | AB128: NORTE DE SANTANDER | AC128: Aprobado con subsidio | AD128: 17 | AE128: PEQUEÑA | AF128: 4530 | AG128: COMERCIO AL POR MAYOR Y AL POR MENOR; REPARACIÓN DE VEHÍCULOS AUTOMOTORES Y MOTOCICLETAS | AH128: 0 | AI128: 1 | AJ128: 0 | AN128: =CONCATENATE(AO128,COUNTIF($AO$2:AO128,AO128)) -> 0105 | AO128: 0 | AP128: 0 | AQ128: 0 | AR128: 0 | AS128: =+(SUMIFS(Montos!$Y$2:$Y$396864,Montos!$R$2:$R$396864,Base!AT128)/1000000) -> 0
A129: NIT-900986559 | B129: 63001 | C129: ARMENIA | D129: 9 | E129: 9 | F129: Jurídica | G129: 63 | H129: QUINDIO | I129: Aprobado con subsidio | J129: 9 | K129: MICRO | L129: 4111 | M129: CONSTRUCCIÓN | N129: 7 | O129: 2 | P129: 0 | U129: NIT-901040448 | V129: 54001 | W129: CÚCUTA | X129: 2 | Y129: 4 | Z129: Jurídica | AA129: 54 | AB129: NORTE DE SANTANDER | AC129: Aprobado con subsidio | AD129: 2 | AE129: MICRO | AF129: 4631 | AG129: COMERCIO AL POR MAYOR Y AL POR MENOR; REPARACIÓN DE VEHÍCULOS AUTOMOTORES Y MOTOCICLETAS | AH129: 1 | AI129: 1 | AJ129: 0 | AN129: =CONCATENATE(AO129,COUNTIF($AO$2:AO129,AO129)) -> 0106 | AO129: 0 | AP129: 0 | AQ129: =+SUMIFS($X$2:$X$399999,$W$2:$W$399999,AT129,$AC$2:$AC$399999,"Aprobado con subsidio") -> 0 | AR129: 0 | AS129: =+(SUMIFS(Montos!$Y$2:$Y$396864,Montos!$R$2:$R$396864,Base!AT129)/1000000) -> 0
A130: NIT-900572778 | B130: 11001 | C130: BOGOTÁ, D.C. | D130: 2 | E130: 1 | F130: Jurídica | G130: 11 | H130: BOGOTÁ, D.C. | I130: Aprobado con subsidio | J130: 4 | K130: MICRO | L130: 7020 | M130: ACTIVIDADES PROFESIONALES, CIENTÍFICAS Y TÉCNICAS | N130: 0 | O130: 2 | P130: 0 | U130: CC-60340926 | V130: 54001 | W130: CÚCUTA | X130: 4 | Y130: 0 | Z130: Natural | AA130: 54 | AB130: NORTE DE SANTANDER | AC130: Aprobado con subsidio | AD130: 4 | AE130: MICRO | AF130: 4773 | AG130: COMERCIO AL POR MAYOR Y AL POR MENOR; REPARACIÓN DE VEHÍCULOS AUTOMOTORES Y MOTOCICLETAS | AH130: 3 | AI130: 1 | AJ130: 0 | AN130: =CONCATENATE(AO130,COUNTIF($AO$2:AO130,AO130)) -> 0107 | AO130: 0 | AP130: 0 | AQ130: =+SUMIFS($X$2:$X$399999,$W$2:$W$399999,AT130,$AC$2:$AC$399999,"Aprobado con subsidio") -> 0 | AR130: 0 | AS130: =+(SUMIFS(Montos!$Y$2:$Y$396864,Montos!$R$2:$R$396864,Base!AT130)/1000000) -> 0
A131: NIT-900577545 | B131: 11001 | C131: BOGOTÁ, D.C. | D131: 0 | E131: 0 | F131: Jurídica | G131: 11 | H131: BOGOTÁ, D.C. | I131: Rechazado a nivel aportante | J131: 2 | K131: MICRO | L131: 7020 | M131: ACTIVIDADES PROFESIONALES, CIENTÍFICAS Y TÉCNICAS | N131: 0 | O131: 0 | P131: 0 | U131: NIT-800252740 | V131: 54001 | W131: CÚCUTA | X131: 3 | Y131: 5 | Z131: Jurídica | AA131: 54 | AB131: NORTE DE SANTANDER | AC131: Aprobado con subsidio | AD131: 4 | AE131: MICRO | AF131: 7111 | AG131: ACTIVIDADES PROFESIONALES, CIENTÍFICAS Y TÉCNICAS | AH131: 0 | AI131: 3 | AJ131: 0
A132: NIT-900388454 | B132: 68001 | C132: BUCARAMANGA | D132: 1 | E132: 3 | F132: Jurídica | G132: 68 | H132: SANTANDER | I132: Aprobado con subsidio | J132: 4 | K132: MICRO | L132: 8299 | M132: ACTIVIDADES DE SERVICIOS ADMINISTRATIVOS Y DE APOYO | N132: 1 | O132: 0 | P132: 0 | U132: NIT-834000922 | V132: 54001 | W132: CÚCUTA | X132: 397 | Y132: 126 | Z132: Jurídica | AA132: 54 | AB132: NORTE DE SANTANDER | AC132: Aprobado con subsidio | AD132: 579 | AE132: MUY GRANDE | AF132: 8010 | AG132: ACTIVIDADES DE SERVICIOS ADMINISTRATIVOS Y DE APOYO | AH132: 23 | AI132: 374 | AJ132: 0
A133: CC-37331289 | B133: 68001 | C133: BUCARAMANGA | D133: 0 | E133: 0 | F133: Natural | G133: 68 | H133: SANTANDER | I133: Rechazado a nivel aportante | J133: 2 | K133: MICRO | L133: 4711 | M133: COMERCIO AL POR MAYOR Y AL POR MENOR; REPARACIÓN DE VEHÍCULOS AUTOMOTORES Y MOTOCICLETAS | N133: 0 | O133: 0 | P133: 0 | U133: NIT-901163386 | V133: 54001 | W133: CÚCUTA | X133: 0 | Y133: 0 | Z133: Jurídica | AA133: 54 | AB133: NORTE DE SANTANDER | AC133: Aprobado sin subsidio | AD133: 3 | AE133: MICRO | AF133: 4530 | AG133: COMERCIO AL POR MAYOR Y AL POR MENOR; REPARACIÓN DE VEHÍCULOS AUTOMOTORES Y MOTOCICLETAS | AH133: 0 | AI133: 0 | AJ133: 0
A134: CE-201533 | B134: 73001 | C134: IBAGUÉ | D134: 0 | E134: 0 | F134: Natural | G134: 73 | H134: TOLIMA | I134: Rechazado a nivel aportante | J134: 0 | K134: $null$ | L134: 5611 | M134: ALOJAMIENTO Y SERVICIOS DE COMIDA | N134: 0 | O134: 0 | P134: 0 | U134: CC-19411055 | V134: 54518 | W134: PAMPLONA | X134: 2 | Y134: 1 | Z134: Natural | AA134: 54 | AB134: NORTE DE SANTANDER | AC134: Aprobado con subsidio | AD134: 3 | AE134: MICRO | AF134: 5511 | AG134: ALOJAMIENTO Y SERVICIOS DE COMIDA | AH134: 2 | AI134: 0 | AJ134: 0
A135: CC-332494 | B135: 25269 | C135: FACATATIVÁ | D135: 3 | E135: 0 | F135: Natural | G135: 25 | H135: CUNDINAMARCA | I135: Aprobado con subsidio | J135: 4 | K135: MICRO | L135: 4752 | M135: COMERCIO AL POR MAYOR Y AL POR MENOR; REPARACIÓN DE VEHÍCULOS AUTOMOTORES Y MOTOCICLETAS | N135: 1 | O135: 2 | P135: 0 | U135: NIT-900652332 | V135: 54405 | W135: LOS PATIOS | X135: 5 | Y135: 2 | Z135: Jurídica | AA135: 54 | AB135: NORTE DE SANTANDER | AC135: Aprobado con subsidio | AD135: 8 | AE135: MICRO | AF135: 4649 | AG135: COMERCIO AL POR MAYOR Y AL POR MENOR; REPARACIÓN DE VEHÍCULOS AUTOMOTORES Y MOTOCICLETAS | AH135: 1 | AI135: 4 | AJ135: 0
A136: CC-1299249 | B136: 17380 | C136: LA DORADA | D136: 9 | E136: 10 | F136: Natural | G136: 17 | H136: CALDAS | I136: Aprobado con subsidio | J136: 27 | K136: PEQUEÑA | L136: 5229 | M136: TRANSPORTE Y ALMACENAMIENTO | N136: 0 | O136: 9 | P136: 0 | U136: NIT-901329190 | V136: 54001 | W136: CÚCUTA | X136: 2 | Y136: 0 | Z136: Jurídica | AA136: 54 | AB136: NORTE DE SANTANDER | AC136: Aprobado con subsidio | AD136: 2 | AE136: MICRO | AF136: 5511 | AG136: ALOJAMIENTO Y SERVICIOS DE COMIDA | AH136: 1 | AI136: 1 | AJ136: 0
A137: CC-1942683 | B137: 54498 | C137: OCAÑA | D137: 3 | E137: 1 | F137: Natural | G137: 54 | H137: NORTE DE SANTANDER | I137: Aprobado con subsidio | J137: 4 | K137: MICRO | L137: 4731 | M137: COMERCIO AL POR MAYOR Y AL POR MENOR; REPARACIÓN DE VEHÍCULOS AUTOMOTORES Y MOTOCICLETAS | N137: 1 | O137: 2 | P137: 0 | U137: NIT-900639678 | V137: 54001 | W137: CÚCUTA | X137: 16 | Y137: 5 | Z137: Jurídica | AA137: 54 | AB137: NORTE DE SANTANDER | AC137: Aprobado con subsidio | AD137: 22 | AE137: PEQUEÑA | AF137: 4771 | AG137: COMERCIO AL POR MAYOR Y AL POR MENOR; REPARACIÓN DE VEHÍCULOS AUTOMOTORES Y MOTOCICLETAS | AH137: 12 | AI137: 4 | AJ137: 0
A138: CC-3440823 | B138: 25290 | C138: FUSAGASUGÁ | D138: 5 | E138: 0 | F138: Natural | G138: 25 | H138: CUNDINAMARCA | I138: Aprobado con subsidio | J138: 6 | K138: MICRO | L138: 130 | M138: AGRICULTURA, GANADERÍA, CAZA, SILVICULTURA Y PESCA | N138: 3 | O138: 2 | P138: 0 | U138: NIT-901224908 | V138: 54001 | W138: CÚCUTA | X138: 1 | Y138: 2 | Z138: Jurídica | AA138: 54 | AB138: NORTE DE SANTANDER | AC138: Aprobado con subsidio | AD138: 7 | AE138: MICRO | AF138: 4530 | AG138: COMERCIO AL POR MAYOR Y AL POR MENOR; REPARACIÓN DE VEHÍCULOS AUTOMOTORES Y MOTOCICLETAS | AH138: 0 | AI138: 1 | AJ138: 0
A139: CC-4299213 | B139: 81001 | C139: ARAUCA | D139: 2 | E139: 0 | F139: Natural | G139: 81 | H139: ARAUCA | I139: Aprobado con subsidio | J139: 6 | K139: MICRO | L139: 5511 | M139: ALOJAMIENTO Y SERVICIOS DE COMIDA | N139: 1 | O139: 1 | P139: 0 | U139: NIT-901280196 | V139: 54001 | W139: CÚCUTA | X139: 2 | Y139: 2 | Z139: Jurídica | AA139: 54 | AB139: NORTE DE SANTANDER | AC139: Aprobado con subsidio | AD139: 5 | AE139: MICRO | AF139: 6920 | AG139: ACTIVIDADES PROFESIONALES, CIENTÍFICAS Y TÉCNICAS | AH139: 0 | AI139: 2 | AJ139: 0
A140: CC-4326693 | B140: 17001 | C140: MANIZALES | D140: 3 | E140: 0 | F140: Natural | G140: 17 | H140: CALDAS | I140: Aprobado con subsidio | J140: 3 | K140: MICRO | L140: 4663 | M140: COMERCIO AL POR MAYOR Y AL POR MENOR; REPARACIÓN DE VEHÍCULOS AUTOMOTORES Y MOTOCICLETAS | N140: 0 | O140: 3 | P140: 0 | U140: CC-88157044 | V140: 54001 | W140: CÚCUTA | X140: 16 | Y140: 1 | Z140: Natural | AA140: 54 | AB140: NORTE DE SANTANDER | AC140: Aprobado con subsidio | AD140: 18 | AE140: PEQUEÑA | AF140: 4711 | AG140: COMERCIO AL POR MAYOR Y AL POR MENOR; REPARACIÓN DE VEHÍCULOS AUTOMOTORES Y MOTOCICLETAS | AH140: 2 | AI140: 14 | AJ140: 0
A141: CC-5599755 | B141: 11001 | C141: BOGOTÁ, D.C. | D141: 9 | E141: 1 | F141: Natural | G141: 11 | H141: BOGOTÁ, D.C. | I141: Aprobado con subsidio | J141: 9 | K141: MICRO | L141: 6399 | M141: INFORMACIÓN Y COMUNICACIONES | N141: 2 | O141: 7 | P141: 0 | U141: NIT-800151524 | V141: 54001 | W141: CÚCUTA | X141: 2 | Y141: 3 | Z141: Jurídica | AA141: 54 | AB141: NORTE DE SANTANDER | AC141: Aprobado con subsidio | AD141: 4 | AE141: MICRO | AF141: 4752 | AG141: COMERCIO AL POR MAYOR Y AL POR MENOR; REPARACIÓN DE VEHÍCULOS AUTOMOTORES Y MOTOCICLETAS | AH141: 1 | AI141: 1 | AJ141: 0
A142: CC-5787645 | B142: 91001 | C142: LETICIA | D142: 4 | E142: 3 | F142: Natural | G142: 91 | H142: AMAZONAS | I142: Aprobado con subsidio | J142: 7 | K142: MICRO | L142: 4711 | M142: COMERCIO AL POR MAYOR Y AL POR MENOR; REPARACIÓN DE VEHÍCULOS AUTOMOTORES Y MOTOCICLETAS | N142: 2 | O142: 2 | P142: 0 | U142: CC-13505550 | V142: 54001 | W142: CÚCUTA | X142: 16 | Y142: 0 | Z142: Natural | AA142: 54 | AB142: NORTE DE SANTANDER | AC142: Aprobado con subsidio | AD142: 15 | AE142: PEQUEÑA | AF142: 3290 | AG142: INDUSTRIAS MANUFACTURERAS | AH142: 9 | AI142: 7 | AJ142: 0
A143: CC-6157013 | B143: 76109 | C143: BUENAVENTURA | D143: 3 | E143: 0 | F143: Natural | G143: 76 | H143: VALLE DEL CAUCA | I143: Aprobado con subsidio | J143: 4 | K143: MICRO | L143: 5511 | M143: ALOJAMIENTO Y SERVICIOS DE COMIDA | N143: 2 | O143: 1 | P143: 0 | U143: CC-88261037 | V143: 54001 | W143: CÚCUTA | X143: 10 | Y143: 0 | Z143: Natural | AA143: 54 | AB143: NORTE DE SANTANDER | AC143: Aprobado con subsidio | AD143: 12 | AE143: PEQUEÑA | AF143: 8621 | AG143: ACTIVIDADES DE ATENCIÓN DE LA SALUD HUMANA Y DE ASISTENCIA SOCIAL | AH143: 9 | AI143: 1 | AJ143: 0
A144: CC-31946900 | B144: 76001 | C144: CALI | D144: 7 | E144: 0 | F144: Natural | G144: 76 | H144: VALLE DEL CAUCA | I144: Aprobado con subsidio | J144: 13 | K144: PEQUEÑA | L144: 5611 | M144: ALOJAMIENTO Y SERVICIOS DE COMIDA | N144: 6 | O144: 1 | P144: 0 | U144: NIT-890500370 | V144: 54518 | W144: PAMPLONA | X144: 8 | Y144: 15 | Z144: Jurídica | AA144: 54 | AB144: NORTE DE SANTANDER | AC144: Aprobado con subsidio | AD144: 23 | AE144: PEQUEÑA | AF144: 6810 | AG144: ACTIVIDADES INMOBILIARIAS | AH144: 2 | AI144: 6 | AJ144: 0
A145: CC-32349376 | B145: 5001 | C145: MEDELLÍN | D145: 2 | E145: 1 | F145: Natural | G145: 5 | H145: ANTIOQUIA | I145: Aprobado con subsidio | J145: 4 | K145: MICRO | L145: 4771 | M145: COMERCIO AL POR MAYOR Y AL POR MENOR; REPARACIÓN DE VEHÍCULOS AUTOMOTORES Y MOTOCICLETAS | N145: 1 | O145: 1 | P145: 0 | U145: NIT-900018402 | V145: 54001 | W145: CÚCUTA | X145: 2 | Y145: 0 | Z145: Jurídica | AA145: 54 | AB145: NORTE DE SANTANDER | AC145: Aprobado con subsidio | AD145: 2 | AE145: MICRO | AF145: 4663 | AG145: COMERCIO AL POR MAYOR Y AL POR MENOR; REPARACIÓN DE VEHÍCULOS AUTOMOTORES Y MOTOCICLETAS | AH145: 1 | AI145: 1 | AJ145: 0
A146: CC-32431462 | B146: 5001 | C146: MEDELLÍN | D146: 11 | E146: 14 | F146: Natural | G146: 5 | H146: ANTIOQUIA | I146: Aprobado con subsidio | J146: 26 | K146: PEQUEÑA | L146: 8551 | M146: EDUCACIÓN | N146: 8 | O146: 3 | P146: 0 | U146: NIT-901221631 | V146: 54001 | W146: CÚCUTA | X146: 11 | Y146: 3 | Z146: Jurídica | AA146: 54 | AB146: NORTE DE SANTANDER | AC146: Aprobado con subsidio | AD146: 16 | AE146: PEQUEÑA | AF146: 4530 | AG146: COMERCIO AL POR MAYOR Y AL POR MENOR; REPARACIÓN DE VEHÍCULOS AUTOMOTORES Y MOTOCICLETAS | AH146: 5 | AI146: 6 | AJ146: 0
A147: CC-32634771 | B147: 8001 | C147: BARRANQUILLA | D147: 5 | E147: 0 | F147: Natural | G147: 8 | H147: ATLÁNTICO | I147: Aprobado con subsidio | J147: 5 | K147: MICRO | L147: 5530 | M147: ALOJAMIENTO Y SERVICIOS DE COMIDA | N147: 1 | O147: 4 | P147: 0 | U147: NIT-900369812 | V147: 54001 | W147: CÚCUTA | X147: 1 | Y147: 1 | Z147: Jurídica | AA147: 54 | AB147: NORTE DE SANTANDER | AC147: Aprobado con subsidio | AD147: 2 | AE147: MICRO | AF147: 1410 | AG147: INDUSTRIAS MANUFACTURERAS | AH147: 1 | AI147: 0 | AJ147: 0
A148: CC-32718509 | B148: 44430 | C148: MAICAO | D148: 5 | E148: 0 | F148: Natural | G148: 44 | H148: LA GUAJIRA | I148: Aprobado con subsidio | J148: 5 | K148: MICRO | L148: 5511 | M148: ALOJAMIENTO Y SERVICIOS DE COMIDA | N148: 3 | O148: 2 | P148: 0 | U148: CC-37393457 | V148: 54001 | W148: CÚCUTA | X148: 5 | Y148: 0 | Z148: Natural | AA148: 54 | AB148: NORTE DE SANTANDER | AC148: Aprobado con subsidio | AD148: 5 | AE148: MICRO | AF148: 4742 | AG148: COMERCIO AL POR MAYOR Y AL POR MENOR; REPARACIÓN DE VEHÍCULOS AUTOMOTORES Y MOTOCICLETAS | AH148: 1 | AI148: 4 | AJ148: 0
A149: CC-32861938 | B149: 8638 | C149: SABANALARGA | D149: 9 | E149: 1 | F149: Natural | G149: 8 | H149: ATLÁNTICO | I149: Aprobado con subsidio | J149: 12 | K149: PEQUEÑA | L149: 1081 | M149: INDUSTRIAS MANUFACTURERAS | N149: 4 | O149: 5 | P149: 0 | U149: NIT-901017988 | V149: 54001 | W149: CÚCUTA | X149: 0 | Y149: 0 | Z149: Jurídica | AA149: 54 | AB149: NORTE DE SANTANDER | AC149: Rechazado a nivel aportante | AD149: 6 | AE149: MICRO | AF149: 8020 | AG149: ACTIVIDADES DE SERVICIOS ADMINISTRATIVOS Y DE APOYO | AH149: 0 | AI149: 0 | AJ149: 0
A150: NIT-802023860 | B150: 8001 | C150: BARRANQUILLA | D150: 4 | E150: 2 | F150: Jurídica | G150: 8 | H150: ATLÁNTICO | I150: Aprobado con subsidio | J150: 7 | K150: MICRO | L150: 5210 | M150: TRANSPORTE Y ALMACENAMIENTO | N150: 0 | O150: 4 | P150: 0 | U150: NIT-901161438 | V150: 54001 | W150: CÚCUTA | X150: 5 | Y150: 0 | Z150: Jurídica | AA150: 54 | AB150: NORTE DE SANTANDER | AC150: Aprobado con subsidio | AD150: 5 | AE150: MICRO | AF150: 4632 | AG150: COMERCIO AL POR MAYOR Y AL POR MENOR; REPARACIÓN DE VEHÍCULOS AUTOMOTORES Y MOTOCICLETAS | AH150: 2 | AI150: 3 | AJ150: 0
A151: NIT-804000147 | B151: 68001 | C151: BUCARAMANGA | D151: 12 | E151: 10 | F151: Jurídica | G151: 68 | H151: SANTANDER | I151: Aprobado con subsidio | J151: 27 | K151: PEQUEÑA | L151: 8622 | M151: ACTIVIDADES DE ATENCIÓN DE LA SALUD HUMANA Y DE ASISTENCIA SOCIAL | N151: 11 | O151: 1 | P151: 0 | U151: NIT-901268252 | V151: 54001 | W151: CÚCUTA | X151: 4 | Y151: 2 | Z151: Jurídica | AA151: 54 | AB151: NORTE DE SANTANDER | AC151: Aprobado con subsidio | AD151: 6 | AE151: MICRO | AF151: 8121 | AG151: ACTIVIDADES DE SERVICIOS ADMINISTRATIVOS Y DE APOYO | AH151: 3 | AI151: 1 | AJ151: 0
A152: NIT-804003805 | B152: 68001 | C152: BUCARAMANGA | D152: 2 | E152: 0 | F152: Jurídica | G152: 68 | H152: SANTANDER | I152: Aprobado con subsidio | J152: 2 | K152: MICRO | L152: 7911 | M152: ACTIVIDADES DE SERVICIOS ADMINISTRATIVOS Y DE APOYO | N152: 1 | O152: 1 | P152: 0 | U152: NIT-900880669 | V152: 54001 | W152: CÚCUTA | X152: 8 | Y152: 3 | Z152: Jurídica | AA152: 54 | AB152: NORTE DE SANTANDER | AC152: Aprobado con subsidio | AD152: 9 | AE152: MICRO | AF152: 4923 | AG152: TRANSPORTE Y ALMACENAMIENTO | AH152: 4 | AI152: 4 | AJ152: 0
A153: NIT-804004363 | B153: 68001 | C153: BUCARAMANGA | D153: 4 | E153: 0 | F153: Jurídica | G153: 68 | H153: SANTANDER | I153: Aprobado con subsidio | J153: 4 | K153: MICRO | L153: 4751 | M153: COMERCIO AL POR MAYOR Y AL POR MENOR; REPARACIÓN DE VEHÍCULOS AUTOMOTORES Y MOTOCICLETAS | N153: 3 | O153: 1 | P153: 0 | U153: NIT-900956784 | V153: 54001 | W153: CÚCUTA | X153: 8 | Y153: 1 | Z153: Jurídica | AA153: 54 | AB153: NORTE DE SANTANDER | AC153: Aprobado con subsidio | AD153: 8 | AE153: MICRO | AF153: 4761 | AG153: COMERCIO AL POR MAYOR Y AL POR MENOR; REPARACIÓN DE VEHÍCULOS AUTOMOTORES Y MOTOCICLETAS | AH153: 2 | AI153: 6 | AJ153: 0
A154: NIT-804005066 | B154: 11001 | C154: BOGOTÁ, D.C. | D154: 91 | E154: 29 | F154: Jurídica | G154: 11 | H154: BOGOTÁ, D.C. | I154: Aprobado con subsidio | J154: 107 | K154: MEDIANA | L154: 141 | M154: AGRICULTURA, GANADERÍA, CAZA, SILVICULTURA Y PESCA | N154: 4 | O154: 87 | P154: 0 | U154: NIT-800195137 | V154: 54001 | W154: CÚCUTA | X154: 5 | Y154: 0 | Z154: Jurídica | AA154: 54 | AB154: NORTE DE SANTANDER | AC154: Aprobado con subsidio | AD154: 5 | AE154: MICRO | AF154: 9491 | AG154: OTRAS ACTIVIDADES DE SERVICIOS | AH154: 2 | AI154: 3 | AJ154: 0
A155: NIT-804006897 | B155: 11001 | C155: BOGOTÁ, D.C. | D155: 0 | E155: 0 | F155: Jurídica | G155: 11 | H155: BOGOTÁ, D.C. | I155: Rechazado a nivel aportante | J155: 6 | K155: MICRO | L155: 4690 | M155: COMERCIO AL POR MAYOR Y AL POR MENOR; REPARACIÓN DE VEHÍCULOS AUTOMOTORES Y MOTOCICLETAS | N155: 0 | O155: 0 | P155: 0 | U155: CC-71775777 | V155: 54001 | W155: CÚCUTA | X155: 4 | Y155: 0 | Z155: Natural | AA155: 54 | AB155: NORTE DE SANTANDER | AC155: Aprobado con subsidio | AD155: 3 | AE155: MICRO | AF155: 8691 | AG155: ACTIVIDADES DE ATENCIÓN DE LA SALUD HUMANA Y DE ASISTENCIA SOCIAL | AH155: 3 | AI155: 1 | AJ155: 0
A156: NIT-804008909 | B156: 68001 | C156: BUCARAMANGA | D156: 1 | E156: 5 | F156: Jurídica | G156: 68 | H156: SANTANDER | I156: Aprobado con subsidio | J156: 6 | K156: MICRO | L156: 4649 | M156: COMERCIO AL POR MAYOR Y AL POR MENOR; REPARACIÓN DE VEHÍCULOS AUTOMOTORES Y MOTOCICLETAS | N156: 1 | O156: 0 | P156: 0 | U156: NIT-900132113 | V156: 54001 | W156: CÚCUTA | X156: 5 | Y156: 3 | Z156: Jurídica | AA156: 54 | AB156: NORTE DE SANTANDER | AC156: Aprobado con subsidio | AD156: 10 | AE156: MICRO | AF156: 4665 | AG156: COMERCIO AL POR MAYOR Y AL POR MENOR; REPARACIÓN DE VEHÍCULOS AUTOMOTORES Y MOTOCICLETAS | AH156: 1 | AI156: 4 | AJ156: 0
A157: NIT-804010973 | B157: 68755 | C157: SOCORRO | D157: 2 | E157: 1 | F157: Jurídica | G157: 68 | H157: SANTANDER | I157: Aprobado con subsidio | J157: 3 | K157: MICRO | L157: 9491 | M157: OTRAS ACTIVIDADES DE SERVICIOS | N157: 1 | O157: 1 | P157: 0 | U157: CC-77160261 | V157: 54001 | W157: CÚCUTA | X157: 19 | Y157: 3 | Z157: Natural | AA157: 54 | AB157: NORTE DE SANTANDER | AC157: Aprobado con subsidio | AD157: 22 | AE157: PEQUEÑA | AF157: 9601 | AG157: OTRAS ACTIVIDADES DE SERVICIOS | AH157: 5 | AI157: 14 | AJ157: 0
A158: NIT-804011615 | B158: 68001 | C158: BUCARAMANGA | D158: 8 | E158: 0 | F158: Jurídica | G158: 68 | H158: SANTANDER | I158: Aprobado con subsidio | J158: 9 | K158: MICRO | L158: 9200 | M158: ACTIVIDADES ARTÍSTICAS, DE ENTRETENIMIENTO Y RECREACIÓN | N158: 7 | O158: 1 | P158: 0 | U158: CC-60346879 | V158: 54001 | W158: CÚCUTA | X158: 6 | Y158: 0 | Z158: Natural | AA158: 54 | AB158: NORTE DE SANTANDER | AC158: Aprobado con subsidio | AD158: 4 | AE158: MICRO | AF158: 4719 | AG158: COMERCIO AL POR MAYOR Y AL POR MENOR; REPARACIÓN DE VEHÍCULOS AUTOMOTORES Y MOTOCICLETAS | AH158: 3 | AI158: 3 | AJ158: 0
A159: NIT-804014682 | B159: 68001 | C159: BUCARAMANGA | D159: 5 | E159: 2 | F159: Jurídica | G159: 68 | H159: SANTANDER | I159: Aprobado con subsidio | J159: 7 | K159: MICRO | L159: 4659 | M159: COMERCIO AL POR MAYOR Y AL POR MENOR; REPARACIÓN DE VEHÍCULOS AUTOMOTORES Y MOTOCICLETAS | N159: 5 | O159: 0 | P159: 0 | U159: NIT-900262968 | V159: 54001 | W159: CÚCUTA | X159: 1 | Y159: 6 | Z159: Jurídica | AA159: 54 | AB159: NORTE DE SANTANDER | AC159: Aprobado con subsidio | AD159: 10 | AE159: MICRO | AF159: 8621 | AG159: ACTIVIDADES DE ATENCIÓN DE LA SALUD HUMANA Y DE ASISTENCIA SOCIAL | AH159: 1 | AI159: 0 | AJ159: 0
A160: NIT-804015874 | B160: 68549 | C160: PINCHOTE | D160: 2 | E160: 0 | F160: Jurídica | G160: 68 | H160: SANTANDER | I160: Aprobado con subsidio | J160: 2 | K160: MICRO | L160: 9491 | M160: OTRAS ACTIVIDADES DE SERVICIOS | N160: 1 | O160: 1 | P160: 0 | U160: NIT-900996743 | V160: 54405 | W160: LOS PATIOS | X160: 8 | Y160: 1 | Z160: Jurídica | AA160: 54 | AB160: NORTE DE SANTANDER | AC160: Aprobado con subsidio | AD160: 8 | AE160: MICRO | AF160: 1011 | AG160: INDUSTRIAS MANUFACTURERAS | AH160: 0 | AI160: 8 | AJ160: 0
A161: NIT-804016451 | B161: 68190 | C161: CIMITARRA | D161: 5 | E161: 1 | F161: Jurídica | G161: 68 | H161: SANTANDER | I161: Aprobado con subsidio | J161: 7 | K161: MICRO | L161: 4663 | M161: COMERCIO AL POR MAYOR Y AL POR MENOR; REPARACIÓN DE VEHÍCULOS AUTOMOTORES Y MOTOCICLETAS | N161: 0 | O161: 5 | P161: 0 | U161: NIT-900732970 | V161: 54001 | W161: CÚCUTA | X161: 6 | Y161: 0 | Z161: Jurídica | AA161: 54 | AB161: NORTE DE SANTANDER | AC161: Aprobado con subsidio | AD161: 4 | AE161: MICRO | AF161: 4732 | AG161: COMERCIO AL POR MAYOR Y AL POR MENOR; REPARACIÓN DE VEHÍCULOS AUTOMOTORES Y MOTOCICLETAS | AH161: 5 | AI161: 1 | AJ161: 0
A162: NIT-804016901 | B162: 68547 | C162: PIEDECUESTA | D162: 5 | E162: 2 | F162: Jurídica | G162: 68 | H162: SANTANDER | I162: Aprobado con subsidio | J162: 8 | K162: MICRO | L162: 9200 | M162: ACTIVIDADES ARTÍSTICAS, DE ENTRETENIMIENTO Y RECREACIÓN | N162: 5 | O162: 0 | P162: 0 | U162: CC-13461355 | V162: 54099 | W162: BOCHALEMA | X162: 5 | Y162: 0 | Z162: Natural | AA162: 54 | AB162: NORTE DE SANTANDER | AC162: Aprobado con subsidio | AD162: 4 | AE162: MICRO | AF162: 811 | AG162: EXPLOTACIÓN DE MINAS Y CANTERAS | AH162: 0 | AI162: 5 | AJ162: 0
A163: NIT-804016911 | B163: 68077 | C163: BARBOSA | D163: 7 | E163: 7 | F163: Jurídica | G163: 68 | H163: SANTANDER | I163: Aprobado con subsidio | J163: 12 | K163: PEQUEÑA | L163: 8610 | M163: ACTIVIDADES DE ATENCIÓN DE LA SALUD HUMANA Y DE ASISTENCIA SOCIAL | N163: 7 | O163: 0 | P163: 0 | U163: NIT-900658933 | V163: 54001 | W163: CÚCUTA | X163: 5 | Y163: 12 | Z163: Jurídica | AA163: 54 | AB163: NORTE DE SANTANDER | AC163: Aprobado con subsidio | AD163: 17 | AE163: PEQUEÑA | AF163: 4731 | AG163: COMERCIO AL POR MAYOR Y AL POR MENOR; REPARACIÓN DE VEHÍCULOS AUTOMOTORES Y MOTOCICLETAS | AH163: 4 | AI163: 1 | AJ163: 0
A164: NIT-804017084 | B164: 68001 | C164: BUCARAMANGA | D164: 7 | E164: 6 | F164: Jurídica | G164: 68 | H164: SANTANDER | I164: Aprobado con subsidio | J164: 11 | K164: PEQUEÑA | L164: 4731 | M164: COMERCIO AL POR MAYOR Y AL POR MENOR; REPARACIÓN DE VEHÍCULOS AUTOMOTORES Y MOTOCICLETAS | N164: 4 | O164: 3 | P164: 0 | U164: CC-1090506422 | V164: 54001 | W164: CÚCUTA | X164: 4 | Y164: 0 | Z164: Natural | AA164: 54 | AB164: NORTE DE SANTANDER | AC164: Aprobado con subsidio | AD164: 4 | AE164: MICRO | AF164: 4631 | AG164: COMERCIO AL POR MAYOR Y AL POR MENOR; REPARACIÓN DE VEHÍCULOS AUTOMOTORES Y MOTOCICLETAS | AH164: 2 | AI164: 2 | AJ164: 0
A165: NIT-860008067 | B165: 11001 | C165: BOGOTÁ, D.C. | D165: 0 | E165: 0 | F165: Jurídica | G165: 11 | H165: BOGOTÁ, D.C. | I165: Aprobado sin subsidio | J165: 311 | K165: GRANDE | L165: 1011 | M165: INDUSTRIAS MANUFACTURERAS | N165: 0 | O165: 0 | P165: 0 | U165: CC-1090444919 | V165: 54001 | W165: CÚCUTA | X165: 3 | Y165: 0 | Z165: Natural | AA165: 54 | AB165: NORTE DE SANTANDER | AC165: Aprobado con subsidio | AD165: 4 | AE165: MICRO | AF165: 4773 | AG165: COMERCIO AL POR MAYOR Y AL POR MENOR; REPARACIÓN DE VEHÍCULOS AUTOMOTORES Y MOTOCICLETAS | AH165: 3 | AI165: 0 | AJ165: 0
A166: NIT-860024099 | B166: 11001 | C166: BOGOTÁ, D.C. | D166: 5 | E166: 2 | F166: Jurídica | G166: 11 | H166: BOGOTÁ, D.C. | I166: Aprobado con subsidio | J166: 10 | K166: MICRO | L166: 1082 | M166: INDUSTRIAS MANUFACTURERAS | N166: 3 | O166: 2 | P166: 0 | U166: CC-13485802 | V166: 54001 | W166: CÚCUTA | X166: 8 | Y166: 0 | Z166: Natural | AA166: 54 | AB166: NORTE DE SANTANDER | AC166: Aprobado con subsidio | AD166: 8 | AE166: MICRO | AF166: 1011 | AG166: INDUSTRIAS MANUFACTURERAS | AH166: 3 | AI166: 5 | AJ166: 0
A167: NIT-860032520 | B167: 11001 | C167: BOGOTÁ, D.C. | D167: 2 | E167: 7 | F167: Jurídica | G167: 11 | H167: BOGOTÁ, D.C. | I167: Aprobado con subsidio | J167: 9 | K167: MICRO | L167: 9412 | M167: OTRAS ACTIVIDADES DE SERVICIOS | N167: 2 | O167: 0 | P167: 0 | U167: NIT-900474782 | V167: 54001 | W167: CÚCUTA | X167: 7 | Y167: 0 | Z167: Jurídica | AA167: 54 | AB167: NORTE DE SANTANDER | AC167: Aprobado con subsidio | AD167: 7 | AE167: MICRO | AF167: 5611 | AG167: ALOJAMIENTO Y SERVICIOS DE COMIDA | AH167: 1 | AI167: 6 | AJ167: 0
A168: NIT-860034318 | B168: 11001 | C168: BOGOTÁ, D.C. | D168: 0 | E168: 0 | F168: Jurídica | G168: 11 | H168: BOGOTÁ, D.C. | I168: Aprobado sin subsidio | J168: 11 | K168: PEQUEÑA | L168: 5911 | M168: INFORMACIÓN Y COMUNICACIONES | N168: 0 | O168: 0 | P168: 0 | U168: CC-41781059 | V168: 54001 | W168: CÚCUTA | X168: 2 | Y168: 1 | Z168: Natural | AA168: 54 | AB168: NORTE DE SANTANDER | AC168: Aprobado con subsidio | AD168: 4 | AE168: MICRO | AF168: 4771 | AG168: COMERCIO AL POR MAYOR Y AL POR MENOR; REPARACIÓN DE VEHÍCULOS AUTOMOTORES Y MOTOCICLETAS | AH168: 2 | AI168: 0 | AJ168: 0
A169: NIT-860045117 | B169: 25286 | C169: FUNZA | D169: 9 | E169: 27 | F169: Jurídica | G169: 25 | H169: CUNDINAMARCA | I169: Aprobado con subsidio | J169: 40 | K169: PEQUEÑA | L169: 1709 | M169: INDUSTRIAS MANUFACTURERAS | N169: 4 | O169: 5 | P169: 0 | U169: CC-1092336731 | V169: 54001 | W169: CÚCUTA | X169: 5 | Y169: 0 | Z169: Natural | AA169: 54 | AB169: NORTE DE SANTANDER | AC169: Aprobado con subsidio | AD169: 4 | AE169: MICRO | AF169: 4752 | AG169: COMERCIO AL POR MAYOR Y AL POR MENOR; REPARACIÓN DE VEHÍCULOS AUTOMOTORES Y MOTOCICLETAS | AH169: 0 | AI169: 5 | AJ169: 0
A170: NIT-860045409 | B170: 11001 | C170: BOGOTÁ, D.C. | D170: 13 | E170: 0 | F170: Jurídica | G170: 11 | H170: BOGOTÁ, D.C. | I170: Aprobado con subsidio | J170: 13 | K170: PEQUEÑA | L170: 1011 | M170: INDUSTRIAS MANUFACTURERAS | N170: 5 | O170: 8 | P170: 0 | U170: CC-71728187 | V170: 54001 | W170: CÚCUTA | X170: 17 | Y170: 3 | Z170: Natural | AA170: 54 | AB170: NORTE DE SANTANDER | AC170: Aprobado con subsidio | AD170: 17 | AE170: PEQUEÑA | AF170: 4663 | AG170: COMERCIO AL POR MAYOR Y AL POR MENOR; REPARACIÓN DE VEHÍCULOS AUTOMOTORES Y MOTOCICLETAS | AH170: 5 | AI170: 12 | AJ170: 0
A171: NIT-860047427 | B171: 11001 | C171: BOGOTÁ, D.C. | D171: 9 | E171: 23 | F171: Jurídica | G171: 11 | H171: BOGOTÁ, D.C. | I171: Aprobado con subsidio | J171: 35 | K171: PEQUEÑA | L171: 1011 | M171: INDUSTRIAS MANUFACTURERAS | N171: 2 | O171: 7 | P171: 0 | U171: NIT-900421213 | V171: 54001 | W171: CÚCUTA | X171: 21 | Y171: 3 | Z171: Jurídica | AA171: 54 | AB171: NORTE DE SANTANDER | AC171: Aprobado con subsidio | AD171: 30 | AE171: PEQUEÑA | AF171: 126 | AG171: AGRICULTURA, GANADERÍA, CAZA, SILVICULTURA Y PESCA | AH171: 3 | AI171: 18 | AJ171: 0
A172: NIT-860052527 | B172: 11001 | C172: BOGOTÁ, D.C. | D172: 9 | E172: 2 | F172: Jurídica | G172: 11 | H172: BOGOTÁ, D.C. | I172: Aprobado con subsidio | J172: 14 | K172: PEQUEÑA | L172: 1011 | M172: INDUSTRIAS MANUFACTURERAS | N172: 2 | O172: 7 | P172: 0 | U172: NIT-900386919 | V172: 54001 | W172: CÚCUTA | X172: 3 | Y172: 5 | Z172: Jurídica | AA172: 54 | AB172: NORTE DE SANTANDER | AC172: Aprobado con subsidio | AD172: 9 | AE172: MICRO | AF172: 8691 | AG172: ACTIVIDADES DE ATENCIÓN DE LA SALUD HUMANA Y DE ASISTENCIA SOCIAL | AH172: 3 | AI172: 0 | AJ172: 0
A173: NIT-860055371 | B173: 11001 | C173: BOGOTÁ, D.C. | D173: 8 | E173: 39 | F173: Jurídica | G173: 11 | H173: BOGOTÁ, D.C. | I173: Aprobado con subsidio | J173: 78 | K173: MEDIANA | L173: 4659 | M173: COMERCIO AL POR MAYOR Y AL POR MENOR; REPARACIÓN DE VEHÍCULOS AUTOMOTORES Y MOTOCICLETAS | N173: 2 | O173: 6 | P173: 0 | U173: NIT-5084989 | V173: 54498 | W173: OCAÑA | X173: 3 | Y173: 0 | Z173: Jurídica | AA173: 54 | AB173: NORTE DE SANTANDER | AC173: Aprobado con subsidio | AD173: 3 | AE173: MICRO | AF173: 4530 | AG173: COMERCIO AL POR MAYOR Y AL POR MENOR; REPARACIÓN DE VEHÍCULOS AUTOMOTORES Y MOTOCICLETAS | AH173: 1 | AI173: 2 | AJ173: 0
A174: NIT-860055913 | B174: 11001 | C174: BOGOTÁ, D.C. | D174: 41 | E174: 56 | F174: Jurídica | G174: 11 | H174: BOGOTÁ, D.C. | I174: Aprobado con subsidio | J174: 129 | K174: MEDIANA | L174: 4290 | M174: CONSTRUCCIÓN | N174: 6 | O174: 35 | P174: 0 | U174: NIT-900897311 | V174: 54001 | W174: CÚCUTA | X174: 2 | Y174: 8 | Z174: Jurídica | AA174: 54 | AB174: NORTE DE SANTANDER | AC174: Aprobado con subsidio | AD174: 11 | AE174: PEQUEÑA | AF174: 4731 | AG174: COMERCIO AL POR MAYOR Y AL POR MENOR; REPARACIÓN DE VEHÍCULOS AUTOMOTORES Y MOTOCICLETAS | AH174: 1 | AI174: 1 | AJ174: 0
A175: NIT-860057189 | B175: 11001 | C175: BOGOTÁ, D.C. | D175: 5 | E175: 2 | F175: Jurídica | G175: 11 | H175: BOGOTÁ, D.C. | I175: Aprobado con subsidio | J175: 7 | K175: MICRO | L175: 1811 | M175: INDUSTRIAS MANUFACTURERAS | N175: 3 | O175: 2 | P175: 0 | U175: CC-60385058 | V175: 54001 | W175: CÚCUTA | X175: 4 | Y175: 0 | Z175: Natural | AA175: 54 | AB175: NORTE DE SANTANDER | AC175: Aprobado con subsidio | AD175: 4 | AE175: MICRO | AF175: 4761 | AG175: COMERCIO AL POR MAYOR Y AL POR MENOR; REPARACIÓN DE VEHÍCULOS AUTOMOTORES Y MOTOCICLETAS | AH175: 3 | AI175: 1 | AJ175: 0
A176: NIT-860060543 | B176: 11001 | C176: BOGOTÁ, D.C. | D176: 23 | E176: 126 | F176: Jurídica | G176: 11 | H176: BOGOTÁ, D.C. | I176: Aprobado con subsidio | J176: 146 | K176: MEDIANA | L176: 4511 | M176: COMERCIO AL POR MAYOR Y AL POR MENOR; REPARACIÓN DE VEHÍCULOS AUTOMOTORES Y MOTOCICLETAS | N176: 12 | O176: 11 | P176: 0 | U176: NIT-900260402 | V176: 54874 | W176: VILLA DEL ROSARIO | X176: 4 | Y176: 0 | Z176: Jurídica | AA176: 54 | AB176: NORTE DE SANTANDER | AC176: Aprobado con subsidio | AD176: 4 | AE176: MICRO | AF176: 2432 | AG176: INDUSTRIAS MANUFACTURERAS | AH176: 1 | AI176: 3 | AJ176: 0
A177: NIT-860065493 | B177: 11001 | C177: BOGOTÁ, D.C. | D177: 0 | E177: 0 | F177: Jurídica | G177: 11 | H177: BOGOTÁ, D.C. | I177: Aprobado sin subsidio | J177: 1 | K177: MICRO | L177: 9319 | M177: ACTIVIDADES ARTÍSTICAS, DE ENTRETENIMIENTO Y RECREACIÓN | N177: 0 | O177: 0 | P177: 0 | U177: NIT-900430843 | V177: 54001 | W177: CÚCUTA | X177: 6 | Y177: 0 | Z177: Jurídica | AA177: 54 | AB177: NORTE DE SANTANDER | AC177: Aprobado con subsidio | AD177: 6 | AE177: MICRO | AF177: 2023 | AG177: INDUSTRIAS MANUFACTURERAS | AH177: 6 | AI177: 0 | AJ177: 0
A178: CC-40784565 | B178: 8001 | C178: BARRANQUILLA | D178: 150 | E178: 60 | F178: Natural | G178: 8 | H178: ATLÁNTICO | I178: Aprobado con subsidio | J178: 254 | K178: GRANDE | L178: 4723 | M178: COMERCIO AL POR MAYOR Y AL POR MENOR; REPARACIÓN DE VEHÍCULOS AUTOMOTORES Y MOTOCICLETAS | N178: 38 | O178: 112 | P178: 0 | U178: NIT-807002259 | V178: 54001 | W178: CÚCUTA | X178: 15 | Y178: 4 | Z178: Jurídica | AA178: 54 | AB178: NORTE DE SANTANDER | AC178: Aprobado con subsidio | AD178: 30 | AE178: PEQUEÑA | AF178: 9603 | AG178: OTRAS ACTIVIDADES DE SERVICIOS | AH178: 4 | AI178: 11 | AJ178: 0
A179: NIT-860000500 | B179: 11001 | C179: BOGOTÁ, D.C. | D179: 45 | E179: 35 | F179: Jurídica | G179: 11 | H179: BOGOTÁ, D.C. | I179: Aprobado con subsidio | J179: 89 | K179: MEDIANA | L179: 6820 | M179: ACTIVIDADES INMOBILIARIAS | N179: 26 | O179: 19 | P179: 0 | U179: NIT-807002217 | V179: 54001 | W179: CÚCUTA | X179: 2 | Y179: 4 | Z179: Jurídica | AA179: 54 | AB179: NORTE DE SANTANDER | AC179: Aprobado con subsidio | AD179: 5 | AE179: MICRO | AF179: 6810 | AG179: ACTIVIDADES INMOBILIARIAS | AH179: 1 | AI179: 1 | AJ179: 0
A180: NIT-900230498 | B180: 41298 | C180: GARZÓN | D180: 14 | E180: 2 | F180: Jurídica | G180: 41 | H180: HUILA | I180: Aprobado con subsidio | J180: 10 | K180: MICRO | L180: 2392 | M180: INDUSTRIAS MANUFACTURERAS | N180: 1 | O180: 13 | P180: 0 | U180: NIT-900483483 | V180: 54001 | W180: CÚCUTA | X180: 3 | Y180: 3 | Z180: Jurídica | AA180: 54 | AB180: NORTE DE SANTANDER | AC180: Aprobado con subsidio | AD180: 11 | AE180: PEQUEÑA | AF180: 4774 | AG180: COMERCIO AL POR MAYOR Y AL POR MENOR; REPARACIÓN DE VEHÍCULOS AUTOMOTORES Y MOTOCICLETAS | AH180: 1 | AI180: 2 | AJ180: 0
A181: NIT-900230527 | B181: 11001 | C181: BOGOTÁ, D.C. | D181: 7 | E181: 4 | F181: Jurídica | G181: 11 | H181: BOGOTÁ, D.C. | I181: Aprobado con subsidio | J181: 20 | K181: PEQUEÑA | L181: 9200 | M181: ACTIVIDADES ARTÍSTICAS, DE ENTRETENIMIENTO Y RECREACIÓN | N181: 5 | O181: 2 | P181: 0 | U181: NIT-901062737 | V181: 54001 | W181: CÚCUTA | X181: 5 | Y181: 19 | Z181: Jurídica | AA181: 54 | AB181: NORTE DE SANTANDER | AC181: Aprobado con subsidio | AD181: 28 | AE181: PEQUEÑA | AF181: 4661 | AG181: COMERCIO AL POR MAYOR Y AL POR MENOR; REPARACIÓN DE VEHÍCULOS AUTOMOTORES Y MOTOCICLETAS | AH181: 1 | AI181: 4 | AJ181: 0
A182: NIT-900232023 | B182: 8001 | C182: BARRANQUILLA | D182: 58 | E182: 47 | F182: Jurídica | G182: 8 | H182: ATLÁNTICO | I182: Aprobado con subsidio | J182: 182 | K182: MEDIANA | L182: 7820 | M182: ACTIVIDADES DE SERVICIOS ADMINISTRATIVOS Y DE APOYO | N182: 41 | O182: 17 | P182: 0 | U182: NIT-807005607 | V182: 54498 | W182: OCAÑA | X182: 6 | Y182: 16 | Z182: Jurídica | AA182: 54 | AB182: NORTE DE SANTANDER | AC182: Aprobado con subsidio | AD182: 24 | AE182: PEQUEÑA | AF182: 4923 | AG182: TRANSPORTE Y ALMACENAMIENTO | AH182: 3 | AI182: 3 | AJ182: 0
A183: NIT-900233616 | B183: 8001 | C183: BARRANQUILLA | D183: 37 | E183: 44 | F183: Jurídica | G183: 8 | H183: ATLÁNTICO | I183: Aprobado con subsidio | J183: 84 | K183: MEDIANA | L183: 126 | M183: AGRICULTURA, GANADERÍA, CAZA, SILVICULTURA Y PESCA | N183: 2 | O183: 35 | P183: 0 | U183: CC-88225745 | V183: 54001 | W183: CÚCUTA | X183: 6 | Y183: 0 | Z183: Natural | AA183: 54 | AB183: NORTE DE SANTANDER | AC183: Aprobado con subsidio | AD183: 6 | AE183: MICRO | AF183: 4772 | AG183: COMERCIO AL POR MAYOR Y AL POR MENOR; REPARACIÓN DE VEHÍCULOS AUTOMOTORES Y MOTOCICLETAS | AH183: 5 | AI183: 1 | AJ183: 0
A184: NIT-900238049 | B184: 25754 | C184: SOACHA | D184: 6 | E184: 8 | F184: Jurídica | G184: 25 | H184: CUNDINAMARCA | I184: Aprobado con subsidio | J184: 16 | K184: PEQUEÑA | L184: 8530 | M184: EDUCACIÓN | N184: 4 | O184: 2 | P184: 0 | U184: NIT-900743266 | V184: 54001 | W184: CÚCUTA | X184: 7 | Y184: 2 | Z184: Jurídica | AA184: 54 | AB184: NORTE DE SANTANDER | AC184: Aprobado con subsidio | AD184: 9 | AE184: MICRO | AF184: 6920 | AG184: ACTIVIDADES PROFESIONALES, CIENTÍFICAS Y TÉCNICAS | AH184: 5 | AI184: 2 | AJ184: 0
A185: NIT-900239325 | B185: 76001 | C185: CALI | D185: 0 | E185: 0 | F185: Jurídica | G185: 76 | H185: VALLE DEL CAUCA | I185: Aprobado sin subsidio | J185: 10 | K185: MICRO | L185: 5511 | M185: ALOJAMIENTO Y SERVICIOS DE COMIDA | N185: 0 | O185: 0 | P185: 0 | U185: NIT-901249407 | V185: 54001 | W185: CÚCUTA | X185: 8 | Y185: 1 | Z185: Jurídica | AA185: 54 | AB185: NORTE DE SANTANDER | AC185: Aprobado con subsidio | AD185: 9 | AE185: MICRO | AF185: 4643 | AG185: COMERCIO AL POR MAYOR Y AL POR MENOR; REPARACIÓN DE VEHÍCULOS AUTOMOTORES Y MOTOCICLETAS | AH185: 4 | AI185: 4 | AJ185: 0
A186: NIT-900240703 | B186: 76834 | C186: TULUÁ | D186: 4 | E186: 0 | F186: Jurídica | G186: 76 | H186: VALLE DEL CAUCA | I186: Aprobado con subsidio | J186: 5 | K186: MICRO | L186: 8621 | M186: ACTIVIDADES DE ATENCIÓN DE LA SALUD HUMANA Y DE ASISTENCIA SOCIAL | N186: 4 | O186: 0 | P186: 0 | U186: NIT-901276553 | V186: 54001 | W186: CÚCUTA | X186: 2 | Y186: 1 | Z186: Jurídica | AA186: 54 | AB186: NORTE DE SANTANDER | AC186: Aprobado con subsidio | AD186: 3 | AE186: MICRO | AF186: 8511 | AG186: EDUCACIÓN | AH186: 2 | AI186: 0 | AJ186: 0
A187: NIT-900241080 | B187: 11001 | C187: BOGOTÁ, D.C. | D187: 3 | E187: 13 | F187: Jurídica | G187: 11 | H187: BOGOTÁ, D.C. | I187: Aprobado con subsidio | J187: 19 | K187: PEQUEÑA | L187: 4752 | M187: COMERCIO AL POR MAYOR Y AL POR MENOR; REPARACIÓN DE VEHÍCULOS AUTOMOTORES Y MOTOCICLETAS | N187: 1 | O187: 2 | P187: 0 | U187: NIT-900854950 | V187: 54001 | W187: CÚCUTA | X187: 3 | Y187: 0 | Z187: Jurídica | AA187: 54 | AB187: NORTE DE SANTANDER | AC187: Aprobado con subsidio | AD187: 5 | AE187: MICRO | AF187: 4210 | AG187: CONSTRUCCIÓN | AH187: 1 | AI187: 2 | AJ187: 0
A188: NIT-900241153 | B188: 11001 | C188: BOGOTÁ, D.C. | D188: 12 | E188: 4 | F188: Jurídica | G188: 11 | H188: BOGOTÁ, D.C. | I188: Aprobado con subsidio | J188: 12 | K188: PEQUEÑA | L188: 4520 | M188: COMERCIO AL POR MAYOR Y AL POR MENOR; REPARACIÓN DE VEHÍCULOS AUTOMOTORES Y MOTOCICLETAS | N188: 3 | O188: 9 | P188: 0 | U188: NIT-900783900 | V188: 54001 | W188: CÚCUTA | X188: 2 | Y188: 2 | Z188: Jurídica | AA188: 54 | AB188: NORTE DE SANTANDER | AC188: Aprobado con subsidio | AD188: 5 | AE188: MICRO | AF188: 9499 | AG188: OTRAS ACTIVIDADES DE SERVICIOS | AH188: 1 | AI188: 1 | AJ188: 0
A189: NIT-900246002 | B189: 68307 | C189: GIRÓN | D189: 3 | E189: 0 | F189: Jurídica | G189: 68 | H189: SANTANDER | I189: Aprobado con subsidio | J189: 4 | K189: MICRO | L189: 4752 | M189: COMERCIO AL POR MAYOR Y AL POR MENOR; REPARACIÓN DE VEHÍCULOS AUTOMOTORES Y MOTOCICLETAS | N189: 1 | O189: 2 | P189: 0 | U189: NIT-807001517 | V189: 54001 | W189: CÚCUTA | X189: 3 | Y189: 21 | Z189: Jurídica | AA189: 54 | AB189: NORTE DE SANTANDER | AC189: Aprobado con subsidio | AD189: 26 | AE189: PEQUEÑA | AF189: 3314 | AG189: INDUSTRIAS MANUFACTURERAS | AH189: 0 | AI189: 3 | AJ189: 0
A190: NIT-900251519 | B190: 25307 | C190: GIRARDOT | D190: 2 | E190: 0 | F190: Jurídica | G190: 25 | H190: CUNDINAMARCA | I190: Aprobado con subsidio | J190: 1 | K190: MICRO | L190: 8699 | M190: ACTIVIDADES DE ATENCIÓN DE LA SALUD HUMANA Y DE ASISTENCIA SOCIAL | N190: 2 | O190: 0 | P190: 0 | U190: NIT-900528390 | V190: 54810 | W190: TIBÚ | X190: 5 | Y190: 1 | Z190: Jurídica | AA190: 54 | AB190: NORTE DE SANTANDER | AC190: Aprobado con subsidio | AD190: 7 | AE190: MICRO | AF190: 126 | AG190: AGRICULTURA, GANADERÍA, CAZA, SILVICULTURA Y PESCA | AH190: 1 | AI190: 4 | AJ190: 0
A191: NIT-900251532 | B191: 11001 | C191: BOGOTÁ, D.C. | D191: 2 | E191: 2 | F191: Jurídica | G191: 11 | H191: BOGOTÁ, D.C. | I191: Aprobado con subsidio | J191: 4 | K191: MICRO | L191: 7730 | M191: ACTIVIDADES DE SERVICIOS ADMINISTRATIVOS Y DE APOYO | N191: 0 | O191: 2 | P191: 0 | U191: CC-30569215 | V191: 54001 | W191: CÚCUTA | X191: 5 | Y191: 1 | Z191: Natural | AA191: 54 | AB191: NORTE DE SANTANDER | AC191: Aprobado con subsidio | AD191: 8 | AE191: MICRO | AF191: 8621 | AG191: ACTIVIDADES DE ATENCIÓN DE LA SALUD HUMANA Y DE ASISTENCIA SOCIAL | AH191: 2 | AI191: 3 | AJ191: 0
A192: NIT-900252453 | B192: 11001 | C192: BOGOTÁ, D.C. | D192: 2 | E192: 1 | F192: Jurídica | G192: 11 | H192: BOGOTÁ, D.C. | I192: Aprobado con subsidio | J192: 3 | K192: MICRO | L192: 6810 | M192: ACTIVIDADES INMOBILIARIAS | N192: 2 | O192: 0 | P192: 0 | U192: NIT-901246675 | V192: 54001 | W192: CÚCUTA | X192: 0 | Y192: 0 | Z192: Jurídica | AA192: 54 | AB192: NORTE DE SANTANDER | AC192: Rechazado a nivel aportante | AD192: 0 | AE192: $null$ | AF192: 1521 | AG192: INDUSTRIAS MANUFACTURERAS | AH192: 0 | AI192: 0 | AJ192: 0
A193: NIT-900253571 | B193: 85001 | C193: YOPAL | D193: 6 | E193: 7 | F193: Jurídica | G193: 85 | H193: CASANARE | I193: Aprobado con subsidio | J193: 31 | K193: PEQUEÑA | L193: 2511 | M193: INDUSTRIAS MANUFACTURERAS | N193: 1 | O193: 5 | P193: 0 | U193: NIT-900350939 | V193: 54001 | W193: CÚCUTA | X193: 2 | Y193: 26 | Z193: Jurídica | AA193: 54 | AB193: NORTE DE SANTANDER | AC193: Aprobado con subsidio | AD193: 35 | AE193: PEQUEÑA | AF193: 7110 | AG193: ACTIVIDADES PROFESIONALES, CIENTÍFICAS Y TÉCNICAS | AH193: 1 | AI193: 1 | AJ193: 0
A194: NIT-900575584 | B194: 50001 | C194: VILLAVICENCIO | D194: 1 | E194: 6 | F194: Jurídica | G194: 50 | H194: META | I194: Aprobado con subsidio | J194: 23 | K194: PEQUEÑA | L194: 4921 | M194: TRANSPORTE Y ALMACENAMIENTO | N194: 1 | O194: 0 | P194: 0 | U194: CC-37252673 | V194: 54001 | W194: CÚCUTA | X194: 5 | Y194: 0 | Z194: Natural | AA194: 54 | AB194: NORTE DE SANTANDER | AC194: Aprobado con subsidio | AD194: 4 | AE194: MICRO | AF194: 8559 | AG194: EDUCACIÓN | AH194: 4 | AI194: 1 | AJ194: 0
A195: NIT-900580492 | B195: 17001 | C195: MANIZALES | D195: 2 | E195: 8 | F195: Jurídica | G195: 17 | H195: CALDAS | I195: Aprobado con subsidio | J195: 10 | K195: MICRO | L195: 8621 | M195: ACTIVIDADES DE ATENCIÓN DE LA SALUD HUMANA Y DE ASISTENCIA SOCIAL | N195: 2 | O195: 0 | P195: 0 | U195: NIT-890502339 | V195: 54001 | W195: CÚCUTA | X195: 2 | Y195: 0 | Z195: Jurídica | AA195: 54 | AB195: NORTE DE SANTANDER | AC195: Aprobado con subsidio | AD195: 2 | AE195: MICRO | AF195: 9491 | AG195: OTRAS ACTIVIDADES DE SERVICIOS | AH195: 2 | AI195: 0 | AJ195: 0
A196: NIT-900581654 | B196: 5001 | C196: MEDELLÍN | D196: 5 | E196: 1 | F196: Jurídica | G196: 5 | H196: ANTIOQUIA | I196: Aprobado con subsidio | J196: 8 | K196: MICRO | L196: 8511 | M196: EDUCACIÓN | N196: 5 | O196: 0 | P196: 0 | U196: NIT-901095228 | V196: 54001 | W196: CÚCUTA | X196: 1 | Y196: 0 | Z196: Jurídica | AA196: 54 | AB196: NORTE DE SANTANDER | AC196: Aprobado con subsidio | AD196: 2 | AE196: MICRO | AF196: 1410 | AG196: INDUSTRIAS MANUFACTURERAS | AH196: 1 | AI196: 0 | AJ196: 0
A197: NIT-900582602 | B197: 11001 | C197: BOGOTÁ, D.C. | D197: 1 | E197: 18 | F197: Jurídica | G197: 11 | H197: BOGOTÁ, D.C. | I197: Aprobado con subsidio | J197: 27 | K197: PEQUEÑA | L197: 4731 | M197: COMERCIO AL POR MAYOR Y AL POR MENOR; REPARACIÓN DE VEHÍCULOS AUTOMOTORES Y MOTOCICLETAS | N197: 0 | O197: 1 | P197: 0 | U197: CC-13196593 | V197: 54001 | W197: CÚCUTA | X197: 7 | Y197: 0 | Z197: Natural | AA197: 54 | AB197: NORTE DE SANTANDER | AC197: Aprobado con subsidio | AD197: 7 | AE197: MICRO | AF197: 4719 | AG197: COMERCIO AL POR MAYOR Y AL POR MENOR; REPARACIÓN DE VEHÍCULOS AUTOMOTORES Y MOTOCICLETAS | AH197: 6 | AI197: 1 | AJ197: 0
A198: NIT-900582995 | B198: 17001 | C198: MANIZALES | D198: 21 | E198: 1 | F198: Jurídica | G198: 17 | H198: CALDAS | I198: Aprobado con subsidio | J198: 19 | K198: PEQUEÑA | L198: 4754 | M198: COMERCIO AL POR MAYOR Y AL POR MENOR; REPARACIÓN DE VEHÍCULOS AUTOMOTORES Y MOTOCICLETAS | N198: 14 | O198: 7 | P198: 0 | U198: NIT-807003760 | V198: 54001 | W198: CÚCUTA | X198: 1 | Y198: 4 | Z198: Jurídica | AA198: 54 | AB198: NORTE DE SANTANDER | AC198: Aprobado con subsidio | AD198: 5 | AE198: MICRO | AF198: 6810 | AG198: ACTIVIDADES INMOBILIARIAS | AH198: 1 | AI198: 0 | AJ198: 0
A199: NIT-900583004 | B199: 73001 | C199: IBAGUÉ | D199: 2 | E199: 2 | F199: Jurídica | G199: 73 | H199: TOLIMA | I199: Aprobado con subsidio | J199: 4 | K199: MICRO | L199: 8699 | M199: ACTIVIDADES DE ATENCIÓN DE LA SALUD HUMANA Y DE ASISTENCIA SOCIAL | N199: 2 | O199: 0 | P199: 0 | U199: NIT-900687823 | V199: 54001 | W199: CÚCUTA | X199: 42 | Y199: 2 | Z199: Jurídica | AA199: 54 | AB199: NORTE DE SANTANDER | AC199: Aprobado con subsidio | AD199: 46 | AE199: PEQUEÑA | AF199: 510 | AG199: EXPLOTACIÓN DE MINAS Y CANTERAS | AH199: 2 | AI199: 40 | AJ199: 0
A200: NIT-900583717 | B200: 76001 | C200: CALI | D200: 2 | E200: 0 | F200: Jurídica | G200: 76 | H200: VALLE DEL CAUCA | I200: Aprobado con subsidio | J200: 2 | K200: MICRO | L200: 1410 | M200: INDUSTRIAS MANUFACTURERAS | N200: 0 | O200: 2 | P200: 0 | U200: NIT-900760294 | V200: 54261 | W200: EL ZULIA | X200: 29 | Y200: 2 | Z200: Jurídica | AA200: 54 | AB200: NORTE DE SANTANDER | AC200: Aprobado con subsidio | AD200: 29 | AE200: PEQUEÑA | AF200: 2392 | AG200: INDUSTRIAS MANUFACTURERAS | AH200: 3 | AI200: 26 | AJ200: 0
... 2050 more rows

Sheet $Base (hidden)
A1: Ciclo de postulación - Nomina | B1: ID-secuencia | C1: Tipo de Persona | D1: Código Departamento - Divipola | E1: Departamento del empleador | F1: Código Ciudad Divipola | G1: Ciudad del empleador | H1: Código CIIU por rama | I1: Sector según ramas de actividad CIIU 4 A.C | J1: Sector según división CIIU 4 A.C. | K1: Estado empleador | L1: Causal de rechazo a nivel aportante | M1: Número de empleados con concepto de conformidad 40 % | N1: Número de empleados con concepto de conformidad 50 % | O1: Número de empleados beneficiados con concepto de no conformidad | P1: Recursos Asociados | Q1: Cantidad de empleados | R1: Tamaño empleador | V1: Ciclo de postulación - Nomina | W1: ID-secuencia | X1: Tipo de Persona | Y1: Código Departamento - Divipola | Z1: Departamento del empleador | AA1: Código Ciudad Divipola | AB1: Ciudad del empleador | AC1: Código CIIU por rama | AD1: Sector según ramas de actividad CIIU 4 A.C | AE1: Sector según división CIIU 4 A.C. | AF1: Estado empleador | AG1: Causal de rechazo a nivel aportante | AH1: Número de empleados con concepto de conformidad 40 % | AI1: Número de empleados con concepto de conformidad 50 % | AJ1: Número de empleados beneficiados con concepto de no conformidad | AK1: Recursos Asociados | AL1: Cantidad de empleados | AM1: Tamaño empleador | AQ1: Orden | AR1: Sector económico | AT1: RecursosDpto | AU1: RecursosMpio | AY1: RecursosDpto | AZ1: RecursosMpio
C2: Jurídica | D2: 11 | E2: BOGOTÁ, D.C. | F2: 11001 | G2: BOGOTÁ, D.C. | H2: 4774 | I2: COMERCIO AL POR MAYOR Y AL POR MENOR; REPARACIÓN DE VEHÍCULOS AUTOMOTORES Y MOTOCICLETAS | V2: =+_xlfn._xlws.FILTER($A$2:$R$400000,$E$2:$E$400000=Visor!M7,"") -> 0 | W2: 0 | X2: Jurídica | Y2: 54 | Z2: NORTE DE SANTANDER | AA2: 54001 | AB2: CÚCUTA | AC2: 4631 | AD2: COMERCIO AL POR MAYOR Y AL POR MENOR; REPARACIÓN DE VEHÍCULOS AUTOMOTORES Y MOTOCICLETAS | AE2: 0 | AF2: 0 | AG2: 0 | AH2: 0 | AI2: 0 | AJ2: 0 | AK2: 0 | AL2: 0 | AM2: 0 | AQ2: =+_xlfn.RANK.EQ(AT2,$AT$2:$AT$23,1) -> 7 | AR2: =+_xlfn.UNIQUE(Montos!$U$2:$U$396864) -> ACTIVIDADES ARTÍSTICAS, DE ENTRETENIMIENTO Y RECREACIÓN | AS2: =+VLOOKUP(AR2,$BB$2:$BC$23,2,FALSE) -> Act artísticas y de entretenimiento | AT2: =+SUMIF(Montos!$U$2:$U$396864,'$Base'!AR2,Montos!$Y$2:$Y$396864)/1000000 -> 91.3 | AU2: =+SUMIFS(Montos!$Y$2:$Y$396864,Montos!$U$2:$U$396864,'$Base'!AR2,Montos!$R$2:$R$396864,Visor!$M$8)/1000000 -> 0 | AW2: 1 | AX2: =+IF(AY2<>0,IFERROR(VLOOKUP(AW2,$AQ$2:$AU$23,3,0),""),"") -> Admin. pública y defensa; planes seg. social | AY2: =+IFERROR(VLOOKUP(AW2,$AQ$2:$AU$23,4,0),"") -> 1.54 | AZ2: =+IFERROR(VLOOKUP(AW2,$AQ$2:$AU$23,5,0),"") -> 0 | BB2: ACTIVIDADES ARTÍSTICAS, DE ENTRETENIMIENTO Y RECREACIÓN | BC2: Act artísticas y de entretenimiento
C3: Jurídica | D3: 76 | E3: VALLE DEL CAUCA | F3: 76109 | G3: BUENAVENTURA | H3: 5611 | I3: ALOJAMIENTO Y SERVICIOS DE COMIDA | V3: 0 | W3: 0 | X3: Natural | Y3: 54 | Z3: NORTE DE SANTANDER | AA3: 54498 | AB3: OCAÑA | AC3: 4731 | AD3: COMERCIO AL POR MAYOR Y AL POR MENOR; REPARACIÓN DE VEHÍCULOS AUTOMOTORES Y MOTOCICLETAS | AE3: 0 | AF3: 0 | AG3: 0 | AH3: 0 | AI3: 0 | AJ3: 0 | AK3: 0 | AL3: 0 | AM3: 0 | AQ3: =+_xlfn.RANK.EQ(AT3,$AT$2:$AT$23,1) -> 14 | AR3: ACTIVIDADES DE ATENCIÓN DE LA SALUD HUMANA Y DE ASISTENCIA SOCIAL | AS3: Act. de atención de la salud humana | AT3: =+SUMIF(Montos!$U$2:$U$396864,'$Base'!AR3,Montos!$Y$2:$Y$396864)/1000000 -> 217.14 | AU3: =+SUMIFS(Montos!$Y$2:$Y$396864,Montos!$U$2:$U$396864,'$Base'!AR3,Montos!$R$2:$R$396864,Visor!$M$8)/1000000 -> 0 | AW3: 2 | AX3: =+IF(AY3<>0,IFERROR(VLOOKUP(AW3,$AQ$2:$AU$23,3,0),""),"") -> Actividades de los hogares individuales | AY3: 2.64 | AZ3: 0 | BB3: ACTIVIDADES DE ORGANIZACIONES Y ENTIDADES EXTRATERRITORIALES | BC3: Act de organizaciones y entidades extraterritoriales
C4: Jurídica | D4: 44 | E4: LA GUAJIRA | F4: 44430 | G4: MAICAO | H4: 8692 | I4: ACTIVIDADES DE ATENCIÓN DE LA SALUD HUMANA Y DE ASISTENCIA SOCIAL | V4: 0 | W4: 0 | X4: Jurídica | Y4: 54 | Z4: NORTE DE SANTANDER | AA4: 54001 | AB4: CÚCUTA | AC4: 8530 | AD4: EDUCACIÓN | AE4: 0 | AF4: 0 | AG4: 0 | AH4: 0 | AI4: 0 | AJ4: 0 | AK4: 0 | AL4: 0 | AM4: 0 | AQ4: 2 | AR4: ACTIVIDADES DE LOS HOGARES INDIVIDUALES EN CALIDAD DE EMPLEADORES; ACTIVIDADES NO DIFERENCIADAS DE LOS HOGARES INDIVIDUALES COMO PRODUCTORES DE BIENES Y SERVICIOS PARA USO PROPIO | AS4: Actividades de los hogares individuales | AT4: =+SUMIF(Montos!$U$2:$U$396864,'$Base'!AR4,Montos!$Y$2:$Y$396864)/1000000 -> 2.64 | AU4: =+SUMIFS(Montos!$Y$2:$Y$396864,Montos!$U$2:$U$396864,'$Base'!AR4,Montos!$R$2:$R$396864,Visor!$M$8)/1000000 -> 0 | AW4: 3 | AX4: Suministro de electricidad, gas y vapor | AY4: 11.66 | AZ4: 0 | BB4: ACTIVIDADES DE ATENCIÓN DE LA SALUD HUMANA Y DE ASISTENCIA SOCIAL | BC4: Act. de atención de la salud humana
C5: Jurídica | D5: 11 | E5: BOGOTÁ, D.C. | F5: 11001 | G5: BOGOTÁ, D.C. | H5: 8110 | I5: ACTIVIDADES DE SERVICIOS ADMINISTRATIVOS Y DE APOYO | V5: 0 | W5: 0 | X5: Jurídica | Y5: 54 | Z5: NORTE DE SANTANDER | AA5: 54874 | AB5: VILLA DEL ROSARIO | AC5: 4661 | AD5: COMERCIO AL POR MAYOR Y AL POR MENOR; REPARACIÓN DE VEHÍCULOS AUTOMOTORES Y MOTOCICLETAS | AE5: 0 | AF5: 0 | AG5: 0 | AH5: 0 | AI5: 0 | AJ5: 0 | AK5: 0 | AL5: 0 | AM5: 0 | AQ5: 19 | AR5: ACTIVIDADES DE SERVICIOS ADMINISTRATIVOS Y DE APOYO | AS5: Actividades de servicios administrativos | AT5: =+SUMIF(Montos!$U$2:$U$396864,'$Base'!AR5,Montos!$Y$2:$Y$396864)/1000000 -> 658.02 | AU5: =+SUMIFS(Montos!$Y$2:$Y$396864,Montos!$U$2:$U$396864,'$Base'!AR5,Montos!$R$2:$R$396864,Visor!$M$8)/1000000 -> 0 | AW5: 4 | AX5: Actividades financieras y de seguros | AY5: 21.56 | AZ5: 0 | BB5: ACTIVIDADES PROFESIONALES, CIENTÍFICAS Y TÉCNICAS | BC5: Act. profecionales cientificas y tecnicas
C6: Jurídica | D6: 11 | E6: BOGOTÁ, D.C. | F6: 11001 | G6: BOGOTÁ, D.C. | H6: 5911 | I6: INFORMACIÓN Y COMUNICACIONES | V6: 0 | W6: 0 | X6: Jurídica | Y6: 54 | Z6: NORTE DE SANTANDER | AA6: 54001 | AB6: CÚCUTA | AC6: 4664 | AD6: COMERCIO AL POR MAYOR Y AL POR MENOR; REPARACIÓN DE VEHÍCULOS AUTOMOTORES Y MOTOCICLETAS | AE6: 0 | AF6: 0 | AG6: 0 | AH6: 0 | AI6: 0 | AJ6: 0 | AK6: 0 | AL6: 0 | AM6: 0 | AQ6: 4 | AR6: ACTIVIDADES FINANCIERAS Y DE SEGUROS | AS6: Actividades financieras y de seguros | AT6: =+SUMIF(Montos!$U$2:$U$396864,'$Base'!AR6,Montos!$Y$2:$Y$396864)/1000000 -> 21.56 | AU6: =+SUMIFS(Montos!$Y$2:$Y$396864,Montos!$U$2:$U$396864,'$Base'!AR6,Montos!$R$2:$R$396864,Visor!$M$8)/1000000 -> 0 | AW6: 5 | AX6: Actividades inmobiliarias | AY6: 45.1 | AZ6: 0 | BB6: ACTIVIDADES DE LOS HOGARES INDIVIDUALES EN CALIDAD DE EMPLEADORES; ACTIVIDADES NO DIFERENCIADAS DE LOS HOGARES INDIVIDUALES COMO PRODUCTORES DE BIENES Y SERVICIOS PARA USO PROPIO | BC6: Actividades de los hogares individuales
C7: Jurídica | D7: 68 | E7: SANTANDER | F7: 68679 | G7: SAN GIL | H7: 9499 | I7: OTRAS ACTIVIDADES DE SERVICIOS | V7: 0 | W7: 0 | X7: Natural | Y7: 54 | Z7: NORTE DE SANTANDER | AA7: 54001 | AB7: CÚCUTA | AC7: 4724 | AD7: COMERCIO AL POR MAYOR Y AL POR MENOR; REPARACIÓN DE VEHÍCULOS AUTOMOTORES Y MOTOCICLETAS | AE7: 0 | AF7: 0 | AG7: 0 | AH7: 0 | AI7: 0 | AJ7: 0 | AK7: 0 | AL7: 0 | AM7: 0 | AQ7: 5 | AR7: ACTIVIDADES INMOBILIARIAS | AS7: Actividades inmobiliarias | AT7: =+SUMIF(Montos!$U$2:$U$396864,'$Base'!AR7,Montos!$Y$2:$Y$396864)/1000000 -> 45.1 | AU7: =+SUMIFS(Montos!$Y$2:$Y$396864,Montos!$U$2:$U$396864,'$Base'!AR7,Montos!$R$2:$R$396864,Visor!$M$8)/1000000 -> 0 | AW7: 6 | AX7: Distribución de agua; gestión de desechos | AY7: 52.36 | AZ7: 0 | BB7: ACTIVIDADES DE SERVICIOS ADMINISTRATIVOS Y DE APOYO | BC7: Actividades de servicios administrativos
C8: Jurídica | D8: 23 | E8: CÓRDOBA | F8: 23001 | G8: MONTERÍA | H8: 8610 | I8: ACTIVIDADES DE ATENCIÓN DE LA SALUD HUMANA Y DE ASISTENCIA SOCIAL | V8: 0 | W8: 0 | X8: Natural | Y8: 54 | Z8: NORTE DE SANTANDER | AA8: 54001 | AB8: CÚCUTA | AC8: 4752 | AD8: COMERCIO AL POR MAYOR Y AL POR MENOR; REPARACIÓN DE VEHÍCULOS AUTOMOTORES Y MOTOCICLETAS | AE8: 0 | AF8: 0 | AG8: 0 | AH8: 0 | AI8: 0 | AJ8: 0 | AK8: 0 | AL8: 0 | AM8: 0 | AQ8: 8 | AR8: ACTIVIDADES PROFESIONALES, CIENTÍFICAS Y TÉCNICAS | AS8: Act. profecionales cientificas y tecnicas | AT8: =+SUMIF(Montos!$U$2:$U$396864,'$Base'!AR8,Montos!$Y$2:$Y$396864)/1000000 -> 107.36 | AU8: =+SUMIFS(Montos!$Y$2:$Y$396864,Montos!$U$2:$U$396864,'$Base'!AR8,Montos!$R$2:$R$396864,Visor!$M$8)/1000000 -> 0 | AW8: 7 | AX8: Act artísticas y de entretenimiento | AY8: 91.3 | AZ8: 0 | BB8: ACTIVIDADES FINANCIERAS Y DE SEGUROS | BC8: Actividades financieras y de seguros
C9: Jurídica | D9: 73 | E9: TOLIMA | F9: 73268 | G9: ESPINAL | H9: 1104 | I9: INDUSTRIAS MANUFACTURERAS | V9: 0 | W9: 0 | X9: Jurídica | Y9: 54 | Z9: NORTE DE SANTANDER | AA9: 54001 | AB9: CÚCUTA | AC9: 9499 | AD9: OTRAS ACTIVIDADES DE SERVICIOS | AE9: 0 | AF9: 0 | AG9: 0 | AH9: 0 | AI9: 0 | AJ9: 0 | AK9: 0 | AL9: 0 | AM9: 0 | AQ9: 1 | AR9: ADMINISTRACIÓN PÚBLICA Y DEFENSA; PLANES DE SEGURIDAD SOCIAL DE AFILIACIÓN OBLIGATORIA | AS9: Admin. pública y defensa; planes seg. social | AT9: =+SUMIF(Montos!$U$2:$U$396864,'$Base'!AR9,Montos!$Y$2:$Y$396864)/1000000 -> 1.54 | AU9: =+SUMIFS(Montos!$Y$2:$Y$396864,Montos!$U$2:$U$396864,'$Base'!AR9,Montos!$R$2:$R$396864,Visor!$M$8)/1000000 -> 0 | AW9: 8 | AX9: Act. profecionales cientificas y tecnicas | AY9: 107.36 | AZ9: 0 | BB9: ACTIVIDADES INMOBILIARIAS | BC9: Actividades inmobiliarias
C10: Jurídica | D10: 5 | E10: ANTIOQUIA | F10: 5615 | G10: RIONEGRO | H10: 4732 | I10: COMERCIO AL POR MAYOR Y AL POR MENOR; REPARACIÓN DE VEHÍCULOS AUTOMOTORES Y MOTOCICLETAS | V10: 0 | W10: 0 | X10: Jurídica | Y10: 54 | Z10: NORTE DE SANTANDER | AA10: 54518 | AB10: PAMPLONA | AC10: 9491 | AD10: OTRAS ACTIVIDADES DE SERVICIOS | AE10: 0 | AF10: 0 | AG10: 0 | AH10: 0 | AI10: 0 | AJ10: 0 | AK10: 0 | AL10: 0 | AM10: 0 | AQ10: 10 | AR10: AGRICULTURA, GANADERÍA, CAZA, SILVICULTURA Y PESCA | AS10: Agricultura, ganadería, caza | AT10: =+SUMIF(Montos!$U$2:$U$396864,'$Base'!AR10,Montos!$Y$2:$Y$396864)/1000000 -> 109.56 | AU10: =+SUMIFS(Montos!$Y$2:$Y$396864,Montos!$U$2:$U$396864,'$Base'!AR10,Montos!$R$2:$R$396864,Visor!$M$8)/1000000 -> 0 | AW10: 9 | AX10: Información y comunicaciones | AY10: 108.9 | AZ10: 0 | BB10: ADMINISTRACIÓN PÚBLICA Y DEFENSA; PLANES DE SEGURIDAD SOCIAL DE AFILIACIÓN OBLIGATORIA | BC10: Admin. pública y defensa; planes seg. social
C11: Jurídica | D11: 11 | E11: BOGOTÁ, D.C. | F11: 11001 | G11: BOGOTÁ, D.C. | H11: 6820 | I11: ACTIVIDADES INMOBILIARIAS | V11: 0 | W11: 0 | X11: Natural | Y11: 54 | Z11: NORTE DE SANTANDER | AA11: 54518 | AB11: PAMPLONA | AC11: 1081 | AD11: INDUSTRIAS MANUFACTURERAS | AE11: 0 | AF11: 0 | AG11: 0 | AH11: 0 | AI11: 0 | AJ11: 0 | AK11: 0 | AL11: 0 | AM11: 0 | AQ11: 16 | AR11: ALOJAMIENTO Y SERVICIOS DE COMIDA | AS11: Alojamiento y servicios de comida | AT11: =+SUMIF(Montos!$U$2:$U$396864,'$Base'!AR11,Montos!$Y$2:$Y$396864)/1000000 -> 346.06 | AU11: =+SUMIFS(Montos!$Y$2:$Y$396864,Montos!$U$2:$U$396864,'$Base'!AR11,Montos!$R$2:$R$396864,Visor!$M$8)/1000000 -> 0 | AW11: 10 | AX11: Agricultura, ganadería, caza | AY11: 109.56 | AZ11: 0 | BB11: AGRICULTURA, GANADERÍA, CAZA, SILVICULTURA Y PESCA | BC11: Agricultura, ganadería, caza
C12: Jurídica | D12: 76 | E12: VALLE DEL CAUCA | F12: 76001 | G12: CALI | H12: 9311 | I12: ACTIVIDADES ARTÍSTICAS, DE ENTRETENIMIENTO Y RECREACIÓN | V12: 0 | W12: 0 | X12: Jurídica | Y12: 54 | Z12: NORTE DE SANTANDER | AA12: 54518 | AB12: PAMPLONA | AC12: 9491 | AD12: OTRAS ACTIVIDADES DE SERVICIOS | AE12: 0 | AF12: 0 | AG12: 0 | AH12: 0 | AI12: 0 | AJ12: 0 | AK12: 0 | AL12: 0 | AM12: 0 | AQ12: 22 | AR12: COMERCIO AL POR MAYOR Y AL POR MENOR; REPARACIÓN DE VEHÍCULOS AUTOMOTORES Y MOTOCICLETAS | AS12: Comercio y reparacion de vehiculos | AT12: =+SUMIF(Montos!$U$2:$U$396864,'$Base'!AR12,Montos!$Y$2:$Y$396864)/1000000 -> 1036.42 | AU12: =+SUMIFS(Montos!$Y$2:$Y$396864,Montos!$U$2:$U$396864,'$Base'!AR12,Montos!$R$2:$R$396864,Visor!$M$8)/1000000 -> 1.76 | AW12: 11 | AX12: Otras actividades de servicios | AY12: 136.84 | AZ12: 7.26 | BB12: ALOJAMIENTO Y SERVICIOS DE COMIDA | BC12: Alojamiento y servicios de comida
C13: Jurídica | D13: 23 | E13: CÓRDOBA | F13: 23660 | G13: SAHAGÚN | H13: 4923 | I13: TRANSPORTE Y ALMACENAMIENTO | V13: 0 | W13: 0 | X13: Jurídica | Y13: 54 | Z13: NORTE DE SANTANDER | AA13: 54001 | AB13: CÚCUTA | AC13: 5511 | AD13: ALOJAMIENTO Y SERVICIOS DE COMIDA | AE13: 0 | AF13: 0 | AG13: 0 | AH13: 0 | AI13: 0 | AJ13: 0 | AK13: 0 | AL13: 0 | AM13: 0 | AQ13: 18 | AR13: CONSTRUCCIÓN | AS13: Construcción | AT13: =+SUMIF(Montos!$U$2:$U$396864,'$Base'!AR13,Montos!$Y$2:$Y$396864)/1000000 -> 485.76 | AU13: =+SUMIFS(Montos!$Y$2:$Y$396864,Montos!$U$2:$U$396864,'$Base'!AR13,Montos!$R$2:$R$396864,Visor!$M$8)/1000000 -> 0 | AW13: 12 | AY13: 143 | AZ13: 0 | BB13: COMERCIO AL POR MAYOR Y AL POR MENOR; REPARACIÓN DE VEHÍCULOS AUTOMOTORES Y MOTOCICLETAS | BC13: Comercio y reparacion de vehiculos
C14: Jurídica | D14: 11 | E14: BOGOTÁ, D.C. | F14: 11001 | G14: BOGOTÁ, D.C. | H14: 8230 | I14: ACTIVIDADES DE SERVICIOS ADMINISTRATIVOS Y DE APOYO | V14: 0 | W14: 0 | X14: Jurídica | Y14: 54 | Z14: NORTE DE SANTANDER | AA14: 54001 | AB14: CÚCUTA | AC14: 2392 | AD14: INDUSTRIAS MANUFACTURERAS | AE14: 0 | AF14: 0 | AG14: 0 | AH14: 0 | AI14: 0 | AJ14: 0 | AK14: 0 | AL14: 0 | AM14: 0 | AQ14: 6 | AR14: DISTRIBUCIÓN DE AGUA; EVACUACIÓN Y TRATAMIENTO DE AGUAS RESIDUALES, GESTIÓN DE DESECHOS Y ACTIVIDADES DE SANEAMIENTO AMBIENTAL | AS14: Distribución de agua; gestión de desechos | AT14: =+SUMIF(Montos!$U$2:$U$396864,'$Base'!AR14,Montos!$Y$2:$Y$396864)/1000000 -> 52.36 | AU14: =+SUMIFS(Montos!$Y$2:$Y$396864,Montos!$U$2:$U$396864,'$Base'!AR14,Montos!$R$2:$R$396864,Visor!$M$8)/1000000 -> 0 | AW14: 13 | AX14: Educación | AY14: 178.42 | AZ14: 0 | BB14: CONSTRUCCIÓN | BC14: Construcción
C15: Jurídica | D15: 81 | E15: ARAUCA | F15: 81001 | G15: ARAUCA | H15: 4210 | I15: CONSTRUCCIÓN | V15: 0 | W15: 0 | X15: Jurídica | Y15: 54 | Z15: NORTE DE SANTANDER | AA15: 54001 | AB15: CÚCUTA | AC15: 5511 | AD15: ALOJAMIENTO Y SERVICIOS DE COMIDA | AE15: 0 | AF15: 0 | AG15: 0 | AH15: 0 | AI15: 0 | AJ15: 0 | AK15: 0 | AL15: 0 | AM15: 0 | AQ15: 13 | AR15: EDUCACIÓN | AS15: Educación | AT15: =+SUMIF(Montos!$U$2:$U$396864,'$Base'!AR15,Montos!$Y$2:$Y$396864)/1000000 -> 178.42 | AU15: =+SUMIFS(Montos!$Y$2:$Y$396864,Montos!$U$2:$U$396864,'$Base'!AR15,Montos!$R$2:$R$396864,Visor!$M$8)/1000000 -> 0 | AW15: 14 | AX15: Act. de atención de la salud humana | AY15: 217.14 | AZ15: 0 | BB15: DISTRIBUCIÓN DE AGUA; EVACUACIÓN Y TRATAMIENTO DE AGUAS RESIDUALES, GESTIÓN DE DESECHOS Y ACTIVIDADES DE SANEAMIENTO AMBIENTAL | BC15: Distribución de agua; gestión de desechos
C16: Jurídica | D16: 73 | E16: TOLIMA | F16: 73001 | G16: IBAGUÉ | H16: 2511 | I16: INDUSTRIAS MANUFACTURERAS | V16: 0 | W16: 0 | X16: Jurídica | Y16: 54 | Z16: NORTE DE SANTANDER | AA16: 54001 | AB16: CÚCUTA | AC16: 8512 | AD16: EDUCACIÓN | AE16: 0 | AF16: 0 | AG16: 0 | AH16: 0 | AI16: 0 | AJ16: 0 | AK16: 0 | AL16: 0 | AM16: 0 | AQ16: 15 | AR16: EXPLOTACIÓN DE MINAS Y CANTERAS | AS16: Explotación de minas y canteras | AT16: =+SUMIF(Montos!$U$2:$U$396864,'$Base'!AR16,Montos!$Y$2:$Y$396864)/1000000 -> 290.84 | AU16: =+SUMIFS(Montos!$Y$2:$Y$396864,Montos!$U$2:$U$396864,'$Base'!AR16,Montos!$R$2:$R$396864,Visor!$M$8)/1000000 -> 1.1 | AW16: 15 | AX16: Explotación de minas y canteras | AY16: 290.84 | AZ16: 1.1 | BB16: EDUCACIÓN | BC16: Educación
C17: Jurídica | D17: 68 | E17: SANTANDER | F17: 68679 | G17: SAN GIL | H17: 9499 | I17: OTRAS ACTIVIDADES DE SERVICIOS | V17: 0 | W17: 0 | X17: Natural | Y17: 54 | Z17: NORTE DE SANTANDER | AA17: 54001 | AB17: CÚCUTA | AC17: 4792 | AD17: COMERCIO AL POR MAYOR Y AL POR MENOR; REPARACIÓN DE VEHÍCULOS AUTOMOTORES Y MOTOCICLETAS | AE17: 0 | AF17: 0 | AG17: 0 | AH17: 0 | AI17: 0 | AJ17: 0 | AK17: 0 | AL17: 0 | AM17: 0 | AQ17: 20 | AR17: INDUSTRIAS MANUFACTURERAS | AS17: Industrias manufactureras | AT17: =+SUMIF(Montos!$U$2:$U$396864,'$Base'!AR17,Montos!$Y$2:$Y$396864)/1000000 -> 822.14 | AU17: =+SUMIFS(Montos!$Y$2:$Y$396864,Montos!$U$2:$U$396864,'$Base'!AR17,Montos!$R$2:$R$396864,Visor!$M$8)/1000000 -> 1.54 | AW17: 16 | AX17: Alojamiento y servicios de comida | AY17: 346.06 | AZ17: 0 | BB17: EXPLOTACIÓN DE MINAS Y CANTERAS | BC17: Explotación de minas y canteras
C18: Jurídica | D18: 11 | E18: BOGOTÁ, D.C. | F18: 11001 | G18: BOGOTÁ, D.C. | H18: 7020 | I18: ACTIVIDADES PROFESIONALES, CIENTÍFICAS Y TÉCNICAS | V18: 0 | W18: 0 | X18: Jurídica | Y18: 54 | Z18: NORTE DE SANTANDER | AA18: 54001 | AB18: CÚCUTA | AC18: 4530 | AD18: COMERCIO AL POR MAYOR Y AL POR MENOR; REPARACIÓN DE VEHÍCULOS AUTOMOTORES Y MOTOCICLETAS | AE18: 0 | AF18: 0 | AG18: 0 | AH18: 0 | AI18: 0 | AJ18: 0 | AK18: 0 | AL18: 0 | AM18: 0 | AQ18: 9 | AR18: INFORMACIÓN Y COMUNICACIONES | AS18: Información y comunicaciones | AT18: =+SUMIF(Montos!$U$2:$U$396864,'$Base'!AR18,Montos!$Y$2:$Y$396864)/1000000 -> 108.9 | AU18: =+SUMIFS(Montos!$Y$2:$Y$396864,Montos!$U$2:$U$396864,'$Base'!AR18,Montos!$R$2:$R$396864,Visor!$M$8)/1000000 -> 0 | AW18: 17 | AY18: 413.16 | AZ18: 2.42 | BB18: INDUSTRIAS MANUFACTURERAS | BC18: Industrias manufactureras
C19: Jurídica | D19: 76 | E19: VALLE DEL CAUCA | F19: 76001 | G19: CALI | H19: 4923 | I19: TRANSPORTE Y ALMACENAMIENTO | V19: 0 | W19: 0 | X19: Jurídica | Y19: 54 | Z19: NORTE DE SANTANDER | AA19: 54001 | AB19: CÚCUTA | AC19: 5511 | AD19: ALOJAMIENTO Y SERVICIOS DE COMIDA | AE19: 0 | AF19: 0 | AG19: 0 | AH19: 0 | AI19: 0 | AJ19: 0 | AK19: 0 | AL19: 0 | AM19: 0 | AQ19: 11 | AR19: OTRAS ACTIVIDADES DE SERVICIOS | AS19: Otras actividades de servicios | AT19: =+SUMIF(Montos!$U$2:$U$396864,'$Base'!AR19,Montos!$Y$2:$Y$396864)/1000000 -> 136.84 | AU19: =+SUMIFS(Montos!$Y$2:$Y$396864,Montos!$U$2:$U$396864,'$Base'!AR19,Montos!$R$2:$R$396864,Visor!$M$8)/1000000 -> 7.26 | AW19: 18 | AX19: Construcción | AY19: 485.76 | AZ19: 0 | BB19: INFORMACIÓN Y COMUNICACIONES | BC19: Información y comunicaciones
C20: Natural | D20: 11 | E20: BOGOTÁ, D.C. | F20: 11001 | G20: BOGOTÁ, D.C. | H20: 4530 | I20: COMERCIO AL POR MAYOR Y AL POR MENOR; REPARACIÓN DE VEHÍCULOS AUTOMOTORES Y MOTOCICLETAS | V20: 0 | W20: 0 | X20: Jurídica | Y20: 54 | Z20: NORTE DE SANTANDER | AA20: 54001 | AB20: CÚCUTA | AC20: 6201 | AD20: INFORMACIÓN Y COMUNICACIONES | AE20: 0 | AF20: 0 | AG20: 0 | AH20: 0 | AI20: 0 | AJ20: 0 | AK20: 0 | AL20: 0 | AM20: 0 | AQ20: 3 | AR20: SUMINISTRO DE ELECTRICIDAD, GAS, VAPOR Y AIRE ACONDICIONADO | AS20: Suministro de electricidad, gas y vapor | AT20: =+SUMIF(Montos!$U$2:$U$396864,'$Base'!AR20,Montos!$Y$2:$Y$396864)/1000000 -> 11.66 | AU20: =+SUMIFS(Montos!$Y$2:$Y$396864,Montos!$U$2:$U$396864,'$Base'!AR20,Montos!$R$2:$R$396864,Visor!$M$8)/1000000 -> 0 | AW20: 19 | AX20: Actividades de servicios administrativos | AY20: 658.02 | AZ20: 0 | BB20: OTRAS | BC20: Otras
C21: Natural | D21: 68 | E21: SANTANDER | F21: 68081 | G21: BARRANCABERMEJA | H21: 8521 | I21: EDUCACIÓN | V21: 0 | W21: 0 | X21: Natural | Y21: 54 | Z21: NORTE DE SANTANDER | AA21: 54405 | AB21: LOS PATIOS | AC21: 8530 | AD21: EDUCACIÓN | AE21: 0 | AF21: 0 | AG21: 0 | AH21: 0 | AI21: 0 | AJ21: 0 | AK21: 0 | AL21: 0 | AM21: 0 | AQ21: 21 | AR21: TRANSPORTE Y ALMACENAMIENTO | AS21: Transporte y almacenamiento | AT21: =+SUMIF(Montos!$U$2:$U$396864,'$Base'!AR21,Montos!$Y$2:$Y$396864)/1000000 -> 869.66 | AU21: =+SUMIFS(Montos!$Y$2:$Y$396864,Montos!$U$2:$U$396864,'$Base'!AR21,Montos!$R$2:$R$396864,Visor!$M$8)/1000000 -> 0 | AW21: 20 | AX21: Industrias manufactureras | AY21: 822.14 | AZ21: 1.54 | BB21: OTRAS ACTIVIDADES DE SERVICIOS | BC21: Otras actividades de servicios
C22: Jurídica | D22: 63 | E22: QUINDIO | F22: 63001 | G22: ARMENIA | H22: 4322 | I22: CONSTRUCCIÓN | V22: 0 | W22: 0 | X22: Natural | Y22: 54 | Z22: NORTE DE SANTANDER | AA22: 54498 | AB22: OCAÑA | AC22: 4731 | AD22: COMERCIO AL POR MAYOR Y AL POR MENOR; REPARACIÓN DE VEHÍCULOS AUTOMOTORES Y MOTOCICLETAS | AE22: 0 | AF22: 0 | AG22: 0 | AH22: 0 | AI22: 0 | AJ22: 0 | AK22: 0 | AL22: 0 | AM22: 0 | AQ22: 12 | AR22: ACTIVIDADES PROFESIONALES, CIENTÍFICAS Y TÉCNICAS | AT22: =+SUMIF(Montos!$U$2:$U$396864,'$Base'!AR22,Montos!$Y$2:$Y$396864)/1000000 -> 143 | AU22: =+SUMIFS(Montos!$Y$2:$Y$396864,Montos!$U$2:$U$396864,'$Base'!AR22,Montos!$R$2:$R$396864,Visor!$M$8)/1000000 -> 0 | AW22: 21 | AX22: Transporte y almacenamiento | AY22: 869.66 | AZ22: 0 | BB22: SUMINISTRO DE ELECTRICIDAD, GAS, VAPOR Y AIRE ACONDICIONADO | BC22: Suministro de electricidad, gas y vapor
C23: Jurídica | D23: 15 | E23: BOYACÁ | F23: 15001 | G23: TUNJA | H23: 4290 | I23: CONSTRUCCIÓN | V23: 0 | W23: 0 | X23: Jurídica | Y23: 54 | Z23: NORTE DE SANTANDER | AA23: 54001 | AB23: CÚCUTA | AC23: 9200 | AD23: ACTIVIDADES ARTÍSTICAS, DE ENTRETENIMIENTO Y RECREACIÓN | AE23: 0 | AF23: 0 | AG23: 0 | AH23: 0 | AI23: 0 | AJ23: 0 | AK23: 0 | AL23: 0 | AM23: 0 | AQ23: 17 | AR23: COMERCIO AL POR MAYOR Y AL POR MENOR; REPARACIÓN DE VEHÍCULOS AUTOMOTORES Y MOTOCICLETAS. | AT23: =+SUMIF(Montos!$U$2:$U$396864,'$Base'!AR23,Montos!$Y$2:$Y$396864)/1000000 -> 413.16 | AU23: =+SUMIFS(Montos!$Y$2:$Y$396864,Montos!$U$2:$U$396864,'$Base'!AR23,Montos!$R$2:$R$396864,Visor!$M$8)/1000000 -> 2.42 | AW23: 22 | AX23: Comercio y reparacion de vehiculos | AY23: 1036.42 | AZ23: =+IFERROR(VLOOKUP(AW23,$AQ$2:$AU$23,5,0),"") -> 1.76 | BB23: TRANSPORTE Y ALMACENAMIENTO | BC23: Transporte y almacenamiento
C24: Jurídica | D24: 11 | E24: BOGOTÁ, D.C. | F24: 11001 | G24: BOGOTÁ, D.C. | H24: 2592 | I24: INDUSTRIAS MANUFACTURERAS | V24: 0 | W24: 0 | X24: Jurídica | Y24: 54 | Z24: NORTE DE SANTANDER | AA24: 54001 | AB24: CÚCUTA | AC24: 8621 | AD24: ACTIVIDADES DE ATENCIÓN DE LA SALUD HUMANA Y DE ASISTENCIA SOCIAL | AE24: 0 | AF24: 0 | AG24: 0 | AH24: 0 | AI24: 0 | AJ24: 0 | AK24: 0 | AL24: 0 | AM24: 0 | AR24: 0
C25: Natural | D25: 11 | E25: BOGOTÁ, D.C. | F25: 11001 | G25: BOGOTÁ, D.C. | H25: 1081 | I25: INDUSTRIAS MANUFACTURERAS | V25: 0 | W25: 0 | X25: Jurídica | Y25: 54 | Z25: NORTE DE SANTANDER | AA25: 54001 | AB25: CÚCUTA | AC25: 8691 | AD25: ACTIVIDADES DE ATENCIÓN DE LA SALUD HUMANA Y DE ASISTENCIA SOCIAL | AE25: 0 | AF25: 0 | AG25: 0 | AH25: 0 | AI25: 0 | AJ25: 0 | AK25: 0 | AL25: 0 | AM25: 0
C26: Jurídica | D26: 11 | E26: BOGOTÁ, D.C. | F26: 11001 | G26: BOGOTÁ, D.C. | H26: 1410 | I26: INDUSTRIAS MANUFACTURERAS | V26: 0 | W26: 0 | X26: Jurídica | Y26: 54 | Z26: NORTE DE SANTANDER | AA26: 54518 | AB26: PAMPLONA | AC26: 4111 | AD26: CONSTRUCCIÓN | AE26: 0 | AF26: 0 | AG26: 0 | AH26: 0 | AI26: 0 | AJ26: 0 | AK26: 0 | AL26: 0 | AM26: 0
C27: Jurídica | D27: 11 | E27: BOGOTÁ, D.C. | F27: 11001 | G27: BOGOTÁ, D.C. | H27: 4330 | I27: CONSTRUCCIÓN | V27: 0 | W27: 0 | X27: Jurídica | Y27: 54 | Z27: NORTE DE SANTANDER | AA27: 54001 | AB27: CÚCUTA | AC27: 7730 | AD27: ACTIVIDADES DE SERVICIOS ADMINISTRATIVOS Y DE APOYO | AE27: 0 | AF27: 0 | AG27: 0 | AH27: 0 | AI27: 0 | AJ27: 0 | AK27: 0 | AL27: 0 | AM27: 0
C28: Jurídica | D28: 25 | E28: CUNDINAMARCA | F28: 25899 | G28: ZIPAQUIRÁ | H28: 4390 | I28: CONSTRUCCIÓN | V28: 0 | W28: 0 | X28: Jurídica | Y28: 54 | Z28: NORTE DE SANTANDER | AA28: 54001 | AB28: CÚCUTA | AC28: 8691 | AD28: ACTIVIDADES DE ATENCIÓN DE LA SALUD HUMANA Y DE ASISTENCIA SOCIAL | AE28: 0 | AF28: 0 | AG28: 0 | AH28: 0 | AI28: 0 | AJ28: 0 | AK28: 0 | AL28: 0 | AM28: 0
C29: Natural | D29: 73 | E29: TOLIMA | F29: 73268 | G29: ESPINAL | H29: 1081 | I29: INDUSTRIAS MANUFACTURERAS | V29: 0 | W29: 0 | X29: Jurídica | Y29: 54 | Z29: NORTE DE SANTANDER | AA29: 54001 | AB29: CÚCUTA | AC29: 4690 | AD29: COMERCIO AL POR MAYOR Y AL POR MENOR; REPARACIÓN DE VEHÍCULOS AUTOMOTORES Y MOTOCICLETAS | AE29: 0 | AF29: 0 | AG29: 0 | AH29: 0 | AI29: 0 | AJ29: 0 | AK29: 0 | AL29: 0 | AM29: 0
C30: Natural | D30: 25 | E30: CUNDINAMARCA | F30: 25875 | G30: VILLETA | H30: 4719 | I30: COMERCIO AL POR MAYOR Y AL POR MENOR; REPARACIÓN DE VEHÍCULOS AUTOMOTORES Y MOTOCICLETAS | V30: 0 | W30: 0 | X30: Jurídica | Y30: 54 | Z30: NORTE DE SANTANDER | AA30: 54001 | AB30: CÚCUTA | AC30: 6910 | AD30: ACTIVIDADES PROFESIONALES, CIENTÍFICAS Y TÉCNICAS | AE30: 0 | AF30: 0 | AG30: 0 | AH30: 0 | AI30: 0 | AJ30: 0 | AK30: 0 | AL30: 0 | AM30: 0
C31: Natural | D31: 44 | E31: LA GUAJIRA | F31: 44001 | G31: RIOHACHA | H31: 4752 | I31: COMERCIO AL POR MAYOR Y AL POR MENOR; REPARACIÓN DE VEHÍCULOS AUTOMOTORES Y MOTOCICLETAS | V31: 0 | W31: 0 | X31: Jurídica | Y31: 54 | Z31: NORTE DE SANTANDER | AA31: 54001 | AB31: CÚCUTA | AC31: 4520 | AD31: COMERCIO AL POR MAYOR Y AL POR MENOR; REPARACIÓN DE VEHÍCULOS AUTOMOTORES Y MOTOCICLETAS | AE31: 0 | AF31: 0 | AG31: 0 | AH31: 0 | AI31: 0 | AJ31: 0 | AK31: 0 | AL31: 0 | AM31: 0
C32: Jurídica | D32: 76 | E32: VALLE DEL CAUCA | F32: 76001 | G32: CALI | H32: 4390 | I32: CONSTRUCCIÓN | V32: 0 | W32: 0 | X32: Jurídica | Y32: 54 | Z32: NORTE DE SANTANDER | AA32: 54518 | AB32: PAMPLONA | AC32: 5221 | AD32: TRANSPORTE Y ALMACENAMIENTO | AE32: 0 | AF32: 0 | AG32: 0 | AH32: 0 | AI32: 0 | AJ32: 0 | AK32: 0 | AL32: 0 | AM32: 0
C33: Jurídica | D33: 68 | E33: SANTANDER | F33: 68001 | G33: BUCARAMANGA | H33: 4111 | I33: CONSTRUCCIÓN | V33: 0 | W33: 0 | X33: Jurídica | Y33: 54 | Z33: NORTE DE SANTANDER | AA33: 54001 | AB33: CÚCUTA | AC33: 7010 | AD33: ACTIVIDADES PROFESIONALES, CIENTÍFICAS Y TÉCNICAS | AE33: 0 | AF33: 0 | AG33: 0 | AH33: 0 | AI33: 0 | AJ33: 0 | AK33: 0 | AL33: 0 | AM33: 0
C34: Jurídica | D34: 8 | E34: ATLÁNTICO | F34: 8001 | G34: BARRANQUILLA | H34: 4752 | I34: COMERCIO AL POR MAYOR Y AL POR MENOR; REPARACIÓN DE VEHÍCULOS AUTOMOTORES Y MOTOCICLETAS | V34: 0 | W34: 0 | X34: Natural | Y34: 54 | Z34: NORTE DE SANTANDER | AA34: 54001 | AB34: CÚCUTA | AC34: 4663 | AD34: COMERCIO AL POR MAYOR Y AL POR MENOR; REPARACIÓN DE VEHÍCULOS AUTOMOTORES Y MOTOCICLETAS | AE34: 0 | AF34: 0 | AG34: 0 | AH34: 0 | AI34: 0 | AJ34: 0 | AK34: 0 | AL34: 0 | AM34: 0
C35: Natural | D35: 11 | E35: BOGOTÁ, D.C. | F35: 11001 | G35: BOGOTÁ, D.C. | H35: 6810 | I35: ACTIVIDADES INMOBILIARIAS | V35: 0 | W35: 0 | X35: Natural | Y35: 54 | Z35: NORTE DE SANTANDER | AA35: 54874 | AB35: VILLA DEL ROSARIO | AC35: 4774 | AD35: COMERCIO AL POR MAYOR Y AL POR MENOR; REPARACIÓN DE VEHÍCULOS AUTOMOTORES Y MOTOCICLETAS | AE35: 0 | AF35: 0 | AG35: 0 | AH35: 0 | AI35: 0 | AJ35: 0 | AK35: 0 | AL35: 0 | AM35: 0
C36: Jurídica | D36: 5 | E36: ANTIOQUIA | F36: 5440 | G36: MARINILLA | H36: 4921 | I36: TRANSPORTE Y ALMACENAMIENTO | V36: 0 | W36: 0 | X36: Jurídica | Y36: 54 | Z36: NORTE DE SANTANDER | AA36: 54001 | AB36: CÚCUTA | AC36: 2396 | AD36: INDUSTRIAS MANUFACTURERAS | AE36: 0 | AF36: 0 | AG36: 0 | AH36: 0 | AI36: 0 | AJ36: 0 | AK36: 0 | AL36: 0 | AM36: 0
C37: Jurídica | D37: 25 | E37: CUNDINAMARCA | F37: 25473 | G37: MOSQUERA | H37: 4664 | I37: COMERCIO AL POR MAYOR Y AL POR MENOR; REPARACIÓN DE VEHÍCULOS AUTOMOTORES Y MOTOCICLETAS | V37: 0 | W37: 0 | X37: Jurídica | Y37: 54 | Z37: NORTE DE SANTANDER | AA37: 54001 | AB37: CÚCUTA | AC37: 8610 | AD37: ACTIVIDADES DE ATENCIÓN DE LA SALUD HUMANA Y DE ASISTENCIA SOCIAL | AE37: 0 | AF37: 0 | AG37: 0 | AH37: 0 | AI37: 0 | AJ37: 0 | AK37: 0 | AL37: 0 | AM37: 0
C38: Natural | D38: 76 | E38: VALLE DEL CAUCA | F38: 76869 | G38: VIJES | H38: 2399 | I38: INDUSTRIAS MANUFACTURERAS | V38: 0 | W38: 0 | X38: Jurídica | Y38: 54 | Z38: NORTE DE SANTANDER | AA38: 54001 | AB38: CÚCUTA | AC38: 4530 | AD38: COMERCIO AL POR MAYOR Y AL POR MENOR; REPARACIÓN DE VEHÍCULOS AUTOMOTORES Y MOTOCICLETAS | AE38: 0 | AF38: 0 | AG38: 0 | AH38: 0 | AI38: 0 | AJ38: 0 | AK38: 0 | AL38: 0 | AM38: 0
C39: Jurídica | D39: 25 | E39: CUNDINAMARCA | F39: 25175 | G39: CHÍA | H39: 4752 | I39: COMERCIO AL POR MAYOR Y AL POR MENOR; REPARACIÓN DE VEHÍCULOS AUTOMOTORES Y MOTOCICLETAS | V39: 0 | W39: 0 | X39: Jurídica | Y39: 54 | Z39: NORTE DE SANTANDER | AA39: 54001 | AB39: CÚCUTA | AC39: 5611 | AD39: ALOJAMIENTO Y SERVICIOS DE COMIDA | AE39: 0 | AF39: 0 | AG39: 0 | AH39: 0 | AI39: 0 | AJ39: 0 | AK39: 0 | AL39: 0 | AM39: 0
C40: Jurídica | D40: 11 | E40: BOGOTÁ, D.C. | F40: 11001 | G40: BOGOTÁ, D.C. | H40: 4530 | I40: COMERCIO AL POR MAYOR Y AL POR MENOR; REPARACIÓN DE VEHÍCULOS AUTOMOTORES Y MOTOCICLETAS | V40: 0 | W40: 0 | X40: Jurídica | Y40: 54 | Z40: NORTE DE SANTANDER | AA40: 54001 | AB40: CÚCUTA | AC40: 322 | AD40: AGRICULTURA, GANADERÍA, CAZA, SILVICULTURA Y PESCA | AE40: 0 | AF40: 0 | AG40: 0 | AH40: 0 | AI40: 0 | AJ40: 0 | AK40: 0 | AL40: 0 | AM40: 0
C41: Jurídica | D41: 15 | E41: BOYACÁ | F41: 15322 | G41: GUATEQUE | H41: 4290 | I41: CONSTRUCCIÓN | V41: 0 | W41: 0 | X41: Jurídica | Y41: 54 | Z41: NORTE DE SANTANDER | AA41: 54001 | AB41: CÚCUTA | AC41: 5229 | AD41: TRANSPORTE Y ALMACENAMIENTO | AE41: 0 | AF41: 0 | AG41: 0 | AH41: 0 | AI41: 0 | AJ41: 0 | AK41: 0 | AL41: 0 | AM41: 0
C42: Jurídica | D42: 8 | E42: ATLÁNTICO | F42: 8001 | G42: BARRANQUILLA | H42: 3319 | I42: INDUSTRIAS MANUFACTURERAS | V42: 0 | W42: 0 | X42: Jurídica | Y42: 54 | Z42: NORTE DE SANTANDER | AA42: 54001 | AB42: CÚCUTA | AC42: 9411 | AD42: OTRAS ACTIVIDADES DE SERVICIOS | AE42: 0 | AF42: 0 | AG42: 0 | AH42: 0 | AI42: 0 | AJ42: 0 | AK42: 0 | AL42: 0 | AM42: 0
C43: Jurídica | D43: 11 | E43: BOGOTÁ, D.C. | F43: 11001 | G43: BOGOTÁ, D.C. | H43: 3312 | I43: INDUSTRIAS MANUFACTURERAS | V43: 0 | W43: 0 | X43: Natural | Y43: 54 | Z43: NORTE DE SANTANDER | AA43: 54874 | AB43: VILLA DEL ROSARIO | AC43: 2392 | AD43: INDUSTRIAS MANUFACTURERAS | AE43: 0 | AF43: 0 | AG43: 0 | AH43: 0 | AI43: 0 | AJ43: 0 | AK43: 0 | AL43: 0 | AM43: 0
C44: Jurídica | D44: 47 | E44: MAGDALENA | F44: 47189 | G44: CIÉNAGA | H44: 4921 | I44: TRANSPORTE Y ALMACENAMIENTO | V44: 0 | W44: 0 | X44: Jurídica | Y44: 54 | Z44: NORTE DE SANTANDER | AA44: 54001 | AB44: CÚCUTA | AC44: 7820 | AD44: ACTIVIDADES DE SERVICIOS ADMINISTRATIVOS Y DE APOYO | AE44: 0 | AF44: 0 | AG44: 0 | AH44: 0 | AI44: 0 | AJ44: 0 | AK44: 0 | AL44: 0 | AM44: 0
C45: Jurídica | D45: 11 | E45: BOGOTÁ, D.C. | F45: 11001 | G45: BOGOTÁ, D.C. | H45: 6920 | I45: ACTIVIDADES PROFESIONALES, CIENTÍFICAS Y TÉCNICAS | V45: 0 | W45: 0 | X45: Natural | Y45: 54 | Z45: NORTE DE SANTANDER | AA45: 54001 | AB45: CÚCUTA | AC45: 4923 | AD45: TRANSPORTE Y ALMACENAMIENTO | AE45: 0 | AF45: 0 | AG45: 0 | AH45: 0 | AI45: 0 | AJ45: 0 | AK45: 0 | AL45: 0 | AM45: 0
C46: Jurídica | D46: 41 | E46: HUILA | F46: 41001 | G46: NEIVA | H46: 7710 | I46: ACTIVIDADES DE SERVICIOS ADMINISTRATIVOS Y DE APOYO | V46: 0 | W46: 0 | X46: Natural | Y46: 54 | Z46: NORTE DE SANTANDER | AA46: 54001 | AB46: CÚCUTA | AC46: 5511 | AD46: ALOJAMIENTO Y SERVICIOS DE COMIDA | AE46: 0 | AF46: 0 | AG46: 0 | AH46: 0 | AI46: 0 | AJ46: 0 | AK46: 0 | AL46: 0 | AM46: 0
C47: Jurídica | D47: 25 | E47: CUNDINAMARCA | F47: 25572 | G47: PUERTO SALGAR | H47: 4290 | I47: CONSTRUCCIÓN | V47: 0 | W47: 0 | X47: Natural | Y47: 54 | Z47: NORTE DE SANTANDER | AA47: 54001 | AB47: CÚCUTA | AC47: 1410 | AD47: INDUSTRIAS MANUFACTURERAS | AE47: 0 | AF47: 0 | AG47: 0 | AH47: 0 | AI47: 0 | AJ47: 0 | AK47: 0 | AL47: 0 | AM47: 0
C48: Jurídica | D48: 73 | E48: TOLIMA | F48: 73483 | G48: NATAGAIMA | H48: 4620 | I48: COMERCIO AL POR MAYOR Y AL POR MENOR; REPARACIÓN DE VEHÍCULOS AUTOMOTORES Y MOTOCICLETAS | V48: 0 | W48: 0 | X48: Natural | Y48: 54 | Z48: NORTE DE SANTANDER | AA48: 54001 | AB48: CÚCUTA | AC48: 4772 | AD48: COMERCIO AL POR MAYOR Y AL POR MENOR; REPARACIÓN DE VEHÍCULOS AUTOMOTORES Y MOTOCICLETAS | AE48: 0 | AF48: 0 | AG48: 0 | AH48: 0 | AI48: 0 | AJ48: 0 | AK48: 0 | AL48: 0 | AM48: 0
C49: Jurídica | D49: 86 | E49: PUTUMAYO | F49: 86320 | G49: ORITO | H49: 5621 | I49: ALOJAMIENTO Y SERVICIOS DE COMIDA | V49: 0 | W49: 0 | X49: Jurídica | Y49: 54 | Z49: NORTE DE SANTANDER | AA49: 54001 | AB49: CÚCUTA | AC49: 4663 | AD49: COMERCIO AL POR MAYOR Y AL POR MENOR; REPARACIÓN DE VEHÍCULOS AUTOMOTORES Y MOTOCICLETAS | AE49: 0 | AF49: 0 | AG49: 0 | AH49: 0 | AI49: 0 | AJ49: 0 | AK49: 0 | AL49: 0 | AM49: 0
C50: Jurídica | D50: 76 | E50: VALLE DEL CAUCA | F50: 76001 | G50: CALI | H50: 9200 | I50: ACTIVIDADES ARTÍSTICAS, DE ENTRETENIMIENTO Y RECREACIÓN | V50: 0 | W50: 0 | X50: Jurídica | Y50: 54 | Z50: NORTE DE SANTANDER | AA50: 54405 | AB50: LOS PATIOS | AC50: 5320 | AD50: TRANSPORTE Y ALMACENAMIENTO | AE50: 0 | AF50: 0 | AG50: 0 | AH50: 0 | AI50: 0 | AJ50: 0 | AK50: 0 | AL50: 0 | AM50: 0
C51: Jurídica | D51: 63 | E51: QUINDIO | F51: 63001 | G51: ARMENIA | H51: 9499 | I51: OTRAS ACTIVIDADES DE SERVICIOS | V51: 0 | W51: 0 | X51: Jurídica | Y51: 54 | Z51: NORTE DE SANTANDER | AA51: 54001 | AB51: CÚCUTA | AC51: 4530 | AD51: COMERCIO AL POR MAYOR Y AL POR MENOR; REPARACIÓN DE VEHÍCULOS AUTOMOTORES Y MOTOCICLETAS | AE51: 0 | AF51: 0 | AG51: 0 | AH51: 0 | AI51: 0 | AJ51: 0 | AK51: 0 | AL51: 0 | AM51: 0
C52: Jurídica | D52: 63 | E52: QUINDIO | F52: 63001 | G52: ARMENIA | H52: 4663 | I52: COMERCIO AL POR MAYOR Y AL POR MENOR; REPARACIÓN DE VEHÍCULOS AUTOMOTORES Y MOTOCICLETAS | V52: 0 | W52: 0 | X52: Jurídica | Y52: 54 | Z52: NORTE DE SANTANDER | AA52: 54810 | AB52: TIBÚ | AC52: 4921 | AD52: TRANSPORTE Y ALMACENAMIENTO | AE52: 0 | AF52: 0 | AG52: 0 | AH52: 0 | AI52: 0 | AJ52: 0 | AK52: 0 | AL52: 0 | AM52: 0
C53: Jurídica | D53: 63 | E53: QUINDIO | F53: 63001 | G53: ARMENIA | H53: 2823 | I53: INDUSTRIAS MANUFACTURERAS | V53: 0 | W53: 0 | X53: Jurídica | Y53: 54 | Z53: NORTE DE SANTANDER | AA53: 54001 | AB53: CÚCUTA | AC53: 8610 | AD53: ACTIVIDADES DE ATENCIÓN DE LA SALUD HUMANA Y DE ASISTENCIA SOCIAL | AE53: 0 | AF53: 0 | AG53: 0 | AH53: 0 | AI53: 0 | AJ53: 0 | AK53: 0 | AL53: 0 | AM53: 0
C54: Jurídica | D54: 73 | E54: TOLIMA | F54: 73001 | G54: IBAGUÉ | H54: 145 | I54: AGRICULTURA, GANADERÍA, CAZA, SILVICULTURA Y PESCA | V54: 0 | W54: 0 | X54: Jurídica | Y54: 54 | Z54: NORTE DE SANTANDER | AA54: 54001 | AB54: CÚCUTA | AC54: 322 | AD54: AGRICULTURA, GANADERÍA, CAZA, SILVICULTURA Y PESCA | AE54: 0 | AF54: 0 | AG54: 0 | AH54: 0 | AI54: 0 | AJ54: 0 | AK54: 0 | AL54: 0 | AM54: 0
C55: Jurídica | D55: 8 | E55: ATLÁNTICO | F55: 8001 | G55: BARRANQUILLA | H55: 9491 | I55: OTRAS ACTIVIDADES DE SERVICIOS | V55: 0 | W55: 0 | X55: Jurídica | Y55: 54 | Z55: NORTE DE SANTANDER | AA55: 54001 | AB55: CÚCUTA | AC55: 4541 | AD55: COMERCIO AL POR MAYOR Y AL POR MENOR; REPARACIÓN DE VEHÍCULOS AUTOMOTORES Y MOTOCICLETAS | AE55: 0 | AF55: 0 | AG55: 0 | AH55: 0 | AI55: 0 | AJ55: 0 | AK55: 0 | AL55: 0 | AM55: 0
C56: Jurídica | D56: 8 | E56: ATLÁNTICO | F56: 8573 | G56: PUERTO COLOMBIA | H56: 4210 | I56: CONSTRUCCIÓN | V56: 0 | W56: 0 | X56: Jurídica | Y56: 54 | Z56: NORTE DE SANTANDER | AA56: 54518 | AB56: PAMPLONA | AC56: 9499 | AD56: OTRAS ACTIVIDADES DE SERVICIOS | AE56: 0 | AF56: 0 | AG56: 0 | AH56: 0 | AI56: 0 | AJ56: 0 | AK56: 0 | AL56: 0 | AM56: 0
C57: Jurídica | D57: 8 | E57: ATLÁNTICO | F57: 8001 | G57: BARRANQUILLA | H57: 4774 | I57: COMERCIO AL POR MAYOR Y AL POR MENOR; REPARACIÓN DE VEHÍCULOS AUTOMOTORES Y MOTOCICLETAS | V57: 0 | W57: 0 | X57: Jurídica | Y57: 54 | Z57: NORTE DE SANTANDER | AA57: 54498 | AB57: OCAÑA | AC57: 4923 | AD57: TRANSPORTE Y ALMACENAMIENTO | AE57: 0 | AF57: 0 | AG57: 0 | AH57: 0 | AI57: 0 | AJ57: 0 | AK57: 0 | AL57: 0 | AM57: 0
C58: Jurídica | D58: 8 | E58: ATLÁNTICO | F58: 8001 | G58: BARRANQUILLA | H58: 1410 | I58: INDUSTRIAS MANUFACTURERAS | V58: 0 | W58: 0 | X58: Jurídica | Y58: 54 | Z58: NORTE DE SANTANDER | AA58: 54874 | AB58: VILLA DEL ROSARIO | AC58: 2029 | AD58: INDUSTRIAS MANUFACTURERAS | AE58: 0 | AF58: 0 | AG58: 0 | AH58: 0 | AI58: 0 | AJ58: 0 | AK58: 0 | AL58: 0 | AM58: 0
C59: Jurídica | D59: 8 | E59: ATLÁNTICO | F59: 8001 | G59: BARRANQUILLA | H59: 8523 | I59: EDUCACIÓN | V59: 0 | W59: 0 | X59: Natural | Y59: 54 | Z59: NORTE DE SANTANDER | AA59: 54874 | AB59: VILLA DEL ROSARIO | AC59: 4774 | AD59: COMERCIO AL POR MAYOR Y AL POR MENOR; REPARACIÓN DE VEHÍCULOS AUTOMOTORES Y MOTOCICLETAS | AE59: 0 | AF59: 0 | AG59: 0 | AH59: 0 | AI59: 0 | AJ59: 0 | AK59: 0 | AL59: 0 | AM59: 0
C60: Jurídica | D60: 8 | E60: ATLÁNTICO | F60: 8001 | G60: BARRANQUILLA | H60: 4923 | I60: TRANSPORTE Y ALMACENAMIENTO | V60: 0 | W60: 0 | X60: Jurídica | Y60: 54 | Z60: NORTE DE SANTANDER | AA60: 54001 | AB60: CÚCUTA | AC60: 4923 | AD60: TRANSPORTE Y ALMACENAMIENTO | AE60: 0 | AF60: 0 | AG60: 0 | AH60: 0 | AI60: 0 | AJ60: 0 | AK60: 0 | AL60: 0 | AM60: 0
C61: Jurídica | D61: 8 | E61: ATLÁNTICO | F61: 8001 | G61: BARRANQUILLA | H61: 9499 | I61: OTRAS ACTIVIDADES DE SERVICIOS | V61: 0 | W61: 0 | X61: Jurídica | Y61: 54 | Z61: NORTE DE SANTANDER | AA61: 54405 | AB61: LOS PATIOS | AC61: 4390 | AD61: CONSTRUCCIÓN | AE61: 0 | AF61: 0 | AG61: 0 | AH61: 0 | AI61: 0 | AJ61: 0 | AK61: 0 | AL61: 0 | AM61: 0
C62: Jurídica | D62: 11 | E62: BOGOTÁ, D.C. | F62: 11001 | G62: BOGOTÁ, D.C. | H62: 8621 | I62: ACTIVIDADES DE ATENCIÓN DE LA SALUD HUMANA Y DE ASISTENCIA SOCIAL | V62: 0 | W62: 0 | X62: Natural | Y62: 54 | Z62: NORTE DE SANTANDER | AA62: 54518 | AB62: PAMPLONA | AC62: 4771 | AD62: COMERCIO AL POR MAYOR Y AL POR MENOR; REPARACIÓN DE VEHÍCULOS AUTOMOTORES Y MOTOCICLETAS | AE62: 0 | AF62: 0 | AG62: 0 | AH62: 0 | AI62: 0 | AJ62: 0 | AK62: 0 | AL62: 0 | AM62: 0
C63: Jurídica | D63: 25 | E63: CUNDINAMARCA | F63: 25175 | G63: CHÍA | H63: 9491 | I63: OTRAS ACTIVIDADES DE SERVICIOS | V63: 0 | W63: 0 | X63: Jurídica | Y63: 54 | Z63: NORTE DE SANTANDER | AA63: 54001 | AB63: CÚCUTA | AC63: 4631 | AD63: COMERCIO AL POR MAYOR Y AL POR MENOR; REPARACIÓN DE VEHÍCULOS AUTOMOTORES Y MOTOCICLETAS | AE63: 0 | AF63: 0 | AG63: 0 | AH63: 0 | AI63: 0 | AJ63: 0 | AK63: 0 | AL63: 0 | AM63: 0
C64: Jurídica | D64: 25 | E64: CUNDINAMARCA | F64: 25175 | G64: CHÍA | H64: 3110 | I64: INDUSTRIAS MANUFACTURERAS | V64: 0 | W64: 0 | X64: Jurídica | Y64: 54 | Z64: NORTE DE SANTANDER | AA64: 54001 | AB64: CÚCUTA | AC64: 1410 | AD64: INDUSTRIAS MANUFACTURERAS | AE64: 0 | AF64: 0 | AG64: 0 | AH64: 0 | AI64: 0 | AJ64: 0 | AK64: 0 | AL64: 0 | AM64: 0
C65: Jurídica | D65: 81 | E65: ARAUCA | F65: 81001 | G65: ARAUCA | H65: 5221 | I65: TRANSPORTE Y ALMACENAMIENTO | V65: 0 | W65: 0 | X65: Jurídica | Y65: 54 | Z65: NORTE DE SANTANDER | AA65: 54874 | AB65: VILLA DEL ROSARIO | AC65: 4752 | AD65: COMERCIO AL POR MAYOR Y AL POR MENOR; REPARACIÓN DE VEHÍCULOS AUTOMOTORES Y MOTOCICLETAS | AE65: 0 | AF65: 0 | AG65: 0 | AH65: 0 | AI65: 0 | AJ65: 0 | AK65: 0 | AL65: 0 | AM65: 0
C66: Jurídica | D66: 76 | E66: VALLE DEL CAUCA | F66: 76109 | G66: BUENAVENTURA | H66: 9200 | I66: ACTIVIDADES ARTÍSTICAS, DE ENTRETENIMIENTO Y RECREACIÓN | V66: 0 | W66: 0 | X66: Jurídica | Y66: 54 | Z66: NORTE DE SANTANDER | AA66: 54001 | AB66: CÚCUTA | AC66: 4663 | AD66: COMERCIO AL POR MAYOR Y AL POR MENOR; REPARACIÓN DE VEHÍCULOS AUTOMOTORES Y MOTOCICLETAS | AE66: 0 | AF66: 0 | AG66: 0 | AH66: 0 | AI66: 0 | AJ66: 0 | AK66: 0 | AL66: 0 | AM66: 0
C67: Jurídica | D67: 52 | E67: NARIÑO | F67: 52356 | G67: IPIALES | H67: 6202 | I67: INFORMACIÓN Y COMUNICACIONES | V67: 0 | W67: 0 | X67: Natural | Y67: 54 | Z67: NORTE DE SANTANDER | AA67: 54001 | AB67: CÚCUTA | AC67: 126 | AD67: AGRICULTURA, GANADERÍA, CAZA, SILVICULTURA Y PESCA | AE67: 0 | AF67: 0 | AG67: 0 | AH67: 0 | AI67: 0 | AJ67: 0 | AK67: 0 | AL67: 0 | AM67: 0
C68: Jurídica | D68: 91 | E68: AMAZONAS | F68: 91001 | G68: LETICIA | H68: 8530 | I68: EDUCACIÓN | V68: 0 | W68: 0 | X68: Natural | Y68: 54 | Z68: NORTE DE SANTANDER | AA68: 54874 | AB68: VILLA DEL ROSARIO | AC68: 4752 | AD68: COMERCIO AL POR MAYOR Y AL POR MENOR; REPARACIÓN DE VEHÍCULOS AUTOMOTORES Y MOTOCICLETAS | AE68: 0 | AF68: 0 | AG68: 0 | AH68: 0 | AI68: 0 | AJ68: 0 | AK68: 0 | AL68: 0 | AM68: 0
C69: Jurídica | D69: 44 | E69: LA GUAJIRA | F69: 44430 | G69: MAICAO | H69: 4711 | I69: COMERCIO AL POR MAYOR Y AL POR MENOR; REPARACIÓN DE VEHÍCULOS AUTOMOTORES Y MOTOCICLETAS | V69: 0 | W69: 0 | X69: Natural | Y69: 54 | Z69: NORTE DE SANTANDER | AA69: 54001 | AB69: CÚCUTA | AC69: 4755 | AD69: COMERCIO AL POR MAYOR Y AL POR MENOR; REPARACIÓN DE VEHÍCULOS AUTOMOTORES Y MOTOCICLETAS | AE69: 0 | AF69: 0 | AG69: 0 | AH69: 0 | AI69: 0 | AJ69: 0 | AK69: 0 | AL69: 0 | AM69: 0
C70: Jurídica | D70: 85 | E70: CASANARE | F70: 85001 | G70: YOPAL | H70: 7730 | I70: ACTIVIDADES DE SERVICIOS ADMINISTRATIVOS Y DE APOYO | V70: 0 | W70: 0 | X70: Jurídica | Y70: 54 | Z70: NORTE DE SANTANDER | AA70: 54874 | AB70: VILLA DEL ROSARIO | AC70: 4645 | AD70: COMERCIO AL POR MAYOR Y AL POR MENOR; REPARACIÓN DE VEHÍCULOS AUTOMOTORES Y MOTOCICLETAS | AE70: 0 | AF70: 0 | AG70: 0 | AH70: 0 | AI70: 0 | AJ70: 0 | AK70: 0 | AL70: 0 | AM70: 0
C71: Jurídica | D71: 85 | E71: CASANARE | F71: 85001 | G71: YOPAL | H71: 4290 | I71: CONSTRUCCIÓN | V71: 0 | W71: 0 | X71: Jurídica | Y71: 54 | Z71: NORTE DE SANTANDER | AA71: 54261 | AB71: EL ZULIA | AC71: 8299 | AD71: ACTIVIDADES DE SERVICIOS ADMINISTRATIVOS Y DE APOYO | AE71: 0 | AF71: 0 | AG71: 0 | AH71: 0 | AI71: 0 | AJ71: 0 | AK71: 0 | AL71: 0 | AM71: 0
C72: Jurídica | D72: 85 | E72: CASANARE | F72: 85010 | G72: AGUAZUL | H72: 4321 | I72: CONSTRUCCIÓN | V72: 0 | W72: 0 | X72: Jurídica | Y72: 54 | Z72: NORTE DE SANTANDER | AA72: 54001 | AB72: CÚCUTA | AC72: 1011 | AD72: INDUSTRIAS MANUFACTURERAS | AE72: 0 | AF72: 0 | AG72: 0 | AH72: 0 | AI72: 0 | AJ72: 0 | AK72: 0 | AL72: 0 | AM72: 0
C73: Jurídica | D73: 86 | E73: PUTUMAYO | F73: 86001 | G73: MOCOA | H73: 4752 | I73: COMERCIO AL POR MAYOR Y AL POR MENOR; REPARACIÓN DE VEHÍCULOS AUTOMOTORES Y MOTOCICLETAS | V73: 0 | W73: 0 | X73: Jurídica | Y73: 54 | Z73: NORTE DE SANTANDER | AA73: 54001 | AB73: CÚCUTA | AC73: 9329 | AD73: ACTIVIDADES ARTÍSTICAS, DE ENTRETENIMIENTO Y RECREACIÓN | AE73: 0 | AF73: 0 | AG73: 0 | AH73: 0 | AI73: 0 | AJ73: 0 | AK73: 0 | AL73: 0 | AM73: 0
C74: Jurídica | D74: 86 | E74: PUTUMAYO | F74: 86001 | G74: MOCOA | H74: 4731 | I74: COMERCIO AL POR MAYOR Y AL POR MENOR; REPARACIÓN DE VEHÍCULOS AUTOMOTORES Y MOTOCICLETAS | V74: 0 | W74: 0 | X74: Natural | Y74: 54 | Z74: NORTE DE SANTANDER | AA74: 54874 | AB74: VILLA DEL ROSARIO | AC74: 4773 | AD74: COMERCIO AL POR MAYOR Y AL POR MENOR; REPARACIÓN DE VEHÍCULOS AUTOMOTORES Y MOTOCICLETAS | AE74: 0 | AF74: 0 | AG74: 0 | AH74: 0 | AI74: 0 | AJ74: 0 | AK74: 0 | AL74: 0 | AM74: 0
C75: Jurídica | D75: 86 | E75: PUTUMAYO | F75: 86001 | G75: MOCOA | H75: 8610 | I75: ACTIVIDADES DE ATENCIÓN DE LA SALUD HUMANA Y DE ASISTENCIA SOCIAL | V75: 0 | W75: 0 | X75: Natural | Y75: 54 | Z75: NORTE DE SANTANDER | AA75: 54518 | AB75: PAMPLONA | AC75: 1081 | AD75: INDUSTRIAS MANUFACTURERAS | AE75: 0 | AF75: 0 | AG75: 0 | AH75: 0 | AI75: 0 | AJ75: 0 | AK75: 0 | AL75: 0 | AM75: 0
C76: Jurídica | D76: 11 | E76: BOGOTÁ, D.C. | F76: 11001 | G76: BOGOTÁ, D.C. | H76: 4530 | I76: COMERCIO AL POR MAYOR Y AL POR MENOR; REPARACIÓN DE VEHÍCULOS AUTOMOTORES Y MOTOCICLETAS | V76: 0 | W76: 0 | X76: Natural | Y76: 54 | Z76: NORTE DE SANTANDER | AA76: 54001 | AB76: CÚCUTA | AC76: 4520 | AD76: COMERCIO AL POR MAYOR Y AL POR MENOR; REPARACIÓN DE VEHÍCULOS AUTOMOTORES Y MOTOCICLETAS | AE76: 0 | AF76: 0 | AG76: 0 | AH76: 0 | AI76: 0 | AJ76: 0 | AK76: 0 | AL76: 0 | AM76: 0
C77: Jurídica | D77: 86 | E77: PUTUMAYO | F77: 86001 | G77: MOCOA | H77: 9603 | I77: OTRAS ACTIVIDADES DE SERVICIOS | V77: 0 | W77: 0 | X77: Natural | Y77: 54 | Z77: NORTE DE SANTANDER | AA77: 54001 | AB77: CÚCUTA | AC77: 4322 | AD77: CONSTRUCCIÓN | AE77: 0 | AF77: 0 | AG77: 0 | AH77: 0 | AI77: 0 | AJ77: 0 | AK77: 0 | AL77: 0 | AM77: 0
C78: Jurídica | D78: 20 | E78: CESAR | F78: 20001 | G78: VALLEDUPAR | H78: 4731 | I78: COMERCIO AL POR MAYOR Y AL POR MENOR; REPARACIÓN DE VEHÍCULOS AUTOMOTORES Y MOTOCICLETAS | V78: 0 | W78: 0 | X78: Jurídica | Y78: 54 | Z78: NORTE DE SANTANDER | AA78: 54001 | AB78: CÚCUTA | AC78: 8010 | AD78: ACTIVIDADES DE SERVICIOS ADMINISTRATIVOS Y DE APOYO | AE78: 0 | AF78: 0 | AG78: 0 | AH78: 0 | AI78: 0 | AJ78: 0 | AK78: 0 | AL78: 0 | AM78: 0
C79: Jurídica | D79: 15 | E79: BOYACÁ | F79: 15759 | G79: SOGAMOSO | H79: 3822 | I79: DISTRIBUCIÓN DE AGUA; EVACUACIÓN Y TRATAMIENTO DE AGUAS RESIDUALES, GESTIÓN DE DESECHOS Y ACTIVIDADES DE SANEAMIENTO AMBIENTAL | V79: 0 | W79: 0 | X79: Jurídica | Y79: 54 | Z79: NORTE DE SANTANDER | AA79: 54001 | AB79: CÚCUTA | AC79: 4661 | AD79: COMERCIO AL POR MAYOR Y AL POR MENOR; REPARACIÓN DE VEHÍCULOS AUTOMOTORES Y MOTOCICLETAS | AE79: 0 | AF79: 0 | AG79: 0 | AH79: 0 | AI79: 0 | AJ79: 0 | AK79: 0 | AL79: 0 | AM79: 0
C80: Jurídica | D80: 41 | E80: HUILA | F80: 41001 | G80: NEIVA | H80: 9499 | I80: OTRAS ACTIVIDADES DE SERVICIOS | V80: 0 | W80: 0 | X80: Jurídica | Y80: 54 | Z80: NORTE DE SANTANDER | AA80: 54498 | AB80: OCAÑA | AC80: 4220 | AD80: CONSTRUCCIÓN | AE80: 0 | AF80: 0 | AG80: 0 | AH80: 0 | AI80: 0 | AJ80: 0 | AK80: 0 | AL80: 0 | AM80: 0
C81: Jurídica | D81: 11 | E81: BOGOTÁ, D.C. | F81: 11001 | G81: BOGOTÁ, D.C. | H81: 7990 | I81: ACTIVIDADES DE SERVICIOS ADMINISTRATIVOS Y DE APOYO | V81: 0 | W81: 0 | X81: Natural | Y81: 54 | Z81: NORTE DE SANTANDER | AA81: 54518 | AB81: PAMPLONA | AC81: 6810 | AD81: ACTIVIDADES INMOBILIARIAS | AE81: 0 | AF81: 0 | AG81: 0 | AH81: 0 | AI81: 0 | AJ81: 0 | AK81: 0 | AL81: 0 | AM81: 0
C82: Jurídica | D82: 76 | E82: VALLE DEL CAUCA | F82: 76001 | G82: CALI | H82: 5512 | I82: ALOJAMIENTO Y SERVICIOS DE COMIDA | V82: 0 | W82: 0 | X82: Jurídica | Y82: 54 | Z82: NORTE DE SANTANDER | AA82: 54001 | AB82: CÚCUTA | AC82: 1089 | AD82: INDUSTRIAS MANUFACTURERAS | AE82: 0 | AF82: 0 | AG82: 0 | AH82: 0 | AI82: 0 | AJ82: 0 | AK82: 0 | AL82: 0 | AM82: 0
C83: Jurídica | D83: 41 | E83: HUILA | F83: 41001 | G83: NEIVA | H83: 6613 | I83: ACTIVIDADES FINANCIERAS Y DE SEGUROS | V83: 0 | W83: 0 | X83: Jurídica | Y83: 54 | Z83: NORTE DE SANTANDER | AA83: 54001 | AB83: CÚCUTA | AC83: 5310 | AD83: TRANSPORTE Y ALMACENAMIENTO | AE83: 0 | AF83: 0 | AG83: 0 | AH83: 0 | AI83: 0 | AJ83: 0 | AK83: 0 | AL83: 0 | AM83: 0
C84: Jurídica | D84: 11 | E84: BOGOTÁ, D.C. | F84: 11001 | G84: BOGOTÁ, D.C. | H84: 4642 | I84: COMERCIO AL POR MAYOR Y AL POR MENOR; REPARACIÓN DE VEHÍCULOS AUTOMOTORES Y MOTOCICLETAS | V84: 0 | W84: 0 | X84: Natural | Y84: 54 | Z84: NORTE DE SANTANDER | AA84: 54001 | AB84: CÚCUTA | AC84: 8512 | AD84: EDUCACIÓN | AE84: 0 | AF84: 0 | AG84: 0 | AH84: 0 | AI84: 0 | AJ84: 0 | AK84: 0 | AL84: 0 | AM84: 0
C85: Jurídica | D85: 11 | E85: BOGOTÁ, D.C. | F85: 11001 | G85: BOGOTÁ, D.C. | H85: 7490 | I85: ACTIVIDADES PROFESIONALES, CIENTÍFICAS Y TÉCNICAS | V85: 0 | W85: 0 | X85: Natural | Y85: 54 | Z85: NORTE DE SANTANDER | AA85: 54874 | AB85: VILLA DEL ROSARIO | AC85: 4773 | AD85: COMERCIO AL POR MAYOR Y AL POR MENOR; REPARACIÓN DE VEHÍCULOS AUTOMOTORES Y MOTOCICLETAS | AE85: 0 | AF85: 0 | AG85: 0 | AH85: 0 | AI85: 0 | AJ85: 0 | AK85: 0 | AL85: 0 | AM85: 0
C86: Jurídica | D86: 11 | E86: BOGOTÁ, D.C. | F86: 11001 | G86: BOGOTÁ, D.C. | H86: 8621 | I86: ACTIVIDADES DE ATENCIÓN DE LA SALUD HUMANA Y DE ASISTENCIA SOCIAL | V86: 0 | W86: 0 | X86: Jurídica | Y86: 54 | Z86: NORTE DE SANTANDER | AA86: 54874 | AB86: VILLA DEL ROSARIO | AC86: 4921 | AD86: TRANSPORTE Y ALMACENAMIENTO | AE86: 0 | AF86: 0 | AG86: 0 | AH86: 0 | AI86: 0 | AJ86: 0 | AK86: 0 | AL86: 0 | AM86: 0
C87: Jurídica | D87: 68 | E87: SANTANDER | F87: 68679 | G87: SAN GIL | H87: 7120 | I87: ACTIVIDADES PROFESIONALES, CIENTÍFICAS Y TÉCNICAS | V87: 0 | W87: 0 | X87: Jurídica | Y87: 54 | Z87: NORTE DE SANTANDER | AA87: 54001 | AB87: CÚCUTA | AC87: 4111 | AD87: CONSTRUCCIÓN | AE87: 0 | AF87: 0 | AG87: 0 | AH87: 0 | AI87: 0 | AJ87: 0 | AK87: 0 | AL87: 0 | AM87: 0
C88: Jurídica | D88: 11 | E88: BOGOTÁ, D.C. | F88: 11001 | G88: BOGOTÁ, D.C. | H88: 4651 | I88: COMERCIO AL POR MAYOR Y AL POR MENOR; REPARACIÓN DE VEHÍCULOS AUTOMOTORES Y MOTOCICLETAS | V88: 0 | W88: 0 | X88: Natural | Y88: 54 | Z88: NORTE DE SANTANDER | AA88: 54001 | AB88: CÚCUTA | AC88: 4530 | AD88: COMERCIO AL POR MAYOR Y AL POR MENOR; REPARACIÓN DE VEHÍCULOS AUTOMOTORES Y MOTOCICLETAS | AE88: 0 | AF88: 0 | AG88: 0 | AH88: 0 | AI88: 0 | AJ88: 0 | AK88: 0 | AL88: 0 | AM88: 0
C89: Jurídica | D89: 20 | E89: CESAR | F89: 20001 | G89: VALLEDUPAR | H89: 4290 | I89: CONSTRUCCIÓN | V89: 0 | W89: 0 | X89: Jurídica | Y89: 54 | Z89: NORTE DE SANTANDER | AA89: 54001 | AB89: CÚCUTA | AC89: 8110 | AD89: ACTIVIDADES DE SERVICIOS ADMINISTRATIVOS Y DE APOYO | AE89: 0 | AF89: 0 | AG89: 0 | AH89: 0 | AI89: 0 | AJ89: 0 | AK89: 0 | AL89: 0 | AM89: 0
C90: Jurídica | D90: 76 | E90: VALLE DEL CAUCA | F90: 76834 | G90: TULUÁ | H90: 8691 | I90: ACTIVIDADES DE ATENCIÓN DE LA SALUD HUMANA Y DE ASISTENCIA SOCIAL | V90: 0 | W90: 0 | X90: Jurídica | Y90: 54 | Z90: NORTE DE SANTANDER | AA90: 54001 | AB90: CÚCUTA | AC90: 4530 | AD90: COMERCIO AL POR MAYOR Y AL POR MENOR; REPARACIÓN DE VEHÍCULOS AUTOMOTORES Y MOTOCICLETAS | AE90: 0 | AF90: 0 | AG90: 0 | AH90: 0 | AI90: 0 | AJ90: 0 | AK90: 0 | AL90: 0 | AM90: 0
C91: Jurídica | D91: 11 | E91: BOGOTÁ, D.C. | F91: 11001 | G91: BOGOTÁ, D.C. | H91: 1393 | I91: INDUSTRIAS MANUFACTURERAS | V91: 0 | W91: 0 | X91: Jurídica | Y91: 54 | Z91: NORTE DE SANTANDER | AA91: 54001 | AB91: CÚCUTA | AC91: 1521 | AD91: INDUSTRIAS MANUFACTURERAS | AE91: 0 | AF91: 0 | AG91: 0 | AH91: 0 | AI91: 0 | AJ91: 0 | AK91: 0 | AL91: 0 | AM91: 0
C92: Jurídica | D92: 15 | E92: BOYACÁ | F92: 15176 | G92: CHIQUINQUIRÁ | H92: 4112 | I92: CONSTRUCCIÓN | V92: 0 | W92: 0 | X92: Natural | Y92: 54 | Z92: NORTE DE SANTANDER | AA92: 54001 | AB92: CÚCUTA | AC92: 4711 | AD92: COMERCIO AL POR MAYOR Y AL POR MENOR; REPARACIÓN DE VEHÍCULOS AUTOMOTORES Y MOTOCICLETAS | AE92: 0 | AF92: 0 | AG92: 0 | AH92: 0 | AI92: 0 | AJ92: 0 | AK92: 0 | AL92: 0 | AM92: 0
C93: Jurídica | D93: 15 | E93: BOYACÁ | F93: 15500 | G93: OICATÁ | H93: 1610 | I93: INDUSTRIAS MANUFACTURERAS | V93: 0 | W93: 0 | X93: Jurídica | Y93: 54 | Z93: NORTE DE SANTANDER | AA93: 54001 | AB93: CÚCUTA | AC93: 4111 | AD93: CONSTRUCCIÓN | AE93: 0 | AF93: 0 | AG93: 0 | AH93: 0 | AI93: 0 | AJ93: 0 | AK93: 0 | AL93: 0 | AM93: 0
C94: Jurídica | D94: 11 | E94: BOGOTÁ, D.C. | F94: 11001 | G94: BOGOTÁ, D.C. | H94: 6920 | I94: ACTIVIDADES PROFESIONALES, CIENTÍFICAS Y TÉCNICAS | V94: 0 | W94: 0 | X94: Jurídica | Y94: 54 | Z94: NORTE DE SANTANDER | AA94: 54172 | AB94: CHINÁCOTA | AC94: 510 | AD94: EXPLOTACIÓN DE MINAS Y CANTERAS | AE94: 0 | AF94: 0 | AG94: 0 | AH94: 0 | AI94: 0 | AJ94: 0 | AK94: 0 | AL94: 0 | AM94: 0
C95: Jurídica | D95: 8 | E95: ATLÁNTICO | F95: 8001 | G95: BARRANQUILLA | H95: 4723 | I95: COMERCIO AL POR MAYOR Y AL POR MENOR; REPARACIÓN DE VEHÍCULOS AUTOMOTORES Y MOTOCICLETAS | V95: 0 | W95: 0 | X95: Natural | Y95: 54 | Z95: NORTE DE SANTANDER | AA95: 54261 | AB95: EL ZULIA | AC95: 5611 | AD95: ALOJAMIENTO Y SERVICIOS DE COMIDA | AE95: 0 | AF95: 0 | AG95: 0 | AH95: 0 | AI95: 0 | AJ95: 0 | AK95: 0 | AL95: 0 | AM95: 0
C96: Jurídica | D96: 15 | E96: BOYACÁ | F96: 15572 | G96: PUERTO BOYACÁ | H96: 4290 | I96: CONSTRUCCIÓN | V96: 0 | W96: 0 | X96: Jurídica | Y96: 54 | Z96: NORTE DE SANTANDER | AA96: 54001 | AB96: CÚCUTA | AC96: 4330 | AD96: CONSTRUCCIÓN | AE96: 0 | AF96: 0 | AG96: 0 | AH96: 0 | AI96: 0 | AJ96: 0 | AK96: 0 | AL96: 0 | AM96: 0
C97: Jurídica | D97: 11 | E97: BOGOTÁ, D.C. | F97: 11001 | G97: BOGOTÁ, D.C. | H97: 4659 | I97: COMERCIO AL POR MAYOR Y AL POR MENOR; REPARACIÓN DE VEHÍCULOS AUTOMOTORES Y MOTOCICLETAS | V97: 0 | W97: 0 | X97: Natural | Y97: 54 | Z97: NORTE DE SANTANDER | AA97: 54001 | AB97: CÚCUTA | AC97: 1610 | AD97: INDUSTRIAS MANUFACTURERAS | AE97: 0 | AF97: 0 | AG97: 0 | AH97: 0 | AI97: 0 | AJ97: 0 | AK97: 0 | AL97: 0 | AM97: 0
C98: Jurídica | D98: 8 | E98: ATLÁNTICO | F98: 8001 | G98: BARRANQUILLA | H98: 6820 | I98: ACTIVIDADES INMOBILIARIAS | V98: 0 | W98: 0 | X98: Jurídica | Y98: 54 | Z98: NORTE DE SANTANDER | AA98: 54405 | AB98: LOS PATIOS | AC98: 5320 | AD98: TRANSPORTE Y ALMACENAMIENTO | AE98: 0 | AF98: 0 | AG98: 0 | AH98: 0 | AI98: 0 | AJ98: 0 | AK98: 0 | AL98: 0 | AM98: 0
C99: Jurídica | D99: 76 | E99: VALLE DEL CAUCA | F99: 76109 | G99: BUENAVENTURA | H99: 5224 | I99: TRANSPORTE Y ALMACENAMIENTO | V99: 0 | W99: 0 | X99: Jurídica | Y99: 54 | Z99: NORTE DE SANTANDER | AA99: 54498 | AB99: OCAÑA | AC99: 9491 | AD99: OTRAS ACTIVIDADES DE SERVICIOS | AE99: 0 | AF99: 0 | AG99: 0 | AH99: 0 | AI99: 0 | AJ99: 0 | AK99: 0 | AL99: 0 | AM99: 0
C100: Jurídica | D100: 11 | E100: BOGOTÁ, D.C. | F100: 11001 | G100: BOGOTÁ, D.C. | H100: 3822 | I100: DISTRIBUCIÓN DE AGUA; EVACUACIÓN Y TRATAMIENTO DE AGUAS RESIDUALES, GESTIÓN DE DESECHOS Y ACTIVIDADES DE SANEAMIENTO AMBIENTAL | V100: 0 | W100: 0 | X100: Jurídica | Y100: 54 | Z100: NORTE DE SANTANDER | AA100: 54001 | AB100: CÚCUTA | AC100: 4632 | AD100: COMERCIO AL POR MAYOR Y AL POR MENOR; REPARACIÓN DE VEHÍCULOS AUTOMOTORES Y MOTOCICLETAS | AE100: 0 | AF100: 0 | AG100: 0 | AH100: 0 | AI100: 0 | AJ100: 0 | AK100: 0 | AL100: 0 | AM100: 0
C101: Jurídica | D101: 15 | E101: BOYACÁ | F101: 15001 | G101: TUNJA | H101: 8621 | I101: ACTIVIDADES DE ATENCIÓN DE LA SALUD HUMANA Y DE ASISTENCIA SOCIAL | V101: 0 | W101: 0 | X101: Jurídica | Y101: 54 | Z101: NORTE DE SANTANDER | AA101: 54001 | AB101: CÚCUTA | AC101: 4773 | AD101: COMERCIO AL POR MAYOR Y AL POR MENOR; REPARACIÓN DE VEHÍCULOS AUTOMOTORES Y MOTOCICLETAS | AE101: 0 | AF101: 0 | AG101: 0 | AH101: 0 | AI101: 0 | AJ101: 0 | AK101: 0 | AL101: 0 | AM101: 0
C102: Jurídica | D102: 5 | E102: ANTIOQUIA | F102: 5001 | G102: MEDELLÍN | H102: 4773 | I102: COMERCIO AL POR MAYOR Y AL POR MENOR; REPARACIÓN DE VEHÍCULOS AUTOMOTORES Y MOTOCICLETAS | V102: 0 | W102: 0 | X102: Jurídica | Y102: 54 | Z102: NORTE DE SANTANDER | AA102: 54001 | AB102: CÚCUTA | AC102: 8691 | AD102: ACTIVIDADES DE ATENCIÓN DE LA SALUD HUMANA Y DE ASISTENCIA SOCIAL | AE102: 0 | AF102: 0 | AG102: 0 | AH102: 0 | AI102: 0 | AJ102: 0 | AK102: 0 | AL102: 0 | AM102: 0
C103: Jurídica | D103: 8 | E103: ATLÁNTICO | F103: 8001 | G103: BARRANQUILLA | H103: 6810 | I103: ACTIVIDADES INMOBILIARIAS | V103: 0 | W103: 0 | X103: Jurídica | Y103: 54 | Z103: NORTE DE SANTANDER | AA103: 54001 | AB103: CÚCUTA | AC103: 5820 | AD103: INFORMACIÓN Y COMUNICACIONES | AE103: 0 | AF103: 0 | AG103: 0 | AH103: 0 | AI103: 0 | AJ103: 0 | AK103: 0 | AL103: 0 | AM103: 0
C104: Jurídica | D104: 11 | E104: BOGOTÁ, D.C. | F104: 11001 | G104: BOGOTÁ, D.C. | H104: 2229 | I104: INDUSTRIAS MANUFACTURERAS | V104: 0 | W104: 0 | X104: Jurídica | Y104: 54 | Z104: NORTE DE SANTANDER | AA104: 54001 | AB104: CÚCUTA | AC104: 4771 | AD104: COMERCIO AL POR MAYOR Y AL POR MENOR; REPARACIÓN DE VEHÍCULOS AUTOMOTORES Y MOTOCICLETAS | AE104: 0 | AF104: 0 | AG104: 0 | AH104: 0 | AI104: 0 | AJ104: 0 | AK104: 0 | AL104: 0 | AM104: 0
C105: Jurídica | D105: 25 | E105: CUNDINAMARCA | F105: 25214 | G105: COTA | H105: 1011 | I105: INDUSTRIAS MANUFACTURERAS | V105: 0 | W105: 0 | X105: Natural | Y105: 54 | Z105: NORTE DE SANTANDER | AA105: 54720 | AB105: SARDINATA | AC105: 4752 | AD105: COMERCIO AL POR MAYOR Y AL POR MENOR; REPARACIÓN DE VEHÍCULOS AUTOMOTORES Y MOTOCICLETAS | AE105: 0 | AF105: 0 | AG105: 0 | AH105: 0 | AI105: 0 | AJ105: 0 | AK105: 0 | AL105: 0 | AM105: 0
C106: Jurídica | D106: 5 | E106: ANTIOQUIA | F106: 5001 | G106: MEDELLÍN | H106: 4775 | I106: COMERCIO AL POR MAYOR Y AL POR MENOR; REPARACIÓN DE VEHÍCULOS AUTOMOTORES Y MOTOCICLETAS | V106: 0 | W106: 0 | X106: Natural | Y106: 54 | Z106: NORTE DE SANTANDER | AA106: 54001 | AB106: CÚCUTA | AC106: 4530 | AD106: COMERCIO AL POR MAYOR Y AL POR MENOR; REPARACIÓN DE VEHÍCULOS AUTOMOTORES Y MOTOCICLETAS | AE106: 0 | AF106: 0 | AG106: 0 | AH106: 0 | AI106: 0 | AJ106: 0 | AK106: 0 | AL106: 0 | AM106: 0
C107: Jurídica | D107: 68 | E107: SANTANDER | F107: 68001 | G107: BUCARAMANGA | H107: 4290 | I107: CONSTRUCCIÓN | V107: 0 | W107: 0 | X107: Natural | Y107: 54 | Z107: NORTE DE SANTANDER | AA107: 54001 | AB107: CÚCUTA | AC107: 4541 | AD107: COMERCIO AL POR MAYOR Y AL POR MENOR; REPARACIÓN DE VEHÍCULOS AUTOMOTORES Y MOTOCICLETAS | AE107: 0 | AF107: 0 | AG107: 0 | AH107: 0 | AI107: 0 | AJ107: 0 | AK107: 0 | AL107: 0 | AM107: 0
C108: Jurídica | D108: 76 | E108: VALLE DEL CAUCA | F108: 76001 | G108: CALI | H108: 6810 | I108: ACTIVIDADES INMOBILIARIAS | V108: 0 | W108: 0 | X108: Jurídica | Y108: 54 | Z108: NORTE DE SANTANDER | AA108: 54001 | AB108: CÚCUTA | AC108: 4741 | AD108: COMERCIO AL POR MAYOR Y AL POR MENOR; REPARACIÓN DE VEHÍCULOS AUTOMOTORES Y MOTOCICLETAS | AE108: 0 | AF108: 0 | AG108: 0 | AH108: 0 | AI108: 0 | AJ108: 0 | AK108: 0 | AL108: 0 | AM108: 0
C109: Jurídica | D109: 76 | E109: VALLE DEL CAUCA | F109: 76001 | G109: CALI | H109: 8621 | I109: ACTIVIDADES DE ATENCIÓN DE LA SALUD HUMANA Y DE ASISTENCIA SOCIAL | V109: 0 | W109: 0 | X109: Jurídica | Y109: 54 | Z109: NORTE DE SANTANDER | AA109: 54001 | AB109: CÚCUTA | AC109: 5611 | AD109: ALOJAMIENTO Y SERVICIOS DE COMIDA | AE109: 0 | AF109: 0 | AG109: 0 | AH109: 0 | AI109: 0 | AJ109: 0 | AK109: 0 | AL109: 0 | AM109: 0
C110: Jurídica | D110: 54 | E110: NORTE DE SANTANDER | F110: 54001 | G110: CÚCUTA | H110: 4631 | I110: COMERCIO AL POR MAYOR Y AL POR MENOR; REPARACIÓN DE VEHÍCULOS AUTOMOTORES Y MOTOCICLETAS | V110: 0 | W110: 0 | X110: Jurídica | Y110: 54 | Z110: NORTE DE SANTANDER | AA110: 54001 | AB110: CÚCUTA | AC110: 2819 | AD110: INDUSTRIAS MANUFACTURERAS | AE110: 0 | AF110: 0 | AG110: 0 | AH110: 0 | AI110: 0 | AJ110: 0 | AK110: 0 | AL110: 0 | AM110: 0
C111: Natural | D111: 17 | E111: CALDAS | F111: 17380 | G111: LA DORADA | H111: 4723 | I111: COMERCIO AL POR MAYOR Y AL POR MENOR; REPARACIÓN DE VEHÍCULOS AUTOMOTORES Y MOTOCICLETAS | V111: 0 | W111: 0 | X111: Jurídica | Y111: 54 | Z111: NORTE DE SANTANDER | AA111: 54001 | AB111: CÚCUTA | AC111: 4659 | AD111: COMERCIO AL POR MAYOR Y AL POR MENOR; REPARACIÓN DE VEHÍCULOS AUTOMOTORES Y MOTOCICLETAS | AE111: 0 | AF111: 0 | AG111: 0 | AH111: 0 | AI111: 0 | AJ111: 0 | AK111: 0 | AL111: 0 | AM111: 0
C112: Jurídica | D112: 68 | E112: SANTANDER | F112: 68001 | G112: BUCARAMANGA | H112: 5912 | I112: INFORMACIÓN Y COMUNICACIONES | V112: 0 | W112: 0 | X112: Jurídica | Y112: 54 | Z112: NORTE DE SANTANDER | AA112: 54518 | AB112: PAMPLONA | AC112: 4711 | AD112: COMERCIO AL POR MAYOR Y AL POR MENOR; REPARACIÓN DE VEHÍCULOS AUTOMOTORES Y MOTOCICLETAS | AE112: 0 | AF112: 0 | AG112: 0 | AH112: 0 | AI112: 0 | AJ112: 0 | AK112: 0 | AL112: 0 | AM112: 0
C113: Natural | D113: 17 | E113: CALDAS | F113: 17380 | G113: LA DORADA | H113: 4751 | I113: COMERCIO AL POR MAYOR Y AL POR MENOR; REPARACIÓN DE VEHÍCULOS AUTOMOTORES Y MOTOCICLETAS | V113: 0 | W113: 0 | X113: Natural | Y113: 54 | Z113: NORTE DE SANTANDER | AA113: 54001 | AB113: CÚCUTA | AC113: 4530 | AD113: COMERCIO AL POR MAYOR Y AL POR MENOR; REPARACIÓN DE VEHÍCULOS AUTOMOTORES Y MOTOCICLETAS | AE113: 0 | AF113: 0 | AG113: 0 | AH113: 0 | AI113: 0 | AJ113: 0 | AK113: 0 | AL113: 0 | AM113: 0
C114: Natural | D114: 70 | E114: SUCRE | F114: 70001 | G114: SINCELEJO | H114: 4754 | I114: COMERCIO AL POR MAYOR Y AL POR MENOR; REPARACIÓN DE VEHÍCULOS AUTOMOTORES Y MOTOCICLETAS | V114: 0 | W114: 0 | X114: Jurídica | Y114: 54 | Z114: NORTE DE SANTANDER | AA114: 54518 | AB114: PAMPLONA | AC114: 4752 | AD114: COMERCIO AL POR MAYOR Y AL POR MENOR; REPARACIÓN DE VEHÍCULOS AUTOMOTORES Y MOTOCICLETAS | AE114: 0 | AF114: 0 | AG114: 0 | AH114: 0 | AI114: 0 | AJ114: 0 | AK114: 0 | AL114: 0 | AM114: 0
C115: Jurídica | D115: 11 | E115: BOGOTÁ, D.C. | F115: 11001 | G115: BOGOTÁ, D.C. | H115: 4755 | I115: COMERCIO AL POR MAYOR Y AL POR MENOR; REPARACIÓN DE VEHÍCULOS AUTOMOTORES Y MOTOCICLETAS | V115: 0 | W115: 0 | X115: Jurídica | Y115: 54 | Z115: NORTE DE SANTANDER | AA115: 54001 | AB115: CÚCUTA | AC115: 4731 | AD115: COMERCIO AL POR MAYOR Y AL POR MENOR; REPARACIÓN DE VEHÍCULOS AUTOMOTORES Y MOTOCICLETAS | AE115: 0 | AF115: 0 | AG115: 0 | AH115: 0 | AI115: 0 | AJ115: 0 | AK115: 0 | AL115: 0 | AM115: 0
C116: Natural | D116: 70 | E116: SUCRE | F116: 70001 | G116: SINCELEJO | H116: 5511 | I116: ALOJAMIENTO Y SERVICIOS DE COMIDA | V116: 0 | W116: 0 | X116: Jurídica | Y116: 54 | Z116: NORTE DE SANTANDER | AA116: 54001 | AB116: CÚCUTA | AC116: 510 | AD116: EXPLOTACIÓN DE MINAS Y CANTERAS | AE116: 0 | AF116: 0 | AG116: 0 | AH116: 0 | AI116: 0 | AJ116: 0 | AK116: 0 | AL116: 0 | AM116: 0
C117: Natural | D117: 11 | E117: BOGOTÁ, D.C. | F117: 11001 | G117: BOGOTÁ, D.C. | H117: 4711 | I117: COMERCIO AL POR MAYOR Y AL POR MENOR; REPARACIÓN DE VEHÍCULOS AUTOMOTORES Y MOTOCICLETAS | V117: 0 | W117: 0 | X117: Natural | Y117: 54 | Z117: NORTE DE SANTANDER | AA117: 54001 | AB117: CÚCUTA | AC117: 4772 | AD117: COMERCIO AL POR MAYOR Y AL POR MENOR; REPARACIÓN DE VEHÍCULOS AUTOMOTORES Y MOTOCICLETAS | AE117: 0 | AF117: 0 | AG117: 0 | AH117: 0 | AI117: 0 | AJ117: 0 | AK117: 0 | AL117: 0 | AM117: 0
C118: Jurídica | D118: 11 | E118: BOGOTÁ, D.C. | F118: 11001 | G118: BOGOTÁ, D.C. | H118: 4752 | I118: COMERCIO AL POR MAYOR Y AL POR MENOR; REPARACIÓN DE VEHÍCULOS AUTOMOTORES Y MOTOCICLETAS | V118: 0 | W118: 0 | X118: Jurídica | Y118: 54 | Z118: NORTE DE SANTANDER | AA118: 54001 | AB118: CÚCUTA | AC118: 4111 | AD118: CONSTRUCCIÓN | AE118: 0 | AF118: 0 | AG118: 0 | AH118: 0 | AI118: 0 | AJ118: 0 | AK118: 0 | AL118: 0 | AM118: 0
C119: Jurídica | D119: 8 | E119: ATLÁNTICO | F119: 8001 | G119: BARRANQUILLA | H119: 4741 | I119: COMERCIO AL POR MAYOR Y AL POR MENOR; REPARACIÓN DE VEHÍCULOS AUTOMOTORES Y MOTOCICLETAS | V119: 0 | W119: 0 | X119: Jurídica | Y119: 54 | Z119: NORTE DE SANTANDER | AA119: 54498 | AB119: OCAÑA | AC119: 8691 | AD119: ACTIVIDADES DE ATENCIÓN DE LA SALUD HUMANA Y DE ASISTENCIA SOCIAL | AE119: 0 | AF119: 0 | AG119: 0 | AH119: 0 | AI119: 0 | AJ119: 0 | AK119: 0 | AL119: 0 | AM119: 0
C120: Jurídica | D120: 11 | E120: BOGOTÁ, D.C. | F120: 11001 | G120: BOGOTÁ, D.C. | H120: 4530 | I120: COMERCIO AL POR MAYOR Y AL POR MENOR; REPARACIÓN DE VEHÍCULOS AUTOMOTORES Y MOTOCICLETAS | V120: 0 | W120: 0 | X120: Jurídica | Y120: 54 | Z120: NORTE DE SANTANDER | AA120: 54498 | AB120: OCAÑA | AC120: 4771 | AD120: COMERCIO AL POR MAYOR Y AL POR MENOR; REPARACIÓN DE VEHÍCULOS AUTOMOTORES Y MOTOCICLETAS | AE120: 0 | AF120: 0 | AG120: 0 | AH120: 0 | AI120: 0 | AJ120: 0 | AK120: 0 | AL120: 0 | AM120: 0
C121: Jurídica | D121: 8 | E121: ATLÁNTICO | F121: 8001 | G121: BARRANQUILLA | H121: 4741 | I121: COMERCIO AL POR MAYOR Y AL POR MENOR; REPARACIÓN DE VEHÍCULOS AUTOMOTORES Y MOTOCICLETAS | V121: 0 | W121: 0 | X121: Natural | Y121: 54 | Z121: NORTE DE SANTANDER | AA121: 54001 | AB121: CÚCUTA | AC121: 1410 | AD121: INDUSTRIAS MANUFACTURERAS | AE121: 0 | AF121: 0 | AG121: 0 | AH121: 0 | AI121: 0 | AJ121: 0 | AK121: 0 | AL121: 0 | AM121: 0
C122: Jurídica | D122: 11 | E122: BOGOTÁ, D.C. | F122: 11001 | G122: BOGOTÁ, D.C. | H122: 8530 | I122: EDUCACIÓN | V122: 0 | W122: 0 | X122: Jurídica | Y122: 54 | Z122: NORTE DE SANTANDER | AA122: 54001 | AB122: CÚCUTA | AC122: 4111 | AD122: CONSTRUCCIÓN | AE122: 0 | AF122: 0 | AG122: 0 | AH122: 0 | AI122: 0 | AJ122: 0 | AK122: 0 | AL122: 0 | AM122: 0
C123: Natural | D123: 11 | E123: BOGOTÁ, D.C. | F123: 11001 | G123: BOGOTÁ, D.C. | H123: 4719 | I123: COMERCIO AL POR MAYOR Y AL POR MENOR; REPARACIÓN DE VEHÍCULOS AUTOMOTORES Y MOTOCICLETAS | V123: 0 | W123: 0 | X123: Jurídica | Y123: 54 | Z123: NORTE DE SANTANDER | AA123: 54001 | AB123: CÚCUTA | AC123: 4530 | AD123: COMERCIO AL POR MAYOR Y AL POR MENOR; REPARACIÓN DE VEHÍCULOS AUTOMOTORES Y MOTOCICLETAS | AE123: 0 | AF123: 0 | AG123: 0 | AH123: 0 | AI123: 0 | AJ123: 0 | AK123: 0 | AL123: 0 | AM123: 0
C124: Jurídica | D124: 11 | E124: BOGOTÁ, D.C. | F124: 11001 | G124: BOGOTÁ, D.C. | H124: 4723 | I124: COMERCIO AL POR MAYOR Y AL POR MENOR; REPARACIÓN DE VEHÍCULOS AUTOMOTORES Y MOTOCICLETAS | V124: 0 | W124: 0 | X124: Jurídica | Y124: 54 | Z124: NORTE DE SANTANDER | AA124: 54001 | AB124: CÚCUTA | AC124: 1521 | AD124: INDUSTRIAS MANUFACTURERAS | AE124: 0 | AF124: 0 | AG124: 0 | AH124: 0 | AI124: 0 | AJ124: 0 | AK124: 0 | AL124: 0 | AM124: 0
C125: Jurídica | D125: 17 | E125: CALDAS | F125: 17042 | G125: ANSERMA | H125: 4771 | I125: COMERCIO AL POR MAYOR Y AL POR MENOR; REPARACIÓN DE VEHÍCULOS AUTOMOTORES Y MOTOCICLETAS | V125: 0 | W125: 0 | X125: Jurídica | Y125: 54 | Z125: NORTE DE SANTANDER | AA125: 54498 | AB125: OCAÑA | AC125: 4642 | AD125: COMERCIO AL POR MAYOR Y AL POR MENOR; REPARACIÓN DE VEHÍCULOS AUTOMOTORES Y MOTOCICLETAS | AE125: 0 | AF125: 0 | AG125: 0 | AH125: 0 | AI125: 0 | AJ125: 0 | AK125: 0 | AL125: 0 | AM125: 0
C126: Jurídica | D126: 11 | E126: BOGOTÁ, D.C. | F126: 11001 | G126: BOGOTÁ, D.C. | H126: 2229 | I126: INDUSTRIAS MANUFACTURERAS | V126: 0 | W126: 0 | X126: Natural | Y126: 54 | Z126: NORTE DE SANTANDER | AA126: 54874 | AB126: VILLA DEL ROSARIO | AC126: 2392 | AD126: INDUSTRIAS MANUFACTURERAS | AE126: 0 | AF126: 0 | AG126: 0 | AH126: 0 | AI126: 0 | AJ126: 0 | AK126: 0 | AL126: 0 | AM126: 0
C127: Jurídica | D127: 15 | E127: BOYACÁ | F127: 15322 | G127: GUATEQUE | H127: 4112 | I127: CONSTRUCCIÓN | V127: 0 | W127: 0 | X127: Jurídica | Y127: 54 | Z127: NORTE DE SANTANDER | AA127: 54172 | AB127: CHINÁCOTA | AC127: 1062 | AD127: INDUSTRIAS MANUFACTURERAS | AE127: 0 | AF127: 0 | AG127: 0 | AH127: 0 | AI127: 0 | AJ127: 0 | AK127: 0 | AL127: 0 | AM127: 0
C128: Jurídica | D128: 52 | E128: NARIÑO | F128: 52001 | G128: PASTO | H128: 4663 | I128: COMERCIO AL POR MAYOR Y AL POR MENOR; REPARACIÓN DE VEHÍCULOS AUTOMOTORES Y MOTOCICLETAS | V128: 0 | W128: 0 | X128: Jurídica | Y128: 54 | Z128: NORTE DE SANTANDER | AA128: 54001 | AB128: CÚCUTA | AC128: 4530 | AD128: COMERCIO AL POR MAYOR Y AL POR MENOR; REPARACIÓN DE VEHÍCULOS AUTOMOTORES Y MOTOCICLETAS | AE128: 0 | AF128: 0 | AG128: 0 | AH128: 0 | AI128: 0 | AJ128: 0 | AK128: 0 | AL128: 0 | AM128: 0
C129: Jurídica | D129: 63 | E129: QUINDIO | F129: 63001 | G129: ARMENIA | H129: 4111 | I129: CONSTRUCCIÓN | V129: 0 | W129: 0 | X129: Jurídica | Y129: 54 | Z129: NORTE DE SANTANDER | AA129: 54001 | AB129: CÚCUTA | AC129: 4631 | AD129: COMERCIO AL POR MAYOR Y AL POR MENOR; REPARACIÓN DE VEHÍCULOS AUTOMOTORES Y MOTOCICLETAS | AE129: 0 | AF129: 0 | AG129: 0 | AH129: 0 | AI129: 0 | AJ129: 0 | AK129: 0 | AL129: 0 | AM129: 0
C130: Jurídica | D130: 11 | E130: BOGOTÁ, D.C. | F130: 11001 | G130: BOGOTÁ, D.C. | H130: 7020 | I130: ACTIVIDADES PROFESIONALES, CIENTÍFICAS Y TÉCNICAS | V130: 0 | W130: 0 | X130: Natural | Y130: 54 | Z130: NORTE DE SANTANDER | AA130: 54001 | AB130: CÚCUTA | AC130: 4773 | AD130: COMERCIO AL POR MAYOR Y AL POR MENOR; REPARACIÓN DE VEHÍCULOS AUTOMOTORES Y MOTOCICLETAS | AE130: 0 | AF130: 0 | AG130: 0 | AH130: 0 | AI130: 0 | AJ130: 0 | AK130: 0 | AL130: 0 | AM130: 0
C131: Jurídica | D131: 11 | E131: BOGOTÁ, D.C. | F131: 11001 | G131: BOGOTÁ, D.C. | H131: 7020 | I131: ACTIVIDADES PROFESIONALES, CIENTÍFICAS Y TÉCNICAS | V131: 0 | W131: 0 | X131: Jurídica | Y131: 54 | Z131: NORTE DE SANTANDER | AA131: 54001 | AB131: CÚCUTA | AC131: 7111 | AD131: ACTIVIDADES PROFESIONALES, CIENTÍFICAS Y TÉCNICAS | AE131: 0 | AF131: 0 | AG131: 0 | AH131: 0 | AI131: 0 | AJ131: 0 | AK131: 0 | AL131: 0 | AM131: 0
C132: Jurídica | D132: 68 | E132: SANTANDER | F132: 68001 | G132: BUCARAMANGA | H132: 8299 | I132: ACTIVIDADES DE SERVICIOS ADMINISTRATIVOS Y DE APOYO | V132: 0 | W132: 0 | X132: Jurídica | Y132: 54 | Z132: NORTE DE SANTANDER | AA132: 54001 | AB132: CÚCUTA | AC132: 8010 | AD132: ACTIVIDADES DE SERVICIOS ADMINISTRATIVOS Y DE APOYO | AE132: 0 | AF132: 0 | AG132: 0 | AH132: 0 | AI132: 0 | AJ132: 0 | AK132: 0 | AL132: 0 | AM132: 0
C133: Natural | D133: 68 | E133: SANTANDER | F133: 68001 | G133: BUCARAMANGA | H133: 4711 | I133: COMERCIO AL POR MAYOR Y AL POR MENOR; REPARACIÓN DE VEHÍCULOS AUTOMOTORES Y MOTOCICLETAS | V133: 0 | W133: 0 | X133: Jurídica | Y133: 54 | Z133: NORTE DE SANTANDER | AA133: 54001 | AB133: CÚCUTA | AC133: 4530 | AD133: COMERCIO AL POR MAYOR Y AL POR MENOR; REPARACIÓN DE VEHÍCULOS AUTOMOTORES Y MOTOCICLETAS | AE133: 0 | AF133: 0 | AG133: 0 | AH133: 0 | AI133: 0 | AJ133: 0 | AK133: 0 | AL133: 0 | AM133: 0
C134: Natural | D134: 73 | E134: TOLIMA | F134: 73001 | G134: IBAGUÉ | H134: 5611 | I134: ALOJAMIENTO Y SERVICIOS DE COMIDA | V134: 0 | W134: 0 | X134: Natural | Y134: 54 | Z134: NORTE DE SANTANDER | AA134: 54518 | AB134: PAMPLONA | AC134: 5511 | AD134: ALOJAMIENTO Y SERVICIOS DE COMIDA | AE134: 0 | AF134: 0 | AG134: 0 | AH134: 0 | AI134: 0 | AJ134: 0 | AK134: 0 | AL134: 0 | AM134: 0
C135: Natural | D135: 25 | E135: CUNDINAMARCA | F135: 25269 | G135: FACATATIVÁ | H135: 4752 | I135: COMERCIO AL POR MAYOR Y AL POR MENOR; REPARACIÓN DE VEHÍCULOS AUTOMOTORES Y MOTOCICLETAS | V135: 0 | W135: 0 | X135: Jurídica | Y135: 54 | Z135: NORTE DE SANTANDER | AA135: 54405 | AB135: LOS PATIOS | AC135: 4649 | AD135: COMERCIO AL POR MAYOR Y AL POR MENOR; REPARACIÓN DE VEHÍCULOS AUTOMOTORES Y MOTOCICLETAS | AE135: 0 | AF135: 0 | AG135: 0 | AH135: 0 | AI135: 0 | AJ135: 0 | AK135: 0 | AL135: 0 | AM135: 0
C136: Natural | D136: 17 | E136: CALDAS | F136: 17380 | G136: LA DORADA | H136: 5229 | I136: TRANSPORTE Y ALMACENAMIENTO | V136: 0 | W136: 0 | X136: Jurídica | Y136: 54 | Z136: NORTE DE SANTANDER | AA136: 54001 | AB136: CÚCUTA | AC136: 5511 | AD136: ALOJAMIENTO Y SERVICIOS DE COMIDA | AE136: 0 | AF136: 0 | AG136: 0 | AH136: 0 | AI136: 0 | AJ136: 0 | AK136: 0 | AL136: 0 | AM136: 0
C137: Natural | D137: 54 | E137: NORTE DE SANTANDER | F137: 54498 | G137: OCAÑA | H137: 4731 | I137: COMERCIO AL POR MAYOR Y AL POR MENOR; REPARACIÓN DE VEHÍCULOS AUTOMOTORES Y MOTOCICLETAS | V137: 0 | W137: 0 | X137: Jurídica | Y137: 54 | Z137: NORTE DE SANTANDER | AA137: 54001 | AB137: CÚCUTA | AC137: 4771 | AD137: COMERCIO AL POR MAYOR Y AL POR MENOR; REPARACIÓN DE VEHÍCULOS AUTOMOTORES Y MOTOCICLETAS | AE137: 0 | AF137: 0 | AG137: 0 | AH137: 0 | AI137: 0 | AJ137: 0 | AK137: 0 | AL137: 0 | AM137: 0
C138: Natural | D138: 25 | E138: CUNDINAMARCA | F138: 25290 | G138: FUSAGASUGÁ | H138: 130 | I138: AGRICULTURA, GANADERÍA, CAZA, SILVICULTURA Y PESCA | V138: 0 | W138: 0 | X138: Jurídica | Y138: 54 | Z138: NORTE DE SANTANDER | AA138: 54001 | AB138: CÚCUTA | AC138: 4530 | AD138: COMERCIO AL POR MAYOR Y AL POR MENOR; REPARACIÓN DE VEHÍCULOS AUTOMOTORES Y MOTOCICLETAS | AE138: 0 | AF138: 0 | AG138: 0 | AH138: 0 | AI138: 0 | AJ138: 0 | AK138: 0 | AL138: 0 | AM138: 0
C139: Natural | D139: 81 | E139: ARAUCA | F139: 81001 | G139: ARAUCA | H139: 5511 | I139: ALOJAMIENTO Y SERVICIOS DE COMIDA | V139: 0 | W139: 0 | X139: Jurídica | Y139: 54 | Z139: NORTE DE SANTANDER | AA139: 54001 | AB139: CÚCUTA | AC139: 6920 | AD139: ACTIVIDADES PROFESIONALES, CIENTÍFICAS Y TÉCNICAS | AE139: 0 | AF139: 0 | AG139: 0 | AH139: 0 | AI139: 0 | AJ139: 0 | AK139: 0 | AL139: 0 | AM139: 0
C140: Natural | D140: 17 | E140: CALDAS | F140: 17001 | G140: MANIZALES | H140: 4663 | I140: COMERCIO AL POR MAYOR Y AL POR MENOR; REPARACIÓN DE VEHÍCULOS AUTOMOTORES Y MOTOCICLETAS | V140: 0 | W140: 0 | X140: Natural | Y140: 54 | Z140: NORTE DE SANTANDER | AA140: 54001 | AB140: CÚCUTA | AC140: 4711 | AD140: COMERCIO AL POR MAYOR Y AL POR MENOR; REPARACIÓN DE VEHÍCULOS AUTOMOTORES Y MOTOCICLETAS | AE140: 0 | AF140: 0 | AG140: 0 | AH140: 0 | AI140: 0 | AJ140: 0 | AK140: 0 | AL140: 0 | AM140: 0
C141: Natural | D141: 11 | E141: BOGOTÁ, D.C. | F141: 11001 | G141: BOGOTÁ, D.C. | H141: 6399 | I141: INFORMACIÓN Y COMUNICACIONES | V141: 0 | W141: 0 | X141: Jurídica | Y141: 54 | Z141: NORTE DE SANTANDER | AA141: 54001 | AB141: CÚCUTA | AC141: 4752 | AD141: COMERCIO AL POR MAYOR Y AL POR MENOR; REPARACIÓN DE VEHÍCULOS AUTOMOTORES Y MOTOCICLETAS | AE141: 0 | AF141: 0 | AG141: 0 | AH141: 0 | AI141: 0 | AJ141: 0 | AK141: 0 | AL141: 0 | AM141: 0
C142: Natural | D142: 91 | E142: AMAZONAS | F142: 91001 | G142: LETICIA | H142: 4711 | I142: COMERCIO AL POR MAYOR Y AL POR MENOR; REPARACIÓN DE VEHÍCULOS AUTOMOTORES Y MOTOCICLETAS | V142: 0 | W142: 0 | X142: Natural | Y142: 54 | Z142: NORTE DE SANTANDER | AA142: 54001 | AB142: CÚCUTA | AC142: 3290 | AD142: INDUSTRIAS MANUFACTURERAS | AE142: 0 | AF142: 0 | AG142: 0 | AH142: 0 | AI142: 0 | AJ142: 0 | AK142: 0 | AL142: 0 | AM142: 0
C143: Natural | D143: 76 | E143: VALLE DEL CAUCA | F143: 76109 | G143: BUENAVENTURA | H143: 5511 | I143: ALOJAMIENTO Y SERVICIOS DE COMIDA | V143: 0 | W143: 0 | X143: Natural | Y143: 54 | Z143: NORTE DE SANTANDER | AA143: 54001 | AB143: CÚCUTA | AC143: 8621 | AD143: ACTIVIDADES DE ATENCIÓN DE LA SALUD HUMANA Y DE ASISTENCIA SOCIAL | AE143: 0 | AF143: 0 | AG143: 0 | AH143: 0 | AI143: 0 | AJ143: 0 | AK143: 0 | AL143: 0 | AM143: 0
C144: Natural | D144: 76 | E144: VALLE DEL CAUCA | F144: 76001 | G144: CALI | H144: 5611 | I144: ALOJAMIENTO Y SERVICIOS DE COMIDA | V144: 0 | W144: 0 | X144: Jurídica | Y144: 54 | Z144: NORTE DE SANTANDER | AA144: 54518 | AB144: PAMPLONA | AC144: 6810 | AD144: ACTIVIDADES INMOBILIARIAS | AE144: 0 | AF144: 0 | AG144: 0 | AH144: 0 | AI144: 0 | AJ144: 0 | AK144: 0 | AL144: 0 | AM144: 0
C145: Natural | D145: 5 | E145: ANTIOQUIA | F145: 5001 | G145: MEDELLÍN | H145: 4771 | I145: COMERCIO AL POR MAYOR Y AL POR MENOR; REPARACIÓN DE VEHÍCULOS AUTOMOTORES Y MOTOCICLETAS | V145: 0 | W145: 0 | X145: Jurídica | Y145: 54 | Z145: NORTE DE SANTANDER | AA145: 54001 | AB145: CÚCUTA | AC145: 4663 | AD145: COMERCIO AL POR MAYOR Y AL POR MENOR; REPARACIÓN DE VEHÍCULOS AUTOMOTORES Y MOTOCICLETAS | AE145: 0 | AF145: 0 | AG145: 0 | AH145: 0 | AI145: 0 | AJ145: 0 | AK145: 0 | AL145: 0 | AM145: 0
C146: Natural | D146: 5 | E146: ANTIOQUIA | F146: 5001 | G146: MEDELLÍN | H146: 8551 | I146: EDUCACIÓN | V146: 0 | W146: 0 | X146: Jurídica | Y146: 54 | Z146: NORTE DE SANTANDER | AA146: 54001 | AB146: CÚCUTA | AC146: 4530 | AD146: COMERCIO AL POR MAYOR Y AL POR MENOR; REPARACIÓN DE VEHÍCULOS AUTOMOTORES Y MOTOCICLETAS | AE146: 0 | AF146: 0 | AG146: 0 | AH146: 0 | AI146: 0 | AJ146: 0 | AK146: 0 | AL146: 0 | AM146: 0
C147: Natural | D147: 8 | E147: ATLÁNTICO | F147: 8001 | G147: BARRANQUILLA | H147: 5530 | I147: ALOJAMIENTO Y SERVICIOS DE COMIDA | V147: 0 | W147: 0 | X147: Jurídica | Y147: 54 | Z147: NORTE DE SANTANDER | AA147: 54001 | AB147: CÚCUTA | AC147: 1410 | AD147: INDUSTRIAS MANUFACTURERAS | AE147: 0 | AF147: 0 | AG147: 0 | AH147: 0 | AI147: 0 | AJ147: 0 | AK147: 0 | AL147: 0 | AM147: 0
C148: Natural | D148: 44 | E148: LA GUAJIRA | F148: 44430 | G148: MAICAO | H148: 5511 | I148: ALOJAMIENTO Y SERVICIOS DE COMIDA | V148: 0 | W148: 0 | X148: Natural | Y148: 54 | Z148: NORTE DE SANTANDER | AA148: 54001 | AB148: CÚCUTA | AC148: 4742 | AD148: COMERCIO AL POR MAYOR Y AL POR MENOR; REPARACIÓN DE VEHÍCULOS AUTOMOTORES Y MOTOCICLETAS | AE148: 0 | AF148: 0 | AG148: 0 | AH148: 0 | AI148: 0 | AJ148: 0 | AK148: 0 | AL148: 0 | AM148: 0
C149: Natural | D149: 8 | E149: ATLÁNTICO | F149: 8638 | G149: SABANALARGA | H149: 1081 | I149: INDUSTRIAS MANUFACTURERAS | V149: 0 | W149: 0 | X149: Jurídica | Y149: 54 | Z149: NORTE DE SANTANDER | AA149: 54001 | AB149: CÚCUTA | AC149: 8020 | AD149: ACTIVIDADES DE SERVICIOS ADMINISTRATIVOS Y DE APOYO | AE149: 0 | AF149: 0 | AG149: 0 | AH149: 0 | AI149: 0 | AJ149: 0 | AK149: 0 | AL149: 0 | AM149: 0
C150: Jurídica | D150: 8 | E150: ATLÁNTICO | F150: 8001 | G150: BARRANQUILLA | H150: 5210 | I150: TRANSPORTE Y ALMACENAMIENTO | V150: 0 | W150: 0 | X150: Jurídica | Y150: 54 | Z150: NORTE DE SANTANDER | AA150: 54001 | AB150: CÚCUTA | AC150: 4632 | AD150: COMERCIO AL POR MAYOR Y AL POR MENOR; REPARACIÓN DE VEHÍCULOS AUTOMOTORES Y MOTOCICLETAS | AE150: 0 | AF150: 0 | AG150: 0 | AH150: 0 | AI150: 0 | AJ150: 0 | AK150: 0 | AL150: 0 | AM150: 0
C151: Jurídica | D151: 68 | E151: SANTANDER | F151: 68001 | G151: BUCARAMANGA | H151: 8622 | I151: ACTIVIDADES DE ATENCIÓN DE LA SALUD HUMANA Y DE ASISTENCIA SOCIAL | V151: 0 | W151: 0 | X151: Jurídica | Y151: 54 | Z151: NORTE DE SANTANDER | AA151: 54001 | AB151: CÚCUTA | AC151: 8121 | AD151: ACTIVIDADES DE SERVICIOS ADMINISTRATIVOS Y DE APOYO | AE151: 0 | AF151: 0 | AG151: 0 | AH151: 0 | AI151: 0 | AJ151: 0 | AK151: 0 | AL151: 0 | AM151: 0
C152: Jurídica | D152: 68 | E152: SANTANDER | F152: 68001 | G152: BUCARAMANGA | H152: 7911 | I152: ACTIVIDADES DE SERVICIOS ADMINISTRATIVOS Y DE APOYO | V152: 0 | W152: 0 | X152: Jurídica | Y152: 54 | Z152: NORTE DE SANTANDER | AA152: 54001 | AB152: CÚCUTA | AC152: 4923 | AD152: TRANSPORTE Y ALMACENAMIENTO | AE152: 0 | AF152: 0 | AG152: 0 | AH152: 0 | AI152: 0 | AJ152: 0 | AK152: 0 | AL152: 0 | AM152: 0
C153: Jurídica | D153: 68 | E153: SANTANDER | F153: 68001 | G153: BUCARAMANGA | H153: 4751 | I153: COMERCIO AL POR MAYOR Y AL POR MENOR; REPARACIÓN DE VEHÍCULOS AUTOMOTORES Y MOTOCICLETAS | V153: 0 | W153: 0 | X153: Jurídica | Y153: 54 | Z153: NORTE DE SANTANDER | AA153: 54001 | AB153: CÚCUTA | AC153: 4761 | AD153: COMERCIO AL POR MAYOR Y AL POR MENOR; REPARACIÓN DE VEHÍCULOS AUTOMOTORES Y MOTOCICLETAS | AE153: 0 | AF153: 0 | AG153: 0 | AH153: 0 | AI153: 0 | AJ153: 0 | AK153: 0 | AL153: 0 | AM153: 0
C154: Jurídica | D154: 11 | E154: BOGOTÁ, D.C. | F154: 11001 | G154: BOGOTÁ, D.C. | H154: 141 | I154: AGRICULTURA, GANADERÍA, CAZA, SILVICULTURA Y PESCA | V154: 0 | W154: 0 | X154: Jurídica | Y154: 54 | Z154: NORTE DE SANTANDER | AA154: 54001 | AB154: CÚCUTA | AC154: 9491 | AD154: OTRAS ACTIVIDADES DE SERVICIOS | AE154: 0 | AF154: 0 | AG154: 0 | AH154: 0 | AI154: 0 | AJ154: 0 | AK154: 0 | AL154: 0 | AM154: 0
C155: Jurídica | D155: 11 | E155: BOGOTÁ, D.C. | F155: 11001 | G155: BOGOTÁ, D.C. | H155: 4690 | I155: COMERCIO AL POR MAYOR Y AL POR MENOR; REPARACIÓN DE VEHÍCULOS AUTOMOTORES Y MOTOCICLETAS | V155: 0 | W155: 0 | X155: Natural | Y155: 54 | Z155: NORTE DE SANTANDER | AA155: 54001 | AB155: CÚCUTA | AC155: 8691 | AD155: ACTIVIDADES DE ATENCIÓN DE LA SALUD HUMANA Y DE ASISTENCIA SOCIAL | AE155: 0 | AF155: 0 | AG155: 0 | AH155: 0 | AI155: 0 | AJ155: 0 | AK155: 0 | AL155: 0 | AM155: 0
C156: Jurídica | D156: 68 | E156: SANTANDER | F156: 68001 | G156: BUCARAMANGA | H156: 4649 | I156: COMERCIO AL POR MAYOR Y AL POR MENOR; REPARACIÓN DE VEHÍCULOS AUTOMOTORES Y MOTOCICLETAS | V156: 0 | W156: 0 | X156: Jurídica | Y156: 54 | Z156: NORTE DE SANTANDER | AA156: 54001 | AB156: CÚCUTA | AC156: 4665 | AD156: COMERCIO AL POR MAYOR Y AL POR MENOR; REPARACIÓN DE VEHÍCULOS AUTOMOTORES Y MOTOCICLETAS | AE156: 0 | AF156: 0 | AG156: 0 | AH156: 0 | AI156: 0 | AJ156: 0 | AK156: 0 | AL156: 0 | AM156: 0
C157: Jurídica | D157: 68 | E157: SANTANDER | F157: 68755 | G157: SOCORRO | H157: 9491 | I157: OTRAS ACTIVIDADES DE SERVICIOS | V157: 0 | W157: 0 | X157: Natural | Y157: 54 | Z157: NORTE DE SANTANDER | AA157: 54001 | AB157: CÚCUTA | AC157: 9601 | AD157: OTRAS ACTIVIDADES DE SERVICIOS | AE157: 0 | AF157: 0 | AG157: 0 | AH157: 0 | AI157: 0 | AJ157: 0 | AK157: 0 | AL157: 0 | AM157: 0
C158: Jurídica | D158: 68 | E158: SANTANDER | F158: 68001 | G158: BUCARAMANGA | H158: 9200 | I158: ACTIVIDADES ARTÍSTICAS, DE ENTRETENIMIENTO Y RECREACIÓN | V158: 0 | W158: 0 | X158: Natural | Y158: 54 | Z158: NORTE DE SANTANDER | AA158: 54001 | AB158: CÚCUTA | AC158: 4719 | AD158: COMERCIO AL POR MAYOR Y AL POR MENOR; REPARACIÓN DE VEHÍCULOS AUTOMOTORES Y MOTOCICLETAS | AE158: 0 | AF158: 0 | AG158: 0 | AH158: 0 | AI158: 0 | AJ158: 0 | AK158: 0 | AL158: 0 | AM158: 0
C159: Jurídica | D159: 68 | E159: SANTANDER | F159: 68001 | G159: BUCARAMANGA | H159: 4659 | I159: COMERCIO AL POR MAYOR Y AL POR MENOR; REPARACIÓN DE VEHÍCULOS AUTOMOTORES Y MOTOCICLETAS | V159: 0 | W159: 0 | X159: Jurídica | Y159: 54 | Z159: NORTE DE SANTANDER | AA159: 54001 | AB159: CÚCUTA | AC159: 8621 | AD159: ACTIVIDADES DE ATENCIÓN DE LA SALUD HUMANA Y DE ASISTENCIA SOCIAL | AE159: 0 | AF159: 0 | AG159: 0 | AH159: 0 | AI159: 0 | AJ159: 0 | AK159: 0 | AL159: 0 | AM159: 0
C160: Jurídica | D160: 68 | E160: SANTANDER | F160: 68549 | G160: PINCHOTE | H160: 9491 | I160: OTRAS ACTIVIDADES DE SERVICIOS | V160: 0 | W160: 0 | X160: Jurídica | Y160: 54 | Z160: NORTE DE SANTANDER | AA160: 54405 | AB160: LOS PATIOS | AC160: 1011 | AD160: INDUSTRIAS MANUFACTURERAS | AE160: 0 | AF160: 0 | AG160: 0 | AH160: 0 | AI160: 0 | AJ160: 0 | AK160: 0 | AL160: 0 | AM160: 0
C161: Jurídica | D161: 68 | E161: SANTANDER | F161: 68190 | G161: CIMITARRA | H161: 4663 | I161: COMERCIO AL POR MAYOR Y AL POR MENOR; REPARACIÓN DE VEHÍCULOS AUTOMOTORES Y MOTOCICLETAS | V161: 0 | W161: 0 | X161: Jurídica | Y161: 54 | Z161: NORTE DE SANTANDER | AA161: 54001 | AB161: CÚCUTA | AC161: 4732 | AD161: COMERCIO AL POR MAYOR Y AL POR MENOR; REPARACIÓN DE VEHÍCULOS AUTOMOTORES Y MOTOCICLETAS | AE161: 0 | AF161: 0 | AG161: 0 | AH161: 0 | AI161: 0 | AJ161: 0 | AK161: 0 | AL161: 0 | AM161: 0
C162: Jurídica | D162: 68 | E162: SANTANDER | F162: 68547 | G162: PIEDECUESTA | H162: 9200 | I162: ACTIVIDADES ARTÍSTICAS, DE ENTRETENIMIENTO Y RECREACIÓN | V162: 0 | W162: 0 | X162: Natural | Y162: 54 | Z162: NORTE DE SANTANDER | AA162: 54099 | AB162: BOCHALEMA | AC162: 811 | AD162: EXPLOTACIÓN DE MINAS Y CANTERAS | AE162: 0 | AF162: 0 | AG162: 0 | AH162: 0 | AI162: 0 | AJ162: 0 | AK162: 0 | AL162: 0 | AM162: 0
C163: Jurídica | D163: 68 | E163: SANTANDER | F163: 68077 | G163: BARBOSA | H163: 8610 | I163: ACTIVIDADES DE ATENCIÓN DE LA SALUD HUMANA Y DE ASISTENCIA SOCIAL | V163: 0 | W163: 0 | X163: Jurídica | Y163: 54 | Z163: NORTE DE SANTANDER | AA163: 54001 | AB163: CÚCUTA | AC163: 4731 | AD163: COMERCIO AL POR MAYOR Y AL POR MENOR; REPARACIÓN DE VEHÍCULOS AUTOMOTORES Y MOTOCICLETAS | AE163: 0 | AF163: 0 | AG163: 0 | AH163: 0 | AI163: 0 | AJ163: 0 | AK163: 0 | AL163: 0 | AM163: 0
C164: Jurídica | D164: 68 | E164: SANTANDER | F164: 68001 | G164: BUCARAMANGA | H164: 4731 | I164: COMERCIO AL POR MAYOR Y AL POR MENOR; REPARACIÓN DE VEHÍCULOS AUTOMOTORES Y MOTOCICLETAS | V164: 0 | W164: 0 | X164: Natural | Y164: 54 | Z164: NORTE DE SANTANDER | AA164: 54001 | AB164: CÚCUTA | AC164: 4631 | AD164: COMERCIO AL POR MAYOR Y AL POR MENOR; REPARACIÓN DE VEHÍCULOS AUTOMOTORES Y MOTOCICLETAS | AE164: 0 | AF164: 0 | AG164: 0 | AH164: 0 | AI164: 0 | AJ164: 0 | AK164: 0 | AL164: 0 | AM164: 0
C165: Jurídica | D165: 11 | E165: BOGOTÁ, D.C. | F165: 11001 | G165: BOGOTÁ, D.C. | H165: 1011 | I165: INDUSTRIAS MANUFACTURERAS | V165: 0 | W165: 0 | X165: Natural | Y165: 54 | Z165: NORTE DE SANTANDER | AA165: 54001 | AB165: CÚCUTA | AC165: 4773 | AD165: COMERCIO AL POR MAYOR Y AL POR MENOR; REPARACIÓN DE VEHÍCULOS AUTOMOTORES Y MOTOCICLETAS | AE165: 0 | AF165: 0 | AG165: 0 | AH165: 0 | AI165: 0 | AJ165: 0 | AK165: 0 | AL165: 0 | AM165: 0
C166: Jurídica | D166: 11 | E166: BOGOTÁ, D.C. | F166: 11001 | G166: BOGOTÁ, D.C. | H166: 1082 | I166: INDUSTRIAS MANUFACTURERAS | V166: 0 | W166: 0 | X166: Natural | Y166: 54 | Z166: NORTE DE SANTANDER | AA166: 54001 | AB166: CÚCUTA | AC166: 1011 | AD166: INDUSTRIAS MANUFACTURERAS | AE166: 0 | AF166: 0 | AG166: 0 | AH166: 0 | AI166: 0 | AJ166: 0 | AK166: 0 | AL166: 0 | AM166: 0
C167: Jurídica | D167: 11 | E167: BOGOTÁ, D.C. | F167: 11001 | G167: BOGOTÁ, D.C. | H167: 9412 | I167: OTRAS ACTIVIDADES DE SERVICIOS | V167: 0 | W167: 0 | X167: Jurídica | Y167: 54 | Z167: NORTE DE SANTANDER | AA167: 54001 | AB167: CÚCUTA | AC167: 5611 | AD167: ALOJAMIENTO Y SERVICIOS DE COMIDA | AE167: 0 | AF167: 0 | AG167: 0 | AH167: 0 | AI167: 0 | AJ167: 0 | AK167: 0 | AL167: 0 | AM167: 0
C168: Jurídica | D168: 11 | E168: BOGOTÁ, D.C. | F168: 11001 | G168: BOGOTÁ, D.C. | H168: 5911 | I168: INFORMACIÓN Y COMUNICACIONES | V168: 0 | W168: 0 | X168: Natural | Y168: 54 | Z168: NORTE DE SANTANDER | AA168: 54001 | AB168: CÚCUTA | AC168: 4771 | AD168: COMERCIO AL POR MAYOR Y AL POR MENOR; REPARACIÓN DE VEHÍCULOS AUTOMOTORES Y MOTOCICLETAS | AE168: 0 | AF168: 0 | AG168: 0 | AH168: 0 | AI168: 0 | AJ168: 0 | AK168: 0 | AL168: 0 | AM168: 0
C169: Jurídica | D169: 25 | E169: CUNDINAMARCA | F169: 25286 | G169: FUNZA | H169: 1709 | I169: INDUSTRIAS MANUFACTURERAS | V169: 0 | W169: 0 | X169: Natural | Y169: 54 | Z169: NORTE DE SANTANDER | AA169: 54001 | AB169: CÚCUTA | AC169: 4752 | AD169: COMERCIO AL POR MAYOR Y AL POR MENOR; REPARACIÓN DE VEHÍCULOS AUTOMOTORES Y MOTOCICLETAS | AE169: 0 | AF169: 0 | AG169: 0 | AH169: 0 | AI169: 0 | AJ169: 0 | AK169: 0 | AL169: 0 | AM169: 0
C170: Jurídica | D170: 11 | E170: BOGOTÁ, D.C. | F170: 11001 | G170: BOGOTÁ, D.C. | H170: 1011 | I170: INDUSTRIAS MANUFACTURERAS | V170: 0 | W170: 0 | X170: Natural | Y170: 54 | Z170: NORTE DE SANTANDER | AA170: 54001 | AB170: CÚCUTA | AC170: 4663 | AD170: COMERCIO AL POR MAYOR Y AL POR MENOR; REPARACIÓN DE VEHÍCULOS AUTOMOTORES Y MOTOCICLETAS | AE170: 0 | AF170: 0 | AG170: 0 | AH170: 0 | AI170: 0 | AJ170: 0 | AK170: 0 | AL170: 0 | AM170: 0
C171: Jurídica | D171: 11 | E171: BOGOTÁ, D.C. | F171: 11001 | G171: BOGOTÁ, D.C. | H171: 1011 | I171: INDUSTRIAS MANUFACTURERAS | V171: 0 | W171: 0 | X171: Jurídica | Y171: 54 | Z171: NORTE DE SANTANDER | AA171: 54001 | AB171: CÚCUTA | AC171: 126 | AD171: AGRICULTURA, GANADERÍA, CAZA, SILVICULTURA Y PESCA | AE171: 0 | AF171: 0 | AG171: 0 | AH171: 0 | AI171: 0 | AJ171: 0 | AK171: 0 | AL171: 0 | AM171: 0
C172: Jurídica | D172: 11 | E172: BOGOTÁ, D.C. | F172: 11001 | G172: BOGOTÁ, D.C. | H172: 1011 | I172: INDUSTRIAS MANUFACTURERAS | V172: 0 | W172: 0 | X172: Jurídica | Y172: 54 | Z172: NORTE DE SANTANDER | AA172: 54001 | AB172: CÚCUTA | AC172: 8691 | AD172: ACTIVIDADES DE ATENCIÓN DE LA SALUD HUMANA Y DE ASISTENCIA SOCIAL | AE172: 0 | AF172: 0 | AG172: 0 | AH172: 0 | AI172: 0 | AJ172: 0 | AK172: 0 | AL172: 0 | AM172: 0
C173: Jurídica | D173: 11 | E173: BOGOTÁ, D.C. | F173: 11001 | G173: BOGOTÁ, D.C. | H173: 4659 | I173: COMERCIO AL POR MAYOR Y AL POR MENOR; REPARACIÓN DE VEHÍCULOS AUTOMOTORES Y MOTOCICLETAS | V173: 0 | W173: 0 | X173: Jurídica | Y173: 54 | Z173: NORTE DE SANTANDER | AA173: 54498 | AB173: OCAÑA | AC173: 4530 | AD173: COMERCIO AL POR MAYOR Y AL POR MENOR; REPARACIÓN DE VEHÍCULOS AUTOMOTORES Y MOTOCICLETAS | AE173: 0 | AF173: 0 | AG173: 0 | AH173: 0 | AI173: 0 | AJ173: 0 | AK173: 0 | AL173: 0 | AM173: 0
C174: Jurídica | D174: 11 | E174: BOGOTÁ, D.C. | F174: 11001 | G174: BOGOTÁ, D.C. | H174: 4290 | I174: CONSTRUCCIÓN | V174: 0 | W174: 0 | X174: Jurídica | Y174: 54 | Z174: NORTE DE SANTANDER | AA174: 54001 | AB174: CÚCUTA | AC174: 4731 | AD174: COMERCIO AL POR MAYOR Y AL POR MENOR; REPARACIÓN DE VEHÍCULOS AUTOMOTORES Y MOTOCICLETAS | AE174: 0 | AF174: 0 | AG174: 0 | AH174: 0 | AI174: 0 | AJ174: 0 | AK174: 0 | AL174: 0 | AM174: 0
C175: Jurídica | D175: 11 | E175: BOGOTÁ, D.C. | F175: 11001 | G175: BOGOTÁ, D.C. | H175: 1811 | I175: INDUSTRIAS MANUFACTURERAS | V175: 0 | W175: 0 | X175: Natural | Y175: 54 | Z175: NORTE DE SANTANDER | AA175: 54001 | AB175: CÚCUTA | AC175: 4761 | AD175: COMERCIO AL POR MAYOR Y AL POR MENOR; REPARACIÓN DE VEHÍCULOS AUTOMOTORES Y MOTOCICLETAS | AE175: 0 | AF175: 0 | AG175: 0 | AH175: 0 | AI175: 0 | AJ175: 0 | AK175: 0 | AL175: 0 | AM175: 0
C176: Jurídica | D176: 11 | E176: BOGOTÁ, D.C. | F176: 11001 | G176: BOGOTÁ, D.C. | H176: 4511 | I176: COMERCIO AL POR MAYOR Y AL POR MENOR; REPARACIÓN DE VEHÍCULOS AUTOMOTORES Y MOTOCICLETAS | V176: 0 | W176: 0 | X176: Jurídica | Y176: 54 | Z176: NORTE DE SANTANDER | AA176: 54874 | AB176: VILLA DEL ROSARIO | AC176: 2432 | AD176: INDUSTRIAS MANUFACTURERAS | AE176: 0 | AF176: 0 | AG176: 0 | AH176: 0 | AI176: 0 | AJ176: 0 | AK176: 0 | AL176: 0 | AM176: 0
C177: Jurídica | D177: 11 | E177: BOGOTÁ, D.C. | F177: 11001 | G177: BOGOTÁ, D.C. | H177: 9319 | I177: ACTIVIDADES ARTÍSTICAS, DE ENTRETENIMIENTO Y RECREACIÓN | V177: 0 | W177: 0 | X177: Jurídica | Y177: 54 | Z177: NORTE DE SANTANDER | AA177: 54001 | AB177: CÚCUTA | AC177: 2023 | AD177: INDUSTRIAS MANUFACTURERAS | AE177: 0 | AF177: 0 | AG177: 0 | AH177: 0 | AI177: 0 | AJ177: 0 | AK177: 0 | AL177: 0 | AM177: 0
C178: Natural | D178: 8 | E178: ATLÁNTICO | F178: 8001 | G178: BARRANQUILLA | H178: 4723 | I178: COMERCIO AL POR MAYOR Y AL POR MENOR; REPARACIÓN DE VEHÍCULOS AUTOMOTORES Y MOTOCICLETAS | V178: 0 | W178: 0 | X178: Jurídica | Y178: 54 | Z178: NORTE DE SANTANDER | AA178: 54001 | AB178: CÚCUTA | AC178: 9603 | AD178: OTRAS ACTIVIDADES DE SERVICIOS | AE178: 0 | AF178: 0 | AG178: 0 | AH178: 0 | AI178: 0 | AJ178: 0 | AK178: 0 | AL178: 0 | AM178: 0
C179: Jurídica | D179: 11 | E179: BOGOTÁ, D.C. | F179: 11001 | G179: BOGOTÁ, D.C. | H179: 6820 | I179: ACTIVIDADES INMOBILIARIAS | V179: 0 | W179: 0 | X179: Jurídica | Y179: 54 | Z179: NORTE DE SANTANDER | AA179: 54001 | AB179: CÚCUTA | AC179: 6810 | AD179: ACTIVIDADES INMOBILIARIAS | AE179: 0 | AF179: 0 | AG179: 0 | AH179: 0 | AI179: 0 | AJ179: 0 | AK179: 0 | AL179: 0 | AM179: 0
C180: Jurídica | D180: 41 | E180: HUILA | F180: 41298 | G180: GARZÓN | H180: 2392 | I180: INDUSTRIAS MANUFACTURERAS | V180: 0 | W180: 0 | X180: Jurídica | Y180: 54 | Z180: NORTE DE SANTANDER | AA180: 54001 | AB180: CÚCUTA | AC180: 4774 | AD180: COMERCIO AL POR MAYOR Y AL POR MENOR; REPARACIÓN DE VEHÍCULOS AUTOMOTORES Y MOTOCICLETAS | AE180: 0 | AF180: 0 | AG180: 0 | AH180: 0 | AI180: 0 | AJ180: 0 | AK180: 0 | AL180: 0 | AM180: 0
C181: Jurídica | D181: 11 | E181: BOGOTÁ, D.C. | F181: 11001 | G181: BOGOTÁ, D.C. | H181: 9200 | I181: ACTIVIDADES ARTÍSTICAS, DE ENTRETENIMIENTO Y RECREACIÓN | V181: 0 | W181: 0 | X181: Jurídica | Y181: 54 | Z181: NORTE DE SANTANDER | AA181: 54001 | AB181: CÚCUTA | AC181: 4661 | AD181: COMERCIO AL POR MAYOR Y AL POR MENOR; REPARACIÓN DE VEHÍCULOS AUTOMOTORES Y MOTOCICLETAS | AE181: 0 | AF181: 0 | AG181: 0 | AH181: 0 | AI181: 0 | AJ181: 0 | AK181: 0 | AL181: 0 | AM181: 0
C182: Jurídica | D182: 8 | E182: ATLÁNTICO | F182: 8001 | G182: BARRANQUILLA | H182: 7820 | I182: ACTIVIDADES DE SERVICIOS ADMINISTRATIVOS Y DE APOYO | V182: 0 | W182: 0 | X182: Jurídica | Y182: 54 | Z182: NORTE DE SANTANDER | AA182: 54498 | AB182: OCAÑA | AC182: 4923 | AD182: TRANSPORTE Y ALMACENAMIENTO | AE182: 0 | AF182: 0 | AG182: 0 | AH182: 0 | AI182: 0 | AJ182: 0 | AK182: 0 | AL182: 0 | AM182: 0
C183: Jurídica | D183: 8 | E183: ATLÁNTICO | F183: 8001 | G183: BARRANQUILLA | H183: 126 | I183: AGRICULTURA, GANADERÍA, CAZA, SILVICULTURA Y PESCA | V183: 0 | W183: 0 | X183: Natural | Y183: 54 | Z183: NORTE DE SANTANDER | AA183: 54001 | AB183: CÚCUTA | AC183: 4772 | AD183: COMERCIO AL POR MAYOR Y AL POR MENOR; REPARACIÓN DE VEHÍCULOS AUTOMOTORES Y MOTOCICLETAS | AE183: 0 | AF183: 0 | AG183: 0 | AH183: 0 | AI183: 0 | AJ183: 0 | AK183: 0 | AL183: 0 | AM183: 0
C184: Jurídica | D184: 25 | E184: CUNDINAMARCA | F184: 25754 | G184: SOACHA | H184: 8530 | I184: EDUCACIÓN | V184: 0 | W184: 0 | X184: Jurídica | Y184: 54 | Z184: NORTE DE SANTANDER | AA184: 54001 | AB184: CÚCUTA | AC184: 6920 | AD184: ACTIVIDADES PROFESIONALES, CIENTÍFICAS Y TÉCNICAS | AE184: 0 | AF184: 0 | AG184: 0 | AH184: 0 | AI184: 0 | AJ184: 0 | AK184: 0 | AL184: 0 | AM184: 0
C185: Jurídica | D185: 76 | E185: VALLE DEL CAUCA | F185: 76001 | G185: CALI | H185: 5511 | I185: ALOJAMIENTO Y SERVICIOS DE COMIDA | V185: 0 | W185: 0 | X185: Jurídica | Y185: 54 | Z185: NORTE DE SANTANDER | AA185: 54001 | AB185: CÚCUTA | AC185: 4643 | AD185: COMERCIO AL POR MAYOR Y AL POR MENOR; REPARACIÓN DE VEHÍCULOS AUTOMOTORES Y MOTOCICLETAS | AE185: 0 | AF185: 0 | AG185: 0 | AH185: 0 | AI185: 0 | AJ185: 0 | AK185: 0 | AL185: 0 | AM185: 0
C186: Jurídica | D186: 76 | E186: VALLE DEL CAUCA | F186: 76834 | G186: TULUÁ | H186: 8621 | I186: ACTIVIDADES DE ATENCIÓN DE LA SALUD HUMANA Y DE ASISTENCIA SOCIAL | V186: 0 | W186: 0 | X186: Jurídica | Y186: 54 | Z186: NORTE DE SANTANDER | AA186: 54001 | AB186: CÚCUTA | AC186: 8511 | AD186: EDUCACIÓN | AE186: 0 | AF186: 0 | AG186: 0 | AH186: 0 | AI186: 0 | AJ186: 0 | AK186: 0 | AL186: 0 | AM186: 0
C187: Jurídica | D187: 11 | E187: BOGOTÁ, D.C. | F187: 11001 | G187: BOGOTÁ, D.C. | H187: 4752 | I187: COMERCIO AL POR MAYOR Y AL POR MENOR; REPARACIÓN DE VEHÍCULOS AUTOMOTORES Y MOTOCICLETAS | V187: 0 | W187: 0 | X187: Jurídica | Y187: 54 | Z187: NORTE DE SANTANDER | AA187: 54001 | AB187: CÚCUTA | AC187: 4210 | AD187: CONSTRUCCIÓN | AE187: 0 | AF187: 0 | AG187: 0 | AH187: 0 | AI187: 0 | AJ187: 0 | AK187: 0 | AL187: 0 | AM187: 0
C188: Jurídica | D188: 11 | E188: BOGOTÁ, D.C. | F188: 11001 | G188: BOGOTÁ, D.C. | H188: 4520 | I188: COMERCIO AL POR MAYOR Y AL POR MENOR; REPARACIÓN DE VEHÍCULOS AUTOMOTORES Y MOTOCICLETAS | V188: 0 | W188: 0 | X188: Jurídica | Y188: 54 | Z188: NORTE DE SANTANDER | AA188: 54001 | AB188: CÚCUTA | AC188: 9499 | AD188: OTRAS ACTIVIDADES DE SERVICIOS | AE188: 0 | AF188: 0 | AG188: 0 | AH188: 0 | AI188: 0 | AJ188: 0 | AK188: 0 | AL188: 0 | AM188: 0
C189: Jurídica | D189: 68 | E189: SANTANDER | F189: 68307 | G189: GIRÓN | H189: 4752 | I189: COMERCIO AL POR MAYOR Y AL POR MENOR; REPARACIÓN DE VEHÍCULOS AUTOMOTORES Y MOTOCICLETAS | V189: 0 | W189: 0 | X189: Jurídica | Y189: 54 | Z189: NORTE DE SANTANDER | AA189: 54001 | AB189: CÚCUTA | AC189: 3314 | AD189: INDUSTRIAS MANUFACTURERAS | AE189: 0 | AF189: 0 | AG189: 0 | AH189: 0 | AI189: 0 | AJ189: 0 | AK189: 0 | AL189: 0 | AM189: 0
C190: Jurídica | D190: 25 | E190: CUNDINAMARCA | F190: 25307 | G190: GIRARDOT | H190: 8699 | I190: ACTIVIDADES DE ATENCIÓN DE LA SALUD HUMANA Y DE ASISTENCIA SOCIAL | V190: 0 | W190: 0 | X190: Jurídica | Y190: 54 | Z190: NORTE DE SANTANDER | AA190: 54810 | AB190: TIBÚ | AC190: 126 | AD190: AGRICULTURA, GANADERÍA, CAZA, SILVICULTURA Y PESCA | AE190: 0 | AF190: 0 | AG190: 0 | AH190: 0 | AI190: 0 | AJ190: 0 | AK190: 0 | AL190: 0 | AM190: 0
C191: Jurídica | D191: 11 | E191: BOGOTÁ, D.C. | F191: 11001 | G191: BOGOTÁ, D.C. | H191: 7730 | I191: ACTIVIDADES DE SERVICIOS ADMINISTRATIVOS Y DE APOYO | V191: 0 | W191: 0 | X191: Natural | Y191: 54 | Z191: NORTE DE SANTANDER | AA191: 54001 | AB191: CÚCUTA | AC191: 8621 | AD191: ACTIVIDADES DE ATENCIÓN DE LA SALUD HUMANA Y DE ASISTENCIA SOCIAL | AE191: 0 | AF191: 0 | AG191: 0 | AH191: 0 | AI191: 0 | AJ191: 0 | AK191: 0 | AL191: 0 | AM191: 0
C192: Jurídica | D192: 11 | E192: BOGOTÁ, D.C. | F192: 11001 | G192: BOGOTÁ, D.C. | H192: 6810 | I192: ACTIVIDADES INMOBILIARIAS | V192: 0 | W192: 0 | X192: Jurídica | Y192: 54 | Z192: NORTE DE SANTANDER | AA192: 54001 | AB192: CÚCUTA | AC192: 1521 | AD192: INDUSTRIAS MANUFACTURERAS | AE192: 0 | AF192: 0 | AG192: 0 | AH192: 0 | AI192: 0 | AJ192: 0 | AK192: 0 | AL192: 0 | AM192: 0
C193: Jurídica | D193: 85 | E193: CASANARE | F193: 85001 | G193: YOPAL | H193: 2511 | I193: INDUSTRIAS MANUFACTURERAS | V193: 0 | W193: 0 | X193: Jurídica | Y193: 54 | Z193: NORTE DE SANTANDER | AA193: 54001 | AB193: CÚCUTA | AC193: 7110 | AD193: ACTIVIDADES PROFESIONALES, CIENTÍFICAS Y TÉCNICAS | AE193: 0 | AF193: 0 | AG193: 0 | AH193: 0 | AI193: 0 | AJ193: 0 | AK193: 0 | AL193: 0 | AM193: 0
C194: Jurídica | D194: 50 | E194: META | F194: 50001 | G194: VILLAVICENCIO | H194: 4921 | I194: TRANSPORTE Y ALMACENAMIENTO | V194: 0 | W194: 0 | X194: Natural | Y194: 54 | Z194: NORTE DE SANTANDER | AA194: 54001 | AB194: CÚCUTA | AC194: 8559 | AD194: EDUCACIÓN | AE194: 0 | AF194: 0 | AG194: 0 | AH194: 0 | AI194: 0 | AJ194: 0 | AK194: 0 | AL194: 0 | AM194: 0
C195: Jurídica | D195: 17 | E195: CALDAS | F195: 17001 | G195: MANIZALES | H195: 8621 | I195: ACTIVIDADES DE ATENCIÓN DE LA SALUD HUMANA Y DE ASISTENCIA SOCIAL | V195: 0 | W195: 0 | X195: Jurídica | Y195: 54 | Z195: NORTE DE SANTANDER | AA195: 54001 | AB195: CÚCUTA | AC195: 9491 | AD195: OTRAS ACTIVIDADES DE SERVICIOS | AE195: 0 | AF195: 0 | AG195: 0 | AH195: 0 | AI195: 0 | AJ195: 0 | AK195: 0 | AL195: 0 | AM195: 0
C196: Jurídica | D196: 5 | E196: ANTIOQUIA | F196: 5001 | G196: MEDELLÍN | H196: 8511 | I196: EDUCACIÓN | V196: 0 | W196: 0 | X196: Jurídica | Y196: 54 | Z196: NORTE DE SANTANDER | AA196: 54001 | AB196: CÚCUTA | AC196: 1410 | AD196: INDUSTRIAS MANUFACTURERAS | AE196: 0 | AF196: 0 | AG196: 0 | AH196: 0 | AI196: 0 | AJ196: 0 | AK196: 0 | AL196: 0 | AM196: 0
C197: Jurídica | D197: 11 | E197: BOGOTÁ, D.C. | F197: 11001 | G197: BOGOTÁ, D.C. | H197: 4731 | I197: COMERCIO AL POR MAYOR Y AL POR MENOR; REPARACIÓN DE VEHÍCULOS AUTOMOTORES Y MOTOCICLETAS | V197: 0 | W197: 0 | X197: Natural | Y197: 54 | Z197: NORTE DE SANTANDER | AA197: 54001 | AB197: CÚCUTA | AC197: 4719 | AD197: COMERCIO AL POR MAYOR Y AL POR MENOR; REPARACIÓN DE VEHÍCULOS AUTOMOTORES Y MOTOCICLETAS | AE197: 0 | AF197: 0 | AG197: 0 | AH197: 0 | AI197: 0 | AJ197: 0 | AK197: 0 | AL197: 0 | AM197: 0
C198: Jurídica | D198: 17 | E198: CALDAS | F198: 17001 | G198: MANIZALES | H198: 4754 | I198: COMERCIO AL POR MAYOR Y AL POR MENOR; REPARACIÓN DE VEHÍCULOS AUTOMOTORES Y MOTOCICLETAS | V198: 0 | W198: 0 | X198: Jurídica | Y198: 54 | Z198: NORTE DE SANTANDER | AA198: 54001 | AB198: CÚCUTA | AC198: 6810 | AD198: ACTIVIDADES INMOBILIARIAS | AE198: 0 | AF198: 0 | AG198: 0 | AH198: 0 | AI198: 0 | AJ198: 0 | AK198: 0 | AL198: 0 | AM198: 0
C199: Jurídica | D199: 73 | E199: TOLIMA | F199: 73001 | G199: IBAGUÉ | H199: 8699 | I199: ACTIVIDADES DE ATENCIÓN DE LA SALUD HUMANA Y DE ASISTENCIA SOCIAL | V199: 0 | W199: 0 | X199: Jurídica | Y199: 54 | Z199: NORTE DE SANTANDER | AA199: 54001 | AB199: CÚCUTA | AC199: 510 | AD199: EXPLOTACIÓN DE MINAS Y CANTERAS | AE199: 0 | AF199: 0 | AG199: 0 | AH199: 0 | AI199: 0 | AJ199: 0 | AK199: 0 | AL199: 0 | AM199: 0
C200: Jurídica | D200: 76 | E200: VALLE DEL CAUCA | F200: 76001 | G200: CALI | H200: 1410 | I200: INDUSTRIAS MANUFACTURERAS | V200: 0 | W200: 0 | X200: Jurídica | Y200: 54 | Z200: NORTE DE SANTANDER | AA200: 54261 | AB200: EL ZULIA | AC200: 2392 | AD200: INDUSTRIAS MANUFACTURERAS | AE200: 0 | AF200: 0 | AG200: 0 | AH200: 0 | AI200: 0 | AJ200: 0 | AK200: 0 | AL200: 0 | AM200: 0
... 2050 more rows

Sheet Montos (hidden)
A1: Ciclo | B1: DIVIPOLA1 | C1: MpioNOM | D1: Depto | E1: DeptoNOM | F1: NOM_AECONOMICA1 | G1: SECTOR_ECONOMICO1 | H1: TIPO_PERSONA1 | I1: SIZE1 | J1: Suma de RECURSOS1 | P1: Ciclo | Q1: DIVIPOLA1 | R1: MpioNOM | S1: Depto | T1: DeptoNOM | U1: NOM_AECONOMICA1 | V1: SECTOR_ECONOMICO1 | W1: TIPO_PERSONA1 | X1: SIZE1 | Y1: Suma de RECURSOS1 | AC1: DeptoNOM | AD1: META | AG1: DeptoNOM | AH1: META
A2: 1 | B2: 5001 | C2: MEDELLÍN | D2: 5 | E2: ANTIOQUIA | F2: ACTIVIDADES ARTÍSTICAS, DE ENTRETENIMIENTO Y RECREACIÓN | G2: 9002 | H2: Jurídica | I2: MICRO | J2: 220000 | P2: =+_xlfn._xlws.FILTER($A$2:$J$396860,E2:$E$396860=Visor!$M$7,"") -> 1 | Q2: 54001 | R2: CÚCUTA | S2: 54 | T2: NORTE DE SANTANDER | U2: ACTIVIDADES ARTÍSTICAS, DE ENTRETENIMIENTO Y RECREACIÓN | V2: 9200 | W2: Jurídica | X2: MICRO | Y2: 1540000 | AG2: MpioNOM | AH2: VILLAVICENCIO
A3: 1 | B3: 5001 | C3: MEDELLÍN | D3: 5 | E3: ANTIOQUIA | F3: ACTIVIDADES ARTÍSTICAS, DE ENTRETENIMIENTO Y RECREACIÓN | G3: 9003 | H3: Jurídica | I3: MICRO | J3: 220000 | P3: 1 | Q3: 54001 | R3: CÚCUTA | S3: 54 | T3: NORTE DE SANTANDER | U3: ACTIVIDADES ARTÍSTICAS, DE ENTRETENIMIENTO Y RECREACIÓN | V3: 9200 | W3: Jurídica | X3: MUY GRANDE | Y3: 79640000 | AC3: Etiquetas de fila | AD3: Suma de Suma de RECURSOS1 | AE3: Suma de Suma de RECURSOS1_2
A4: 1 | B4: 5001 | C4: MEDELLÍN | D4: 5 | E4: ANTIOQUIA | F4: ACTIVIDADES ARTÍSTICAS, DE ENTRETENIMIENTO Y RECREACIÓN | G4: 9004 | H4: Jurídica | I4: MICRO | J4: 4400000 | P4: 1 | Q4: 54001 | R4: CÚCUTA | S4: 54 | T4: NORTE DE SANTANDER | U4: ACTIVIDADES ARTÍSTICAS, DE ENTRETENIMIENTO Y RECREACIÓN | V4: 9312 | W4: Jurídica | X4: MICRO | Y4: 880000 | AC4: ACTIVIDADES ARTÍSTICAS, DE ENTRETENIMIENTO Y RECREACIÓN | AD4: 1034907000 | AE4: 0.0183614159 | AG4: Etiquetas de fila | AH4: Suma de Suma de RECURSOS1 | AI4: Suma de Suma de RECURSOS1_2
A5: 1 | B5: 5001 | C5: MEDELLÍN | D5: 5 | E5: ANTIOQUIA | F5: ACTIVIDADES ARTÍSTICAS, DE ENTRETENIMIENTO Y RECREACIÓN | G5: 9005 | H5: Jurídica | I5: MEDIANA | J5: 10340000 | P5: 1 | Q5: 54001 | R5: CÚCUTA | S5: 54 | T5: NORTE DE SANTANDER | U5: ACTIVIDADES ARTÍSTICAS, DE ENTRETENIMIENTO Y RECREACIÓN | V5: 9329 | W5: Jurídica | X5: MICRO | Y5: 440000 | AC5: ACTIVIDADES DE ATENCIÓN DE LA SALUD HUMANA Y DE ASISTENCIA SOCIAL | AD5: 5530371000 | AE5: 0.0981203548 | AG5: ACTIVIDADES ARTÍSTICAS, DE ENTRETENIMIENTO Y RECREACIÓN | AH5: 993923000 | AI5: 0.02131175662
A6: 1 | B6: 5001 | C6: MEDELLÍN | D6: 5 | E6: ANTIOQUIA | F6: ACTIVIDADES ARTÍSTICAS, DE ENTRETENIMIENTO Y RECREACIÓN | G6: 9005 | H6: Jurídica | I6: MICRO | J6: 440000 | P6: 1 | Q6: 54001 | R6: CÚCUTA | S6: 54 | T6: NORTE DE SANTANDER | U6: ACTIVIDADES ARTÍSTICAS, DE ENTRETENIMIENTO Y RECREACIÓN | V6: 9329 | W6: Jurídica | X6: PEQUEÑA | Y6: 1320000 | AC6: ACTIVIDADES DE SERVICIOS ADMINISTRATIVOS Y DE APOYO | AD6: 9990424000 | AE6: 0.1772510285 | AG6: ACTIVIDADES DE ATENCIÓN DE LA SALUD HUMANA Y DE ASISTENCIA SOCIAL | AH6: 5262221000 | AI6: 0.1128328585
A7: 1 | B7: 5001 | C7: MEDELLÍN | D7: 5 | E7: ANTIOQUIA | F7: ACTIVIDADES ARTÍSTICAS, DE ENTRETENIMIENTO Y RECREACIÓN | G7: 9006 | H7: Jurídica | I7: MICRO | J7: 5720000 | P7: 1 | Q7: 54001 | R7: CÚCUTA | S7: 54 | T7: NORTE DE SANTANDER | U7: ACTIVIDADES DE ATENCIÓN DE LA SALUD HUMANA Y DE ASISTENCIA SOCIAL | V7: 8610 | W7: Jurídica | X7: GRANDE | Y7: 3520000 | AC7: ACTIVIDADES FINANCIERAS Y DE SEGUROS | AD7: 601724000 | AE7: 0.01067584297 | AG7: ACTIVIDADES DE SERVICIOS ADMINISTRATIVOS Y DE APOYO | AH7: 9448062000 | AI7: 0.2025859124
A8: 1 | B8: 5001 | C8: MEDELLÍN | D8: 5 | E8: ANTIOQUIA | F8: ACTIVIDADES ARTÍSTICAS, DE ENTRETENIMIENTO Y RECREACIÓN | G8: 9006 | H8: Jurídica | I8: PEQUEÑA | J8: 2420000 | P8: 1 | Q8: 54001 | R8: CÚCUTA | S8: 54 | T8: NORTE DE SANTANDER | U8: ACTIVIDADES DE ATENCIÓN DE LA SALUD HUMANA Y DE ASISTENCIA SOCIAL | V8: 8610 | W8: Jurídica | X8: MICRO | Y8: 220000 | AC8: ACTIVIDADES INMOBILIARIAS | AD8: 282527000 | AE8: 0.005012620217 | AG8: ACTIVIDADES FINANCIERAS Y DE SEGUROS | AH8: 586462000 | AI8: 0.0125749534
A9: 1 | B9: 5001 | C9: MEDELLÍN | D9: 5 | E9: ANTIOQUIA | F9: ACTIVIDADES ARTÍSTICAS, DE ENTRETENIMIENTO Y RECREACIÓN | G9: 9007 | H9: Jurídica | I9: MEDIANA | J9: 4840000 | P9: 1 | Q9: 54001 | R9: CÚCUTA | S9: 54 | T9: NORTE DE SANTANDER | U9: ACTIVIDADES DE ATENCIÓN DE LA SALUD HUMANA Y DE ASISTENCIA SOCIAL | V9: 8610 | W9: Jurídica | X9: MUY GRANDE | Y9: 7480000 | AC9: ACTIVIDADES PROFESIONALES, CIENTÍFICAS Y TÉCNICAS | AD9: 1550199000 | AE9: 0.02750377432 | AG9: ACTIVIDADES INMOBILIARIAS | AH9: 213971000 | AI9: 0.004587979024
A10: 1 | B10: 5001 | C10: MEDELLÍN | D10: 5 | E10: ANTIOQUIA | F10: ACTIVIDADES ARTÍSTICAS, DE ENTRETENIMIENTO Y RECREACIÓN | G10: 9007 | H10: Jurídica | I10: MICRO | J10: 7040000 | P10: 1 | Q10: 54001 | R10: CÚCUTA | S10: 54 | T10: NORTE DE SANTANDER | U10: ACTIVIDADES DE ATENCIÓN DE LA SALUD HUMANA Y DE ASISTENCIA SOCIAL | V10: 8610 | W10: Jurídica | X10: PEQUEÑA | Y10: 6600000 | AC10: ADMINISTRACIÓN PÚBLICA Y DEFENSA; PLANES DE SEGURIDAD SOCIAL DE AFILIACIÓN OBLIGATORIA | AD10: 434604000 | AE10: 0.007710784444 | AG10: ACTIVIDADES PROFESIONALES, CIENTÍFICAS Y TÉCNICAS | AH10: 1393778000 | AI10: 0.02988547152
A11: 1 | B11: 5001 | C11: MEDELLÍN | D11: 5 | E11: ANTIOQUIA | F11: ACTIVIDADES ARTÍSTICAS, DE ENTRETENIMIENTO Y RECREACIÓN | G11: 9007 | H11: Jurídica | I11: PEQUEÑA | J11: 11880000 | P11: 1 | Q11: 54001 | R11: CÚCUTA | S11: 54 | T11: NORTE DE SANTANDER | U11: ACTIVIDADES DE ATENCIÓN DE LA SALUD HUMANA Y DE ASISTENCIA SOCIAL | V11: 8621 | W11: Jurídica | X11: MEDIANA | Y11: 5940000 | AC11: AGRICULTURA, GANADERÍA, CAZA, SILVICULTURA Y PESCA | AD11: 2267926000 | AE11: 0.04023775327 | AG11: ADMINISTRACIÓN PÚBLICA Y DEFENSA; PLANES DE SEGURIDAD SOCIAL DE AFILIACIÓN OBLIGATORIA | AH11: 101437000 | AI11: 0.002175018242
A12: 1 | B12: 5001 | C12: MEDELLÍN | D12: 5 | E12: ANTIOQUIA | F12: ACTIVIDADES ARTÍSTICAS, DE ENTRETENIMIENTO Y RECREACIÓN | G12: 9007 | H12: Natural | I12: MICRO | J12: 1100000 | P12: 1 | Q12: 54001 | R12: CÚCUTA | S12: 54 | T12: NORTE DE SANTANDER | U12: ACTIVIDADES DE ATENCIÓN DE LA SALUD HUMANA Y DE ASISTENCIA SOCIAL | V12: 8621 | W12: Jurídica | X12: MICRO | Y12: 11440000 | AC12: ALOJAMIENTO Y SERVICIOS DE COMIDA | AD12: 2510646000 | AE12: 0.044544114 | AG12: AGRICULTURA, GANADERÍA, CAZA, SILVICULTURA Y PESCA | AH12: 1241925000 | AI12: 0.02662943039
A13: 1 | B13: 5001 | C13: MEDELLÍN | D13: 5 | E13: ANTIOQUIA | F13: ACTIVIDADES ARTÍSTICAS, DE ENTRETENIMIENTO Y RECREACIÓN | G13: 9008 | H13: Jurídica | I13: MEDIANA | J13: 1320000 | P13: 1 | Q13: 54001 | R13: CÚCUTA | S13: 54 | T13: NORTE DE SANTANDER | U13: ACTIVIDADES DE ATENCIÓN DE LA SALUD HUMANA Y DE ASISTENCIA SOCIAL | V13: 8621 | W13: Jurídica | X13: PEQUEÑA | Y13: 32120000 | AC13: COMERCIO AL POR MAYOR Y AL POR MENOR; REPARACIÓN DE VEHÍCULOS AUTOMOTORES Y MOTOCICLETAS | AD13: 9763086000 | AE13: 0.1732175766 | AG13: ALOJAMIENTO Y SERVICIOS DE COMIDA | AH13: 1902988000 | AI13: 0.04080398291
A14: 1 | B14: 5001 | C14: MEDELLÍN | D14: 5 | E14: ANTIOQUIA | F14: ACTIVIDADES ARTÍSTICAS, DE ENTRETENIMIENTO Y RECREACIÓN | G14: 9008 | H14: Jurídica | I14: MICRO | J14: 3300000 | P14: 1 | Q14: 54001 | R14: CÚCUTA | S14: 54 | T14: NORTE DE SANTANDER | U14: ACTIVIDADES DE ATENCIÓN DE LA SALUD HUMANA Y DE ASISTENCIA SOCIAL | V14: 8621 | W14: Natural | X14: MICRO | Y14: 4400000 | AC14: CONSTRUCCIÓN | AD14: 4627826000 | AE14: 0.08210731777 | AG14: COMERCIO AL POR MAYOR Y AL POR MENOR; REPARACIÓN DE VEHÍCULOS AUTOMOTORES Y MOTOCICLETAS | AH14: 7857303000 | AI14: 0.1684767625
A15: 1 | B15: 5001 | C15: MEDELLÍN | D15: 5 | E15: ANTIOQUIA | F15: ACTIVIDADES ARTÍSTICAS, DE ENTRETENIMIENTO Y RECREACIÓN | G15: 9008 | H15: Jurídica | I15: PEQUEÑA | J15: 440000 | P15: 1 | Q15: 54001 | R15: CÚCUTA | S15: 54 | T15: NORTE DE SANTANDER | U15: ACTIVIDADES DE ATENCIÓN DE LA SALUD HUMANA Y DE ASISTENCIA SOCIAL | V15: 8622 | W15: Jurídica | X15: MICRO | Y15: 440000 | AC15: DISTRIBUCIÓN DE AGUA; EVACUACIÓN Y TRATAMIENTO DE AGUAS RESIDUALES, GESTIÓN DE DESECHOS Y ACTIVIDADES DE SANEAMIENTO AMBIENTAL | AD15: 851688000 | AE15: 0.01511072742 | AG15: CONSTRUCCIÓN | AH15: 3651332000 | AI15: 0.07829207988
A16: 1 | B16: 5001 | C16: MEDELLÍN | D16: 5 | E16: ANTIOQUIA | F16: ACTIVIDADES ARTÍSTICAS, DE ENTRETENIMIENTO Y RECREACIÓN | G16: 9101 | H16: Jurídica | I16: MICRO | J16: 440000 | P16: 1 | Q16: 54001 | R16: CÚCUTA | S16: 54 | T16: NORTE DE SANTANDER | U16: ACTIVIDADES DE ATENCIÓN DE LA SALUD HUMANA Y DE ASISTENCIA SOCIAL | V16: 8622 | W16: Jurídica | X16: PEQUEÑA | Y16: 5280000 | AC16: EDUCACIÓN | AD16: 3265265000 | AE16: 0.05793263423 | AG16: DISTRIBUCIÓN DE AGUA; EVACUACIÓN Y TRATAMIENTO DE AGUAS RESIDUALES, GESTIÓN DE DESECHOS Y ACTIVIDADES DE SANEAMIENTO AMBIENTAL | AH16: 827123000 | AI16: 0.01773522101
A17: 1 | B17: 5001 | C17: MEDELLÍN | D17: 5 | E17: ANTIOQUIA | F17: ACTIVIDADES ARTÍSTICAS, DE ENTRETENIMIENTO Y RECREACIÓN | G17: 9101 | H17: Jurídica | I17: PEQUEÑA | J17: 220000 | P17: 1 | Q17: 54001 | R17: CÚCUTA | S17: 54 | T17: NORTE DE SANTANDER | U17: ACTIVIDADES DE ATENCIÓN DE LA SALUD HUMANA Y DE ASISTENCIA SOCIAL | V17: 8622 | W17: Natural | X17: MICRO | Y17: 1540000 | AC17: EXPLOTACIÓN DE MINAS Y CANTERAS | AD17: 231515000 | AE17: 0.004107560585 | AG17: EDUCACIÓN | AH17: 2771547000 | AI17: 0.05942767711
A18: 1 | B18: 5001 | C18: MEDELLÍN | D18: 5 | E18: ANTIOQUIA | F18: ACTIVIDADES ARTÍSTICAS, DE ENTRETENIMIENTO Y RECREACIÓN | G18: 9102 | H18: Jurídica | I18: GRANDE | J18: 19140000 | P18: 1 | Q18: 54001 | R18: CÚCUTA | S18: 54 | T18: NORTE DE SANTANDER | U18: ACTIVIDADES DE ATENCIÓN DE LA SALUD HUMANA Y DE ASISTENCIA SOCIAL | V18: 8691 | W18: Jurídica | X18: MEDIANA | Y18: 3520000 | AC18: INDUSTRIAS MANUFACTURERAS | AD18: 3604890000 | AE18: 0.06395829246 | AG18: EXPLOTACIÓN DE MINAS Y CANTERAS | AH18: 192466000 | AI18: 0.004126867523
A19: 1 | B19: 5001 | C19: MEDELLÍN | D19: 5 | E19: ANTIOQUIA | F19: ACTIVIDADES ARTÍSTICAS, DE ENTRETENIMIENTO Y RECREACIÓN | G19: 9102 | H19: Jurídica | I19: PEQUEÑA | J19: 3740000 | P19: 1 | Q19: 54001 | R19: CÚCUTA | S19: 54 | T19: NORTE DE SANTANDER | U19: ACTIVIDADES DE ATENCIÓN DE LA SALUD HUMANA Y DE ASISTENCIA SOCIAL | V19: 8691 | W19: Jurídica | X19: MICRO | Y19: 9460000 | AC19: INFORMACIÓN Y COMUNICACIONES | AD19: 214168000 | AE19: 0.003799788504 | AG19: INDUSTRIAS MANUFACTURERAS | AH19: 2714779000 | AI19: 0.05821045425
A20: 1 | B20: 5001 | C20: MEDELLÍN | D20: 5 | E20: ANTIOQUIA | F20: ACTIVIDADES ARTÍSTICAS, DE ENTRETENIMIENTO Y RECREACIÓN | G20: 9103 | H20: Jurídica | I20: GRANDE | J20: 4400000 | P20: 1 | Q20: 54001 | R20: CÚCUTA | S20: 54 | T20: NORTE DE SANTANDER | U20: ACTIVIDADES DE ATENCIÓN DE LA SALUD HUMANA Y DE ASISTENCIA SOCIAL | V20: 8691 | W20: Jurídica | X20: PEQUEÑA | Y20: 7700000 | AC20: OTRAS ACTIVIDADES DE SERVICIOS | AD20: 2884552000 | AE20: 0.0511779889 | AG20: INFORMACIÓN Y COMUNICACIONES | AH20: 181764000 | AI20: 0.003897394597
A21: 1 | B21: 5001 | C21: MEDELLÍN | D21: 5 | E21: ANTIOQUIA | F21: ACTIVIDADES ARTÍSTICAS, DE ENTRETENIMIENTO Y RECREACIÓN | G21: 9200 | H21: Jurídica | I21: MEDIANA | J21: 54340000 | P21: 1 | Q21: 54001 | R21: CÚCUTA | S21: 54 | T21: NORTE DE SANTANDER | U21: ACTIVIDADES DE ATENCIÓN DE LA SALUD HUMANA Y DE ASISTENCIA SOCIAL | V21: 8691 | W21: Natural | X21: MICRO | Y21: 3300000 | AC21: SUMINISTRO DE ELECTRICIDAD, GAS, VAPOR Y AIRE ACONDICIONADO | AD21: 228692000 | AE21: 0.004057474658 | AG21: OTRAS ACTIVIDADES DE SERVICIOS | AH21: 2286499000 | AI21: 0.04902724878
A22: 1 | B22: 5001 | C22: MEDELLÍN | D22: 5 | E22: ANTIOQUIA | F22: ACTIVIDADES ARTÍSTICAS, DE ENTRETENIMIENTO Y RECREACIÓN | G22: 9200 | H22: Jurídica | I22: MICRO | J22: 7920000 | P22: 1 | Q22: 54001 | R22: CÚCUTA | S22: 54 | T22: NORTE DE SANTANDER | U22: ACTIVIDADES DE ATENCIÓN DE LA SALUD HUMANA Y DE ASISTENCIA SOCIAL | V22: 8692 | W22: Jurídica | X22: MICRO | Y22: 3080000 | AC22: TRANSPORTE Y ALMACENAMIENTO | AD22: 6488127000 | AE22: 0.1151129505 | AG22: SUMINISTRO DE ELECTRICIDAD, GAS, VAPOR Y AIRE ACONDICIONADO | AH22: 76194000 | AI22: 0.001633756321
A23: 1 | B23: 5001 | C23: MEDELLÍN | D23: 5 | E23: ANTIOQUIA | F23: ACTIVIDADES ARTÍSTICAS, DE ENTRETENIMIENTO Y RECREACIÓN | G23: 9200 | H23: Jurídica | I23: MUY GRANDE | J23: 322740000 | P23: 1 | Q23: 54001 | R23: CÚCUTA | S23: 54 | T23: NORTE DE SANTANDER | U23: ACTIVIDADES DE ATENCIÓN DE LA SALUD HUMANA Y DE ASISTENCIA SOCIAL | V23: 8692 | W23: Natural | X23: MICRO | Y23: 660000 | AC23: Total general | AD23: 56363137000 | AE23: 1 | AG23: TRANSPORTE Y ALMACENAMIENTO | AH23: 4933536000 | AI23: 0.105785175
A24: 1 | B24: 5001 | C24: MEDELLÍN | D24: 5 | E24: ANTIOQUIA | F24: ACTIVIDADES ARTÍSTICAS, DE ENTRETENIMIENTO Y RECREACIÓN | G24: 9200 | H24: Jurídica | I24: PEQUEÑA | J24: 59620000 | P24: 1 | Q24: 54001 | R24: CÚCUTA | S24: 54 | T24: NORTE DE SANTANDER | U24: ACTIVIDADES DE ATENCIÓN DE LA SALUD HUMANA Y DE ASISTENCIA SOCIAL | V24: 8699 | W24: Jurídica | X24: MICRO | Y24: 2200000 | AG24: Total general | AH24: 46637310000 | AI24: 1
A25: 1 | B25: 5001 | C25: MEDELLÍN | D25: 5 | E25: ANTIOQUIA | F25: ACTIVIDADES ARTÍSTICAS, DE ENTRETENIMIENTO Y RECREACIÓN | G25: 9200 | H25: Natural | I25: MICRO | J25: 6600000 | P25: 1 | Q25: 54001 | R25: CÚCUTA | S25: 54 | T25: NORTE DE SANTANDER | U25: ACTIVIDADES DE ATENCIÓN DE LA SALUD HUMANA Y DE ASISTENCIA SOCIAL | V25: 8699 | W25: Jurídica | X25: PEQUEÑA | Y25: 6160000
A26: 1 | B26: 5001 | C26: MEDELLÍN | D26: 5 | E26: ANTIOQUIA | F26: ACTIVIDADES ARTÍSTICAS, DE ENTRETENIMIENTO Y RECREACIÓN | G26: 9311 | H26: Jurídica | I26: MICRO | J26: 3300000 | P26: 1 | Q26: 54001 | R26: CÚCUTA | S26: 54 | T26: NORTE DE SANTANDER | U26: ACTIVIDADES DE ATENCIÓN DE LA SALUD HUMANA Y DE ASISTENCIA SOCIAL | V26: 8699 | W26: Natural | X26: MICRO | Y26: 1540000
A27: 1 | B27: 5001 | C27: MEDELLÍN | D27: 5 | E27: ANTIOQUIA | F27: ACTIVIDADES ARTÍSTICAS, DE ENTRETENIMIENTO Y RECREACIÓN | G27: 9311 | H27: Jurídica | I27: MUY GRANDE | J27: 21560000 | P27: 1 | Q27: 54001 | R27: CÚCUTA | S27: 54 | T27: NORTE DE SANTANDER | U27: ACTIVIDADES DE ATENCIÓN DE LA SALUD HUMANA Y DE ASISTENCIA SOCIAL | V27: 8790 | W27: Jurídica | X27: MICRO | Y27: 1100000
A28: 1 | B28: 5001 | C28: MEDELLÍN | D28: 5 | E28: ANTIOQUIA | F28: ACTIVIDADES ARTÍSTICAS, DE ENTRETENIMIENTO Y RECREACIÓN | G28: 9312 | H28: Jurídica | I28: GRANDE | J28: 14520000 | P28: 1 | Q28: 54001 | R28: CÚCUTA | S28: 54 | T28: NORTE DE SANTANDER | U28: ACTIVIDADES DE LOS HOGARES INDIVIDUALES EN CALIDAD DE EMPLEADORES; ACTIVIDADES NO DIFERENCIADAS DE LOS HOGARES INDIVIDUALES COMO PRODUCTORES DE BIENES Y SERVICIOS PARA USO PROPIO | V28: 9700 | W28: Jurídica | X28: MICRO | Y28: 1320000
A29: 1 | B29: 5001 | C29: MEDELLÍN | D29: 5 | E29: ANTIOQUIA | F29: ACTIVIDADES ARTÍSTICAS, DE ENTRETENIMIENTO Y RECREACIÓN | G29: 9312 | H29: Jurídica | I29: MEDIANA | J29: 12100000 | P29: 1 | Q29: 54001 | R29: CÚCUTA | S29: 54 | T29: NORTE DE SANTANDER | U29: ACTIVIDADES DE SERVICIOS ADMINISTRATIVOS Y DE APOYO | V29: 7730 | W29: Jurídica | X29: MICRO | Y29: 6380000
A30: 1 | B30: 5001 | C30: MEDELLÍN | D30: 5 | E30: ANTIOQUIA | F30: ACTIVIDADES ARTÍSTICAS, DE ENTRETENIMIENTO Y RECREACIÓN | G30: 9312 | H30: Jurídica | I30: MICRO | J30: 1980000 | P30: 1 | Q30: 54001 | R30: CÚCUTA | S30: 54 | T30: NORTE DE SANTANDER | U30: ACTIVIDADES DE SERVICIOS ADMINISTRATIVOS Y DE APOYO | V30: 7730 | W30: Jurídica | X30: PEQUEÑA | Y30: 8800000
A31: 1 | B31: 5001 | C31: MEDELLÍN | D31: 5 | E31: ANTIOQUIA | F31: ACTIVIDADES ARTÍSTICAS, DE ENTRETENIMIENTO Y RECREACIÓN | G31: 9312 | H31: Jurídica | I31: PEQUEÑA | J31: 660000 | P31: 1 | Q31: 54001 | R31: CÚCUTA | S31: 54 | T31: NORTE DE SANTANDER | U31: ACTIVIDADES DE SERVICIOS ADMINISTRATIVOS Y DE APOYO | V31: 7730 | W31: Natural | X31: MICRO | Y31: 1540000
A32: 1 | B32: 5001 | C32: MEDELLÍN | D32: 5 | E32: ANTIOQUIA | F32: ACTIVIDADES ARTÍSTICAS, DE ENTRETENIMIENTO Y RECREACIÓN | G32: 9319 | H32: Jurídica | I32: MICRO | J32: 6160000 | P32: 1 | Q32: 54001 | R32: CÚCUTA | S32: 54 | T32: NORTE DE SANTANDER | U32: ACTIVIDADES DE SERVICIOS ADMINISTRATIVOS Y DE APOYO | V32: 7820 | W32: Jurídica | X32: MEDIANA | Y32: 34540000
A33: 1 | B33: 5001 | C33: MEDELLÍN | D33: 5 | E33: ANTIOQUIA | F33: ACTIVIDADES ARTÍSTICAS, DE ENTRETENIMIENTO Y RECREACIÓN | G33: 9319 | H33: Jurídica | I33: PEQUEÑA | J33: 6380000 | P33: 1 | Q33: 54001 | R33: CÚCUTA | S33: 54 | T33: NORTE DE SANTANDER | U33: ACTIVIDADES DE SERVICIOS ADMINISTRATIVOS Y DE APOYO | V33: 7830 | W33: Jurídica | X33: PEQUEÑA | Y33: 13200000
A34: 1 | B34: 5001 | C34: MEDELLÍN | D34: 5 | E34: ANTIOQUIA | F34: ACTIVIDADES ARTÍSTICAS, DE ENTRETENIMIENTO Y RECREACIÓN | G34: 9321 | H34: Jurídica | I34: MEDIANA | J34: 10780000 | P34: 1 | Q34: 54001 | R34: CÚCUTA | S34: 54 | T34: NORTE DE SANTANDER | U34: ACTIVIDADES DE SERVICIOS ADMINISTRATIVOS Y DE APOYO | V34: 7911 | W34: Jurídica | X34: MEDIANA | Y34: 12100000
A35: 1 | B35: 5001 | C35: MEDELLÍN | D35: 5 | E35: ANTIOQUIA | F35: ACTIVIDADES ARTÍSTICAS, DE ENTRETENIMIENTO Y RECREACIÓN | G35: 9321 | H35: Jurídica | I35: PEQUEÑA | J35: 6380000 | P35: 1 | Q35: 54001 | R35: CÚCUTA | S35: 54 | T35: NORTE DE SANTANDER | U35: ACTIVIDADES DE SERVICIOS ADMINISTRATIVOS Y DE APOYO | V35: 7911 | W35: Jurídica | X35: MICRO | Y35: 4620000
A36: 1 | B36: 5001 | C36: MEDELLÍN | D36: 5 | E36: ANTIOQUIA | F36: ACTIVIDADES ARTÍSTICAS, DE ENTRETENIMIENTO Y RECREACIÓN | G36: 9329 | H36: Jurídica | I36: GRANDE | J36: 10340000 | P36: 1 | Q36: 54001 | R36: CÚCUTA | S36: 54 | T36: NORTE DE SANTANDER | U36: ACTIVIDADES DE SERVICIOS ADMINISTRATIVOS Y DE APOYO | V36: 7911 | W36: Natural | X36: MICRO | Y36: 1100000
A37: 1 | B37: 5001 | C37: MEDELLÍN | D37: 5 | E37: ANTIOQUIA | F37: ACTIVIDADES ARTÍSTICAS, DE ENTRETENIMIENTO Y RECREACIÓN | G37: 9329 | H37: Jurídica | I37: MICRO | J37: 6380000 | P37: 1 | Q37: 54001 | R37: CÚCUTA | S37: 54 | T37: NORTE DE SANTANDER | U37: ACTIVIDADES DE SERVICIOS ADMINISTRATIVOS Y DE APOYO | V37: 7990 | W37: Jurídica | X37: MEDIANA | Y37: 6600000
A38: 1 | B38: 5001 | C38: MEDELLÍN | D38: 5 | E38: ANTIOQUIA | F38: ACTIVIDADES ARTÍSTICAS, DE ENTRETENIMIENTO Y RECREACIÓN | G38: 9329 | H38: Jurídica | I38: PEQUEÑA | J38: 3300000 | P38: 1 | Q38: 54001 | R38: CÚCUTA | S38: 54 | T38: NORTE DE SANTANDER | U38: ACTIVIDADES DE SERVICIOS ADMINISTRATIVOS Y DE APOYO | V38: 8010 | W38: Jurídica | X38: MEDIANA | Y38: 67760000
A39: 1 | B39: 5001 | C39: MEDELLÍN | D39: 5 | E39: ANTIOQUIA | F39: ACTIVIDADES ARTÍSTICAS, DE ENTRETENIMIENTO Y RECREACIÓN | G39: 9329 | H39: Natural | I39: PEQUEÑA | J39: 5060000 | P39: 1 | Q39: 54001 | R39: CÚCUTA | S39: 54 | T39: NORTE DE SANTANDER | U39: ACTIVIDADES DE SERVICIOS ADMINISTRATIVOS Y DE APOYO | V39: 8010 | W39: Jurídica | X39: MICRO | Y39: 440000
A40: 1 | B40: 5001 | C40: MEDELLÍN | D40: 5 | E40: ANTIOQUIA | F40: ACTIVIDADES DE ATENCIÓN DE LA SALUD HUMANA Y DE ASISTENCIA SOCIAL | G40: 8610 | H40: Jurídica | I40: MEDIANA | J40: 13200000 | P40: 1 | Q40: 54001 | R40: CÚCUTA | S40: 54 | T40: NORTE DE SANTANDER | U40: ACTIVIDADES DE SERVICIOS ADMINISTRATIVOS Y DE APOYO | V40: 8010 | W40: Jurídica | X40: MUY GRANDE | Y40: 87340000
A41: 1 | B41: 5001 | C41: MEDELLÍN | D41: 5 | E41: ANTIOQUIA | F41: ACTIVIDADES DE ATENCIÓN DE LA SALUD HUMANA Y DE ASISTENCIA SOCIAL | G41: 8610 | H41: Jurídica | I41: MICRO | J41: 2860000 | P41: 1 | Q41: 54001 | R41: CÚCUTA | S41: 54 | T41: NORTE DE SANTANDER | U41: ACTIVIDADES DE SERVICIOS ADMINISTRATIVOS Y DE APOYO | V41: 8010 | W41: Jurídica | X41: PEQUEÑA | Y41: 7480000
A42: 1 | B42: 5001 | C42: MEDELLÍN | D42: 5 | E42: ANTIOQUIA | F42: ACTIVIDADES DE ATENCIÓN DE LA SALUD HUMANA Y DE ASISTENCIA SOCIAL | G42: 8610 | H42: Jurídica | I42: MUY GRANDE | J42: 2200000 | P42: 1 | Q42: 54001 | R42: CÚCUTA | S42: 54 | T42: NORTE DE SANTANDER | U42: ACTIVIDADES DE SERVICIOS ADMINISTRATIVOS Y DE APOYO | V42: 8020 | W42: Natural | X42: MICRO | Y42: 1320000
A43: 1 | B43: 5001 | C43: MEDELLÍN | D43: 5 | E43: ANTIOQUIA | F43: ACTIVIDADES DE ATENCIÓN DE LA SALUD HUMANA Y DE ASISTENCIA SOCIAL | G43: 8610 | H43: Jurídica | I43: PEQUEÑA | J43: 1100000 | P43: 1 | Q43: 54001 | R43: CÚCUTA | S43: 54 | T43: NORTE DE SANTANDER | U43: ACTIVIDADES DE SERVICIOS ADMINISTRATIVOS Y DE APOYO | V43: 8020 | W43: Natural | X43: PEQUEÑA | Y43: 4840000
A44: 1 | B44: 5001 | C44: MEDELLÍN | D44: 5 | E44: ANTIOQUIA | F44: ACTIVIDADES DE ATENCIÓN DE LA SALUD HUMANA Y DE ASISTENCIA SOCIAL | G44: 8610 | H44: Natural | I44: MICRO | J44: 880000 | P44: 1 | Q44: 54001 | R44: CÚCUTA | S44: 54 | T44: NORTE DE SANTANDER | U44: ACTIVIDADES DE SERVICIOS ADMINISTRATIVOS Y DE APOYO | V44: 8110 | W44: Jurídica | X44: PEQUEÑA | Y44: 15400000
A45: 1 | B45: 5001 | C45: MEDELLÍN | D45: 5 | E45: ANTIOQUIA | F45: ACTIVIDADES DE ATENCIÓN DE LA SALUD HUMANA Y DE ASISTENCIA SOCIAL | G45: 8621 | H45: Jurídica | I45: GRANDE | J45: 1100000 | P45: 1 | Q45: 54001 | R45: CÚCUTA | S45: 54 | T45: NORTE DE SANTANDER | U45: ACTIVIDADES DE SERVICIOS ADMINISTRATIVOS Y DE APOYO | V45: 8121 | W45: Jurídica | X45: GRANDE | Y45: 57860000
A46: 1 | B46: 5001 | C46: MEDELLÍN | D46: 5 | E46: ANTIOQUIA | F46: ACTIVIDADES DE ATENCIÓN DE LA SALUD HUMANA Y DE ASISTENCIA SOCIAL | G46: 8621 | H46: Jurídica | I46: MEDIANA | J46: 26840000 | P46: 1 | Q46: 54001 | R46: CÚCUTA | S46: 54 | T46: NORTE DE SANTANDER | U46: ACTIVIDADES DE SERVICIOS ADMINISTRATIVOS Y DE APOYO | V46: 8121 | W46: Jurídica | X46: MICRO | Y46: 1540000
A47: 1 | B47: 5001 | C47: MEDELLÍN | D47: 5 | E47: ANTIOQUIA | F47: ACTIVIDADES DE ATENCIÓN DE LA SALUD HUMANA Y DE ASISTENCIA SOCIAL | G47: 8621 | H47: Jurídica | I47: MICRO | J47: 34320000 | P47: 1 | Q47: 54001 | R47: CÚCUTA | S47: 54 | T47: NORTE DE SANTANDER | U47: ACTIVIDADES DE SERVICIOS ADMINISTRATIVOS Y DE APOYO | V47: 8121 | W47: Jurídica | X47: PEQUEÑA | Y47: 7260000
A48: 1 | B48: 5001 | C48: MEDELLÍN | D48: 5 | E48: ANTIOQUIA | F48: ACTIVIDADES DE ATENCIÓN DE LA SALUD HUMANA Y DE ASISTENCIA SOCIAL | G48: 8621 | H48: Jurídica | I48: MUY GRANDE | J48: 49060000 | P48: 1 | Q48: 54001 | R48: CÚCUTA | S48: 54 | T48: NORTE DE SANTANDER | U48: ACTIVIDADES DE SERVICIOS ADMINISTRATIVOS Y DE APOYO | V48: 8129 | W48: Jurídica | X48: PEQUEÑA | Y48: 3960000
A49: 1 | B49: 5001 | C49: MEDELLÍN | D49: 5 | E49: ANTIOQUIA | F49: ACTIVIDADES DE ATENCIÓN DE LA SALUD HUMANA Y DE ASISTENCIA SOCIAL | G49: 8621 | H49: Jurídica | I49: PEQUEÑA | J49: 45320000 | P49: 1 | Q49: 54001 | R49: CÚCUTA | S49: 54 | T49: NORTE DE SANTANDER | U49: ACTIVIDADES DE SERVICIOS ADMINISTRATIVOS Y DE APOYO | V49: 8211 | W49: Jurídica | X49: MICRO | Y49: 1980000
A50: 1 | B50: 5001 | C50: MEDELLÍN | D50: 5 | E50: ANTIOQUIA | F50: ACTIVIDADES DE ATENCIÓN DE LA SALUD HUMANA Y DE ASISTENCIA SOCIAL | G50: 8621 | H50: Natural | I50: MICRO | J50: 4180000 | P50: 1 | Q50: 54001 | R50: CÚCUTA | S50: 54 | T50: NORTE DE SANTANDER | U50: ACTIVIDADES DE SERVICIOS ADMINISTRATIVOS Y DE APOYO | V50: 8230 | W50: Jurídica | X50: MICRO | Y50: 660000
A51: 1 | B51: 5001 | C51: MEDELLÍN | D51: 5 | E51: ANTIOQUIA | F51: ACTIVIDADES DE ATENCIÓN DE LA SALUD HUMANA Y DE ASISTENCIA SOCIAL | G51: 8622 | H51: Jurídica | I51: MEDIANA | J51: 19360000 | P51: 1 | Q51: 54001 | R51: CÚCUTA | S51: 54 | T51: NORTE DE SANTANDER | U51: ACTIVIDADES DE SERVICIOS ADMINISTRATIVOS Y DE APOYO | V51: 8291 | W51: Jurídica | X51: MICRO | Y51: 440000
A52: 1 | B52: 5001 | C52: MEDELLÍN | D52: 5 | E52: ANTIOQUIA | F52: ACTIVIDADES DE ATENCIÓN DE LA SALUD HUMANA Y DE ASISTENCIA SOCIAL | G52: 8622 | H52: Jurídica | I52: MICRO | J52: 40040000 | P52: 1 | Q52: 54001 | R52: CÚCUTA | S52: 54 | T52: NORTE DE SANTANDER | U52: ACTIVIDADES DE SERVICIOS ADMINISTRATIVOS Y DE APOYO | V52: 8291 | W52: Jurídica | X52: PEQUEÑA | Y52: 1320000
A53: 1 | B53: 5001 | C53: MEDELLÍN | D53: 5 | E53: ANTIOQUIA | F53: ACTIVIDADES DE ATENCIÓN DE LA SALUD HUMANA Y DE ASISTENCIA SOCIAL | G53: 8622 | H53: Jurídica | I53: PEQUEÑA | J53: 38720000 | P53: 1 | Q53: 54001 | R53: CÚCUTA | S53: 54 | T53: NORTE DE SANTANDER | U53: ACTIVIDADES DE SERVICIOS ADMINISTRATIVOS Y DE APOYO | V53: 8292 | W53: Jurídica | X53: MICRO | Y53: 220000
A54: 1 | B54: 5001 | C54: MEDELLÍN | D54: 5 | E54: ANTIOQUIA | F54: ACTIVIDADES DE ATENCIÓN DE LA SALUD HUMANA Y DE ASISTENCIA SOCIAL | G54: 8622 | H54: Natural | I54: MICRO | J54: 8800000 | P54: 1 | Q54: 54001 | R54: CÚCUTA | S54: 54 | T54: NORTE DE SANTANDER | U54: ACTIVIDADES DE SERVICIOS ADMINISTRATIVOS Y DE APOYO | V54: 8299 | W54: Jurídica | X54: MEDIANA | Y54: 11660000
A55: 1 | B55: 5001 | C55: MEDELLÍN | D55: 5 | E55: ANTIOQUIA | F55: ACTIVIDADES DE ATENCIÓN DE LA SALUD HUMANA Y DE ASISTENCIA SOCIAL | G55: 8691 | H55: Jurídica | I55: GRANDE | J55: 16060000 | P55: 1 | Q55: 54001 | R55: CÚCUTA | S55: 54 | T55: NORTE DE SANTANDER | U55: ACTIVIDADES DE SERVICIOS ADMINISTRATIVOS Y DE APOYO | V55: 8299 | W55: Jurídica | X55: MICRO | Y55: 3740000
A56: 1 | B56: 5001 | C56: MEDELLÍN | D56: 5 | E56: ANTIOQUIA | F56: ACTIVIDADES DE ATENCIÓN DE LA SALUD HUMANA Y DE ASISTENCIA SOCIAL | G56: 8691 | H56: Jurídica | I56: MEDIANA | J56: 23100000 | P56: 1 | Q56: 54001 | R56: CÚCUTA | S56: 54 | T56: NORTE DE SANTANDER | U56: ACTIVIDADES DE SERVICIOS ADMINISTRATIVOS Y DE APOYO | V56: 8299 | W56: Natural | X56: MICRO | Y56: 1980000
A57: 1 | B57: 5001 | C57: MEDELLÍN | D57: 5 | E57: ANTIOQUIA | F57: ACTIVIDADES DE ATENCIÓN DE LA SALUD HUMANA Y DE ASISTENCIA SOCIAL | G57: 8691 | H57: Jurídica | I57: MICRO | J57: 8360000 | P57: 1 | Q57: 54001 | R57: CÚCUTA | S57: 54 | T57: NORTE DE SANTANDER | U57: ACTIVIDADES FINANCIERAS Y DE SEGUROS | V57: 6492 | W57: Jurídica | X57: MICRO | Y57: 660000
A58: 1 | B58: 5001 | C58: MEDELLÍN | D58: 5 | E58: ANTIOQUIA | F58: ACTIVIDADES DE ATENCIÓN DE LA SALUD HUMANA Y DE ASISTENCIA SOCIAL | G58: 8691 | H58: Jurídica | I58: PEQUEÑA | J58: 21780000 | P58: 1 | Q58: 54001 | R58: CÚCUTA | S58: 54 | T58: NORTE DE SANTANDER | U58: ACTIVIDADES FINANCIERAS Y DE SEGUROS | V58: 6511 | W58: Jurídica | X58: MICRO | Y58: 220000
A59: 1 | B59: 5001 | C59: MEDELLÍN | D59: 5 | E59: ANTIOQUIA | F59: ACTIVIDADES DE ATENCIÓN DE LA SALUD HUMANA Y DE ASISTENCIA SOCIAL | G59: 8691 | H59: Natural | I59: PEQUEÑA | J59: 2420000 | P59: 1 | Q59: 54001 | R59: CÚCUTA | S59: 54 | T59: NORTE DE SANTANDER | U59: ACTIVIDADES FINANCIERAS Y DE SEGUROS | V59: 6615 | W59: Natural | X59: MICRO | Y59: 880000
A60: 1 | B60: 5001 | C60: MEDELLÍN | D60: 5 | E60: ANTIOQUIA | F60: ACTIVIDADES DE ATENCIÓN DE LA SALUD HUMANA Y DE ASISTENCIA SOCIAL | G60: 8692 | H60: Jurídica | I60: MICRO | J60: 8140000 | P60: 1 | Q60: 54001 | R60: CÚCUTA | S60: 54 | T60: NORTE DE SANTANDER | U60: ACTIVIDADES FINANCIERAS Y DE SEGUROS | V60: 6619 | W60: Jurídica | X60: MICRO | Y60: 1320000
A61: 1 | B61: 5001 | C61: MEDELLÍN | D61: 5 | E61: ANTIOQUIA | F61: ACTIVIDADES DE ATENCIÓN DE LA SALUD HUMANA Y DE ASISTENCIA SOCIAL | G61: 8692 | H61: Jurídica | I61: PEQUEÑA | J61: 16060000 | P61: 1 | Q61: 54001 | R61: CÚCUTA | S61: 54 | T61: NORTE DE SANTANDER | U61: ACTIVIDADES FINANCIERAS Y DE SEGUROS | V61: 6621 | W61: Jurídica | X61: MICRO | Y61: 2860000
A62: 1 | B62: 5001 | C62: MEDELLÍN | D62: 5 | E62: ANTIOQUIA | F62: ACTIVIDADES DE ATENCIÓN DE LA SALUD HUMANA Y DE ASISTENCIA SOCIAL | G62: 8692 | H62: Natural | I62: MICRO | J62: 880000 | P62: 1 | Q62: 54001 | R62: CÚCUTA | S62: 54 | T62: NORTE DE SANTANDER | U62: ACTIVIDADES FINANCIERAS Y DE SEGUROS | V62: 6621 | W62: Natural | X62: MICRO | Y62: 1540000
A63: 1 | B63: 5001 | C63: MEDELLÍN | D63: 5 | E63: ANTIOQUIA | F63: ACTIVIDADES DE ATENCIÓN DE LA SALUD HUMANA Y DE ASISTENCIA SOCIAL | G63: 8699 | H63: Jurídica | I63: MEDIANA | J63: 30580000 | P63: 1 | Q63: 54001 | R63: CÚCUTA | S63: 54 | T63: NORTE DE SANTANDER | U63: ACTIVIDADES INMOBILIARIAS | V63: 6810 | W63: Jurídica | X63: MEDIANA | Y63: 1980000
A64: 1 | B64: 5001 | C64: MEDELLÍN | D64: 5 | E64: ANTIOQUIA | F64: ACTIVIDADES DE ATENCIÓN DE LA SALUD HUMANA Y DE ASISTENCIA SOCIAL | G64: 8699 | H64: Jurídica | I64: MICRO | J64: 17380000 | P64: 1 | Q64: 54001 | R64: CÚCUTA | S64: 54 | T64: NORTE DE SANTANDER | U64: ACTIVIDADES INMOBILIARIAS | V64: 6810 | W64: Jurídica | X64: MICRO | Y64: 6160000
A65: 1 | B65: 5001 | C65: MEDELLÍN | D65: 5 | E65: ANTIOQUIA | F65: ACTIVIDADES DE ATENCIÓN DE LA SALUD HUMANA Y DE ASISTENCIA SOCIAL | G65: 8699 | H65: Jurídica | I65: PEQUEÑA | J65: 29040000 | P65: 1 | Q65: 54001 | R65: CÚCUTA | S65: 54 | T65: NORTE DE SANTANDER | U65: ACTIVIDADES INMOBILIARIAS | V65: 6810 | W65: Jurídica | X65: PEQUEÑA | Y65: 3300000
A66: 1 | B66: 5001 | C66: MEDELLÍN | D66: 5 | E66: ANTIOQUIA | F66: ACTIVIDADES DE ATENCIÓN DE LA SALUD HUMANA Y DE ASISTENCIA SOCIAL | G66: 8699 | H66: Natural | I66: MICRO | J66: 2860000 | P66: 1 | Q66: 54001 | R66: CÚCUTA | S66: 54 | T66: NORTE DE SANTANDER | U66: ACTIVIDADES INMOBILIARIAS | V66: 6810 | W66: Natural | X66: MICRO | Y66: 1760000
A67: 1 | B67: 5001 | C67: MEDELLÍN | D67: 5 | E67: ANTIOQUIA | F67: ACTIVIDADES DE ATENCIÓN DE LA SALUD HUMANA Y DE ASISTENCIA SOCIAL | G67: 8699 | H67: Natural | I67: PEQUEÑA | J67: 2860000 | P67: 1 | Q67: 54001 | R67: CÚCUTA | S67: 54 | T67: NORTE DE SANTANDER | U67: ACTIVIDADES INMOBILIARIAS | V67: 6820 | W67: Jurídica | X67: MICRO | Y67: 4840000
A68: 1 | B68: 5001 | C68: MEDELLÍN | D68: 5 | E68: ANTIOQUIA | F68: ACTIVIDADES DE ATENCIÓN DE LA SALUD HUMANA Y DE ASISTENCIA SOCIAL | G68: 8710 | H68: Jurídica | I68: MICRO | J68: 440000 | P68: 1 | Q68: 54001 | R68: CÚCUTA | S68: 54 | T68: NORTE DE SANTANDER | U68: ACTIVIDADES INMOBILIARIAS | V68: 6820 | W68: Jurídica | X68: PEQUEÑA | Y68: 7260000
A69: 1 | B69: 5001 | C69: MEDELLÍN | D69: 5 | E69: ANTIOQUIA | F69: ACTIVIDADES DE ATENCIÓN DE LA SALUD HUMANA Y DE ASISTENCIA SOCIAL | G69: 8710 | H69: Jurídica | I69: PEQUEÑA | J69: 3960000 | P69: 1 | Q69: 54001 | R69: CÚCUTA | S69: 54 | T69: NORTE DE SANTANDER | U69: ACTIVIDADES PROFESIONALES, CIENTÍFICAS Y TÉCNICAS | V69: 6910 | W69: Jurídica | X69: MICRO | Y69: 5060000
A70: 1 | B70: 5001 | C70: MEDELLÍN | D70: 5 | E70: ANTIOQUIA | F70: ACTIVIDADES DE ATENCIÓN DE LA SALUD HUMANA Y DE ASISTENCIA SOCIAL | G70: 8720 | H70: Jurídica | I70: PEQUEÑA | J70: 440000 | P70: 1 | Q70: 54001 | R70: CÚCUTA | S70: 54 | T70: NORTE DE SANTANDER | U70: ACTIVIDADES PROFESIONALES, CIENTÍFICAS Y TÉCNICAS | V70: 6920 | W70: Jurídica | X70: MICRO | Y70: 3520000
A71: 1 | B71: 5001 | C71: MEDELLÍN | D71: 5 | E71: ANTIOQUIA | F71: ACTIVIDADES DE ATENCIÓN DE LA SALUD HUMANA Y DE ASISTENCIA SOCIAL | G71: 8730 | H71: Jurídica | I71: MEDIANA | J71: 12320000 | P71: 1 | Q71: 54001 | R71: CÚCUTA | S71: 54 | T71: NORTE DE SANTANDER | U71: ACTIVIDADES PROFESIONALES, CIENTÍFICAS Y TÉCNICAS | V71: 6920 | W71: Natural | X71: MICRO | Y71: 1760000
A72: 1 | B72: 5001 | C72: MEDELLÍN | D72: 5 | E72: ANTIOQUIA | F72: ACTIVIDADES DE ATENCIÓN DE LA SALUD HUMANA Y DE ASISTENCIA SOCIAL | G72: 8730 | H72: Jurídica | I72: MICRO | J72: 1980000 | P72: 1 | Q72: 54001 | R72: CÚCUTA | S72: 54 | T72: NORTE DE SANTANDER | U72: ACTIVIDADES PROFESIONALES, CIENTÍFICAS Y TÉCNICAS | V72: 7010 | W72: Jurídica | X72: MICRO | Y72: 1980000
A73: 1 | B73: 5001 | C73: MEDELLÍN | D73: 5 | E73: ANTIOQUIA | F73: ACTIVIDADES DE ATENCIÓN DE LA SALUD HUMANA Y DE ASISTENCIA SOCIAL | G73: 8730 | H73: Jurídica | I73: PEQUEÑA | J73: 5060000 | P73: 1 | Q73: 54001 | R73: CÚCUTA | S73: 54 | T73: NORTE DE SANTANDER | U73: ACTIVIDADES PROFESIONALES, CIENTÍFICAS Y TÉCNICAS | V73: 7010 | W73: Jurídica | X73: PEQUEÑA | Y73: 3300000
A74: 1 | B74: 5001 | C74: MEDELLÍN | D74: 5 | E74: ANTIOQUIA | F74: ACTIVIDADES DE ATENCIÓN DE LA SALUD HUMANA Y DE ASISTENCIA SOCIAL | G74: 8730 | H74: Natural | I74: MICRO | J74: 7920000 | P74: 1 | Q74: 54001 | R74: CÚCUTA | S74: 54 | T74: NORTE DE SANTANDER | U74: ACTIVIDADES PROFESIONALES, CIENTÍFICAS Y TÉCNICAS | V74: 7020 | W74: Jurídica | X74: MICRO | Y74: 5060000
A75: 1 | B75: 5001 | C75: MEDELLÍN | D75: 5 | E75: ANTIOQUIA | F75: ACTIVIDADES DE ATENCIÓN DE LA SALUD HUMANA Y DE ASISTENCIA SOCIAL | G75: 8790 | H75: Jurídica | I75: MICRO | J75: 440000 | P75: 1 | Q75: 54001 | R75: CÚCUTA | S75: 54 | T75: NORTE DE SANTANDER | U75: ACTIVIDADES PROFESIONALES, CIENTÍFICAS Y TÉCNICAS | V75: 7020 | W75: Jurídica | X75: PEQUEÑA | Y75: 220000
A76: 1 | B76: 5001 | C76: MEDELLÍN | D76: 5 | E76: ANTIOQUIA | F76: ACTIVIDADES DE ATENCIÓN DE LA SALUD HUMANA Y DE ASISTENCIA SOCIAL | G76: 8790 | H76: Jurídica | I76: PEQUEÑA | J76: 6380000 | P76: 1 | Q76: 54001 | R76: CÚCUTA | S76: 54 | T76: NORTE DE SANTANDER | U76: ACTIVIDADES PROFESIONALES, CIENTÍFICAS Y TÉCNICAS | V76: 7110 | W76: Jurídica | X76: MEDIANA | Y76: 24200000
A77: 1 | B77: 5001 | C77: MEDELLÍN | D77: 5 | E77: ANTIOQUIA | F77: ACTIVIDADES DE ATENCIÓN DE LA SALUD HUMANA Y DE ASISTENCIA SOCIAL | G77: 8810 | H77: Jurídica | I77: MEDIANA | J77: 7700000 | P77: 1 | Q77: 54001 | R77: CÚCUTA | S77: 54 | T77: NORTE DE SANTANDER | U77: ACTIVIDADES PROFESIONALES, CIENTÍFICAS Y TÉCNICAS | V77: 7110 | W77: Jurídica | X77: MICRO | Y77: 10340000
A78: 1 | B78: 5001 | C78: MEDELLÍN | D78: 5 | E78: ANTIOQUIA | F78: ACTIVIDADES DE ATENCIÓN DE LA SALUD HUMANA Y DE ASISTENCIA SOCIAL | G78: 8810 | H78: Jurídica | I78: MICRO | J78: 220000 | P78: 1 | Q78: 54001 | R78: CÚCUTA | S78: 54 | T78: NORTE DE SANTANDER | U78: ACTIVIDADES PROFESIONALES, CIENTÍFICAS Y TÉCNICAS | V78: 7110 | W78: Jurídica | X78: PEQUEÑA | Y78: 12980000
A79: 1 | B79: 5001 | C79: MEDELLÍN | D79: 5 | E79: ANTIOQUIA | F79: ACTIVIDADES DE ATENCIÓN DE LA SALUD HUMANA Y DE ASISTENCIA SOCIAL | G79: 8890 | H79: Jurídica | I79: MICRO | J79: 3520000 | P79: 1 | Q79: 54001 | R79: CÚCUTA | S79: 54 | T79: NORTE DE SANTANDER | U79: ACTIVIDADES PROFESIONALES, CIENTÍFICAS Y TÉCNICAS | V79: 7110 | W79: Natural | X79: MICRO | Y79: 1980000
A80: 1 | B80: 5001 | C80: MEDELLÍN | D80: 5 | E80: ANTIOQUIA | F80: ACTIVIDADES DE ATENCIÓN DE LA SALUD HUMANA Y DE ASISTENCIA SOCIAL | G80: 8890 | H80: Jurídica | I80: PEQUEÑA | J80: 1980000 | P80: 1 | Q80: 54001 | R80: CÚCUTA | S80: 54 | T80: NORTE DE SANTANDER | U80: ACTIVIDADES PROFESIONALES, CIENTÍFICAS Y TÉCNICAS | V80: 7120 | W80: Jurídica | X80: MICRO | Y80: 1760000
A81: 1 | B81: 5001 | C81: MEDELLÍN | D81: 5 | E81: ANTIOQUIA | F81: ACTIVIDADES DE LOS HOGARES INDIVIDUALES EN CALIDAD DE EMPLEADORES; ACTIVIDADES NO DIFERENCIADAS DE LOS HOGARES INDIVIDUALES COMO PRODUCTORES DE BIENES Y SERVICIOS PARA USO PROPIO | G81: 9700 | H81: Jurídica | I81: MICRO | J81: 220000 | P81: 1 | Q81: 54001 | R81: CÚCUTA | S81: 54 | T81: NORTE DE SANTANDER | U81: ACTIVIDADES PROFESIONALES, CIENTÍFICAS Y TÉCNICAS | V81: 7310 | W81: Jurídica | X81: MICRO | Y81: 6380000
A82: 1 | B82: 5001 | C82: MEDELLÍN | D82: 5 | E82: ANTIOQUIA | F82: ACTIVIDADES DE LOS HOGARES INDIVIDUALES EN CALIDAD DE EMPLEADORES; ACTIVIDADES NO DIFERENCIADAS DE LOS HOGARES INDIVIDUALES COMO PRODUCTORES DE BIENES Y SERVICIOS PARA USO PROPIO | G82: 9700 | H82: Jurídica | I82: PEQUEÑA | J82: 4400000 | P82: 1 | Q82: 54001 | R82: CÚCUTA | S82: 54 | T82: NORTE DE SANTANDER | U82: ACTIVIDADES PROFESIONALES, CIENTÍFICAS Y TÉCNICAS | V82: 7310 | W82: Jurídica | X82: PEQUEÑA | Y82: 4840000
A83: 1 | B83: 5001 | C83: MEDELLÍN | D83: 5 | E83: ANTIOQUIA | F83: ACTIVIDADES DE SERVICIOS ADMINISTRATIVOS Y DE APOYO | G83: 7710 | H83: Jurídica | I83: MICRO | J83: 3300000 | P83: 1 | Q83: 54001 | R83: CÚCUTA | S83: 54 | T83: NORTE DE SANTANDER | U83: ACTIVIDADES PROFESIONALES, CIENTÍFICAS Y TÉCNICAS | V83: 7310 | W83: Natural | X83: MICRO | Y83: 2420000
A84: 1 | B84: 5001 | C84: MEDELLÍN | D84: 5 | E84: ANTIOQUIA | F84: ACTIVIDADES DE SERVICIOS ADMINISTRATIVOS Y DE APOYO | G84: 7710 | H84: Natural | I84: MICRO | J84: 1980000 | P84: 1 | Q84: 54001 | R84: CÚCUTA | S84: 54 | T84: NORTE DE SANTANDER | U84: ACTIVIDADES PROFESIONALES, CIENTÍFICAS Y TÉCNICAS | V84: 7410 | W84: Jurídica | X84: PEQUEÑA | Y84: 2420000
A85: 1 | B85: 5001 | C85: MEDELLÍN | D85: 5 | E85: ANTIOQUIA | F85: ACTIVIDADES DE SERVICIOS ADMINISTRATIVOS Y DE APOYO | G85: 7710 | H85: Natural | I85: PEQUEÑA | J85: 2200000 | P85: 1 | Q85: 54001 | R85: CÚCUTA | S85: 54 | T85: NORTE DE SANTANDER | U85: ACTIVIDADES PROFESIONALES, CIENTÍFICAS Y TÉCNICAS | V85: 7420 | W85: Natural | X85: MEDIANA | Y85: 3960000
A86: 1 | B86: 5001 | C86: MEDELLÍN | D86: 5 | E86: ANTIOQUIA | F86: ACTIVIDADES DE SERVICIOS ADMINISTRATIVOS Y DE APOYO | G86: 7721 | H86: Jurídica | I86: MICRO | J86: 1100000 | P86: 1 | Q86: 54001 | R86: CÚCUTA | S86: 54 | T86: NORTE DE SANTANDER | U86: ACTIVIDADES PROFESIONALES, CIENTÍFICAS Y TÉCNICAS | V86: 7420 | W86: Natural | X86: MICRO | Y86: 220000
A87: 1 | B87: 5001 | C87: MEDELLÍN | D87: 5 | E87: ANTIOQUIA | F87: ACTIVIDADES DE SERVICIOS ADMINISTRATIVOS Y DE APOYO | G87: 7722 | H87: Jurídica | I87: MICRO | J87: 220000 | P87: 1 | Q87: 54001 | R87: CÚCUTA | S87: 54 | T87: NORTE DE SANTANDER | U87: ACTIVIDADES PROFESIONALES, CIENTÍFICAS Y TÉCNICAS | V87: 7490 | W87: Jurídica | X87: MICRO | Y87: 1540000
A88: 1 | B88: 5001 | C88: MEDELLÍN | D88: 5 | E88: ANTIOQUIA | F88: ACTIVIDADES DE SERVICIOS ADMINISTRATIVOS Y DE APOYO | G88: 7729 | H88: Jurídica | I88: MICRO | J88: 3520000 | P88: 1 | Q88: 54001 | R88: CÚCUTA | S88: 54 | T88: NORTE DE SANTANDER | U88: ACTIVIDADES PROFESIONALES, CIENTÍFICAS Y TÉCNICAS | V88: 7490 | W88: Natural | X88: MICRO | Y88: 1100000
A89: 1 | B89: 5001 | C89: MEDELLÍN | D89: 5 | E89: ANTIOQUIA | F89: ACTIVIDADES DE SERVICIOS ADMINISTRATIVOS Y DE APOYO | G89: 7729 | H89: Jurídica | I89: PEQUEÑA | J89: 9900000 | P89: 1 | Q89: 54001 | R89: CÚCUTA | S89: 54 | T89: NORTE DE SANTANDER | U89: ACTIVIDADES PROFESIONALES, CIENTÍFICAS Y TÉCNICAS | V89: 7500 | W89: Jurídica | X89: MICRO | Y89: 440000
A90: 1 | B90: 5001 | C90: MEDELLÍN | D90: 5 | E90: ANTIOQUIA | F90: ACTIVIDADES DE SERVICIOS ADMINISTRATIVOS Y DE APOYO | G90: 7729 | H90: Natural | I90: MICRO | J90: 3740000 | P90: 1 | Q90: 54001 | R90: CÚCUTA | S90: 54 | T90: NORTE DE SANTANDER | U90: ACTIVIDADES PROFESIONALES, CIENTÍFICAS Y TÉCNICAS | V90: 7500 | W90: Natural | X90: PEQUEÑA | Y90: 1100000
A91: 1 | B91: 5001 | C91: MEDELLÍN | D91: 5 | E91: ANTIOQUIA | F91: ACTIVIDADES DE SERVICIOS ADMINISTRATIVOS Y DE APOYO | G91: 7730 | H91: Jurídica | I91: MEDIANA | J91: 25960000 | P91: 1 | Q91: 54001 | R91: CÚCUTA | S91: 54 | T91: NORTE DE SANTANDER | U91: ADMINISTRACIÓN PÚBLICA Y DEFENSA; PLANES DE SEGURIDAD SOCIAL DE AFILIACIÓN OBLIGATORIA | V91: 8413 | W91: Jurídica | X91: MICRO | Y91: 1540000
A92: 1 | B92: 5001 | C92: MEDELLÍN | D92: 5 | E92: ANTIOQUIA | F92: ACTIVIDADES DE SERVICIOS ADMINISTRATIVOS Y DE APOYO | G92: 7730 | H92: Jurídica | I92: MICRO | J92: 28820000 | P92: 1 | Q92: 54001 | R92: CÚCUTA | S92: 54 | T92: NORTE DE SANTANDER | U92: AGRICULTURA, GANADERÍA, CAZA, SILVICULTURA Y PESCA | V92: 119 | W92: Jurídica | X92: MICRO | Y92: 660000
A93: 1 | B93: 5001 | C93: MEDELLÍN | D93: 5 | E93: ANTIOQUIA | F93: ACTIVIDADES DE SERVICIOS ADMINISTRATIVOS Y DE APOYO | G93: 7730 | H93: Jurídica | I93: PEQUEÑA | J93: 32340000 | P93: 1 | Q93: 54001 | R93: CÚCUTA | S93: 54 | T93: NORTE DE SANTANDER | U93: AGRICULTURA, GANADERÍA, CAZA, SILVICULTURA Y PESCA | V93: 126 | W93: Jurídica | X93: MICRO | Y93: 2860000
A94: 1 | B94: 5001 | C94: MEDELLÍN | D94: 5 | E94: ANTIOQUIA | F94: ACTIVIDADES DE SERVICIOS ADMINISTRATIVOS Y DE APOYO | G94: 7730 | H94: Natural | I94: MICRO | J94: 2200000 | P94: 1 | Q94: 54001 | R94: CÚCUTA | S94: 54 | T94: NORTE DE SANTANDER | U94: AGRICULTURA, GANADERÍA, CAZA, SILVICULTURA Y PESCA | V94: 126 | W94: Jurídica | X94: PEQUEÑA | Y94: 15400000
A95: 1 | B95: 5001 | C95: MEDELLÍN | D95: 5 | E95: ANTIOQUIA | F95: ACTIVIDADES DE SERVICIOS ADMINISTRATIVOS Y DE APOYO | G95: 7740 | H95: Jurídica | I95: MICRO | J95: 1540000 | P95: 1 | Q95: 54001 | R95: CÚCUTA | S95: 54 | T95: NORTE DE SANTANDER | U95: AGRICULTURA, GANADERÍA, CAZA, SILVICULTURA Y PESCA | V95: 126 | W95: Natural | X95: MICRO | Y95: 1320000
A96: 1 | B96: 5001 | C96: MEDELLÍN | D96: 5 | E96: ANTIOQUIA | F96: ACTIVIDADES DE SERVICIOS ADMINISTRATIVOS Y DE APOYO | G96: 7740 | H96: Jurídica | I96: PEQUEÑA | J96: 220000 | P96: 1 | Q96: 54001 | R96: CÚCUTA | S96: 54 | T96: NORTE DE SANTANDER | U96: AGRICULTURA, GANADERÍA, CAZA, SILVICULTURA Y PESCA | V96: 145 | W96: Natural | X96: MICRO | Y96: 660000
A97: 1 | B97: 5001 | C97: MEDELLÍN | D97: 5 | E97: ANTIOQUIA | F97: ACTIVIDADES DE SERVICIOS ADMINISTRATIVOS Y DE APOYO | G97: 7810 | H97: Jurídica | I97: MICRO | J97: 3300000 | P97: 1 | Q97: 54001 | R97: CÚCUTA | S97: 54 | T97: NORTE DE SANTANDER | U97: AGRICULTURA, GANADERÍA, CAZA, SILVICULTURA Y PESCA | V97: 322 | W97: Jurídica | X97: MEDIANA | Y97: 5940000
A98: 1 | B98: 5001 | C98: MEDELLÍN | D98: 5 | E98: ANTIOQUIA | F98: ACTIVIDADES DE SERVICIOS ADMINISTRATIVOS Y DE APOYO | G98: 7810 | H98: Jurídica | I98: PEQUEÑA | J98: 11220000 | P98: 1 | Q98: 54001 | R98: CÚCUTA | S98: 54 | T98: NORTE DE SANTANDER | U98: AGRICULTURA, GANADERÍA, CAZA, SILVICULTURA Y PESCA | V98: 322 | W98: Jurídica | X98: PEQUEÑA | Y98: 2640000
A99: 1 | B99: 5001 | C99: MEDELLÍN | D99: 5 | E99: ANTIOQUIA | F99: ACTIVIDADES DE SERVICIOS ADMINISTRATIVOS Y DE APOYO | G99: 7820 | H99: Jurídica | I99: GRANDE | J99: 120120000 | P99: 1 | Q99: 54001 | R99: CÚCUTA | S99: 54 | T99: NORTE DE SANTANDER | U99: ALOJAMIENTO Y SERVICIOS DE COMIDA | V99: 5511 | W99: Jurídica | X99: MEDIANA | Y99: 24640000
A100: 1 | B100: 5001 | C100: MEDELLÍN | D100: 5 | E100: ANTIOQUIA | F100: ACTIVIDADES DE SERVICIOS ADMINISTRATIVOS Y DE APOYO | G100: 7820 | H100: Jurídica | I100: MEDIANA | J100: 40920000 | P100: 1 | Q100: 54001 | R100: CÚCUTA | S100: 54 | T100: NORTE DE SANTANDER | U100: ALOJAMIENTO Y SERVICIOS DE COMIDA | V100: 5511 | W100: Jurídica | X100: MICRO | Y100: 9240000
A101: 1 | B101: 5001 | C101: MEDELLÍN | D101: 5 | E101: ANTIOQUIA | F101: ACTIVIDADES DE SERVICIOS ADMINISTRATIVOS Y DE APOYO | G101: 7820 | H101: Jurídica | I101: MICRO | J101: 220000 | P101: 1 | Q101: 54001 | R101: CÚCUTA | S101: 54 | T101: NORTE DE SANTANDER | U101: ALOJAMIENTO Y SERVICIOS DE COMIDA | V101: 5511 | W101: Jurídica | X101: PEQUEÑA | Y101: 15180000
A102: 1 | B102: 5001 | C102: MEDELLÍN | D102: 5 | E102: ANTIOQUIA | F102: ACTIVIDADES DE SERVICIOS ADMINISTRATIVOS Y DE APOYO | G102: 7820 | H102: Jurídica | I102: MUY GRANDE | J102: 1422300000 | P102: 1 | Q102: 54001 | R102: CÚCUTA | S102: 54 | T102: NORTE DE SANTANDER | U102: ALOJAMIENTO Y SERVICIOS DE COMIDA | V102: 5511 | W102: Natural | X102: MICRO | Y102: 6600000
A103: 1 | B103: 5001 | C103: MEDELLÍN | D103: 5 | E103: ANTIOQUIA | F103: ACTIVIDADES DE SERVICIOS ADMINISTRATIVOS Y DE APOYO | G103: 7820 | H103: Jurídica | I103: PEQUEÑA | J103: 1100000 | P103: 1 | Q103: 54001 | R103: CÚCUTA | S103: 54 | T103: NORTE DE SANTANDER | U103: ALOJAMIENTO Y SERVICIOS DE COMIDA | V103: 5512 | W103: Jurídica | X103: MICRO | Y103: 880000
A104: 1 | B104: 5001 | C104: MEDELLÍN | D104: 5 | E104: ANTIOQUIA | F104: ACTIVIDADES DE SERVICIOS ADMINISTRATIVOS Y DE APOYO | G104: 7820 | H104: Natural | I104: PEQUEÑA | J104: 7920000 | P104: 1 | Q104: 54001 | R104: CÚCUTA | S104: 54 | T104: NORTE DE SANTANDER | U104: ALOJAMIENTO Y SERVICIOS DE COMIDA | V104: 5530 | W104: Jurídica | X104: PEQUEÑA | Y104: 3520000
A105: 1 | B105: 5001 | C105: MEDELLÍN | D105: 5 | E105: ANTIOQUIA | F105: ACTIVIDADES DE SERVICIOS ADMINISTRATIVOS Y DE APOYO | G105: 7830 | H105: Jurídica | I105: GRANDE | J105: 64680000 | P105: 1 | Q105: 54001 | R105: CÚCUTA | S105: 54 | T105: NORTE DE SANTANDER | U105: ALOJAMIENTO Y SERVICIOS DE COMIDA | V105: 5530 | W105: Natural | X105: MICRO | Y105: 3960000
A106: 1 | B106: 5001 | C106: MEDELLÍN | D106: 5 | E106: ANTIOQUIA | F106: ACTIVIDADES DE SERVICIOS ADMINISTRATIVOS Y DE APOYO | G106: 7830 | H106: Jurídica | I106: MEDIANA | J106: 27280000 | P106: 1 | Q106: 54001 | R106: CÚCUTA | S106: 54 | T106: NORTE DE SANTANDER | U106: ALOJAMIENTO Y SERVICIOS DE COMIDA | V106: 5611 | W106: Jurídica | X106: MICRO | Y106: 12540000
A107: 1 | B107: 5001 | C107: MEDELLÍN | D107: 5 | E107: ANTIOQUIA | F107: ACTIVIDADES DE SERVICIOS ADMINISTRATIVOS Y DE APOYO | G107: 7830 | H107: Jurídica | I107: MICRO | J107: 3300000 | P107: 1 | Q107: 54001 | R107: CÚCUTA | S107: 54 | T107: NORTE DE SANTANDER | U107: ALOJAMIENTO Y SERVICIOS DE COMIDA | V107: 5611 | W107: Jurídica | X107: PEQUEÑA | Y107: 47960000
A108: 1 | B108: 5001 | C108: MEDELLÍN | D108: 5 | E108: ANTIOQUIA | F108: ACTIVIDADES DE SERVICIOS ADMINISTRATIVOS Y DE APOYO | G108: 7830 | H108: Jurídica | I108: PEQUEÑA | J108: 2420000 | P108: 1 | Q108: 54001 | R108: CÚCUTA | S108: 54 | T108: NORTE DE SANTANDER | U108: ALOJAMIENTO Y SERVICIOS DE COMIDA | V108: 5611 | W108: Natural | X108: MICRO | Y108: 13200000
A109: 1 | B109: 5001 | C109: MEDELLÍN | D109: 5 | E109: ANTIOQUIA | F109: ACTIVIDADES DE SERVICIOS ADMINISTRATIVOS Y DE APOYO | G109: 7830 | H109: Natural | I109: MICRO | J109: 880000 | P109: 1 | Q109: 54001 | R109: CÚCUTA | S109: 54 | T109: NORTE DE SANTANDER | U109: ALOJAMIENTO Y SERVICIOS DE COMIDA | V109: 5611 | W109: Natural | X109: PEQUEÑA | Y109: 2860000
A110: 1 | B110: 5001 | C110: MEDELLÍN | D110: 5 | E110: ANTIOQUIA | F110: ACTIVIDADES DE SERVICIOS ADMINISTRATIVOS Y DE APOYO | G110: 7911 | H110: Jurídica | I110: MEDIANA | J110: 2420000 | P110: 1 | Q110: 54001 | R110: CÚCUTA | S110: 54 | T110: NORTE DE SANTANDER | U110: ALOJAMIENTO Y SERVICIOS DE COMIDA | V110: 5612 | W110: Natural | X110: MICRO | Y110: 5500000
A111: 1 | B111: 5001 | C111: MEDELLÍN | D111: 5 | E111: ANTIOQUIA | F111: ACTIVIDADES DE SERVICIOS ADMINISTRATIVOS Y DE APOYO | G111: 7911 | H111: Jurídica | I111: MICRO | J111: 19580000 | P111: 1 | Q111: 54001 | R111: CÚCUTA | S111: 54 | T111: NORTE DE SANTANDER | U111: ALOJAMIENTO Y SERVICIOS DE COMIDA | V111: 5612 | W111: Natural | X111: PEQUEÑA | Y111: 3080000
A112: 1 | B112: 5001 | C112: MEDELLÍN | D112: 5 | E112: ANTIOQUIA | F112: ACTIVIDADES DE SERVICIOS ADMINISTRATIVOS Y DE APOYO | G112: 7911 | H112: Jurídica | I112: PEQUEÑA | J112: 23320000 | P112: 1 | Q112: 54001 | R112: CÚCUTA | S112: 54 | T112: NORTE DE SANTANDER | U112: ALOJAMIENTO Y SERVICIOS DE COMIDA | V112: 5613 | W112: Jurídica | X112: MICRO | Y112: 2640000
A113: 1 | B113: 5001 | C113: MEDELLÍN | D113: 5 | E113: ANTIOQUIA | F113: ACTIVIDADES DE SERVICIOS ADMINISTRATIVOS Y DE APOYO | G113: 7911 | H113: Natural | I113: MICRO | J113: 1980000 | P113: 1 | Q113: 54001 | R113: CÚCUTA | S113: 54 | T113: NORTE DE SANTANDER | U113: ALOJAMIENTO Y SERVICIOS DE COMIDA | V113: 5613 | W113: Natural | X113: MICRO | Y113: 3960000
A114: 1 | B114: 5001 | C114: MEDELLÍN | D114: 5 | E114: ANTIOQUIA | F114: ACTIVIDADES DE SERVICIOS ADMINISTRATIVOS Y DE APOYO | G114: 7912 | H114: Jurídica | I114: MICRO | J114: 11220000 | P114: 1 | Q114: 54001 | R114: CÚCUTA | S114: 54 | T114: NORTE DE SANTANDER | U114: ALOJAMIENTO Y SERVICIOS DE COMIDA | V114: 5613 | W114: Natural | X114: PEQUEÑA | Y114: 6820000
A115: 1 | B115: 5001 | C115: MEDELLÍN | D115: 5 | E115: ANTIOQUIA | F115: ACTIVIDADES DE SERVICIOS ADMINISTRATIVOS Y DE APOYO | G115: 7912 | H115: Jurídica | I115: PEQUEÑA | J115: 9460000 | P115: 1 | Q115: 54001 | R115: CÚCUTA | S115: 54 | T115: NORTE DE SANTANDER | U115: ALOJAMIENTO Y SERVICIOS DE COMIDA | V115: 5619 | W115: Jurídica | X115: MICRO | Y115: 880000
A116: 1 | B116: 5001 | C116: MEDELLÍN | D116: 5 | E116: ANTIOQUIA | F116: ACTIVIDADES DE SERVICIOS ADMINISTRATIVOS Y DE APOYO | G116: 7912 | H116: Natural | I116: MICRO | J116: 880000 | P116: 1 | Q116: 54001 | R116: CÚCUTA | S116: 54 | T116: NORTE DE SANTANDER | U116: ALOJAMIENTO Y SERVICIOS DE COMIDA | V116: 5619 | W116: Jurídica | X116: PEQUEÑA | Y116: 2420000
A117: 1 | B117: 5001 | C117: MEDELLÍN | D117: 5 | E117: ANTIOQUIA | F117: ACTIVIDADES DE SERVICIOS ADMINISTRATIVOS Y DE APOYO | G117: 7990 | H117: Jurídica | I117: MICRO | J117: 2860000 | P117: 1 | Q117: 54001 | R117: CÚCUTA | S117: 54 | T117: NORTE DE SANTANDER | U117: ALOJAMIENTO Y SERVICIOS DE COMIDA | V117: 5619 | W117: Natural | X117: MICRO | Y117: 660000
A118: 1 | B118: 5001 | C118: MEDELLÍN | D118: 5 | E118: ANTIOQUIA | F118: ACTIVIDADES DE SERVICIOS ADMINISTRATIVOS Y DE APOYO | G118: 7990 | H118: Jurídica | I118: PEQUEÑA | J118: 2420000 | P118: 1 | Q118: 54001 | R118: CÚCUTA | S118: 54 | T118: NORTE DE SANTANDER | U118: ALOJAMIENTO Y SERVICIOS DE COMIDA | V118: 5621 | W118: Jurídica | X118: MICRO | Y118: 1760000
A119: 1 | B119: 5001 | C119: MEDELLÍN | D119: 5 | E119: ANTIOQUIA | F119: ACTIVIDADES DE SERVICIOS ADMINISTRATIVOS Y DE APOYO | G119: 8010 | H119: Jurídica | I119: GRANDE | J119: 220000 | P119: 1 | Q119: 54001 | R119: CÚCUTA | S119: 54 | T119: NORTE DE SANTANDER | U119: ALOJAMIENTO Y SERVICIOS DE COMIDA | V119: 5630 | W119: Jurídica | X119: MICRO | Y119: 880000
A120: 1 | B120: 5001 | C120: MEDELLÍN | D120: 5 | E120: ANTIOQUIA | F120: ACTIVIDADES DE SERVICIOS ADMINISTRATIVOS Y DE APOYO | G120: 8010 | H120: Jurídica | I120: MEDIANA | J120: 2200000 | P120: 1 | Q120: 54001 | R120: CÚCUTA | S120: 54 | T120: NORTE DE SANTANDER | U120: ALOJAMIENTO Y SERVICIOS DE COMIDA | V120: 5630 | W120: Natural | X120: MICRO | Y120: 660000
A121: 1 | B121: 5001 | C121: MEDELLÍN | D121: 5 | E121: ANTIOQUIA | F121: ACTIVIDADES DE SERVICIOS ADMINISTRATIVOS Y DE APOYO | G121: 8010 | H121: Jurídica | I121: MICRO | J121: 1320000 | P121: 1 | Q121: 54001 | R121: CÚCUTA | S121: 54 | T121: NORTE DE SANTANDER | U121: COMERCIO AL POR MAYOR Y AL POR MENOR; REPARACIÓN DE VEHÍCULOS AUTOMOTORES Y MOTOCICLETAS | V121: 4511 | W121: Jurídica | X121: PEQUEÑA | Y121: 1980000
A122: 1 | B122: 5001 | C122: MEDELLÍN | D122: 5 | E122: ANTIOQUIA | F122: ACTIVIDADES DE SERVICIOS ADMINISTRATIVOS Y DE APOYO | G122: 8010 | H122: Jurídica | I122: MUY GRANDE | J122: 4400000 | P122: 1 | Q122: 54001 | R122: CÚCUTA | S122: 54 | T122: NORTE DE SANTANDER | U122: COMERCIO AL POR MAYOR Y AL POR MENOR; REPARACIÓN DE VEHÍCULOS AUTOMOTORES Y MOTOCICLETAS | V122: 4520 | W122: Jurídica | X122: MICRO | Y122: 6380000
A123: 1 | B123: 5001 | C123: MEDELLÍN | D123: 5 | E123: ANTIOQUIA | F123: ACTIVIDADES DE SERVICIOS ADMINISTRATIVOS Y DE APOYO | G123: 8020 | H123: Jurídica | I123: MICRO | J123: 9680000 | P123: 1 | Q123: 54001 | R123: CÚCUTA | S123: 54 | T123: NORTE DE SANTANDER | U123: COMERCIO AL POR MAYOR Y AL POR MENOR; REPARACIÓN DE VEHÍCULOS AUTOMOTORES Y MOTOCICLETAS | V123: 4520 | W123: Natural | X123: MICRO | Y123: 8360000
A124: 1 | B124: 5001 | C124: MEDELLÍN | D124: 5 | E124: ANTIOQUIA | F124: ACTIVIDADES DE SERVICIOS ADMINISTRATIVOS Y DE APOYO | G124: 8020 | H124: Jurídica | I124: PEQUEÑA | J124: 220000 | P124: 1 | Q124: 54001 | R124: CÚCUTA | S124: 54 | T124: NORTE DE SANTANDER | U124: COMERCIO AL POR MAYOR Y AL POR MENOR; REPARACIÓN DE VEHÍCULOS AUTOMOTORES Y MOTOCICLETAS | V124: 4530 | W124: Jurídica | X124: MICRO | Y124: 14300000
A125: 1 | B125: 5001 | C125: MEDELLÍN | D125: 5 | E125: ANTIOQUIA | F125: ACTIVIDADES DE SERVICIOS ADMINISTRATIVOS Y DE APOYO | G125: 8020 | H125: Natural | I125: MICRO | J125: 2420000 | P125: 1 | Q125: 54001 | R125: CÚCUTA | S125: 54 | T125: NORTE DE SANTANDER | U125: COMERCIO AL POR MAYOR Y AL POR MENOR; REPARACIÓN DE VEHÍCULOS AUTOMOTORES Y MOTOCICLETAS | V125: 4530 | W125: Jurídica | X125: PEQUEÑA | Y125: 23540000
A126: 1 | B126: 5001 | C126: MEDELLÍN | D126: 5 | E126: ANTIOQUIA | F126: ACTIVIDADES DE SERVICIOS ADMINISTRATIVOS Y DE APOYO | G126: 8030 | H126: Jurídica | I126: MICRO | J126: 660000 | P126: 1 | Q126: 54001 | R126: CÚCUTA | S126: 54 | T126: NORTE DE SANTANDER | U126: COMERCIO AL POR MAYOR Y AL POR MENOR; REPARACIÓN DE VEHÍCULOS AUTOMOTORES Y MOTOCICLETAS | V126: 4530 | W126: Natural | X126: MICRO | Y126: 17380000
A127: 1 | B127: 5001 | C127: MEDELLÍN | D127: 5 | E127: ANTIOQUIA | F127: ACTIVIDADES DE SERVICIOS ADMINISTRATIVOS Y DE APOYO | G127: 8030 | H127: Jurídica | I127: PEQUEÑA | J127: 220000 | P127: 1 | Q127: 54001 | R127: CÚCUTA | S127: 54 | T127: NORTE DE SANTANDER | U127: COMERCIO AL POR MAYOR Y AL POR MENOR; REPARACIÓN DE VEHÍCULOS AUTOMOTORES Y MOTOCICLETAS | V127: 4530 | W127: Natural | X127: PEQUEÑA | Y127: 3080000
A128: 1 | B128: 5001 | C128: MEDELLÍN | D128: 5 | E128: ANTIOQUIA | F128: ACTIVIDADES DE SERVICIOS ADMINISTRATIVOS Y DE APOYO | G128: 8110 | H128: Jurídica | I128: MEDIANA | J128: 11000000 | P128: 1 | Q128: 54001 | R128: CÚCUTA | S128: 54 | T128: NORTE DE SANTANDER | U128: COMERCIO AL POR MAYOR Y AL POR MENOR; REPARACIÓN DE VEHÍCULOS AUTOMOTORES Y MOTOCICLETAS | V128: 4541 | W128: Jurídica | X128: MICRO | Y128: 3740000
A129: 1 | B129: 5001 | C129: MEDELLÍN | D129: 5 | E129: ANTIOQUIA | F129: ACTIVIDADES DE SERVICIOS ADMINISTRATIVOS Y DE APOYO | G129: 8110 | H129: Jurídica | I129: MICRO | J129: 1540000 | P129: 1 | Q129: 54001 | R129: CÚCUTA | S129: 54 | T129: NORTE DE SANTANDER | U129: COMERCIO AL POR MAYOR Y AL POR MENOR; REPARACIÓN DE VEHÍCULOS AUTOMOTORES Y MOTOCICLETAS | V129: 4541 | W129: Jurídica | X129: PEQUEÑA | Y129: 2420000
A130: 1 | B130: 5001 | C130: MEDELLÍN | D130: 5 | E130: ANTIOQUIA | F130: ACTIVIDADES DE SERVICIOS ADMINISTRATIVOS Y DE APOYO | G130: 8110 | H130: Jurídica | I130: PEQUEÑA | J130: 1980000 | P130: 1 | Q130: 54001 | R130: CÚCUTA | S130: 54 | T130: NORTE DE SANTANDER | U130: COMERCIO AL POR MAYOR Y AL POR MENOR; REPARACIÓN DE VEHÍCULOS AUTOMOTORES Y MOTOCICLETAS | V130: 4541 | W130: Natural | X130: MICRO | Y130: 3960000
A131: 1 | B131: 5001 | C131: MEDELLÍN | D131: 5 | E131: ANTIOQUIA | F131: ACTIVIDADES DE SERVICIOS ADMINISTRATIVOS Y DE APOYO | G131: 8110 | H131: Natural | I131: MICRO | J131: 880000 | P131: 1 | Q131: 54001 | R131: CÚCUTA | S131: 54 | T131: NORTE DE SANTANDER | U131: COMERCIO AL POR MAYOR Y AL POR MENOR; REPARACIÓN DE VEHÍCULOS AUTOMOTORES Y MOTOCICLETAS | V131: 4620 | W131: Jurídica | X131: MICRO | Y131: 1980000
A132: 1 | B132: 5001 | C132: MEDELLÍN | D132: 5 | E132: ANTIOQUIA | F132: ACTIVIDADES DE SERVICIOS ADMINISTRATIVOS Y DE APOYO | G132: 8121 | H132: Jurídica | I132: MEDIANA | J132: 16940000 | P132: 1 | Q132: 54001 | R132: CÚCUTA | S132: 54 | T132: NORTE DE SANTANDER | U132: COMERCIO AL POR MAYOR Y AL POR MENOR; REPARACIÓN DE VEHÍCULOS AUTOMOTORES Y MOTOCICLETAS | V132: 4620 | W132: Jurídica | X132: PEQUEÑA | Y132: 2640000
A133: 1 | B133: 5001 | C133: MEDELLÍN | D133: 5 | E133: ANTIOQUIA | F133: ACTIVIDADES DE SERVICIOS ADMINISTRATIVOS Y DE APOYO | G133: 8121 | H133: Jurídica | I133: MICRO | J133: 7480000 | P133: 1 | Q133: 54001 | R133: CÚCUTA | S133: 54 | T133: NORTE DE SANTANDER | U133: COMERCIO AL POR MAYOR Y AL POR MENOR; REPARACIÓN DE VEHÍCULOS AUTOMOTORES Y MOTOCICLETAS | V133: 4631 | W133: Jurídica | X133: MEDIANA | Y133: 7480000
A134: 1 | B134: 5001 | C134: MEDELLÍN | D134: 5 | E134: ANTIOQUIA | F134: ACTIVIDADES DE SERVICIOS ADMINISTRATIVOS Y DE APOYO | G134: 8121 | H134: Jurídica | I134: PEQUEÑA | J134: 14080000 | P134: 1 | Q134: 54001 | R134: CÚCUTA | S134: 54 | T134: NORTE DE SANTANDER | U134: COMERCIO AL POR MAYOR Y AL POR MENOR; REPARACIÓN DE VEHÍCULOS AUTOMOTORES Y MOTOCICLETAS | V134: 4631 | W134: Jurídica | X134: MICRO | Y134: 9020000
A135: 1 | B135: 5001 | C135: MEDELLÍN | D135: 5 | E135: ANTIOQUIA | F135: ACTIVIDADES DE SERVICIOS ADMINISTRATIVOS Y DE APOYO | G135: 8121 | H135: Natural | I135: PEQUEÑA | J135: 3520000 | P135: 1 | Q135: 54001 | R135: CÚCUTA | S135: 54 | T135: NORTE DE SANTANDER | U135: COMERCIO AL POR MAYOR Y AL POR MENOR; REPARACIÓN DE VEHÍCULOS AUTOMOTORES Y MOTOCICLETAS | V135: 4631 | W135: Jurídica | X135: PEQUEÑA | Y135: 5280000
A136: 1 | B136: 5001 | C136: MEDELLÍN | D136: 5 | E136: ANTIOQUIA | F136: ACTIVIDADES DE SERVICIOS ADMINISTRATIVOS Y DE APOYO | G136: 8129 | H136: Jurídica | I136: GRANDE | J136: 44220000 | P136: 1 | Q136: 54001 | R136: CÚCUTA | S136: 54 | T136: NORTE DE SANTANDER | U136: COMERCIO AL POR MAYOR Y AL POR MENOR; REPARACIÓN DE VEHÍCULOS AUTOMOTORES Y MOTOCICLETAS | V136: 4631 | W136: Natural | X136: MICRO | Y136: 1760000
